Workbook

Sheet Startseite
A1: Gründungsplaner
A6: Unternehmensdaten:
A7: Vorname Name | F7: Empfehlung: Nutzen Sie die Bearbeitungshinweise!
A8: Straße, Hausnummer
A9: Postleitzahl
A10: Ort
A11: Telefonnummer
A12: email
A13: Gewerbe
A14: geplanter Unternehmensname
A15: Rechtsform
A16: Geplantes Gründungsdatum (TT.MM.JJ) | D16: 2017-01-01
A20: Planungsrechnung:
D22: Struktur:
A23: Kapitalbedarfs- und Finanzierungsplanung | D23: Rentabilitätsvorschau | I23: Liquiditätsplanung
A35: Einzelunternehmen
A37: Einzelunternehmen
A38: eingetragene Kauffrau e.K.
A39: eingetragener Kaufmann e.K.
A40: Gesellschaft bürgerlichen Rechts (GbR)
A41: OHG
A42: KG
A43: GmbH & Co KG
A44: GmbH
A45: UG (haftungsbeschränkt)
A46: Ltd.

Sheet Bearbeitungshinweise

Sheet Deckblatt
A13: Unternehmenskonzept
A15: von
A19: =Startseite!C7 -> 0
A20: =Startseite!C8 -> 0
A21: =Startseite!C9& " " & Startseite!C10 -> 
A24: Telefonnummer:
G25: =Startseite!C11 -> 0.00E+00
G27: email:
G28: =Startseite!C12 -> 0.00E+00
A31: Unternehmensname:
A32: =Startseite!C14 -> 0
A35: Branche:
A36: =Startseite!C13 -> 0
A39: Rechtsform:
A40: =Startseite!A35 -> Einzelunternehmen
H48: =TEXT(TODAY(),"TT.MM.JJ") -> 02.03.17

Sheet Kapitalbedarf
A2: =CONCATENATE("Kapitalbedarfsplan des Unternehmens: ",Startseite!C14) -> Kapitalbedarfsplan des Unternehmens:
B4: Kapitalbedarfsplanung (Netto-Werte) | F4: Durchschnittl. | G4: Abschreibung
B5: EUR | C5: EUR | D5: EUR | E5: % | F5: Nutzungsdauer | G5: (AfA)
A6: Bezeichnung | B6: vorhanden | C6: zu beschaffen | D6: Zusammen | F6: (Jahre) | G6: EUR
A8: Firmenwert | D8: =IF(C8=0,0,C8) -> 0 | E8: =IF(D8=0,"",(D8*100)/D$30) ->  | F8: 15 | G8: =IF(D8="",0,IF(F8=0,0,IF(F8="",0,D8/F8))) -> 0
A9: Grundstücke | D9: =IF(B9+C9=0,0,B9+C9) -> 0 | F9: 0 | G9: =IF(D9="",0,IF(F9=0,0,IF(F9="",0,D9/F9))) -> 0
A10: Gebäude | D10: 0 | F10: 33 | G10: =IF(D10="",0,IF(F10=0,0,IF(F10="",0,D10/F10))) -> 0
A11: Umbauten/ Renovierung | D11: 0 | F11: 10 | G11: =IF(D11="",0,IF(F11=0,0,IF(F11="",0,D11/F11))) -> 0
A12: Maschinen/Geräte/Werkzeuge | D12: 0 | F12: 10 | G12: 0
A13: Fahrzeuge | D13: 0 | F13: 6 | G13: 0
A14: Büroausstattung, EDV | D14: =IF(B14+C14=0,0,B14+C14) -> 0 | F14: 3 | G14: 0
A15: Laden-,Lagereinrichtung | D15: 0 | F15: 8 | G15: 0
A16: Finanzanlagen | D16: =IF(B16+C16=0,0,B16+C16) -> 0 | F16: 0 | G16: 0
A17: Sonstiges | D17: =IF(B17+C17=0,0,B17+C17) -> 0 | F17: 0 | G17: 0
A19: Anlageinvestition | B19: =SUM(B8:B17) -> 0 | C19: =SUM(C8:C17) -> 0 | D19: =SUM(D7:D17) -> 0 | E19: =IF(D19=0,"",(D19*100)/D$30) ->  | G19: =ROUND(SUM(G8:G17),-2) -> 0
A21: Material-/Warenbestand | D21: =IF(B21+C21=0,0,B21+C21) -> 0 | E21: =IF(D21=0,"",(D21*100)/D$30) -> 
A22: Markterschließungskosten | D22: =IF(B22+C22=0,0,B22+C22) -> 0
A23: Vorfinanzierungen v. Aufträgen | D23: =IF(C23=0,0,C23) -> 0
A24: Anlaufkosten | D24: =IF(C24=0,0,C24) -> 0
A25: Disagio | C25: =Finanzierung!J26 -> 0 | D25: =IF(C25=0,0,C25) -> 0
A26: Reserve für Unvorhergesehenes | D26: =IF(B26+C26=0,0,B26+C26) -> 0
A27: Sonstiges | D27: =IF(B27+C27=0,0,B27+C27) -> 0
A29: Betriebsmittel | B29: =SUM(B21:B28) -> 0 | C29: =SUM(C21:C28) -> 0 | D29: =SUM(D21:D28) -> 0 | E29: =IF(D29=0,"",(D29*100)/D$30) -> 
A30: Gesamtkapitalbedarf | B30: =(B19+B29) -> 0 | C30: =(C19+C29) -> 0 | D30: =(D19+D29) -> 0 | E30: =IF(D30=0,"",(D30*100)/D$30) -> 

Sheet Finanzierung
BD1: Zinsplanung
A2: =CONCATENATE("Finanzierungsplan des Unternehmens: ",Startseite!C14) -> Finanzierungsplan des Unternehmens:
BD3: =#REF! ->  | BI3: =A18 -> Darlehen 1: | BN3: =A19 -> Darlehen 2: | BS3: =H19 -> 0 | BW3: =Kapitalbedarf!#REF! -> 
BC4: EUR | BD4: =#REF! ->  | BH4: EUR | BI4: =C18 -> 0 | BM4: EUR | BN4: =C19 -> 0 | BR4: EUR | BS4: =J19 -> 0 | BW4: =Kapitalbedarf!#REF! -> 
C5: EUR | D5: % | BC5: Zinssatz % | BD5: =#REF! ->  | BF5: ab 6. Jahr | BH5: Zinssatz % | BI5: =E18 -> 0.00 | BM5: Zinssatz % | BN5: =E19 -> 0.00 | BR5: Zinssatz % | BS5: =L19 -> 0.00 | BW5: 6.5
A6: Kapitalbedarf lt. Kapitalbedarfsplan: | C6: =Kapitalbedarf!D30 -> 0 | D6: 100.0 | BC6: Laufzeit J. | BD6: 20 | BH6: Laufzeit J. | BI6: 5 | BM6: Laufzeit J. | BN6: 10 | BR6: Laufzeit J. | BS6: 10 | BW6: 10
BC7: Tilgungen p.J. | BD7: 2 | BH7: Tilgungen p.J. | BI7: 2 | BM7: Tilgungen p.J. | BN7: 2 | BR7: Tilgungen p.J. | BS7: 2 | BW7: 2
A9: =CONCATENATE("Finanzierungsplan des Unternehmens: ",Startseite!C14) -> Finanzierungsplan des Unternehmens: | BC9: Zahl Raten | BH9: Zahl Raten | BI9: =BI6*2-BI10 -> 10 | BM9: Zahl Raten | BN9: =BN6*2-BN10 -> 20 | BR9: Zahl Raten | BS9: =BS6*2-BS10 -> 20 | BW9: 20
G10: Die Angaben zur Fremdfinanzierung sind als erster Planungsansatz zu verstehen. Über den tatsächlichen Finanzierungsweg soll gemeinsam mit der Hausbank beraten werden. | BH10: Tiilgungsfrei | BI10: =H18*2 -> 0 | BM10: Tiilgungsfrei | BN10: =H19*2 -> 0 | BR10: Tiilgungsfrei | BS10: =M19*2 -> 0
A11: 1. Eigenkapital: | B11: - Barmittel | D11: =IF(C11=0,"",(C11*100)/C$32) ->  | BD11: =+BD3 ->  | BI11: =+BI3 -> Darlehen 1: | BN11: =+BN3 -> Darlehen 2: | BS11: =+BS3 -> 0 | BW11: =BW3 ->  | CA11: Gesamt
B12: - MGP
B13: - vorhanden / Sacheinlage | C13: =Kapitalbedarf!B$19+Kapitalbedarf!B$29 -> 0 | D13: =IF(C13=0,"",(C13*100)/C$32) ->  | BC13: Periode | BD13: Bestand | BE13: Zinsen | BF13: Tilgung | BG13: Kap.D. | BI13: Bestand | BJ13: Zinsen | BK13: Tilgung | BL13: Kap.D. | BN13: Bestand | BO13: Zinsen | BP13: Tilgung | BQ13: Kap.D. | BS13: Bestand | BT13: Zinsen | BU13: Tilgung | BV13: Kap.D. | BW13: Bestand | BX13: Zinsen | BY13: Tilgung | BZ13: Kap.D. | CA13: Bestand | CB13: Zinsen | CC13: Tilgung | CD13: Kap.D.
A14: Eigenkapital gesamt | C14: =SUM(C11:C13) -> 0 | D14: =IF(C14=0,"",(C14*100)/C$32) -> 
H15: =IF(OR(AND(H18>0,H18<1),H18>36,H18>F18*12,AND(H19>0,H19<1),H19>36,H19>F19*12,AND(H20>0,H20<1),H20>84,H20>F20*12),"Überprüfe Eingabe: Tilgungsfreie Zeit in Monaten","") ->  | BC15: 1. Gesch.J. | BD15: =#REF!-#REF! ->  | BE15: =+BD15*0/2 ->  | BF15: 0 | BG15: =BE15+BF15 ->  | BI15: =#REF!-#REF! ->  | BJ15: =BI15*(BI$5/100)/2 ->  | BK15: =IF(BI$10-0<=0,0,BI$4/(BI$9)) -> 0 | BL15: =BJ15+BK15 ->  | BN15: =#REF!-#REF! ->  | BO15: =BN15*(BN$5/100)/2 ->  | BP15: =IF(BN$10-1<=4,0,BN$4/(BN$9)) -> 0 | BQ15: =BO15+BP15 ->  | BS15: =#REF!-#REF! ->  | BT15: =BS15*(BS$5/100)/2 ->  | BU15: =IF(BS$10-1<=4,0,BS$4/(BS$9)) -> 0 | BV15: =BT15+BU15 ->  | BW15: =#REF!-#REF! ->  | BX15: =(BW15*$CW$59/(100))/($CW$61) ->  | BY15: =BZ15-BX15 ->  | BZ15: =PMT(BW$59/100/2,20,-BW$58,0,0) -> 0 | CA15: =BD15+BI15+BN15+BW15 ->  | CB15: =BE15+BJ15+BO15+BX15 ->  | CC15: =BF15+BK15+BP15+BY15 ->  | CD15: =BG15+BL15+BQ15+BZ15 -> 
A16: Fremdmittel: | C16: =C6-C14 -> 0 | E16: Aktueller | F16: Laufzeit | G16: Zinsbindung | H16: Tilgungsfreie | I16: Auszahlung | J16: Disagio | BD16: =BD15-BF15 ->  | BE16: =+BD16*0/2 ->  | BF16: 0 | BI16: =BI15-BK15 ->  | BK16: =IF(BI$10-0<=0,0,BI$4/(BI$9)) -> 0 | BN16: =BN15-BP15 ->  | BP16: =IF(BN$10-2<=4,0,BN$4/(BN$9)) -> 0 | BS16: =BS15-BU15 ->  | BU16: =IF(BS$10-2<=4,0,BS$4/(BS$9)) -> 0 | BW16: =BW15-BY15 ->  | BY16: =BZ16-BX16 ->  | BZ16: 0
A17: 2. Langfristiges Fremdkapital | E17: Zinssatz in % | F17: in Jahren | G17: in Jahren | H17: Zeit in Monaten | I17: in % | J17: EUR | BC17: 2. Gesch.J. | BE17: =+BD17*0/2 ->  | BF17: 0 | BI17: =BI16-BK16 ->  | BK17: 0 | BN17: =BN16-BP16 ->  | BP17: =IF(BN$10-3<=4,0,BN$4/(BN$9)) -> 0 | BS17: =BS16-BU16 ->  | BU17: =IF(BS$10-3<=4,0,BS$4/(BS$9)) -> 0 | BW17: =BW16-BY16 ->  | BZ17: 0
A18: Darlehen 1: | D18: =IF(C18="","",(C18*100)/C$32) ->  | J18: =ROUND(IF(I18="",0,C18*(100-I18)/100),-2) -> 0 | BC18: 3. Gesch.J. | BD18: =#REF!-#REF! ->  | BE18: =+BD18*0.03/2 ->  | BF18: 0 | BI18: =#REF!-#REF! ->  | BK18: 0 | BN18: =#REF!-#REF! ->  | BP18: =IF(BN$10-4=4,0,BN$4/(BN$9)) -> 0 | BS18: =#REF!-#REF! ->  | BU18: =IF(BS$10-4=4,0,BS$4/(BS$9)) -> 0 | BW18: =#REF!-#REF! ->  | BZ18: 0
A19: Darlehen 2: | D19: =IF(C19="","",(C19*100)/C$32) ->  | J19: =ROUND(IF(I19="",0,C19*(100-I19)/100),-2) -> 0 | BE19: =+BD19*0.04/2 ->  | BF19: 0 | BI19: =BI18-BK18 ->  | BK19: 0 | BN19: =BN18-BP18 ->  | BP19: 0 | BS19: =BS18-BU18 ->  | BU19: 0 | BW19: =BW18-BY18 ->  | BZ19: 0
A20: Mikromezzanin - Beteiligung | D20: =IF(C20="","",(C20*100)/C$32) ->  | I20: 96.5 | J20: =ROUND(IF(I20="",0,C20*(100-I20)/100),-2) -> 0 | BC20: 4. Gesch.J. | BE20: =+BD20*0.04/2 ->  | BF20: 0 | BI20: =BI19-BK19 ->  | BK20: 0 | BN20: =BN19-BP19 ->  | BP20: 0 | BS20: =BS19-BU19 ->  | BU20: 0 | BW20: =BW19-BY19 ->  | BZ20: 0
A21: ERP-Kapital für Gründung | D21: =IF(C21="","",(C21*100)/C$32) ->  | E21: 0.40 | J21: =ROUND(IF(I21="",0,C21*(100-I21)/100),-2) -> 0
A22: Avalkredit: | D22: =IF(C22="","",(C22*100)/C$32) -> 
F23: Tilgungs- satz in% | H23: Laufzeit in Jahren | K23: =IF(Kapitalbedarf!$D$30-$C$32=0,"",IF($J$26<1,"","Achtung: Kapitalbedarf wurde um Disagio erhöht; Finanzierung muß entsprechend erhöht werden." )) -> 
A24: Annuitätendarlehen: | D24: =IF(C24="","",(C24*100)/C$32) ->  | H24: =IF(F24=0,0,LOG10((E24+F24)/F24)/LOG10(1+E24)) -> 0.0 | J24: =ROUND(IF(I24="",0,C24*(100-I24)/100),-2) -> 0 | BC24: 5. Gesch.J. | BD24: =#REF!-#REF! ->  | BE24: =+BD24*0.05/2 ->  | BF24: 0 | BI24: =#REF!-#REF! ->  | BK24: 0 | BN24: =#REF!-#REF! ->  | BP24: 0 | BS24: =#REF!-#REF! ->  | BU24: 0 | BW24: =#REF!-#REF! ->  | BX24: =(BW24*$CW$59/(100))/($CW$61) ->  | BZ24: =PMT(BW$59/100/2,20,-BW$58,0,0) -> 0
A25: - Langfristiges Fremdkapital gesamt | C25: =SUM(C18:C24) -> 0 | D25: =IF(C25=0,"",(C25*100)/C$32) ->  | I25: Summe Disagio:
J26: =SUM(J18:J22)+J24 -> 0 | BD26: =#REF!-#REF! ->  | BE26: =+BD26*$BD$5%/2 ->  | BF26: 0 | BN26: =#REF!-#REF! ->  | BP26: 0 | BS26: =#REF!-#REF! ->  | BU26: 0 | BW26: =#REF!-#REF! ->  | BX26: =(BW26*$CW$59/(100))/($CW$61) ->  | BZ26: =PMT(BW$59/100/2,20,-BW$58,0,0) -> 0
A27: 3. Kurzfristiges Fremdkapital | E27: Zinssatz in % | BC27: 8. Gesch.J. | BF27: 0 | BN27: =BN26-BP26 ->  | BP27: 0 | BS27: =BS26-BU26 ->  | BU27: 0 | BW27: =BW26-BY26 ->  | BX27: =(BW27*$CW$59/(100))/($CW$61) ->  | BZ27: =PMT(BW$59/100/2,20,-BW$58,0,0) -> 0
A28: bestehender Kontokorrent | D28: =IF(C28="","",(C28*100)/C$32) -> 
A29: geplanter Kontokorrent | D29: =IF(C29="","",(C29*100)/C$32) ->  | BD29: =#REF!-#REF! ->  | BF29: 0 | BN29: =#REF!-#REF! ->  | BP29: 0 | BS29: =#REF!-#REF! ->  | BU29: 0 | BW29: =#REF!-#REF! ->  | BX29: =(BW29*$CW$59/(100))/($CW$61) ->  | BZ29: =PMT(BW$59/100/2,20,-BW$58,0,0) -> 0
A30: - Kurzfristiges Fremdkapital gesamt | C30: =C28+C29 -> 0 | D30: =IF(C30=0,"",(C30*100)/C$32) ->  | BD30: =#REF!-#REF! ->  | BF30: =BD$4/20 -> 
A32: Gesamtfinanzierung (1. - 3.) | C32: =C14+C25+C30 -> 0 | D32: =IF(C32=0,"",(C32*100)/C$32) ->  | BC32: 12. Gesch.J. | BD32: =BD30-BF30 -> 
A33: =IF(C6-C32=0,"",IF(C6>C32,CONCATENATE("Hinweis: Gesamtfinanzierung um ",TEXT(C34,"???.???")," EUR niedriger als Kapitalbedarf."),CONCATENATE("Hinweis: Gesamtfinanzierung um ",TEXT(C34*(-1),"???.???")," EUR höher als Kapitalbedarf."))) -> 
C34: =C6-C32 -> 0 | BC34: 13. Gesch.J.
BC36: 14. Gesch.J.
BC38: 15. Gesch.J.
BC40: 16. Gesch.J.
BC42: 17. Gesch.J.
BC44: 18. Gesch.J.
BC46: 19. Gesch.J.
BC48: 20. Gesch.J.
BC50: DS 1-10 p.a. | BD50: =AVERAGE(BD15:BD29) ->  | BE50: =AVERAGE(BE15:BE29)*2 ->  | BF50: =AVERAGE(BF15:BF29)*2 -> 0 | BG50: =AVERAGE(BG15:BG29)*2 ->  | BI50: =AVERAGE(BI15:BI29) ->  | BJ50: =AVERAGE(BJ15:BJ29)*2 ->  | BK50: =AVERAGE(BK15:BK29)*2 -> 0 | BL50: =AVERAGE(BL15:BL29)*2 ->  | BN50: =AVERAGE(BN15:BN29) ->  | BO50: =AVERAGE(BO15:BO29)*2 ->  | BP50: =AVERAGE(BP15:BP29)*2 -> 0 | BQ50: =AVERAGE(BQ15:BQ29)*2 ->  | BS50: =AVERAGE(BS15:BS29) ->  | BT50: =AVERAGE(BT15:BT29)*2 ->  | BU50: =AVERAGE(BU15:BU29)*2 -> 0 | BV50: =AVERAGE(BV15:BV29)*2 ->  | BZ50: DS 1-10 p.a. | CA50: =AVERAGE(CA15:CA29) ->  | CB50: =AVERAGE(CB15:CB29)*2 ->  | CC50: =AVERAGE(CC15:CC29)*2 ->  | CD50: =AVERAGE(CD15:CD29)*2 -> 
BC51: DS 1-3 p.a. | BD51: =AVERAGE(BD15:BD18) ->  | BE51: =AVERAGE(BE15:BE18)*2 ->  | BF51: =AVERAGE(BF15:BF18)*2 -> 0 | BG51: =AVERAGE(BG15:BG18)*2 ->  | BI51: =AVERAGE(BI15:BI18) ->  | BJ51: =AVERAGE(BJ15:BJ18)*2 ->  | BK51: =AVERAGE(BK15:BK18)*2 -> 0 | BL51: =AVERAGE(BL15:BL18)*2 ->  | BN51: =AVERAGE(BN15:BN18) ->  | BO51: =AVERAGE(BO15:BO18)*2 ->  | BP51: =AVERAGE(BP15:BP18)*2 -> 0 | BQ51: =AVERAGE(BQ15:BQ18)*2 ->  | BS51: =AVERAGE(BS15:BS18) ->  | BT51: =AVERAGE(BT15:BT18)*2 ->  | BU51: =AVERAGE(BU15:BU18)*2 -> 0 | BV51: =AVERAGE(BV15:BV18)*2 ->  | BZ51: DS 1-3 p.a. | CA51: =AVERAGE(CA15:CA18) ->  | CB51: =AVERAGE(CB15:CB18)*2 ->  | CC51: =AVERAGE(CC15:CC18)*2 ->  | CD51: =AVERAGE(CD15:CD18)*2 -> 

Sheet Zins und Tilgung
A1: =CONCATENATE( "Zins- und Tilgungsplan des Unternehmens: ", Startseite!C14) -> Zins- und Tilgungsplan des Unternehmens:
B3: Gesamtwerte | G3: Darlehen 1: | H3: =IF(Finanzierung!B18=0,"",Finanzierung!B18) ->  | M3: Darlehen 2: | N3: =IF(Finanzierung!B19=0,"",Finanzierung!B19) ->  | S3: Mikromezzanin - Beteiligung | Y3: ERP-Kapital für Gründung | AE3: Avalkredit: | AF3: =IF(Finanzierung!B22=0,"",Finanzierung!B22) ->  | AJ3: Annuitätendarlehen: | AL3: =IF(Finanzierung!B24=0,"",Finanzierung!B24) -> 
B4: EUR | C4: =Finanzierung!C25 -> 0 | G4: Höhe: | H4: =Finanzierung!C18 -> 0 | I4: EUR | M4: Höhe | N4: =Finanzierung!C19 -> 0 | O4: EUR | S4: Höhe | T4: =Finanzierung!C20 -> 0 | U4: EUR | Y4: Höhe | Z4: =Finanzierung!C21 -> 0 | AA4: EUR | AE4: Höhe | AF4: =Finanzierung!C22 -> 0 | AG4: EUR | AJ4: Höhe | AK4: =Finanzierung!C24 -> 0 | AL4: EUR
B5: Zinssatz | C5: siehe einzelne Darlehen | G5: Zinssatz | H5: =Finanzierung!E18 -> 0.00 | I5: % | M5: Zinssatz | N5: =Finanzierung!E19 -> 0.00 | O5: % | S5: Vergütung | T5: 8.00 | U5: % | Y5: Zinssatz % | Z5: =Finanzierung!E21 -> 0.40 | AA5: 1. - 3. Jahr | AE5: Zinssatz | AF5: =Finanzierung!E22 -> 0.00 | AG5: % | AJ5: Zinssatz | AK5: =Finanzierung!E24 -> 0.00%
B6: Laufzeit | G6: Laufzeit | H6: =Finanzierung!F18 -> 0.0 | I6: Jahre | M6: Laufzeit | N6: =Finanzierung!F19 -> 0 | O6: Jahre | S6: Gewinnbeteiligung | T6: 1.50 | U6: % | Y6: Zinssatz % | Z6: 2.82 | AA6: 4. - 10. Jahr | AE6: Laufzeit | AF6: =ROUND(Finanzierung!F22,0) -> 0 | AG6: Jahre | AJ6: Tilgungsatz | AK6: =Finanzierung!F24 -> 0.00%
B7: Tilgungsfreie Zeit | G7: Tilgungsfreie Zeit | H7: =Finanzierung!H18 -> 0 | I7: Monate | M7: Tilgungsfreie Zeit | N7: =Finanzierung!H19 -> 0 | O7: Monate | S7: Laufzeit | T7: =10 -> 10 | U7: Jahre | Y7: Zinssatz % | Z7: 5.00 | AA7: ab 11. Jahr | AJ7: => Laufzeit | AK7: =Finanzierung!H24 -> 0.00 | AL7: Jahre
B8: Tilgungszeitraum | G8: Tilgungszeitraum | H8: =H6-H7/12 -> 0.0 | I8: Jahre | M8: Tilgungszeitraum | N8: =N6-N7/12 -> 0.0 | O8: Jahre | S8: Tilgungsfreie Zeit | T8: 7 | U8: Jahre | Y8: Garantieentgelt % | Z8: 1.00 | AA8: auf offenen Kreditbetrag
S9: Tilgungszeitraum | T9: =T7-T8 -> 3 | U9: Jahre | Y9: Laufzeit | Z9: 15 | AA9: Jahre
Y10: Tilgungsfreie Zeit | Z10: 7 | AA10: Jahre
A11: Periode | B11: Bestand EUR | C11: Zinsen EUR | D11: Tilgung EUR | E11: Kapitaldienst EUR | G11: Periode | H11: Bestand EUR | I11: Zinsen EUR | J11: Tilgung EUR | K11: Kapitaldienst EUR | M11: Periode | N11: Bestand EUR | O11: Zinsen EUR | P11: Tilgung EUR | Q11: Kapitaldienst EUR | Y11: Tilgungszeitraum | Z11: =Z9-Z10 -> 8 | AA11: Jahre | AE11: Periode | AF11: Bestand EUR | AG11: Zinsen EUR | AH11: Kapitaldienst EUR | AJ11: Periode | AK11: Bestand EUR | AL11: Zinsen EUR | AM11: Tilgung EUR | AN11: Kapitaldienst EUR
S12: Periode | T12: Bestand | U12: Vergütung / | V12: Rückzahlung | W12: Kapitaldienst EUR
A13: 1 | B13: =H13+N13+T15+Z17+AF13+AK13 -> 0 | C13: =I13+O13+U15+AA17+AG13+AL13 -> 0 | D13: =J13+P13+V15+AB17+AM13 -> 0 | E13: =K13+Q13+W15+AC17+AN13+AH13 -> 0 | G13: 1 | H13: =H4 -> 0 | I13: =Hilfstabelle!N84 -> 0 | J13: =IF(H13=0,0,IF(H7=0,H4/(H6*12-H7)*12,IF(AND(H7>0,H7<12),H4/(H6*12-H7)*(12-H7),0))) -> 0 | K13: =I13+J13 -> 0 | M13: 1 | N13: =N4 -> 0 | O13: =Hilfstabelle!N85 -> 0 | P13: =IF(N13=0,0,IF(N7=0,N4/(N6*12-N7)*12,IF(AND(N7>0,N7<12),N4/(N6*12-N7)*(12-N7),0))) -> 0 | Q13: =O13+P13 -> 0 | U13: Gewinnbeteilig. | AE13: 1 | AF13: =IF(AF$6>=A13,AF$4,0) -> 0 | AG13: =AF13*AF$5/100 -> 0 | AH13: =AG13 -> 0 | AJ13: 1 | AK13: =AK4 -> 0 | AL13: =AK13*AK$5 -> 0 | AM13: =IF(A13>=AK$7,AK13,AN13-AL13) -> 0 | AN13: =IF(A13=0,0,IF(AK$7>=A13,+PMT(AK$5,AK$7,-AK$4,0,0),0)) -> 0
A14: 2 | B14: 0 | C14: 0 | D14: 0 | E14: 0 | G14: 2 | H14: =IF((H13-J13)<0,0,H13-J13) -> 0 | I14: =Hilfstabelle!N90 -> 0 | J14: =IF(H14=0,0,IF(H7<=12,H4/(H6*12-H7)*12,IF(AND(H7>12,H7<24),H4/(H6*12-H7)*(24-H7),0))) -> 0 | K14: =I14+J14 -> 0 | M14: 2 | N14: =IF((N13-P13)<0,0,N13-P13) -> 0 | O14: =Hilfstabelle!N91 -> 0 | P14: =IF(N14=0,0,IF(N7<=12,N4/(N6*12-N7)*12,IF(AND(N7>12,N7<24),N4/(N6*12-N7)*(24-N7),0))) -> 0 | Q14: 0 | T14: EUR | U14: EUR | V14: EUR | W14: EUR | Y14: Periode | Z14: Bestand | AA14: Zinsen / | AB14: Tilgung | AC14: Kapitaldienst | AE14: 2 | AF14: 0 | AG14: 0 | AH14: =AG14 -> 0 | AJ14: 2 | AK14: =IF(AK13-AM13<0,0,AK13-AM13) -> 0 | AL14: 0 | AM14: =IF(OR(AK14<AM13,A14>=AK$7),AK14,AN14-AL14) -> 0 | AN14: =IF(A14=0,0,IF(AK$7>=A14,+PMT(AK$5,AK$7,-AK$4,0,0),AL14+AM14)) -> 0
A15: 3 | B15: 0 | C15: 0 | D15: 0 | E15: 0 | G15: 3 | H15: 0 | I15: =Hilfstabelle!N96 -> 0 | J15: =IF(H15=0,0,IF(H7<=24,H4/(H6*12-H7)*12,IF(AND(H7>24,H7<36),H4/(H6*12-H7)*(36-H7),0))) -> 0 | K15: =I15+J15 -> 0 | M15: 3 | N15: 0 | O15: =Hilfstabelle!N97 -> 0 | P15: =IF(N15=0,0,IF(N7<=24,N4/(N6*12-N7)*12,IF(AND(N7>24,N7<36),N4/(N6*12-N7)*(36-N7),0))) -> 0 | Q15: 0 | S15: 1 | T15: =T4 -> 0 | U15: =T15*T$5/100+T15*T$6/100 -> 0 | V15: =IF(S15<=T$8,0,T$4/T$9) -> 0 | W15: =U15+V15 -> 0 | Z15: EUR | AA15: Garantieentg. | AB15: EUR | AC15: EUR | AE15: 3 | AF15: 0 | AG15: 0 | AH15: 0 | AJ15: 3 | AK15: =IF(AK14-AM14<0,0,AK14-AM14) -> 0 | AL15: 0 | AM15: 0 | AN15: 0
A16: 4 | B16: 0 | C16: 0 | D16: 0 | E16: 0 | G16: 4 | H16: 0 | I16: =H16*H$5/100 -> 0 | J16: =IF(H16=0,0,IF(H16<H$4/H$8,H16,H$4/(H$6*12-H$7)*12)) -> 0 | K16: 0 | M16: 4 | N16: 0 | O16: =N16*N$5/100 -> 0 | P16: =IF(N16=0,0,IF(N16<N$4/N$8,N16,N$4/(N$6*12-N$7)*12)) -> 0 | Q16: 0 | S16: 2 | T16: =IF((T15-V15)<0,0,T15-V15) -> 0 | U16: 0 | V16: 0 | W16: 0 | AA16: EUR | AE16: 4 | AF16: 0 | AG16: 0 | AH16: 0 | AJ16: 4 | AK16: 0 | AL16: 0 | AM16: 0 | AN16: 0
A17: 5 | B17: 0 | C17: 0 | D17: 0 | E17: 0 | G17: 5 | H17: 0 | I17: 0 | J17: =IF(H17=0,0,IF(H17<H$4/H$8,H17,H$4/(H$6*12-H$7)*12)) -> 0 | K17: 0 | M17: 5 | N17: 0 | O17: 0 | P17: =IF(N17=0,0,IF(N17<N$4/N$8,N17,N$4/(N$6*12-N$7)*12)) -> 0 | Q17: 0 | S17: 3 | T17: 0 | U17: 0 | V17: 0 | W17: 0 | Y17: 1 | Z17: =Z4 -> 0 | AA17: =Z$5/100*Z17+Z$8/100*Z17 -> 0 | AB17: =IF(Y17<=Z$10,0,Z$4/Z$11) -> 0 | AC17: =AA17+AB17 -> 0 | AE17: 5 | AF17: 0 | AG17: 0 | AH17: 0 | AJ17: 5 | AK17: 0 | AL17: 0 | AM17: 0 | AN17: 0
A18: 6 | B18: 0 | C18: 0 | D18: 0 | E18: 0 | G18: 6 | H18: 0 | I18: 0 | J18: 0 | K18: 0 | M18: 6 | N18: 0 | O18: 0 | P18: 0 | Q18: 0 | S18: 4 | T18: 0 | U18: 0 | V18: 0 | W18: 0 | Y18: 2 | Z18: =IF((Z17-AB17)<0,0,Z17-AB17) -> 0 | AA18: =Z$5/100*Z18+Z$8/100*Z18 -> 0 | AB18: =IF(Y18<=Z$10,0,Z$4/Z$11) -> 0 | AC18: 0 | AE18: 6 | AF18: 0 | AG18: 0 | AH18: 0 | AJ18: 6 | AK18: 0 | AL18: 0 | AM18: 0 | AN18: 0
A19: 7 | B19: 0 | C19: 0 | D19: 0 | E19: 0 | G19: 7 | H19: 0 | I19: 0 | J19: 0 | K19: 0 | M19: 7 | N19: 0 | O19: 0 | P19: 0 | Q19: 0 | S19: 5 | T19: 0 | U19: 0 | V19: 0 | W19: 0 | Y19: 3 | Z19: =IF((Z18-AB18)<0,0,Z18-AB18) -> 0 | AA19: =Z$5/100*Z19+Z$8/100*Z19 -> 0 | AB19: 0 | AC19: 0 | AE19: 7 | AF19: 0 | AG19: 0 | AH19: 0 | AJ19: 7 | AK19: 0 | AL19: 0 | AM19: 0 | AN19: 0
A20: 8 | B20: 0 | C20: 0 | D20: 0 | E20: 0 | G20: 8 | H20: 0 | I20: 0 | J20: 0 | K20: 0 | M20: 8 | N20: 0 | O20: 0 | P20: 0 | Q20: 0 | S20: 6 | T20: 0 | U20: 0 | V20: 0 | W20: 0 | Y20: 4 | Z20: 0 | AA20: =Z$6/100*Z20+Z$8/100*Z20 -> 0 | AB20: 0 | AC20: 0 | AE20: 8 | AF20: 0 | AG20: 0 | AH20: 0 | AJ20: 8 | AK20: 0 | AL20: 0 | AM20: 0 | AN20: 0
A21: 9 | B21: 0 | C21: 0 | D21: 0 | E21: 0 | G21: 9 | H21: 0 | I21: 0 | J21: 0 | K21: 0 | M21: 9 | N21: 0 | O21: 0 | P21: 0 | Q21: 0 | S21: 7 | T21: 0 | U21: 0 | V21: 0 | W21: 0 | Y21: 5 | Z21: 0 | AA21: 0 | AB21: 0 | AC21: 0 | AE21: 9 | AF21: 0 | AG21: 0 | AH21: 0 | AJ21: 9 | AK21: 0 | AL21: 0 | AM21: 0 | AN21: 0
A22: 10 | B22: 0 | C22: 0 | D22: 0 | E22: 0 | G22: 10 | H22: 0 | I22: 0 | J22: 0 | K22: 0 | M22: 10 | N22: 0 | O22: 0 | P22: 0 | Q22: 0 | S22: 8 | T22: 0 | U22: 0 | V22: 0 | W22: 0 | Y22: 6 | Z22: 0 | AA22: 0 | AB22: 0 | AC22: 0 | AE22: 10 | AF22: 0 | AG22: 0 | AH22: 0 | AJ22: 10 | AK22: 0 | AL22: 0 | AM22: 0 | AN22: 0
A23: 11 | B23: =H23+N23+T25+Z27+AF23+AK23 -> 0 | C23: =I23+O23+IF(U25="",0,U25)+AA27+AG23+AL23 -> 0 | D23: =J23+P23+IF(V25="",0,V25)+AB27+AM23 -> 0 | E23: =K23+Q23+IF(W25="",0,W25)+AC27+AN23+AH23 -> 0 | G23: 11 | H23: 0 | I23: 0 | J23: 0 | K23: 0 | M23: 11 | N23: 0 | O23: 0 | P23: 0 | Q23: 0 | S23: 9 | T23: 0 | U23: 0 | V23: 0 | W23: 0 | Y23: 7 | Z23: 0 | AA23: 0 | AB23: 0 | AC23: 0 | AE23: 11 | AF23: 0 | AG23: 0 | AH23: 0 | AJ23: 11 | AK23: 0 | AL23: 0 | AM23: 0 | AN23: 0
A24: 12 | B24: =H24+N24+Z28+AF24+AK24 -> 0 | C24: =I24+O24+AA28+AG24+AL24 -> 0 | D24: =J24+P24+AB28+AM24 -> 0 | E24: =K24+Q24+AC28+AN24+AH24 -> 0 | G24: 12 | H24: 0 | I24: 0 | J24: 0 | K24: 0 | M24: 12 | N24: 0 | O24: 0 | P24: 0 | Q24: 0 | S24: 10 | T24: 0 | U24: 0 | V24: 0 | W24: 0 | Y24: 8 | Z24: 0 | AA24: 0 | AB24: 0 | AC24: 0 | AE24: 12 | AF24: 0 | AG24: 0 | AH24: 0 | AJ24: 12 | AK24: 0 | AL24: 0 | AM24: 0 | AN24: 0
A25: 13 | B25: =H25+N25+Z29+AF25+AK25 -> 0 | C25: =I25+O25+AA29+AG25+AL25 -> 0 | D25: =J25+P25+AB29+AM25 -> 0 | E25: =K25+Q25+AC29+AN25+AH25 -> 0 | G25: 13 | H25: 0 | I25: 0 | J25: 0 | K25: 0 | M25: 13 | N25: 0 | O25: 0 | P25: 0 | Q25: 0 | S25: 11 | T25: 0 | U25: =IF(T25=0,"",T25*T$5/100+T$6/100*T25/2) ->  | V25: =IF(S25>T7,"",IF(S25<=T$8,"",T$4/T$9)) ->  | W25: =IF(S25>T7,"",U25+V25) ->  | Y25: 9 | Z25: 0 | AA25: 0 | AB25: 0 | AC25: 0 | AE25: 13 | AF25: 0 | AG25: 0 | AH25: 0 | AJ25: 13 | AK25: 0 | AL25: 0 | AM25: 0 | AN25: 0
A26: 14 | B26: 0 | C26: =I26+O26+AA30+AG26+AL26 -> 0 | D26: =J26+P26+AB30+AM26 -> 0 | E26: =K26+Q26+AC30+AN26+AH26 -> 0 | G26: 14 | H26: 0 | I26: 0 | J26: 0 | K26: 0 | M26: 14 | N26: 0 | O26: 0 | P26: 0 | Q26: 0 | Y26: 10 | Z26: 0 | AA26: 0 | AB26: 0 | AC26: 0 | AE26: 14 | AF26: 0 | AG26: 0 | AH26: 0 | AJ26: 14 | AK26: 0 | AL26: 0 | AM26: 0 | AN26: 0
A27: 15 | B27: 0 | C27: =I27+O27+AA31+AG27+AL27 -> 0 | D27: =J27+P27+AB31+AM27 -> 0 | E27: =K27+Q27+AC31+AN27+AH27 -> 0 | G27: 15 | H27: 0 | I27: 0 | J27: 0 | K27: 0 | M27: 15 | N27: 0 | O27: 0 | P27: 0 | Q27: 0 | S27: Summe Zahlungen: | U27: =SUM(U15:U25) -> 0 | V27: =SUM(V15:V25) -> 0 | W27: =SUM(W15:W25) -> 0 | Y27: 11 | Z27: 0 | AA27: =Z$7/100*Z27+Z$8/100*Z27 -> 0 | AB27: 0 | AC27: 0 | AE27: 15 | AF27: 0 | AG27: 0 | AH27: 0 | AJ27: 15 | AK27: 0 | AL27: 0 | AM27: 0 | AN27: 0
A28: 16 | B28: 0 | C28: =I28+O28+AA32+AG28+AL28 -> 0 | D28: =J28+P28+IF(AB32="",0,AB32)+AM28 -> 0 | E28: =K28+Q28+IF(AC32="",0,AC32)+AN28+AH28 -> 0 | G28: 16 | H28: 0 | I28: 0 | J28: 0 | K28: 0 | M28: 16 | N28: 0 | O28: 0 | P28: 0 | Q28: 0 | Y28: 12 | Z28: 0 | AA28: =Z$7/100*Z28+Z$8/100*Z28 -> 0 | AB28: 0 | AC28: 0 | AE28: 16 | AF28: 0 | AG28: 0 | AH28: 0 | AJ28: 16 | AK28: 0 | AL28: 0 | AM28: 0 | AN28: 0
A29: 17 | B29: 0 | C29: =I29+O29+AG29+AL29 -> 0 | D29: =J29+P29+AM29 -> 0 | E29: =K29+Q29+AN29+AH29 -> 0 | G29: 17 | H29: 0 | I29: 0 | J29: 0 | K29: 0 | M29: 17 | N29: 0 | O29: 0 | P29: 0 | Q29: 0 | Y29: 13 | Z29: 0 | AA29: =Z$7/100*Z29+Z$8/100*Z29 -> 0 | AB29: 0 | AC29: 0 | AE29: 17 | AF29: 0 | AG29: 0 | AH29: 0 | AJ29: 17 | AK29: =IF(AK28-AM28<0,0,AK28-AM28) -> 0 | AL29: 0 | AM29: 0 | AN29: 0
A30: 18 | B30: 0 | C30: =I30+O30+AG30+AL30 -> 0 | D30: =J30+P30+AM30 -> 0 | E30: =K30+Q30+AN30+AH30 -> 0 | G30: 18 | H30: 0 | I30: 0 | J30: 0 | K30: 0 | M30: 18 | N30: 0 | O30: 0 | P30: 0 | Q30: 0 | Y30: 14 | Z30: 0 | AA30: =Z$7/100*Z30+Z$8/100*Z30 -> 0 | AB30: 0 | AC30: 0 | AE30: 18 | AF30: 0 | AG30: 0 | AH30: 0 | AJ30: 18 | AK30: =IF(AK29-AM29<0,0,AK29-AM29) -> 0 | AL30: 0 | AM30: 0 | AN30: 0
A31: 19 | B31: 0 | C31: =I31+O31+AG31+AL31 -> 0 | D31: =J31+P31+AM31 -> 0 | E31: =K31+Q31+AN31+AH31 -> 0 | G31: 19 | H31: 0 | I31: 0 | J31: 0 | K31: 0 | M31: 19 | N31: 0 | O31: 0 | P31: 0 | Q31: 0 | Y31: 15 | Z31: 0 | AA31: =Z$7/100*Z31+Z$8/100*Z31 -> 0 | AB31: 0 | AC31: 0 | AE31: 19 | AF31: 0 | AG31: 0 | AH31: 0 | AJ31: 19 | AK31: =IF(AK30-AM30<0,0,AK30-AM30) -> 0 | AL31: 0 | AM31: 0 | AN31: 0
A32: 20 | B32: 0 | C32: =I32+O32+AG32+AL32 -> 0 | D32: =J32+P32+AM32 -> 0 | E32: =K32+Q32+AN32+AH32 -> 0 | G32: 20 | H32: 0 | I32: 0 | J32: 0 | K32: 0 | M32: 20 | N32: 0 | O32: 0 | P32: 0 | Q32: 0 | Y32: 16 | Z32: 0 | AE32: 20 | AF32: 0 | AG32: 0 | AH32: 0 | AJ32: 20 | AK32: =IF(AK31-AM31<0,0,AK31-AM31) -> 0 | AL32: 0 | AM32: 0 | AN32: 0
A34: Summe Zahlungen: | C34: =SUM(C13:C33) -> 0 | D34: =SUM(D13:D33) -> 0 | E34: =SUM(E13:E33) -> 0 | G34: Summe Zahlungen: | I34: =SUM(I13:I33) -> 0 | J34: =SUM(J13:J33) -> 0 | K34: =SUM(K13:K33) -> 0 | M34: Summe Zahlungen: | O34: =SUM(O13:O33) -> 0 | P34: =SUM(P13:P33) -> 0 | Q34: =SUM(Q13:Q33) -> 0 | Y34: Summe Zahlungen: | AA34: =SUM(AA17:AA32) -> 0 | AB34: =SUM(AB17:AB32) -> 0 | AC34: =SUM(AC17:AC32) -> 0 | AE34: Summe Zahlungen: | AG34: =SUM(AG13:AG33) -> 0 | AH34: =SUM(AH13:AH33) -> 0 | AJ34: Summe Zahlungen: | AL34: =SUM(AL13:AL33) -> 0 | AM34: =SUM(AM13:AM33) -> 0 | AN34: =SUM(AN13:AN33) -> 0

Sheet Personalkosten 1. Jahr
A1: =CONCATENATE( "Personalkosten 1. Jahr des Unternehmens: ", Startseite!C14) -> Personalkosten 1. Jahr des Unternehmens: | I1: =IF(Startseite!D16=0,""," Planungszeitraum:") -> Planungszeitraum: | K1: =IF(Startseite!D16=0,"",Startseite!D16) -> 2017-01-01 | L1: - | M1: =IF(K1="","",K1+350) -> 2017-12-17
I2: =TEXT(K1, " - " ) -> -
G3: Arbeitgeberanteil-Faktor : | J3: =1+0.073+0.01275+0.0935+0.015+0.032+0.0038+0.0009 -> 1.2310
G4: Arbeitgeberanteil-Faktor Minijobs: | J4: =1+0.13+0.15+0.009+0.003+0.0009+0.02 -> 1.3129
C6: =IF(SUM($C$12:$C$23)>INT(SUM($C$12:$C$23)),"Beachte Kommentar in C7","") ->  | F6: Lohn- und Gehaltsangabe | N6: Mitarbeiterproduktivität
A7: Nr. | C7: Anzahl | D7: zeitliche | F7: Bruttolohn | G7: Stunden | H7: Bruttogehalt | I7: Lohn/Gehalt | J7: Lohn/Gehalt | K7: Tarifliches | L7: Sonder- | M7: Personalkosten | N7: Anzahl | O7: Anteil | P7: Produktive
D8: Einschränkung | F8: pro Std. | G8: pro | H8: pro Monat | I8: pro Monat | J8: pro Monat | K8: Zusatzgehalt | L8: Zahlungen | M8: pro Jahr | N8: Mitarbeiter | O8: produktiv | P8: Kräfte
B9: Name bzw. Tätigkeitsbereich | D9: Beginn | E9: Ende | F9: in EUR | G9: Woche | H9: in EUR | I9: ohne AG-Anteile | J9: incl. AG-Anteile | K9: in % | L9: in EUR | M9: in EUR | N9: gewichtet | O9: in %
D10: (Monat) | E10: (Monat) | I10: in EUR | J10: in EUR
A12: 1 | I12: =IF(C12=0,0,IF(C12>=1,IF(AND(OR(F12>=1,G12>=1), H12>1),"Lohn/Gehalt ???",C12*IF(F12="",H12,F12*G12*4.33)))) -> 0.00 | J12: =IF(C12*I12<C12*451,I12*J$4,I12*J$3) -> 0.00 | M12: =IF(AND(D12="",E12=""),J12*12+K12*J12+L12*IF(I12<401,J$4,J$3),IF(OR(D12="",E12="",D12=0,E12=0,D12>E12),0,J12*(E12-D12+1)+J12*K12+L12*IF(I12<401,J$4,J$3))) -> 0 | N12: =$C12*(IF($D12="",1,IF($D12="bis",$E12/12,IF($D12="ab",(12-$E12+1)/12,((E12+1)-D12)/12)))) -> 0.00 | P12: =N12*O12 -> 0.00 | Q12: =IF(AND(C12>0,J12>0,J12<=C12*520,M12>C12*6240),"Überprüfe ggf. Minijob(s)","") ->  | R12: =IF(AND($D12="",$E12=""),"",IF(OR($D12="",$E12="",$D12=0,$E12=0,$D12>$E12),"Überprüfe Eingaben in Spalte D und E","")) -> 
A13: 2 | I13: =IF(C13=0,0,IF(C13>=1,IF(AND(OR(F13>=1,G13>=1), H13>1),"Lohn/Gehalt ???",C13*IF(F13="",H13,F13*G13*4.33)))) -> 0.00 | J13: =IF(C13*I13<C13*451,I13*J$4,I13*J$3) -> 0.00 | M13: =IF(AND(D13="",E13=""),J13*12+K13*J13+L13*IF(I13<401,J$4,J$3),IF(OR(D13="",E13="",D13=0,E13=0,D13>E13),0,J13*(E13-D13+1)+J13*K13+L13*IF(I13<401,J$4,J$3))) -> 0 | N13: 0.00 | P13: 0.00 | Q13: =IF(AND(C13>0,J13>0,J13<=C13*520,M13>C13*6240),"Überprüfe ggf. Minijob(s)","") -> 
A14: 3 | I14: =IF(C14=0,0,IF(C14>=1,IF(AND(OR(F14>=1,G14>=1), H14>1),"Lohn/Gehalt ???",C14*IF(F14="",H14,F14*G14*4.33)))) -> 0.00 | J14: 0.00 | M14: 0 | N14: 0.00 | P14: 0.00
A15: 4 | I15: 0.00 | J15: 0.00 | M15: 0 | N15: 0.00 | P15: 0.00
A16: 5 | I16: 0.00 | J16: 0.00 | M16: 0 | N16: 0.00 | P16: 0.00
A17: 6 | I17: 0.00 | J17: 0.00 | M17: 0 | N17: 0.00 | P17: 0.00
A18: 7 | I18: 0.00 | J18: 0.00 | M18: 0 | N18: 0.00 | P18: 0.00 | R18: =IF(AND($D18="",$E18=""),"",IF(OR($D18="",$E18="",$D18=0,$E18=0,$D18>$E18),"Überprüfe Eingaben in Spalte D und E","")) -> 
A19: 8 | I19: 0.00 | J19: 0.00 | M19: 0 | N19: 0.00 | P19: 0.00 | R19: =IF(AND($D19="",$E19=""),"",IF(OR($D19="",$E19="",$D19=0,$E19=0,$D19>$E19),"Überprüfe Eingaben in Spalte D und E","")) -> 
A20: 9 | B20: Inhaber/-in oder | C20: 1 | N20: 1.00 | P20: 0.00
A21: 10 | B21: GmbH-Gesellsch./Geschäftsführer/-in | I21: =IF(C21=0,0,IF(C21>=1,IF(AND(OR(F21>=1,G21>=1), H21>1),"Gehalt ???",C21*IF(F21="",H21,F21*G21*4.33)))) -> 0.00 | J21: =I21 -> 0.00 | M21: 0 | N21: =$C21*(IF($D21="",1,IF($D21="bis",$E21/12,IF($D21="ab",(12-$E21+1)/12,((E21+1)-D21)/12)))) -> 0.00 | P21: 0.00 | R21: =IF(AND($D21="",$E21=""),"",IF(OR($D21="",$E21="",$D21=0,$E21=0,$D21>$E21),"Überprüfe Eingaben in Spalte D und E","")) -> 
A22: 11 | B22: GmbH-Gesellsch./Geschäftsführer/-in | I22: =IF(C22=0,0,IF(C22>=1,IF(AND(OR(F22>=1,G22>=1), H22>1),"Gehalt ???",C22*IF(F22="",H22,F22*G22*4.33)))) -> 0.00 | J22: =I22 -> 0.00 | M22: 0 | N22: =$C22*(IF($D22="",1,IF($D22="bis",$E22/12,IF($D22="ab",(12-$E22+1)/12,((E22+1)-D22)/12)))) -> 0.00 | P22: =N22*O22 -> 0.00 | R22: =IF(AND($D22="",$E22=""),"",IF(OR($D22="",$E22="",$D22=0,$E22=0,$D22>$E22),"Überprüfe Eingaben in Spalte D und E","")) -> 
A23: 12 | B23: GmbH-Gesellsch./Geschäftsführer/-in | I23: =IF(C23=0,0,IF(C23>=1,IF(AND(OR(F23>=1,G23>=1), H23>1),"Gehalt ???",C23*IF(F23="",H23,F23*G23*4.33)))) -> 0.00 | J23: =I23 -> 0.00 | M23: 0 | N23: =$C23*(IF($D23="",1,IF($D23="bis",$E23/12,IF($D23="ab",(12-$E23+1)/12,((E23+1)-D23)/12)))) -> 0.00 | P23: =N23*O23 -> 0.00 | R23: =IF(AND($D23="",$E23=""),"",IF(OR($D23="",$E23="",$D23=0,$E23=0,$D23>$E23),"Überprüfe Eingaben in Spalte D und E","")) -> 
A24: Summe | C24: =SUM(C12:C23) -> 1 | I24: =SUM(I12:I23) -> 0.00 | J24: 0.00 | K24: 0.00 | L24: 0.00 | M24: 0 | N24: 1.00 | P24: =SUM(P12:P23) -> 0.00
J25: zzgl. Berufsgenossenschaft
J26: zzgl. Sonstiges
J27: Personalkosten gesamt | M27: =ROUND(M24+M25+M26,-2) -> 0
J28: Anzahl Mitarbeiter produktiv | M28: =$P$24 -> 0.00
J29: Planumsatz 1. Geschäftsjahr | M29: =Rentabilität!$C$13 -> 0
J30: Umsatz über Fremdleistungen | M30: =Rentabilität!$C$14 -> 0
J31: Eigene Betriebsleistung je | M31: =IF((M29-M30)<0,0,IF(M28=0,"",(M29-M30)/M28)) -> 
J32: produktiv Beschäftigtem

Sheet Personalkosten 2. Jahr
A1: =CONCATENATE( "Personalkosten 2. Jahr des Unternehmens: ", Startseite!C14) -> Personalkosten 2. Jahr des Unternehmens: | I1: =IF(Startseite!D16=0,""," Planungszeitraum:") -> Planungszeitraum: | K1: =IF(Startseite!D16="","",'Personalkosten 1. Jahr'!M1+30) -> 2018-01-16 | L1: - | M1: =IF(K1="","",K1+330) -> 2018-12-12
G3: Arbeitgeberanteil-Faktor : | J3: =1+0.073+0.01275+0.0935+0.015+0.032+0.0038+0.0009 -> 1.2310
G4: Arbeitgeberanteil-Faktor Minijobs: | J4: =1+0.13+0.15+0.009+0.003+0.0009+0.02 -> 1.3129
F6: Lohn- und Gehaltsangabe | N6: Mitarbeiterproduktivität
A7: Nr. | C7: Anzahl | D7: zeitliche | F7: Bruttolohn | G7: Stunden | H7: Bruttogehalt | I7: Lohn/Gehalt | J7: Lohn/Gehalt | K7: Tarifliches | L7: Sonder- | M7: Personalkosten | N7: Anzahl | O7: Anteil | P7: Produktive
D8: Einschränkung | F8: pro Std. | G8: pro | H8: pro Monat | I8: pro Monat | J8: pro Monat | K8: Zusatzgehalt | L8: Zahlungen | M8: pro Jahr | N8: Mitarbeiter | O8: produktiv | P8: Kräfte
B9: Name bzw. Tätigkeitsbereich | D9: Beginn | E9: Ende | F9: in EUR | G9: Woche | H9: in EUR | I9: ohne AG-Anteile | J9: incl. AG-Anteile | K9: in % | L9: in EUR | M9: in EUR | N9: gewichtet | O9: in %
D10: (Monat) | E10: (Monat) | I10: in EUR | J10: in EUR
A12: 1 | I12: =IF(C12=0,0,IF(C12>=1,IF(AND(OR(F12>=1,G12>=1), H12>1),"Lohn/Gehalt ???",C12*IF(F12="",H12,F12*G12*4.33)))) -> 0.00 | J12: =IF(C12*I12<C12*451,I12*J$4,I12*J$3) -> 0.00 | M12: =IF(AND(D12="",E12=""),J12*12+K12*J12+L12*IF(I12<401,J$4,J$3),IF(OR(D12="",E12="",D12=0,E12=0,D12>E12),0,J12*(E12-D12+1)+J12*K12+L12*IF(I12<401,J$4,J$3))) -> 0 | N12: =$C12*(IF($D12="",1,IF($D12="bis",$E12/12,IF($D12="ab",(12-$E12+1)/12,((E12+1)-D12)/12)))) -> 0.00 | P12: =N12*O12 -> 0.00 | Q12: =IF(AND(C12>0,J12>0,J12<=C12*520,M12>C12*6240),"Überprüfe ggf. Minijob(s)","") ->  | R12: =IF(AND($D12="",$E12=""),"",IF(OR($D12="",$E12="",$D12=0,$E12=0,$D12>$E12),"Überprüfe Eingaben in Spalte D und E","")) -> 
A13: 2 | I13: =IF(C13=0,0,IF(C13>=1,C13*IF(F13="",H13,F13*G13*4.33))) -> 0.00 | J13: =IF(C13*I13<C13*451,I13*J$4,I13*J$3) -> 0.00 | M13: =IF(AND(D13="",E13=""),J13*12+K13*J13+L13*IF(I13<401,J$4,J$3),IF(OR(D13="",E13="",D13=0,E13=0,D13>E13),0,J13*(E13-D13+1)+J13*K13+L13*IF(I13<401,J$4,J$3))) -> 0 | N13: 0.00 | P13: 0.00 | Q13: =IF(AND(C13>0,J13>0,J13<=C13*520,M13>C13*6240),"Überprüfe ggf. Minijob(s)","") -> 
A14: 3 | I14: 0.00 | J14: 0.00 | M14: 0 | N14: 0.00 | P14: 0.00
A15: 4 | I15: 0.00 | J15: 0.00 | M15: 0 | N15: 0.00 | P15: 0.00
A16: 5 | I16: 0.00 | J16: 0.00 | M16: 0 | N16: 0.00 | P16: 0.00
A17: 6 | I17: 0.00 | J17: 0.00 | M17: 0 | N17: 0.00 | P17: 0.00
A18: 7 | I18: 0.00 | J18: 0.00 | M18: 0 | N18: 0.00 | P18: 0.00 | R18: =IF(AND($D18="",$E18=""),"",IF(OR($D18="",$E18="",$D18=0,$E18=0,$D18>$E18),"Überprüfe Eingaben in Spalte D und E","")) -> 
A19: 8 | I19: 0.00 | J19: 0.00 | M19: 0 | N19: 0.00 | P19: 0.00 | R19: =IF(AND($D19="",$E19=""),"",IF(OR($D19="",$E19="",$D19=0,$E19=0,$D19>$E19),"Überprüfe Eingaben in Spalte D und E","")) -> 
A20: 9 | B20: Inhaber/-in oder | C20: 1 | N20: 1.00 | P20: 0.00
A21: 10 | B21: GmbH-Gesellsch./Geschäftsführer/-in | I21: =IF(C21=0,0,IF(C21>=1,IF(AND(OR(F21>=1,G21>=1), H21>1),"Gehalt ???",C21*IF(F21="",H21,F21*G21*4.33)))) -> 0.00 | J21: =I21 -> 0.00 | M21: 0 | N21: 0.00 | P21: 0.00 | R21: =IF(AND($D21="",$E21=""),"",IF(OR($D21="",$E21="",$D21=0,$E21=0,$D21>$E21),"Überprüfe Eingaben in Spalte D und E","")) -> 
A22: 11 | B22: GmbH-Gesellsch./Geschäftsführer/-in | I22: =IF(C22=0,0,IF(C22>=1,IF(AND(OR(F22>=1,G22>=1), H22>1),"Gehalt ???",C22*IF(F22="",H22,F22*G22*4.33)))) -> 0.00 | J22: =I22 -> 0.00 | M22: 0 | N22: =$C22*(IF($D22="",1,IF($D22="bis",$E22/12,IF($D22="ab",(12-$E22+1)/12,((E22+1)-D22)/12)))) -> 0.00 | P22: =N22*O22 -> 0.00 | R22: =IF(AND($D22="",$E22=""),"",IF(OR($D22="",$E22="",$D22=0,$E22=0,$D22>$E22),"Überprüfe Eingaben in Spalte D und E","")) -> 
A23: 12 | B23: GmbH-Gesellsch./Geschäftsführer/-in | I23: =IF(C23=0,0,IF(C23>=1,IF(AND(OR(F23>=1,G23>=1), H23>1),"Gehalt ???",C23*IF(F23="",H23,F23*G23*4.33)))) -> 0.00 | J23: =I23 -> 0.00 | M23: 0 | N23: =$C23*(IF($D23="",1,IF($D23="bis",$E23/12,IF($D23="ab",(12-$E23+1)/12,((E23+1)-D23)/12)))) -> 0.00 | P23: =N23*O23 -> 0.00 | R23: =IF(AND($D23="",$E23=""),"",IF(OR($D23="",$E23="",$D23=0,$E23=0,$D23>$E23),"Überprüfe Eingaben in Spalte D und E","")) -> 
A24: Summe | C24: =SUM(C12:C23) -> 1 | I24: =SUM(I12:I23) -> 0.00 | J24: 0.00 | K24: 0.00 | L24: 0.00 | M24: 0 | N24: 1.00 | P24: =SUM(P12:P23) -> 0.00
J25: zzgl. Berufsgenossenschaft
J26: zzgl. Sonstiges
J27: Personalkosten gesamt | M27: =ROUND(M24+M25+M26,-2) -> 0
J28: Anzahl Mitarbeiter produktiv | M28: =$P$24 -> 0.00
J29: Planumsatz 2. Geschäftsjahr | M29: =Rentabilität!$E$13 -> 0
J30: Umsatz über Fremdleistungen | M30: =Rentabilität!$C$14 -> 0
J31: Eigene Betriebsleistung je | M31: =IF((M29-M30)<0,0,IF(M28=0,"",(M29-M30)/M28)) -> 
J32: produktiv Beschäftigtem

Sheet Personalkosten 3. Jahr
A1: =CONCATENATE( "Personalkosten 3. Jahr des Unternehmens: ", Startseite!C14) -> Personalkosten 3. Jahr des Unternehmens: | I1: =IF(Startseite!D16=0,""," Planungszeitraum:") -> Planungszeitraum: | K1: =IF(Startseite!D16="","",'Personalkosten 2. Jahr'!M1+30) -> 2019-01-11 | L1: - | M1: =IF(K1="","",K1+330) -> 2019-12-07
AD2: Anzahl Mitarbeiter produktiv | AG2: =$P$24 -> 0.00
G3: Arbeitgeberanteil-Faktor : | J3: =1+0.073+0.01275+0.0935+0.015+0.032+0.0038+0.0009 -> 1.2310 | AD3: Planumsatz 3. Geschäftsjahr | AG3: =Rentabilität!$G$13 -> 0
G4: Arbeitgeberanteil-Faktor Minijobs: | J4: =1+0.13+0.15+0.009+0.003+0.0009+0.02 -> 1.3129 | AD4: Umsatz über Fremdleistungen | AG4: =Rentabilität!$G$14 -> 0
AD5: Eigene Betriebsleistung je | AG5: =IF((AG3-AG4)<0,0,IF(AG2=0,"",(AG3-AG4)/AG2)) -> 
F6: Lohn- und Gehaltsangabe | N6: Mitarbeiterproduktivität | AD6: produktiv Beschäftigtem
A7: Nr. | C7: Anzahl | D7: zeitliche | F7: Bruttolohn | G7: Stunden | H7: Bruttogehalt | I7: Lohn/Gehalt | J7: Lohn/Gehalt | K7: Tarifliches | L7: Sonder- | M7: Personalkosten | N7: Anzahl | O7: Anteil | P7: Produktive
D8: Einschränkung | F8: pro Std. | G8: pro | H8: pro Monat | I8: pro Monat | J8: pro Monat | K8: Zusatzgehalt | L8: Zahlungen | M8: pro Jahr | N8: Mitarbeiter | O8: produktiv | P8: Kräfte
B9: Name bzw. Tätigkeitsbereich | D9: Beginn | E9: Ende | F9: in EUR | G9: Woche | H9: in EUR | I9: ohne AG-Anteile | J9: incl. AG-Anteile | K9: in % | L9: in EUR | M9: in EUR | N9: gewichtet | O9: in %
D10: (Monat) | E10: (Monat) | I10: in EUR | J10: in EUR
A12: 1 | I12: =IF(C12=0,0,IF(C12>=1,IF(AND(OR(F12>=1,G12>=1), H12>1),"Lohn/Gehalt ???",C12*IF(F12="",H12,F12*G12*4.33)))) -> 0.00 | J12: =IF(C12*I12<C12*451,I12*J$4,I12*J$3) -> 0.00 | M12: =IF(AND(D12="",E12=""),J12*12+K12*J12+L12*IF(I12<401,J$4,J$3),IF(OR(D12="",E12="",D12=0,E12=0,D12>E12),0,J12*(E12-D12+1)+J12*K12+L12*IF(I12<401,J$4,J$3))) -> 0 | N12: =$C12*(IF($D12="",1,IF($D12="bis",$E12/12,IF($D12="ab",(12-$E12+1)/12,((E12+1)-D12)/12)))) -> 0.00 | P12: =N12*O12 -> 0.00 | Q12: =IF(AND(C12>0,J12>0,J12<=C12*520,M12>C12*6240),"Überprüfe ggf. Minijob(s)","") ->  | R12: =IF(AND($D12="",$E12=""),"",IF(OR($D12="",$E12="",$D12=0,$E12=0,$D12>$E12),"Überprüfe Eingaben in Spalte D und E","")) -> 
A13: 2 | I13: =IF(C13=0,0,IF(C13>=1,IF(AND(OR(F13>=1,G13>=1), H13>1),"Lohn/Gehalt ???",C13*IF(F13="",H13,F13*G13*4.33)))) -> 0.00 | J13: =IF(C13*I13<C13*451,I13*J$4,I13*J$3) -> 0.00 | M13: =IF(AND(D13="",E13=""),J13*12+K13*J13+L13*IF(I13<401,J$4,J$3),IF(OR(D13="",E13="",D13=0,E13=0,D13>E13),0,J13*(E13-D13+1)+J13*K13+L13*IF(I13<401,J$4,J$3))) -> 0 | N13: 0.00 | P13: 0.00 | Q13: =IF(AND(C13>0,J13>0,J13<=C13*520,M13>C13*6240),"Überprüfe ggf. Minijob(s)","") -> 
A14: 3 | I14: 0.00 | J14: 0.00 | M14: 0 | N14: 0.00 | P14: 0.00
A15: 4 | I15: 0.00 | J15: 0.00 | M15: 0 | N15: 0.00 | P15: 0.00
A16: 5 | I16: 0.00 | J16: 0.00 | M16: 0 | N16: 0.00 | P16: 0.00
A17: 6 | I17: 0.00 | J17: 0.00 | M17: 0 | N17: 0.00 | P17: 0.00
A18: 7 | I18: 0.00 | J18: 0.00 | M18: 0 | N18: 0.00 | P18: 0.00 | R18: =IF(AND($D18="",$E18=""),"",IF(OR($D18="",$E18="",$D18=0,$E18=0,$D18>$E18),"Überprüfe Eingaben in Spalte D und E","")) -> 
A19: 8 | I19: 0.00 | J19: 0.00 | M19: 0 | N19: 0.00 | P19: 0.00 | R19: =IF(AND($D19="",$E19=""),"",IF(OR($D19="",$E19="",$D19=0,$E19=0,$D19>$E19),"Überprüfe Eingaben in Spalte D und E","")) -> 
A20: 9 | B20: Inhaber/-in oder | C20: 1 | N20: 1.00 | P20: 0.00
A21: 10 | B21: GmbH-Gesellsch./Geschäftsführer/-in | I21: =IF(C21=0,0,IF(C21>=1,IF(AND(OR(F21>=1,G21>=1), H21>1),"Gehalt ???",C21*IF(F21="",H21,F21*G21*4.33)))) -> 0.00 | J21: =I21 -> 0.00 | M21: 0 | P21: 0.00 | R21: =IF(AND($D21="",$E21=""),"",IF(OR($D21="",$E21="",$D21=0,$E21=0,$D21>$E21),"Überprüfe Eingaben in Spalte D und E","")) -> 
A22: 11 | B22: GmbH-Gesellsch./Geschäftsführer/-in | I22: =IF(C22=0,0,IF(C22>=1,IF(AND(OR(F22>=1,G22>=1), H22>1),"Gehalt ???",C22*IF(F22="",H22,F22*G22*4.33)))) -> 0.00 | J22: =I22 -> 0.00 | M22: 0 | N22: =$C22*(IF($D22="",1,IF($D22="bis",$E22/12,IF($D22="ab",(12-$E22+1)/12,((E22+1)-D22)/12)))) -> 0.00 | P22: =N22*O22 -> 0.00 | R22: =IF(AND($D22="",$E22=""),"",IF(OR($D22="",$E22="",$D22=0,$E22=0,$D22>$E22),"Überprüfe Eingaben in Spalte D und E","")) -> 
A23: 12 | B23: GmbH-Gesellsch./Geschäftsführer/-in | I23: =IF(C23=0,0,IF(C23>=1,IF(AND(OR(F23>=1,G23>=1), H23>1),"Gehalt ???",C23*IF(F23="",H23,F23*G23*4.33)))) -> 0.00 | J23: =I23 -> 0.00 | M23: 0 | N23: =$C23*(IF($D23="",1,IF($D23="bis",$E23/12,IF($D23="ab",(12-$E23+1)/12,((E23+1)-D23)/12)))) -> 0.00 | P23: =N23*O23 -> 0.00 | R23: =IF(AND($D23="",$E23=""),"",IF(OR($D23="",$E23="",$D23=0,$E23=0,$D23>$E23),"Überprüfe Eingaben in Spalte D und E","")) -> 
A24: Summe | C24: =SUM(C12:C23) -> 1 | I24: =SUM(I12:I23) -> 0.00 | J24: 0.00 | K24: 0.00 | L24: 0.00 | M24: 0 | N24: 1.00 | P24: =SUM(P12:P23) -> 0.00
J25: zzgl. Berufsgenossenschaft
J26: zzgl. Sonstiges
J27: Personalkosten gesamt | M27: =ROUND(M24+M25+M26,-2) -> 0
J28: Anzahl Mitarbeiter produktiv | M28: =$P$24 -> 0.00
J29: Planumsatz 3. Geschäftsjahr | M29: =Rentabilität!$G$13 -> 0
J30: Umsatz über Fremdleistungen | M30: =Rentabilität!$G$14 -> 0
J31: Eigene Betriebsleistung je | M31: =IF((M29-M30)<0,0,IF(M28=0,"",(M29-M30)/M28)) -> 
J32: produktiv Beschäftigtem

Sheet übrige Kosten
A2: =CONCATENATE( "übrige Kosten des Unternehmens: ", Startseite!C14) -> übrige Kosten des Unternehmens:
C4: 1.Geschäftsjahr | E4: 2.Geschäftsjahr | G4: 3.Geschäftsjahr
C5: =CONCATENATE("(",TEXT('Personalkosten 1. Jahr'!$K$1,"MMM. JJJJ")," - ",TEXT('Personalkosten 1. Jahr'!$M$1,"MMM. JJJJ"),")") -> (Jan. 2017 - Dez. 2017) | E5: =CONCATENATE("(",TEXT('Personalkosten 2. Jahr'!$K$1,"MMM. JJJJ")," - ",TEXT('Personalkosten 2. Jahr'!$M$1,"MMM. JJJJ"),")") -> (Jan. 2018 - Dez. 2018) | G5: =CONCATENATE("(",TEXT('Personalkosten 3. Jahr'!$K$1,"MMM. JJJJ")," - ",TEXT('Personalkosten 3. Jahr'!$M$1,"MMM. JJJJ"),")") -> (Jan. 2019 - Dez. 2019)
A6: Kostenarten | C6: EUR | D6: % | E6: EUR | F6: % | G6: EUR | H6: %
A8: Raumkosten (Miete, Pacht) | D8: =IF(OR(C8="",C$37=0),"",(C8/C$37*100)) ->  | F8: =IF(OR(E8="",E$37=0),"",(E8/E$37*100)) ->  | H8: =IF(OR(G8="",G$37=0),"",(G8/G$37*100)) -> 
A9: Energiekosten (Strom, Heizung, Wasser)
A10: Versicherung, Beiträge
A11: Kfz-Kosten (incl. Leasing, Steuern, Vers., Rep., ohne AfA)
A12: Werbung / Reisekosten
A13: Kosten der Warenabgabe (incl. Gewährleistungen)
A14: Abschreibungen | C14: =Kapitalbedarf!$G19 -> 0 | E14: =Kapitalbedarf!$G19 -> 0 | G14: =Kapitalbedarf!$G19 -> 0
A15: Reparaturen, Instandhaltung
A16: Büro (Telefon, Telefax, Internet)
A17: Büro (Porto, Zeitschriften, sonst. Bürobedarf)
A18: Buchführung und Abschlusskosten / Beratungskosten
A19: Miete / Leasing (ohne Kfz) für bewegliche Wirtschaftsgüter
A20: Abraum - und Abfallbeseitigung
A21: Werkzeug und Kleingeräte GWG
A22: Betriebsbedarf
A23: langfristige Zinsen | C23: =ROUND(IF('Zins und Tilgung'!C13=0,0,'Zins und Tilgung'!C13),-2) -> 0 | E23: =ROUND(IF('Zins und Tilgung'!C14=0,0,'Zins und Tilgung'!C14),-2) -> 0 | G23: =ROUND(IF('Zins und Tilgung'!C15=0,0,'Zins und Tilgung'!C15),-2) -> 0
A24: kurzfristige Zinsen, Bankgebühren
A25: Sonstiges
A26: Sonstiges 2:
A27: Sonstiges 3:
A28: übrige Kosten gesamt | C28: =SUM(C8:C27) -> 0 | E28: =SUM(E8:E27) -> 0 | G28: =SUM(G8:G27) -> 0
A31: Steuerabschätzung
A32: Gewerbesteuer / Hebesatz in % | B32: 350% | C32: =ROUND(IF(IF(OR(Startseite!$A35=Startseite!$A44,Startseite!$A35=Startseite!$A45,Startseite!$A35=Startseite!$A46),Rentabilität!C24*0.035*'übrige Kosten'!$B$32,(Rentabilität!C24-24500)*0.035*'übrige Kosten'!$B$32)>0,IF(OR(Startseite!$A35=Startseite!$A44,Startseite!$A35=Startseite!$A45,Startseite!$A35=Startseite!$A46),Rentabilität!C24*0.035*'übrige Kosten'!$B$32,(Rentabilität!C24-24500)*0.035*'übrige Kosten'!$B$32),0),-2) -> 0 | D32: =IF(OR(C32="",C$37=0),"",(C32/C$37*100)) ->  | E32: =ROUND(IF(IF(OR(Startseite!$A35=Startseite!$A44,Startseite!$A35=Startseite!$A45,Startseite!$A35=Startseite!$A46),Rentabilität!E24*0.035*'übrige Kosten'!$B$32,(Rentabilität!E24-24500)*0.035*'übrige Kosten'!$B$32)>0,IF(OR(Startseite!$A35=Startseite!$A44,Startseite!$A35=Startseite!$A45,Startseite!$A35=Startseite!$A46),Rentabilität!E24*0.035*'übrige Kosten'!$B$32,(Rentabilität!E24-24500)*0.035*'übrige Kosten'!$B$32),0),-2) -> 0 | F32: =IF(OR(E32="",E$37=0),"",(E32/E$37*100)) ->  | G32: =ROUND(IF(IF(OR(Startseite!$A35=Startseite!$A44,Startseite!$A35=Startseite!$A45,Startseite!$A35=Startseite!$A46),Rentabilität!G24*0.035*'übrige Kosten'!$B$32,(Rentabilität!G24-24500)*0.035*'übrige Kosten'!$B$32)>0,IF(OR(Startseite!$A35=Startseite!$A44,Startseite!$A35=Startseite!$A45,Startseite!$A35=Startseite!$A46),Rentabilität!G24*0.035*'übrige Kosten'!$B$32,(Rentabilität!G24-24500)*0.035*'übrige Kosten'!$B$32),0),-2) -> 0 | H32: =IF(OR(G32="",G$37=0),"",(G32/G$37*100)) -> 
A33: Körperschaftssteuer incl. Solidaritätszuschlag (15,825%) | C33: =IF(Rentabilität!E24<=0,0,ROUND(IF(OR(Startseite!$A35=Startseite!$A44,Startseite!$A35=Startseite!$A45,Startseite!$A35=Startseite!$A46),Rentabilität!C24*0.15825,0),-2)) -> 0 | D33: =IF(OR(C33="",C$37=0),"",(C33/C$37*100)) ->  | E33: =IF(Rentabilität!E24<=0,0,ROUND(IF(OR(Startseite!$A35=Startseite!$A44,Startseite!$A35=Startseite!$A45,Startseite!$A35=Startseite!$A46),Rentabilität!E24*0.15825,0),-2)) -> 0 | F33: =IF(OR(E33="",E$37=0),"",(E33/E$37*100)) ->  | G33: =IF(Rentabilität!G24<=0,0,ROUND(IF(OR(Startseite!$A35=Startseite!$A44,Startseite!$A35=Startseite!$A45,Startseite!$A35=Startseite!$A46),Rentabilität!G24*0.15825,0),-2)) -> 0 | H33: =IF(OR(G33="",G$37=0),"",(G33/G$37*100)) -> 
A34: Summe Betriebssteuern | C34: =C32+C33 -> 0 | D34: =IF(OR(C34="",C$37=0),"",(D32+D33)) ->  | E34: =E32+E33 -> 0 | F34: =IF(OR(E34="",E$37=0),"",(F32+F33)) ->  | G34: =G32+G33 -> 0 | H34: =IF(OR(G34="",G$37=0),"",(H32+H33)) -> 
A37: Umsatz ohne USt. | C37: =(Rentabilität!C$13) -> 0 | D37: =IF(C37=0,"",(C37/C$37*100)) ->  | E37: =(Rentabilität!E$13) -> 0 | F37: =IF(E37=0,"",(E37/E$37*100)) ->  | G37: =(Rentabilität!G$13) -> 0 | H37: =IF(G37=0,"",(G37/G$37*100)) -> 

Sheet Unternehmerlohn
A2: =CONCATENATE( "Unternehmerlohn / Private Ausgaben des Unternehmens: ", Startseite!C14) -> Unternehmerlohn / Private Ausgaben des Unternehmens:
D4: 1. Geschäftsjahr | F4: 2. Geschäftsjahr | H4: 3. Geschäftsjahr
D5: =CONCATENATE("(",TEXT('Personalkosten 1. Jahr'!$K$1,"MMM. JJJJ")," - ",TEXT('Personalkosten 1. Jahr'!$M$1,"MMM. JJJJ"),")") -> (Jan. 2017 - Dez. 2017) | F5: =CONCATENATE("(",TEXT('Personalkosten 2. Jahr'!$K$1,"MMM. JJJJ")," - ",TEXT('Personalkosten 2. Jahr'!$M$1,"MMM. JJJJ"),")") -> (Jan. 2018 - Dez. 2018) | H5: =CONCATENATE("(",TEXT('Personalkosten 3. Jahr'!$K$1,"MMM. JJJJ")," - ",TEXT('Personalkosten 3. Jahr'!$M$1,"MMM. JJJJ"),")") -> (Jan. 2019 - Dez. 2019)
A6: Geplanter Unternehmerlohn | D6: EUR | F6: EUR | H6: EUR
A10: Notwendiger Unternehmerlohn | D10: 1. Geschäftsjahr | F10: 2. Geschäftsjahr | H10: 3. Geschäftsjahr
D11: EUR | E11: % | F11: EUR | G11: % | H11: EUR | I11: %
A13: Private Ausgaben:
C14: Lebensunterhalt | E14: =IF(D14>0,D14/$D$28*$E$28," ") ->  | G14: =IF(F14>0,F14/$F$28*$G$28," ") ->  | I14: =IF(H14>0,H14/$H$28*$I$28," ") -> 
C15: Miete/Hausaufwendungen
C16: Energiekosten (Strom, Heizung, Wasser)
C17: Kommunikation (Telefon, TV)
C18: Kfz-Kosten
C19: Altersvorsorge (Renten-, Lebensversicherung)
C20: Kranken-, Pflegeversicherung
C21: sonstige Versicherungen
C22: Urlaub, Reise
C23: geplante Anschaffungen
C24: Kreditverpflichtungen
C25: sonstige Zahlungen / Rücklagen
C26: geschätzte Einkommensteuer mit Solidaritätszuschlag
C27: Kirchensteuer
A28: Summe privater Ausgaben | D28: =SUM(D14:D27) -> 0 | E28: 100.00 | F28: =SUM(F14:F27) -> 0 | G28: 100.00 | H28: =SUM(H14:H27) -> 0 | I28: 100.00
A30: Sonstige Private Einnahmen:
C31: Nettolohn/-gehalt des Ehe- bzw. Lebenspartners
C32: andere Nettolohn/-gehaltseinnahmen
C33: Kindergeld
C34: Sonstige (dauerhaften) Einkünfte
C35: Sonstiges
A36: Summe sonstige privater Einnahmen | D36: =SUM(D31:D35) -> 0 | E36: =IF(AND(D28<>0,D36>0),D36/D28*E28," ") ->  | F36: =SUM(F31:F35) -> 0 | G36: =IF(AND(F28<>0,F36>0),F36/F28*G28," ") ->  | H36: =SUM(H31:H35) -> 0 | I36: =IF(AND(H28<>0,H36>0),H36/H28*I28," ") -> 
A37: Gründerzuschuss oder ALG II und Einstiegegeld | D37: =D52+D63 -> 0 | F37: =F52+F63 -> 0
A38: Summe sonstige privater Einnahmen (mit GZ oder ALG II / ESG) | D38: =D36+D37 -> 0 | F38: =F36+F37 -> 0 | H38: =H36+H37 -> 0
A39: = Saldo der Ausgaben abzüglich der sonstigen Einnahmen
A40: ~ notwendiger Unternehmerlohn | D40: =D28-D38 -> 0 | F40: =F28-F38 -> 0 | H40: =H28-H38 -> 0
A41: =IF(AND(D52>0,D63>0),"Achtung: Gründerzuschuss und ALG II können nicht gleichzeitig beantragt werden","") -> 
A44: Nebenrechnung zur Ermittlung eines Gründerzuschusses (GZ) oder eines Einstiegsgeldes (ESG)
A45: Gründerzuschuss: | D45: 1. Geschäftsjahr | F45: 2. Geschäftsjahr
D46: EUR | F46: EUR
A47: Phase I | B47: Dauer (Monate) | C47: 6
B48: ALG I (EUR) | D48: =C48*C47 -> 0
B49: Monatspauschale (EUR) | C49: 300 | D49: =IF(C48=0,0,C49*C47) -> 0
A50: Phase II | B50: Dauer (Monate) | C50: 9
B51: Monatspauschale (300 EUR) | D51: =IF(C48=0,0,(C50-3)*C51) -> 0 | F51: =IF(C48=0,0,3*C51) -> 0
C52: Summe Gründerzuschuss | D52: =D48+D49+D51 -> 0 | F52: =F49+F51 -> 0
A54: Arbeitslosengeld II und Einstiegsgeld | D54: 1. Geschäftsjahr | F54: 2. Geschäftsjahr
D55: EUR | F55: EUR
A56: 1. Jahr | B56: Dauer (Monate) | C56: 6
A57: Verlängerungsoption 1. Jahr (Monate) | H57: =IF(OR(C57="",C57=0,C57=6),""," überprüfe Eintragung!") -> 
A58: ALG II und Einstiegsgeld monatlich (EUR) | D58: =C56*C58+C57*C58 -> 0
A59: 2.Jahr
A60: Verlängerungsoptionen 2. Jahr (Monate) | H60: =IF(OR(C60="",C60=0,C60=6,C60=12),""," überprüfe Eintragung!") -> 
A61: Zuschussdegression im 2. Jahr (%) | C61: 34%
A62: ALG II und Einstiegsgeld monatlich: 2. Jahr (EUR) | C62: =IF(C60>0,C58*(1-C61),0) -> 0 | F62: =C60*C62 -> 0
C63: Summe Einstiegsgeld | D63: =D58 -> 0 | F63: =F59+F62 -> 0
A64: =IF(AND(D52>0,D63>0),"Achtung: Gründerzuschuss und ALG II können nicht gleichzeitig beantragt werden","") -> 

Sheet Umsatzplanung
A1: =CONCATENATE( "Mindesumsatz und Umsatzplanungen des Unternehmens: ", Startseite!C14) -> Mindesumsatz und Umsatzplanungen des Unternehmens:
A3: Mindest- Umsatzbedarf
K4: Möglichkeiten der Umsatzplanung:
A5: Achtung: Mit Ausnahme des Materialeinsatzes werden alle Kostenarten als fix angenommen!
D6: 1. Geschäftsjahr | F6: 2. Geschäftsjahr | H6: 3. Geschäftsjahr | K6: 1. | N6: - z.B. für Unternehmen im
A7: Bezeichnung | D7: EUR | E7: % | F7: EUR | G7: % | H7: EUR | I7: % | N7: Bau- und Ausbaugewerbe
A9: Unternehmerlohn (nicht bei Kapitalgesellschaften) | D9: =IF(OR(Startseite!$A35=Startseite!$A44,Startseite!$A35=Startseite!$A45,Startseite!$A35=Startseite!$A46),0,IF(Unternehmerlohn!D7>=Unternehmerlohn!D40,Unternehmerlohn!D7,Unternehmerlohn!D40)) -> 0 | E9: =IF(D$13=0,"",(D9/D$16*100)) ->  | F9: =IF(OR(Startseite!$A35=Startseite!$A44,Startseite!$A35=Startseite!$A45,Startseite!$A35=Startseite!$A46),0,IF(Unternehmerlohn!F7>=Unternehmerlohn!F40,Unternehmerlohn!F7,Unternehmerlohn!F40)) -> 0 | G9: =IF(F$13=0,"",(F9/F$16*100)) ->  | H9: =IF(OR(Startseite!$A35=Startseite!$A44,Startseite!$A35=Startseite!$A45,Startseite!$A35=Startseite!$A46),0,IF(Unternehmerlohn!H7>=Unternehmerlohn!H40,Unternehmerlohn!H7,Unternehmerlohn!H40)) -> 0 | I9: =IF(H$13=0,"",(H9/H$16*100)) -> 
K10: 2.
A11: + Personalkosten | D11: =Rentabilität!C21 -> 0 | E11: =IF(D$13=0,"",(D11/D$16*100)) ->  | F11: =Rentabilität!E21 -> 0 | G11: =IF(F$13=0,"",(F11/F$16*100)) ->  | H11: =Rentabilität!G21 -> 0 | I11: =IF(H$13=0,"",(H11/H$16*100)) ->  | N11: - für Ladengeschäfte
A12: + übrige Kosten | D12: =Rentabilität!C23 -> 0 | E12: =IF(D$13=0,"",(D12/D$16*100)) ->  | F12: =Rentabilität!E23 -> 0 | G12: =IF(F$13=0,"",(F12/F$16*100)) ->  | H12: =Rentabilität!G23 -> 0 | I12: =IF(H$13=0,"",(H12/H$16*100)) -> 
A13: = mindestens notwendiger Rohgewinn | D13: =D9+D11+D12 -> 0 | E13: =IF(D$16=0,0,(100-E15)) -> 0 | F13: =F9+F11+F12 -> 0 | G13: =IF(F$16=0,"",(100-G15)) ->  | H13: =H9+H11+H12 -> 0 | I13: =IF(H$16=0,"",(100-I15)) -> 
K14: 3. | N14: - Allgemeine Auftragsplanung
A15: + Materialeinsatz | D15: =IF(D13=0,"",ROUND(D13/E13*E15,-1)) ->  | F15: =IF(F13=0,"",ROUND(F13/G13*G15,-1)) ->  | G15: 0 | H15: =IF(H13=0,"",ROUND(H13/I13*I15,-1)) ->  | I15: 0
A16: = Mindest - Umsatzbedarf | D16: =ROUND(D13*100/(100-E15),-2) -> 0 | F16: =ROUND(F13*100/(100-G15),-2) -> 0 | G16: 100 | H16: =ROUND(H13*100/(100-I15),-2) -> 0 | I16: 100
A22: =CONCATENATE("Kapazitätsorientierte Umsatzberechnung des Unternehmens: ", Startseite!C14) -> Kapazitätsorientierte Umsatzberechnung des Unternehmens:
B25: Inhaber | G25: Gesellen | L25: Auszubildende
A26: Bezeichnung | B26: Tage | C26: Stunden | D26: Std./Jahr | E26: % | F26: EUR | G26: Tage | H26: Stunden | I26: Std./Jahr | J26: % | K26: EUR | L26: Tage | M26: Stunden | N26: Std./Jahr | O26: % | P26: EUR
A27: Arbeitszeit pro Woche | D27: =52*C27 -> 0 | I27: =52*H27 -> 0 | N27: =52*M27 -> 0
A28: Tagesarbeitszeit
A29: - bez. Feiertage | B29: 10 | D29: =B29*C$28 -> 0 | G29: 10 | I29: =G29*H$28 -> 0 | L29: 10 | N29: =L29*M$28 -> 0
A30: - Urlaubstage | B30: 10 | D30: =B30*C$28 -> 0 | G30: 30 | I30: =G30*H$28 -> 0 | L30: 30 | N30: =L30*M$28 -> 0
A31: - Krankheitstage | B31: 5 | D31: =B31*C$28 -> 0 | G31: 10 | I31: =G31*H$28 -> 0 | L31: 10 | N31: =L31*M$28 -> 0
A32: - sonstige Fehltage | B32: 5 | D32: =B32*C$28 -> 0 | G32: 5 | I32: =G32*H$28 -> 0 | L32: 50 | N32: =L32*M$28 -> 0
A33: = Zwischensumme | D33: =D27-SUM(D29:D32) -> 0 | I33: =I27-SUM(I29:I32) -> 0 | N33: =N27-SUM(N29:N32) -> 0
A34: + Überstunden pro Jahr | N34: 10.00
A35: = Anwesenheitszeit | D35: =D33+D34 -> 0 | I35: =I33+I34 -> 0 | N35: =N33+N34 -> 10
A36: - Anteil unproduktiver Stunden in % | D36: =D35*E36 -> 0 | I36: =I35*J36 -> 0 | N36: =N35*O36 -> 0
A37: = verkaufbare Stunden pro Person | D37: =D35-D36 -> 0 | I37: =I35-I36 -> 0 | N37: =N35-N36 -> 10
A38: x Anzahl Mitarbeiter bzw. Inhaber | D38: 1
A39: = verkaufbare Stunden | D39: =D37*D38 -> 0 | I39: =I37*I38 -> 0 | N39: =N37*N38 -> 0
A40: x Stundenverrechnungssatz
A41: = Lohnumsatz | F41: =D39*F40 -> 0 | K41: =I39*K40 -> 0 | P41: =N39*P40 -> 0
A43: Gesamtumsatz | E43: % | F43: EUR
A44: Lohnumsatz gesamt in EUR | F44: =F41+K41+P41 -> 0
A46: Materialeinsatz in %
A47: Materialaufschlag in %
A48: Materialumsatz in EUR | F48: =(F44+F52)/(1-(E46*(1+E47)))-(F44+F52) -> 0
A50: Fremdleistungen Kosten in EUR
A51: Aufschlag auf Fremdleistungen in %
A52: Fremdleistungsumsatz in EUR | F52: =F50*(1+E51) -> 0
A54: Gesamtumsatz in EUR | F54: =F44+F48+F52 -> 0
A55: Gesamtumsatz in EUR gerundet | F55: =ROUND(F54,-3) -> 0
A65: =CONCATENATE( "Umsatz nach Anzahl erwarteter Kunden (besonders für Ladengeschäfte) des Unternehmens: ",Startseite!C14) -> Umsatz nach Anzahl erwarteter Kunden (besonders für Ladengeschäfte) des Unternehmens:
A69: Tage pro Jahr | D69: 365 | E69: Tage
A70: - Sonntage und Feiertage | D70: 62 | E70: Tage
A71: - Samstage (1/2) | E71: Tage | I71: Hilfstabelle: Ermittlung Durchschnittsumsatz je Kunde
A72: - sonstige Tage, an denen geschlossen ist | E72: Tage
A73: = Öffnungstage pro Jahr | D73: =D69-D70-D71-D72 -> 303 | E73: Tage | I73: Typische Umsatzart/ Bezeichnung | L73: Brutto -Umsatz/ Kunde EUR | N73: Anteil an Gesamtumsatz | O73: Gewichteter Umsatz
I74: Umsatzart 1 | O74: =L74*N74 -> 0.00 €
A75: Durchschnittsumsatz je Kunde | E75: EUR | F75: brutto!! | I75: Umsatzart 2 | O75: =L75*N75 -> 0.00 €
A76: x Anzahl erwarteter Kunden pro Tag | E76: Kunden/Tag | I76: Umsatzart 3 | O76: =L76*N76 -> 0.00 €
A77: = Tagesumsatz | D77: =D75*D76 -> 0 | E77: EUR | F77: brutto!! | I77: Umsatzart 4 | O77: =L77*N77 -> 0.00 €
A78: x Öffnungstage pro Jahr | D78: =D73 -> 303 | E78: Tage | I78: Durchschnittsumsatz je Kunde brutto | N78: =SUM(N74:N77) -> 0% | O78: =SUM(O74:O77) -> 0.00 €
A79: = Jahresumsatz | D79: =D77*D78 -> 0 | E79: EUR | F79: brutto!!
A80: Jahresumsatz gerundet | D80: =ROUND(D79,-3) -> 0 | E80: EUR | F80: brutto!! | I80: =IF(N78>100%,"Achtung: Summe der Umsatzanteile größer 100%","") -> 
A83: Umsatz lt. Rentabilitätsvorschau 1. J. (Netto) | B83: =Rentabilität!C13 -> 0 | D83: EUR
A84: + MWSt | C84: 19.0%
A85: = Umsatz laut Rentabilitätvorschau (Brutto) | D85: =B83+B83*C84 -> 0 | E85: EUR
A86: / Durchschnittsumsatz je Kunde | D86: =D75 -> 0.00 | E86: EUR
A87: = notwendige Kunden pro Jahr | D87: =IF(D86=0,0,D85/D86) -> 0 | E87: Anzahl Kunden
A88: / Öffnungstage | D88: =D73 -> 303 | E88: Tage
A89: = notwendige Kunden pro Tag | D89: =D87/D88 -> 0.0 | E89: Anzahl Kunden
A107: =CONCATENATE("Umsatz nach Produkten/Dienstleistungen des Unternehmens: ",Startseite!C14) -> Umsatz nach Produkten/Dienstleistungen des Unternehmens:
A109: Umsatzbereich | C109: Anzahl erwarteter Aufträge pro: | F109: Umsatz pro Auftrag in EUR | I109: =IF(C110="Jahr","Jahres-",IF(C110="Monat","Monats-",IF(C110="Woche","Wochen-",IF(C110="Tag","Tages-")))) -> Monats-
C110: Monat | I110: umsatz in EUR | K110: Geplanter Arbeitseinsatz:
A111: Umsatzbereich 1 | I111: =ROUND($C111*F111,-1) -> 0 | K111: Anzahl Arbeitstage/Woche | N111: 5
A112: Umsatzbereich 2 | I112: =ROUND($C112*F112,-1) -> 0 | N112: =IF(OR(N111<1,N111>7),"Falsche Eingabe","") -> 
A113: Umsatzbereich 3 | I113: 0 | K113: Anzahl Arbeitsmonate/Jahr | N113: 12
A114: Umsatzbereich 4 | I114: 0 | N114: =IF(OR(N113<1,N113>12),"Falsche Eingabe","") -> 
A115: Umsatzbereich 5 | I115: 0
A116: Umsatzbereich 6 | I116: 0
A117: Umsatzbereich 7 | I117: 0
A118: Umsatzbereich 8 | I118: 0
A119: Umsatzbereich 9 | I119: 0
A120: Umsatzbereich 10 | I120: 0
A121: =IF(C110="Jahr","erwarteter Jahresumsatz in EUR",IF(C110="Monat","erwarteter Monatsumsatz in EUR",IF(C110="Woche","erwarteter Wochenumsatz in EUR",IF(C110="Tag","erwarteter Tagesumsatz in EUR")))) -> erwarteter Monatsumsatz in EUR | I121: =SUM(I111:I120) -> 0 €
A122: erwartete Aufträge | C122: =SUM(C111:E120) -> 0
A125: Umsatzbereich | B125: Anzahl erwarteter Aufträge pro | D125: =IF(B$126="Jahr","Jahresumsatz",IF(B$126="Monat","Monatsumsatz",IF(B$126="Woche","Wochenumsatz",IF(B$126="Tag","Tagesumsatz")))) -> Tagesumsatz | F125: Anzahl erwarteter Aufträge pro | H125: =IF(F$126="Jahr","Jahresumsatz",IF(F$126="Monat","Monatsumsatz",IF(F$126="Woche","Wochenumsatz",IF(F$126="Tag","Tagesumsatz")))) -> Wochenumsatz | J125: Anzahl erwarteter Aufträge pro | L125: =IF(J$126="Jahr","Jahresumsatz",IF(J$126="Monat","Monatsumsatz",IF(J$126="Woche","Wochenumsatz",IF(J$126="Tag","Tagesumsatz")))) -> Jahresumsatz
B126: =IF($C$110="Jahr","Monat",IF($C$110="Monat","Tag",IF($C$110="Woche","Tag",IF($C$110="Tag","Woche","Falsch in C80")))) -> Tag | D126: In EUR | F126: =IF($C110="Jahr","Woche",IF($C110="Monat","Woche",IF($C110="Woche","Monat",IF($C110="Tag","Monat","Falsch in C80")))) -> Woche | H126: In EUR | J126: =IF($C110="Jahr","Tag",IF($C110="Monat","Jahr",IF($C110="Woche","Jahr",IF($C110="Tag","Jahr","Falsch in C80")))) -> Jahr | L126: In EUR
A127: =A111 -> Umsatzbereich 1 | B127: =IF($C$110="Jahr",$C111/N$113,IF($C$110="Monat",$C111/(4.33*N$111),IF($C$110="Woche",$C111/N$111,IF($C$110="Tag",$C111*N$111,"Falsch in C111")))) -> 0.0 | D127: =ROUND($F111*B127,0) -> 0 € | F127: =IF($C$110="Jahr",$C111/(N$113*4.33),IF($C$110="Monat",$C111/4.33,IF($C$110="Woche",$C111*4.33,IF($C$110="Tag",B127*4.33,"Falsch in C111")))) -> 0.0 | H127: =ROUND($F111*F127,0) -> 0 € | J127: =IF($C$110="Jahr",F127/N$111,IF($C$110="Monat",$C111*N$113,IF($C$110="Woche",F127*N$113,IF($C$110="Tag",F127*N$113,"Falsch in C111")))) -> 0.0 | L127: =ROUND($F111*J127,0) -> 0 €
A128: Umsatzbereich 2 | B128: =IF($C$110="Jahr",$C112/N$113,IF($C$110="Monat",$C112/(4.33*N$111),IF($C$110="Woche",$C112/N$111,IF($C$110="Tag",$C112*N$111,"Falsch in C111")))) -> 0.0 | D128: =ROUND($F112*B128,0) -> 0 € | F128: =IF($C$110="Jahr",$C112/(N$113*4.33),IF($C$110="Monat",$C112/4.33,IF($C$110="Woche",$C112*4.33,IF($C$110="Tag",B128*4.33,"Falsch in C111")))) -> 0.0 | H128: =ROUND($F112*F128,0) -> 0 € | J128: =IF($C$110="Jahr",F128/N$111,IF($C$110="Monat",$C112*N$113,IF($C$110="Woche",F128*N$113,IF($C$110="Tag",F128*N$113,"Falsch in C111")))) -> 0.0 | L128: 0 €
A129: Umsatzbereich 3 | B129: 0.0 | D129: =ROUND($F113*B129,0) -> 0 € | F129: 0.0 | H129: 0 € | J129: 0.0 | L129: 0 €
A130: Umsatzbereich 4 | B130: 0.0 | D130: 0 € | F130: 0.0 | H130: 0 € | J130: 0.0 | L130: 0 €
A131: Umsatzbereich 5 | B131: 0.0 | D131: 0 € | F131: 0.0 | H131: 0 € | J131: 0.0 | L131: 0 €
A132: Umsatzbereich 6 | B132: 0.0 | D132: 0 € | F132: 0.0 | H132: 0 € | J132: 0.0 | L132: 0 €
A133: Umsatzbereich 7 | B133: 0.0 | D133: 0 € | F133: 0.0 | H133: 0 € | J133: 0.0 | L133: 0 €
A134: Umsatzbereich 8 | B134: 0.0 | D134: 0 € | F134: 0.0 | H134: 0 € | J134: 0.0 | L134: 0 €
A135: Umsatzbereich 9 | B135: 0.0 | D135: 0 € | F135: 0.0 | H135: 0 € | J135: 0.0 | L135: 0 €
A136: Umsatzbereich 10 | B136: 0.0 | D136: =ROUND($F120*B136,0) -> 0 € | F136: 0.0 | H136: =ROUND($F120*F136,0) -> 0 € | J136: 0.0 | L136: 0 €
A137: erwarteter Umsatz | D137: =SUM(D127:E136) -> 0 € | H137: =SUM(H127:I136) -> 0 € | L137: =SUM(L127:M136) -> 0 €
A138: erwartete Aufträge | B138: =SUM(B127:C136) -> 0 | F138: =SUM(F127:G136) -> 0 | J138: =IF(SUM(J127:K136)<0.01,"",SUM(J127:K136)) -> 

Sheet Rentabilität
A1: =CONCATENATE( "Rentabilitätsvorschau des Unternehmens: ", Startseite!C14) -> Rentabilitätsvorschau des Unternehmens:
C3: 1. Geschäftsjahr | E3: 2. Geschäftsjahr | G3: 3. Geschäftsjahr
C4: =CONCATENATE("(",TEXT('Personalkosten 1. Jahr'!$K$1,"MMM. JJJJ")," - ",TEXT('Personalkosten 1. Jahr'!$M$1,"MMM. JJJJ"),")") -> (Jan. 2017 - Dez. 2017) | E4: =CONCATENATE("(",TEXT('Personalkosten 2. Jahr'!$K$1,"MMM. JJJJ")," - ",TEXT('Personalkosten 2. Jahr'!$M$1,"MMM. JJJJ"),")") -> (Jan. 2018 - Dez. 2018) | G4: =CONCATENATE("(",TEXT('Personalkosten 3. Jahr'!$K$1,"MMM. JJJJ")," - ",TEXT('Personalkosten 3. Jahr'!$M$1,"MMM. JJJJ"),")") -> (Jan. 2019 - Dez. 2019)
A5: Bezeichnung | C5: EUR | D5: % | E5: EUR | F5: % | G5: EUR | H5: %
A7: Geplanter Umsatz: | F7: =IF(E$13=0,"",(E7/E$13*100)) ->  | H7: =IF(G$13=0,"",(G7/G$13*100)) -> 
A8: Bereich 1 | D8: =IF(C$13=0,"",(C8/C$13*100)) ->  | F8: =IF(E$13=0,"",(E8/E$13*100)) ->  | H8: =IF(G$13=0,"",(G8/G$13*100)) -> 
A9: Bereich 2 | D9: =IF(C$13=0,"",(C9/C$13*100)) ->  | F9: =IF(E$13=0,"",(E9/E$13*100)) ->  | H9: =IF(G$13=0,"",(G9/G$13*100)) -> 
A10: Bereich 3 | D10: =IF(C$13=0,"",(C10/C$13*100)) ->  | F10: =IF(E$13=0,"",(E10/E$13*100)) ->  | H10: =IF(G$13=0,"",(G10/G$13*100)) -> 
A11: Bereich 4 | D11: =IF(C$13=0,"",(C11/C$13*100)) ->  | F11: =IF(E$13=0,"",(E11/E$13*100)) ->  | H11: =IF(G$13=0,"",(G11/G$13*100)) -> 
A13: = Betriebsleistung gesamt | C13: =SUM(C7:C11) -> 0 | D13: =IF(C$13=0,"",(C13/C$13*100)) ->  | E13: =SUM(E7:E11) -> 0 | F13: =IF(E$13=0,"",(E13/E$13*100)) ->  | G13: =SUM(G7:G11) -> 0 | H13: =IF(G$13=0,"",(G13/G$13*100)) -> 
A14: - Fremdleistungen | D14: =IF(C$13=0,0,(C14/C$13*100)) -> 0.00 | F14: =IF(E$13=0,0,(E14/E$13*100)) -> 0.00 | H14: =IF(G$13=0,0,(G14/G$13*100)) -> 0.00
B15: - Materialeinsatz Bereich 1 | C15: =IF(D15="",0,C8*D15/100) -> 0 | E15: =IF(F15="",0,E8*F15/100) -> 0 | G15: =IF(H15="",0,G8*H15/100) -> 0
B16: - Materialeinsatz Bereich 2 | C16: =IF(D16="",0,C9*D16/100) -> 0 | E16: 0 | G16: =IF(H16="",0,G9*H16/100) -> 0
B17: - Materialeinsatz Bereich 3 | C17: 0 | E17: 0 | G17: =IF(H17="",0,G10*H17/100) -> 0
B18: - Materialeinsatz Bereich 4 | C18: 0 | E18: 0 | G18: =IF(H18="",0,G11*H18/100) -> 0
A19: - Materialeinsatz gesamt | C19: =SUM(C15:C18) -> 0 | D19: =IF(C$13=0,0,(C19/C$13*100)) -> 0.00 | E19: =SUM(E15:E18) -> 0 | F19: =IF(E$13=0,0,(E19/E$13*100)) -> 0.00 | G19: =SUM(G15:G18) -> 0 | H19: =IF(G$13=0,0,(G19/G$13*100)) -> 0.00
A20: = Rohgewinn 1 | C20: =(C13-C14-C19) -> 0 | D20: =IF(C$13=0,"",(C20/C$13*100)) ->  | E20: =(E13-E14-E19) -> 0 | F20: =IF(E$13=0,"",(E20/E$13*100)) ->  | G20: =(G13-G14-G19) -> 0 | H20: =IF(G$13=0,"",(G20/G$13*100)) -> 
A21: - Personalkosten | C21: ='Personalkosten 1. Jahr'!M27 -> 0 | E21: ='Personalkosten 2. Jahr'!M27 -> 0 | G21: ='Personalkosten 3. Jahr'!M27 -> 0
A22: = Rohgewinn 2 | C22: =(C20-C21) -> 0 | E22: =(E20-E21) -> 0 | G22: =(G20-G21) -> 0
A23: - übrige Kosten | C23: ='übrige Kosten'!$C$28 -> 0 | E23: ='übrige Kosten'!$E$28 -> 0 | G23: ='übrige Kosten'!$G$28 -> 0
A24: = Betriebsergebnis | C24: =C22-C23 -> 0 | E24: =E22-E23 -> 0 | G24: =G22-G23 -> 0
A25: - Gewerbesteuer und Körperschaftssteuer | C25: ='übrige Kosten'!C32+'übrige Kosten'!C33 -> 0 | E25: ='übrige Kosten'!E32+'übrige Kosten'!E33 -> 0 | G25: ='übrige Kosten'!G32+'übrige Kosten'!G33 -> 0
A26: = Gewinn / Verlust nach Gewerbesteuer | C26: =(C24-C25) -> 0 | D26: =IF(C$13=0,"",(C26/C$13*100)) ->  | E26: =(E24-E25) -> 0 | F26: =IF(E$13=0,"",(E26/E$13*100)) ->  | G26: =(G24-G25) -> 0 | H26: =IF(G$13=0,"",(G26/G$13*100)) -> 
A28: + Abschreibungen | C28: ='übrige Kosten'!C14 -> 0 | D28: =IF(C$13=0,"",(C28/C$13*100)) ->  | E28: ='übrige Kosten'!E14 -> 0 | F28: =IF(E$13=0,"",(E28/E$13*100)) ->  | G28: ='übrige Kosten'!G14 -> 0 | H28: =IF(G$13=0,"",(G28/G$13*100)) -> 
A29: - Tilgungen | C29: =ROUND('Zins und Tilgung'!D13,-2) -> 0 | D29: =IF(C$13=0,"",(C29/C$13*100)) ->  | E29: =ROUND('Zins und Tilgung'!D14,-2) -> 0 | F29: =IF(E$13=0,"",(E29/E$13*100)) ->  | G29: =ROUND('Zins und Tilgung'!D15,-2) -> 0 | H29: =IF(G$13=0,"",(G29/G$13*100)) -> 
A30: =IF(Unternehmerlohn!D7>=Unternehmerlohn!D40," - Geplanter Unternehmerlohn"," - Notwendiger Unternehmerlohn") -> - Geplanter Unternehmerlohn | C30: =IF(OR(Startseite!$A35=Startseite!$A44,Startseite!$A35=Startseite!$A45,Startseite!$A35=Startseite!$A46),0,IF(Unternehmerlohn!D7>=Unternehmerlohn!D40,Unternehmerlohn!D7,Unternehmerlohn!D40)) -> 0 | D30: =IF(C$13=0,"",(C30/C$13*100)) ->  | E30: =IF(OR(Startseite!$A35=Startseite!$A44,Startseite!$A35=Startseite!$A45,Startseite!$A35=Startseite!$A46),0,IF(Unternehmerlohn!F7>=Unternehmerlohn!F40,Unternehmerlohn!F7,Unternehmerlohn!F40)) -> 0 | F30: =IF(E$13=0,"",(E30/E$13*100)) ->  | G30: =IF(OR(Startseite!$A35=Startseite!$A44,Startseite!$A35=Startseite!$A45,Startseite!$A35=Startseite!$A46),0,IF(Unternehmerlohn!H7>=Unternehmerlohn!H40,Unternehmerlohn!H7,Unternehmerlohn!H40)) -> 0 | H30: =IF(G$13=0,"",(G30/G$13*100)) -> 
A31: = Überschuß / Fehlbetrag | C31: =C26+C28-C29-C30 -> 0 | D31: =IF(Rentabilität!C$13=0,"",(C31/Rentabilität!C$13*100)) ->  | E31: =E26+E28-E29-E30 -> 0 | F31: =IF(Rentabilität!E$13=0,"",(E31/Rentabilität!E$13*100)) ->  | G31: =G26+G28-G29-G30 -> 0 | H31: =IF(Rentabilität!G$13=0,"",(G31/Rentabilität!G$13*100)) -> 

Sheet Stundenkostensatz (hidden)
A1: =CONCATENATE( "Ermittlung des Stundenkostensatzes des Unternehmens: ", Startseite!C14) -> Ermittlung des Stundenkostensatzes des Unternehmens:
D5: 2. Geschäftsjahr
D6: =IF(D5="2. Geschäftsjahr",CONCATENATE("(",TEXT('[1]Personalkosten 2. Jahr'!$K$1,"MMM. JJJJ")," - ",TEXT('[1]Personalkosten 2. Jahr'!$M$1,"MMM. JJJJ"),")"),"") -> (Okt. 2017 - Sep. 2018)
A7: Bezeichnung | D7: EUR | E7: %
A9: Geplanter Umsatz:
A10: =CONCATENATE([1]Rentabilität!A8,": ", [1]Rentabilität!B8) -> Bereich 1: Subunternehmer /Lohnarbeiten | D10: =Rentabilität!E8 -> 0 | E10: =IF(D$14=0,"",(D10/D$14*100)) -> 
A11: =CONCATENATE([1]Rentabilität!A9,": ", [1]Rentabilität!B9) -> Bereich 2: Handwerklich | D11: =Rentabilität!E9 -> 0 | E11: =IF(D$14=0,"",(D11/D$14*100)) -> 
A12: =CONCATENATE([1]Rentabilität!A10,": ", [1]Rentabilität!B10) -> Bereich 3: | D12: =Rentabilität!E10 -> 0 | E12: =IF(D$14=0,"",(D12/D$14*100)) ->  | G12: Ermittlung der Material- und Fremdleistungszuschläge:
A13: =CONCATENATE([1]Rentabilität!A11,": ", [1]Rentabilität!B11) -> Bereich 4: | D13: =Rentabilität!E11 -> 0 | E13: =IF(D$14=0,"",(D13/D$14*100)) -> 
A14: = Betriebsleistung gesamt | D14: =SUM(D9:D13) -> 0 | E14: =IF(D$14=0,"",(D14/D$14*100)) ->  | G14: Aufschläge | I14: % | J14: EUR
A15: - Fremdleistungen | D15: =Rentabilität!C14 -> 0 | E15: =IF(D$14=0,0,(D15/D$14*100)) -> 0.00 | G15: Fremdleistungsaufschlag | J15: =D15*I15 -> 0
A16: - Materialeinsatz Bereich 1 | D16: =IF(E16="",0,D10*E16/100) -> 0 | E16: =Rentabilität!F15 -> 0 | G16: Materialaufschlag Bereich 1 | J16: =D16*I16 -> 0
A17: - Materialeinsatz Bereich 2 | D17: =IF(E17="",0,D10*E17/100) -> 0 | E17: =Rentabilität!F16 -> 0 | G17: Materialaufschlag Bereich 2 | J17: =D17*I17 -> 0
A18: - Materialeinsatz Bereich 3 | D18: =IF(E18="",0,D11*E18/100) -> 0 | E18: =Rentabilität!F17 -> 0 | G18: Materialaufschlag Bereich 3 | J18: =D18*I18 -> 0
A19: - Materialeinsatz Bereich 4 | D19: =IF(E19="",0,D12*E19/100) -> 0 | E19: =Rentabilität!F18 -> 0 | G19: Materialaufschlag Bereich 4 | J19: =D19*I19 -> 0
A20: - Fremdleistungen und Materialeinsatz gesamt | D20: =SUM(D15:D19) -> 0 | E20: =IF(D$14=0,0,(D20/D$14*100)) -> 0.00 | G20: Summe Aufschläge | J20: =SUM(J15:J19) -> 0
A21: = Rohgewinn 1 | D21: =(D14-D15-D20) -> 0 | E21: =IF(D$14=0,0,(D21/D$14*100)) -> 0.00
A22: - Personalkosten | D22: ='Personalkosten 2. Jahr'!M27 -> 0 | E22: 0.00
A23: = Rohgewinn 2 | D23: =(D21-D22) -> 0 | E23: 0.00 | G23: Über den Stundenkostensatz abzurechnende Kosten:
A24: - übrige Kosten | D24: ='übrige Kosten'!$E$28 -> 0 | E24: 0.00 | J24: EUR
A25: = Betriebsergebnis | D25: =D23-D24 -> 0 | E25: 0.00 | G25: Personalkosten: | J25: =$D$22 -> 0
A26: - Gewerbesteuer und Körperschaftssteuer | D26: ='übrige Kosten'!E31+'übrige Kosten'!E32 -> 0 | E26: 0.00 | G26: Übrige Kosten: | J26: =$D$24 -> 0
A27: = Gewinn / Verlust nach Gewerbesteuer | D27: =(D25-D26) -> 0 | E27: 0.00 | G27: Betriebssteuern | J27: =$D$26 -> 0
A28: =IF([1]Unternehmerlohn!D6>=[1]Unternehmerlohn!D39," - Geplanter Unternehmerlohn"," - Notwendiger Unternehmerlohn") -> - Geplanter Unternehmerlohn | D28: =Unternehmerlohn!F40 -> 0 | E28: =IF(D$14=0,0,(D28/D$14*100)) -> 0.00 | G28: Kalkulatorische Kosten | J28: =$D$28+$D$29 -> 0
A29: - sonstige kalkulatorische Kosten | E29: =IF(D$14=0,0,(D29/D$14*100)) -> 0.00 | G29: Überschuß / Fehlbetrag | J29: =D32 -> 0 | K29: =IF(J29<0,"Überprüfung der Gesamtsituation erforderlich","") -> 
A30: - Summe Kalkulatorische Kosten | D30: =D28+D29 -> 0 | E30: =IF(D$14=0,0,(D30/D$14*100)) -> 0.00 | G30: Zwischensumme | J30: =SUM(J25:J29) -> 0
G31: - FL und Materialzuschläge: | J31: =J20 -> 0
A32: = Überschuß / Fehlbetrag | D32: =D27-D28-D29 -> 0 | E32: =IF([1]Rentabilität!C$13=0,"",(D32/[1]Rentabilität!C$13*100)) -> 0.00 | G32: über Stunden abzurechnende Kosten | J32: =J30-J31 -> 0
A36: Ermittlung der abrechenbaren Stunden:
C38: Inhaber / Meister | G38: Gesellen | K38: Auszubildende
A39: Bezeichnung | C39: Tage | D39: Stunden | E39: Std./Jahr | F39: % | G39: Tage | H39: Stunden | I39: Std./Jahr | J39: % | K39: Tage | L39: Stunden | M39: Std./Jahr | N39: %
A40: Arbeitszeit pro Woche | E40: =52*D40 -> 0 | I40: =52*H40 -> 0 | M40: =52*L40 -> 0
A41: Tagesarbeitszeit
A42: - bez. Feiertage | C42: 10 | E42: =C42*D$41 -> 0 | G42: 10 | I42: =G42*H$41 -> 0 | K42: 10 | M42: =K42*L$41 -> 0
A43: - Urlaubstage | C43: 10 | E43: =C43*D$41 -> 0 | G43: 30 | I43: =G43*H$41 -> 0 | K43: 30 | M43: =K43*L$41 -> 0
A44: - Krankheitstage | C44: 5 | E44: =C44*D$41 -> 0 | G44: 10 | I44: =G44*H$41 -> 0 | K44: 10 | M44: =K44*L$41 -> 0
A45: - sonstige Fehltage | C45: 5 | E45: =C45*D$41 -> 0 | G45: 5 | I45: =G45*H$41 -> 0 | K45: 50 | M45: =K45*L$41 -> 0
A46: = Zwischensumme | E46: =E40-SUM(E42:E45) -> 0 | I46: =I40-SUM(I42:I45) -> 0 | M46: =M40-SUM(M42:M45) -> 0
A47: + Überstunden pro Jahr | M47: 10.00
A48: = Anwesenheitszeit | E48: =E46+E47 -> 0 | I48: =I46+I47 -> 0 | M48: =M46+M47 -> 10
A49: - Anteil unproduktiver Stunden in % | E49: =E48*F49 -> 0 | F49: 30% | I49: =I48*J49 -> 0 | J49: 10% | M49: =M48*N49 -> 5 | N49: 50%
A50: = abrechenbare Stunden pro Person | E50: =E48-E49 -> 0 | I50: =I48-I49 -> 0 | M50: =M48-M49 -> 5
A51: x Anzahl Mitarbeiter bzw. Inhaber | E51: 1 | I51: 1 | M51: 2
A52: = abrechenbare Stunden | E52: =E50*E51 -> 0 | I52: =I50*I51 -> 0 | M52: =M50*M51 -> 10
A53: Summe abrechenbarer Stunden | E53: =E52+I52+M52 -> 10
A56: Der Stundenkostensatz:
A58: Stundenkostensatz = | C58: über Sunden abzurechnende Kosten | E58: = | F58: =$J$32 -> 0 | G58: = | H58: =F58/F59 -> 0.00 | I58: EUR
C59: abrechenbare Stunden | F59: =E53 -> 10
A64: Variantenrechner: Einfluss von Zuschlagsätzen und Produktivität auf Stundenkostensatz
A67: Einfluss alternativer Fremdleistungs- und Materialzuschläge auf den Stundenverrechnungssatz:
A69: Planungsrechnung | G69: Variante 1 | K69: Variante 2
A71: Fremdleistungs-, Materialumsatz: | D71: % | E71: EUR | G71: Fremdleistungs-, Materialumsatz: | J71: EUR | L71: EUR
A72: Fremdleistungsaufschlag in % | D72: =I15 -> 0% | E72: =$D15*(1+$I15) -> 0 | G72: Fremdleistungsaufschlag in % | I72: 20% | J72: =$D15*(1+$I72) -> 0 | K72: 10% | L72: =$D15*(1+$K72) -> 0
A73: Materialaufschlag Bereich 1 in % | D73: =I16 -> 0% | E73: =$D16*(1+$I16) -> 0 | G73: Materialaufschlag Bereich 1 in % | I73: 25% | J73: =$D16*(1+$I73) -> 0 | K73: 30% | L73: =$D16*(1+$K73) -> 0
A74: Materialaufschlag Bereich 2 in % | D74: =I17 -> 0% | E74: =$D17*(1+$I17) -> 0 | G74: Materialaufschlag Bereich 2 in % | I74: 20% | J74: =$D17*(1+$I74) -> 0 | K74: 40% | L74: =$D17*(1+$K74) -> 0
A75: Materialaufschlag Bereich 3 in % | D75: =I18 -> 0% | E75: =$D18*(1+$I18) -> 0 | G75: Materialaufschlag Bereich 3 in % | I75: 10% | J75: =$D18*(1+$I75) -> 0 | K75: 50% | L75: =$D18*(1+$K75) -> 0
A76: Materialaufschlag Bereich 4 in % | D76: =I19 -> 0% | E76: =$D19*(1+$I19) -> 0 | G76: Materialaufschlag Bereich 4 in % | I76: 3% | J76: =$D19*(1+$I76) -> 0 | K76: 40% | L76: =$D19*(1+$K76) -> 0
A77: Summe FL und Materialumsätze | E77: =SUM(E72:E76) -> 0 | G77: Summe FL und Materialumsätze | J77: =SUM(J72:J76) -> 0 | L77: =SUM(L72:L76) -> 0
A78: Höhe der Kostenübernahme | E78: =E77-D20 -> 0 | G78: Höhe der Kostenübernahme | J78: =J77-D15-D20 -> 0 | L78: =L77-D15-D20 -> 0 | M78: ???
A81: Über den Stundenkostensatz abzurechnende Kosten | G81: Über den Stundenkostensatz abzurechnende Kosten
A82: Personalkosten: | E82: =$D$22 -> 0 | G82: Personalkosten: | J82: =D22 -> 0 | L82: =D22 -> 0
A83: Übrige Kosten: | E83: =$D$24 -> 0 | G83: Übrige Kosten: | J83: =D24 -> 0 | L83: =D24 -> 0
A84: Betriebssteuern | E84: =$D$26 -> 0 | G84: Betriebssteuern | J84: =D26 -> 0 | L84: =D26 -> 0
A85: Kalkulatorische Kosten | E85: =$D$28+$D$29 -> 0 | G85: Kalkulatorische Kosten | J85: =D28+D29 -> 0 | L85: =D28+D29 -> 0
A86: Zwischensumme | E86: =SUM(E82:E85) -> 0 | G86: Zwischensumme | J86: =SUM(J82:J85) -> 0 | L86: =SUM(L82:L85) -> 0
A87: - FL und Materialzuschläge: | E87: =$E$78 -> 0 | G87: - FL und Materialzuschläge: | J87: =J78 -> 0 | L87: =L78 -> 0
A88: über Stunden abzurechnende Kosten | E88: =E86-E87 -> 0 | G88: über Stunden abzurechnende Kosten | J88: =J86-J87 -> 0 | L88: =L86-L87 -> 0 | M88: ???
A90: Sundenkostensatz = | E90: EUR | G90: Sundenkostensatz = | J90: EUR | L90: EUR
A91: über Sunden abzurechnende Kosten | B91: = | C91: =$J$32 -> 0 | D91: = | E91: =C91/C92 -> 0.00 | H91: =J88 -> 0 | I91: = | J91: =H91/H92 -> 0.00 | K91: =L88 -> 0 | L91: =K91/K92 -> 0.00
A92: abrechenbare Stunden | C92: =E53 -> 10 | H92: =E53 -> 10 | K92: =E53 -> 10
A96: Einfluss unproduktiver Zeiten auf den Stundenkostensatz
A98: Zusammenfassung der | C98: Arbeitsstunden | D98: unproduktiver | E98: Arbeitsstunden | I98: Stundenkostansatz
A99: Planungsrechnung | C99: MA | D99: Anteil % | E99: unproduktiv | F99: produktiv
A100: =$C$38 -> Inhaber / Meister | C100: =$E$48*$E$51 -> 0 | D100: =$F49 -> 30% | E100: =$C100*D100 -> 0 | F100: =$C100-E100 -> 0 | J100: über Sunden abzurechnende Kosten | L100: = | M100: =$J$32 -> 0 | N100: = | O100: =M100/M101 -> 0.00 | P100: EUR
A101: =$G$38 -> Gesellen | C101: =$I$48*$I$51 -> 0 | D101: =J49 -> 10% | E101: =$C101*D101 -> 0 | F101: =$C101-E101 -> 0 | J101: Abrechenbare Stunden | M101: =E53 -> 10
A102: =$K$38 -> Auszubildende | C102: =$M$48*$M$51 -> 20 | D102: =N49 -> 50% | E102: =$C102*D102 -> 10 | F102: =$C102-E102 -> 10
A103: Summe abrechenbarer Stunden | D103: =(E100+E101+E102)/(C100+C101+C102) -> 50% | F103: =F100+F101+F102 -> 10
A106: Variante 1 | C106: Änderung unproduktiver Arbeitsanteil:
C108: Anwesenheit | D108: Änderung der | E108: Arbeitsstunden
D109: Prodiktivität | E109: unprodukt. | I109: Geänderter Stundenkostensatz: Variante 1:
C110: alle MA | D110: in % | E110: Anteil in % | F110: unproduktiv | G110: produktiv
A111: =$C$38 -> Inhaber / Meister | C111: =$E$48*$E$51 -> 0 | D111: 10% | E111: =$D100*(1-D111) -> 27% | F111: =C111*E111 -> 0 | G111: =C111-F111 -> 0 | J111: über Sunden abzrechnende Kosten | L111: = | M111: =$J$32 -> 0 | N111: = | O111: =M111/M112 -> 0.00 | P111: EUR
A112: =$G$38 -> Gesellen | C112: =$I$48*$I$51 -> 0 | D112: 10% | E112: =$D101*(1-D112) -> 9% | F112: =C112*E112 -> 0 | G112: =C112-F112 -> 0 | J112: Abrechenbare Stunden | M112: =G114 -> 13
A113: =$K$38 -> Auszubildende | C113: =$M$48*$M$51 -> 20 | D113: 30% | E113: =$D102*(1-D113) -> 35% | F113: =C113*E113 -> 7 | G113: =C113-F113 -> 13
A114: Summe abrechenbarer Stunden | E114: =(F111+F112+F113)/(C111+C112+C113) -> 35% | G114: =G111+G112+G113 -> 13
A116: Variante 2 | C116: Änderung unproduktiver Arbeitsanteil:
C118: Anwesenheit | D118: Änderung der | E118: Arbeitsstunden | I118: Geänderter Stundenkostensatz: Variante 2:
D119: Prodiktivität | E119: unprodukt.
C120: alle MA | D120: in % | E120: Anteil in % | F120: unproduktiv | G120: produktiv | J120: über Sunden abzrechnende Kosten | L120: = | M120: =$J$32 -> 0 | N120: = | O120: =M120/M121 -> 0.00 | P120: EUR
A121: =$C$38 -> Inhaber / Meister | C121: =$E$48*$E$51 -> 0 | D121: -20% | E121: =$D100*(1-D121) -> 36% | F121: =C121*E121 -> 0 | G121: =C121-F121 -> 0 | J121: Abrechenbare Stunden | M121: =G124 -> 9
A122: =$G$38 -> Gesellen | C122: =$I$48*$I$51 -> 0 | D122: -15% | E122: =$D101*(1-D122) -> 12% | F122: =C122*E122 -> 0 | G122: =C122-F122 -> 0
A123: =$K$38 -> Auszubildende | C123: =$M$48*$M$51 -> 20 | D123: -6% | E123: =$D102*(1-D123) -> 53% | F123: =C123*E123 -> 11 | G123: =C123-F123 -> 9
A124: Summe abrechenbarer Stunden | E124: =(F121+F122+F123)/(C121+C122+C123) -> 53% | G124: =G121+G122+G123 -> 9
A127: Zusammenfürung von Änderungen der Fremdleistungs- /Materialzuschläge und von Produktivitätsänderungen auf den Stundenkostensatz
A129: Stundenkostensatzvarianten EUR | C129: Planung FMZ | D129: FMZ Var 1 | E129: FMZ Var 2
A130: Planung up Std. | C130: =O100 -> 0.00 | D130: =J91 -> 0.00 | E130: =L91 -> 0.00
A131: up Std. Var 1 | C131: =O111 -> 0.00 | D131: =H91/M112 -> 0.00 | E131: =K91/M121 -> 0.00
A132: up St Var 2 | C132: =O120 -> 0.00 | D132: =H91/M121 -> 0.00 | E132: =K91/M121 -> 0.00

Sheet Liquiditätsplan-1.Jahr
A1: =CONCATENATE( "Liquiditätsplanung des 1. Geschäftsjahres des Unternehmens : ", Startseite!C14) -> Liquiditätsplanung des 1. Geschäftsjahres des Unternehmens : | I1: ='Personalkosten 1. Jahr'!K1 -> 2017-01-01 | J1: - | K1: ='Personalkosten 1. Jahr'!M1 -> 2017-12-17
B3: Angaben zu den Zahlungszielen, und zur Umsatzsteuer:
B4: 50% | C4: der Kunden zahlt noch im Monat der Rechnungsstellung
B5: 40% | C5: der Kunden zahlt im Folgemonat
B6: 10% | C6: der Kunden zahlt erst nach zwei Monaten
B7: 19% | C7: Umsatzsteuersatz
B8: 19% | C8: Vorsteuersatz
B10: USt | C10: EURO | D10: =Startseite!D16 -> 2017-01-01 | E10: =D10+32 -> 2017-02-02 | F10: =E10+31 -> 2017-03-05 | G10: 2017-04-05 | H10: 2017-05-06 | I10: 2017-06-06 | J10: 2017-07-07 | K10: 2017-08-07 | L10: 2017-09-07 | M10: 2017-10-08 | N10: 2017-11-08 | O10: 2017-12-09 | P10: Jahr 1
A11: Umsatzplan (netto) | C11: =Rentabilität!C13 -> 0 | P11: =SUM(D11:O11) -> 0 | Q11: =IF(AND(ABS(P11-C11)>100,P11<>0),"Überprüfe Eintragung","") -> 
A12: Umsatzsteuer (USt) | C12: =C11*$B$7 -> 0 | D12: 0 | E12: 0 | F12: 0 | G12: 0 | H12: 0 | I12: 0 | J12: 0 | K12: 0 | L12: 0 | M12: 0 | N12: 0 | O12: 0 | P12: =SUM(D12:O12) -> 0
A14: Einzahlungen
A15: 1. aus Umsatz incl. USt | C15: =C11+C12 -> 0 | D15: =(D11+D12)*$B$4 -> 0 | E15: =(D11+D12)*B5+(E11+E12)*B4 -> 0 | F15: =(D11+D12)*$B$6+(E11+E12)*$B$5+(F11+F12)*$B$4 -> 0 | G15: 0 | H15: 0 | I15: 0 | J15: 0 | K15: 0 | L15: 0 | M15: 0 | N15: 0 | O15: 0 | P15: =SUM(D15:O15) -> 0
A16: 2. sonstige Einzahlungen | C16: =Finanzierung!C11+Finanzierung!C25 -> 0 | P16: =SUM(D16:O16) -> 0 | Q16: =IF(AND(ABS(P16-C16)>100,P16<>0),"Überprüfe Eintragung","") -> 
A18: I. Summe Einzahlungen (Bruttowerte) | D18: =D15+D16 -> 0 | E18: 0 | F18: 0 | G18: 0 | H18: 0 | I18: 0 | J18: 0 | K18: 0 | L18: 0 | M18: 0 | N18: 0 | O18: 0 | P18: =SUM(D18:O18) -> 0
A20: Auszahlungen (Nettowerte)
A21: Material-/Wareneinsatz | B21: ja | C21: =Rentabilität!C19 -> 0 | P21: =SUM(D21:O21) -> 0 | Q21: =IF(AND(P21<>C21,P21<>0),"Überprüfe Eintragung","") -> 
A22: Fremdleistungen | B22: ja | C22: =Rentabilität!C14 -> 0 | P22: 0 | Q22: =IF(AND(P22<>C22,P22<>0),"Überprüfe Eintragung","") -> 
A23: Personal | B23: nein | C23: =Rentabilität!C21 -> 0 | P23: 0 | Q23: =IF(AND(ABS(P23-C23)>100,P23<>0),"Überprüfe Eintragung","") -> 
A24: ='übrige Kosten'!A8 -> Raumkosten (Miete, Pacht) | B24: nein | C24: ='übrige Kosten'!C8 -> 0 | P24: 0 | Q24: =IF(AND(ABS(P24-C24)>10,P24<>0),"Überprüfe Eintragung","") -> 
A25: ='übrige Kosten'!A9 -> Energiekosten (Strom, Heizung, Wasser) | B25: ja | C25: ='übrige Kosten'!C9 -> 0 | P25: 0
A26: ='übrige Kosten'!A10 -> Versicherung, Beiträge | B26: nein | C26: ='übrige Kosten'!C10 -> 0 | P26: 0
A27: ='übrige Kosten'!A11 -> Kfz-Kosten (incl. Leasing, Steuern, Vers., Rep., ohne AfA) | B27: ja | C27: ='übrige Kosten'!C11 -> 0 | P27: 0
A28: ='übrige Kosten'!A12 -> Werbung / Reisekosten | B28: ja | C28: ='übrige Kosten'!C12 -> 0 | P28: 0
A29: ='übrige Kosten'!A13 -> Kosten der Warenabgabe (incl. Gewährleistungen) | B29: ja | C29: ='übrige Kosten'!C13 -> 0 | P29: 0
A30: ='übrige Kosten'!A15 -> Reparaturen, Instandhaltung | B30: ja | C30: ='übrige Kosten'!C15 -> 0 | P30: =SUM(D30:O30) -> 0
A31: ='übrige Kosten'!A16 -> Büro (Telefon, Telefax, Internet) | B31: ja | C31: ='übrige Kosten'!C16 -> 0 | P31: 0
A32: ='übrige Kosten'!A17 -> Büro (Porto, Zeitschriften, sonst. Bürobedarf) | B32: ja | C32: ='übrige Kosten'!C17 -> 0 | P32: 0
A33: ='übrige Kosten'!A18 -> Buchführung und Abschlusskosten / Beratungskosten | B33: ja | C33: ='übrige Kosten'!C18 -> 0 | P33: 0
A34: ='übrige Kosten'!A19 -> Miete / Leasing (ohne Kfz) für bewegliche Wirtschaftsgüter | B34: ja | C34: ='übrige Kosten'!C19 -> 0 | P34: 0
A35: ='übrige Kosten'!A20 -> Abraum - und Abfallbeseitigung | B35: ja | C35: ='übrige Kosten'!C20 -> 0 | P35: 0
A36: ='übrige Kosten'!A21 -> Werkzeug und Kleingeräte GWG | B36: ja | C36: ='übrige Kosten'!C21 -> 0 | P36: 0 | Q36: =IF(AND(ABS(P36-C36)>100,P36<>0),"Überprüfe Eintragung","") -> 
A37: ='übrige Kosten'!A22 -> Betriebsbedarf | B37: ja | C37: ='übrige Kosten'!C22 -> 0 | P37: 0
A38: ='übrige Kosten'!A23 -> langfristige Zinsen | B38: nein | C38: ='übrige Kosten'!C23 -> 0 | P38: 0 | Q38: =IF(AND(ABS(P38-C38)>50,P38<>0),"Überprüfe Eintragung","") -> 
A39: ='übrige Kosten'!A24 -> kurzfristige Zinsen, Bankgebühren | B39: nein | C39: ='übrige Kosten'!C24 -> 0 | P39: =SUM(D39:O39) -> 0 | Q39: =IF(AND(ABS(P39-C39)>10,P39<>0),"Überprüfe Eintragung","") -> 
A40: ='übrige Kosten'!A25 -> Sonstiges | B40: ja | C40: ='übrige Kosten'!C25+'übrige Kosten'!C26+'übrige Kosten'!C27 -> 0 | P40: 0 | Q40: =IF(AND(ABS(P40-C40)>10,P40<>0),"Überprüfe Eintragung","") -> 
A41: ='übrige Kosten'!A27 -> Sonstiges 3: | P41: 0
A42: ='übrige Kosten'!A28 -> übrige Kosten gesamt | P42: 0
A43: ='übrige Kosten'!A29 -> 0 | P43: 0
A44: Gewerbesteuer / Körperschaftssteuer | B44: nein | C44: ='übrige Kosten'!C34 -> 0 | P44: 0
A45: Investitionen, und weitere Ausgaben gemäß Kapitalbedarfsplan | B45: ja | C45: =Kapitalbedarf!C19+Kapitalbedarf!C21+Kapitalbedarf!C22 -> 0 | P45: 0
A46: Privatentnahmen | B46: nein | C46: =IF(OR(Startseite!A35=Startseite!A44,Startseite!A35=Startseite!A45,Startseite!A35=Startseite!A46),0,Unternehmerlohn!D40) -> 0 | P46: 0
A47: Tilgung | B47: nein | C47: =Rentabilität!C29 -> 0 | P47: 0
A48: Vorsteuer | C48: =(C21+C22+IF($B24="ja",C24,0)+C25+C27+C28+C29+C30+C31+C32+C33+C34+C35+C36+C37+C40+C41+C42+C43+IF($B45="ja",C45,0))*$B$8 -> 0 | D48: =(SUM(D21:D47)-D23-IF($B24="nein",D24,0)-D26-D38-D39-D44-IF($B45="nein",D45,0)-D46-D47)*$B$8 -> 0 | E48: =(SUM(E21:E47)-E23-IF($B24="nein",E24,0)-E26-E38-E39-E44-IF($B45="nein",E45,0)-E46-E47)*$B$8 -> 0 | F48: 0 | G48: 0 | H48: 0 | I48: 0 | J48: 0 | K48: 0 | L48: 0 | M48: 0 | N48: 0 | O48: 0 | P48: 0
A49: II. Summe Auszahlungen (incl. Vorsteuer) | C49: =SUM(C21:C48) -> 0 | D49: =SUM(D21:D48) -> 0 | E49: =SUM(E21:E48) -> 0 | F49: 0 | G49: 0 | H49: 0 | I49: 0 | J49: 0 | K49: 0 | L49: 0 | M49: 0 | N49: 0 | O49: 0 | P49: 0
A50: USt-Zahllast (-) oder Erstattung (+) | E50: =-D12+D48 -> 0 | F50: =-E12+E48 -> 0 | G50: =-F12+F48 -> 0 | H50: 0 | I50: 0 | J50: 0 | K50: 0 | L50: 0 | M50: 0 | N50: 0 | O50: 0 | P50: =SUM(D50:O50) -> 0
A52: III. Liquiditätssaldo | C52: =-Finanzierung!C28 -> 0 | D52: =D18-D49+D50 -> 0 | E52: 0 | F52: 0 | G52: 0 | H52: 0 | I52: 0 | J52: 0 | K52: 0 | L52: 0 | M52: 0 | N52: 0 | O52: 0 | P52: =SUM(C52:O52) -> 0
A53: Liquiditätssaldo kumuliert | D53: =C52+D52 -> 0 | E53: =D53+E52 -> 0 | F53: 0 | G53: 0 | H53: 0 | I53: 0 | J53: 0 | K53: 0 | L53: 0 | M53: 0 | N53: 0 | O53: 0
A55: Kontokorrentrahmen | C55: =Finanzierung!C30 -> 0 | D55: =$C55 -> 0 | E55: =$C55 -> 0 | F55: 0 | G55: 0 | H55: 0 | I55: 0 | J55: 0 | K55: 0 | L55: 0 | M55: 0 | N55: 0 | O55: 0

Sheet Liquiditätsplan-2.Jahr
A1: =CONCATENATE( "Liquiditätsplanung des 2. Geschäftsjahres des Unternehmens : ", Startseite!C14) -> Liquiditätsplanung des 2. Geschäftsjahres des Unternehmens : | I1: ='Personalkosten 2. Jahr'!K1 -> 2018-01-16 | J1: - | K1: ='Personalkosten 2. Jahr'!M1 -> 2018-12-12
B3: Angaben zu den Zahlungszielen, und zur Umsatzsteuer:
B4: ='Liquiditätsplan-1.Jahr'!B4 -> 50% | C4: der Kunden zahlt noch im Monat der Rechnungsstellung
B5: ='Liquiditätsplan-1.Jahr'!B5 -> 40% | C5: der Kunden zahlt im Folgemonat
B6: ='Liquiditätsplan-1.Jahr'!B6 -> 10% | C6: der Kunden zahlt erst nach zwei Monaten
B7: ='Liquiditätsplan-1.Jahr'!B7 -> 19% | C7: Umsatzsteuersatz
B8: ='Liquiditätsplan-1.Jahr'!B8 -> 19% | C8: Vorsteuersatz
B10: USt | C10: EURO | D10: =Startseite!D16 -> 2017-01-01 | E10: =D10+32 -> 2017-02-02 | F10: =E10+31 -> 2017-03-05 | G10: 2017-04-05 | H10: 2017-05-06 | I10: 2017-06-06 | J10: 2017-07-07 | K10: 2017-08-07 | L10: 2017-09-07 | M10: 2017-10-08 | N10: 2017-11-08 | O10: 2017-12-09 | P10: Jahr 1
A11: Umsatzplan (netto) | C11: =Rentabilität!E13 -> 0 | P11: =SUM(D11:O11) -> 0 | Q11: =IF(AND(ABS(P11-C11)>100,P11<>0),"Überprüfe Eintragung","") -> 
A12: Umsatzsteuer (USt) | C12: =C11*$B$7 -> 0 | D12: 0 | E12: 0 | F12: 0 | G12: 0 | H12: 0 | I12: 0 | J12: 0 | K12: 0 | L12: 0 | M12: 0 | N12: 0 | O12: 0 | P12: =SUM(D12:O12) -> 0
A14: Einzahlungen
A15: 1. aus Umsatz incl. USt | C15: =C11+C12 -> 0 | D15: =(D11+D12)*$B$4 -> 0 | E15: =(D11+D12)*B5+(E11+E12)*B4 -> 0 | F15: =(D11+D12)*$B$6+(E11+E12)*$B$5+(F11+F12)*$B$4 -> 0 | G15: 0 | H15: 0 | I15: 0 | J15: 0 | K15: 0 | L15: 0 | M15: 0 | N15: 0 | O15: 0 | P15: =SUM(D15:O15) -> 0
A16: 2. Einzahlungen aus Vorjahr | C16: =('Liquiditätsplan-1.Jahr'!N11+'Liquiditätsplan-1.Jahr'!N12)*'Liquiditätsplan-1.Jahr'!B6+('Liquiditätsplan-1.Jahr'!O11+'Liquiditätsplan-1.Jahr'!O12)*('Liquiditätsplan-2.Jahr'!B5+B6) -> 0 | D16: =('Liquiditätsplan-1.Jahr'!N11+'Liquiditätsplan-1.Jahr'!N12)*'Liquiditätsplan-1.Jahr'!B6+('Liquiditätsplan-1.Jahr'!O11+'Liquiditätsplan-1.Jahr'!O12)*'Liquiditätsplan-1.Jahr'!B5 -> 0 | E16: =('Liquiditätsplan-1.Jahr'!O11+'Liquiditätsplan-1.Jahr'!O12)*'Liquiditätsplan-1.Jahr'!B6 -> 0 | P16: =SUM(D16:O16) -> 0
A17: 3. Sonstige Einzahlungen | P17: =SUM(D17:O17) -> 0 | Q17: =IF(ABS(P17-C17)>100,"Überprüfe Eintragung","") -> 
A18: I. Summe Einzahlungen (Bruttowerte) | C18: =C15+C16+C17 -> 0 | D18: =D15+D16+D17 -> 0 | E18: =E15+E16+E17 -> 0 | F18: 0 | G18: 0 | H18: 0 | I18: 0 | J18: 0 | K18: 0 | L18: 0 | M18: 0 | N18: 0 | O18: 0 | P18: =SUM(D18:O18) -> 0
A20: Auszahlungen (Nettowerte)
A21: Material-/Wareneinsatz | B21: ja | C21: =Rentabilität!E19 -> 0 | P21: =SUM(D21:O21) -> 0 | Q21: =IF(AND(P21<>C21,P21<>0),"Überprüfe Eintragung","") -> 
A22: Fremdleistungen | B22: ja | C22: =Rentabilität!E14 -> 0 | P22: =SUM(D22:O22) -> 0 | Q22: =IF(AND(P22<>C22,P22<>0),"Überprüfe Eintragung","") -> 
A23: Personal | B23: nein | C23: =Rentabilität!E21 -> 0 | P23: =SUM(D23:O23) -> 0 | Q23: =IF(AND(ABS(P23-C23)>100,P23<>0),"Überprüfe Eintragung","") -> 
A24: ='übrige Kosten'!A8 -> Raumkosten (Miete, Pacht) | B24: nein | C24: ='übrige Kosten'!E8 -> 0 | P24: 0 | Q24: =IF(AND(ABS(P24-C24)>10,P24<>0),"Überprüfe Eintragung","") -> 
A25: ='übrige Kosten'!A9 -> Energiekosten (Strom, Heizung, Wasser) | B25: ja | C25: ='übrige Kosten'!E9 -> 0 | P25: 0
A26: ='übrige Kosten'!A10 -> Versicherung, Beiträge | B26: nein | C26: ='übrige Kosten'!E10 -> 0 | P26: 0
A27: ='übrige Kosten'!A11 -> Kfz-Kosten (incl. Leasing, Steuern, Vers., Rep., ohne AfA) | B27: ja | C27: ='übrige Kosten'!E11 -> 0 | P27: 0
A28: ='übrige Kosten'!A12 -> Werbung / Reisekosten | B28: ja | C28: ='übrige Kosten'!E12 -> 0 | P28: 0
A29: ='übrige Kosten'!A13 -> Kosten der Warenabgabe (incl. Gewährleistungen) | B29: ja | C29: ='übrige Kosten'!E13 -> 0 | P29: 0
A30: ='übrige Kosten'!A15 -> Reparaturen, Instandhaltung | B30: ja | C30: ='übrige Kosten'!E15 -> 0 | P30: 0
A31: ='übrige Kosten'!A16 -> Büro (Telefon, Telefax, Internet) | B31: ja | C31: ='übrige Kosten'!E16 -> 0 | P31: 0
A32: ='übrige Kosten'!A17 -> Büro (Porto, Zeitschriften, sonst. Bürobedarf) | B32: ja | C32: ='übrige Kosten'!E17 -> 0 | P32: 0
A33: ='übrige Kosten'!A18 -> Buchführung und Abschlusskosten / Beratungskosten | B33: ja | C33: ='übrige Kosten'!E18 -> 0 | P33: 0
A34: ='übrige Kosten'!A19 -> Miete / Leasing (ohne Kfz) für bewegliche Wirtschaftsgüter | B34: ja | C34: ='übrige Kosten'!E19 -> 0 | P34: 0
A35: ='übrige Kosten'!A20 -> Abraum - und Abfallbeseitigung | B35: ja | C35: ='übrige Kosten'!E20 -> 0 | P35: 0
A36: ='übrige Kosten'!A21 -> Werkzeug und Kleingeräte GWG | B36: ja | C36: ='übrige Kosten'!E21 -> 0 | P36: 0 | Q36: =IF(AND(ABS(P36-C36)>100,P36<>0),"Überprüfe Eintragung","") -> 
A37: ='übrige Kosten'!A22 -> Betriebsbedarf | B37: ja | C37: ='übrige Kosten'!E22 -> 0 | P37: 0
A38: ='übrige Kosten'!A23 -> langfristige Zinsen | B38: nein | C38: ='übrige Kosten'!E23 -> 0 | P38: 0 | Q38: =IF(AND(ABS(P38-C38)>50,P38<>0),"Überprüfe Eintragung","") -> 
A39: ='übrige Kosten'!A24 -> kurzfristige Zinsen, Bankgebühren | B39: nein | C39: ='übrige Kosten'!E24 -> 0 | P39: 0
A40: ='übrige Kosten'!A25 -> Sonstiges | B40: ja | C40: ='übrige Kosten'!E25+'übrige Kosten'!E26+'übrige Kosten'!E27 -> 0 | P40: 0
P41: 0
P42: 0
P43: 0
A44: Gewerbesteuer / Körperschaftssteuer | B44: nein | C44: ='übrige Kosten'!E34 -> 0 | P44: 0
A45: Im zweiten Jahr zusätzlich geplante Investitionen | B45: ja | P45: 0 | Q45: =IF(ABS(P45-C45)>100,"Überprüfe Eintragung","") -> 
A46: Privatentnahmen | B46: nein | C46: =IF(OR(Startseite!A35=Startseite!A44,Startseite!A35=Startseite!A45,Startseite!A35=Startseite!A46),0,Unternehmerlohn!F40) -> 0 | P46: 0
A47: Tilgung | B47: nein | C47: =Rentabilität!E29 -> 0 | P47: 0 | Q47: =IF(AND(ABS(P47-C47)>100,P47<>0),"Überprüfe Eintragung","") -> 
A48: Vorsteuer | C48: =(C21+C22+IF($B24="ja",C24,0)+C25+C27+C28+C29+C30+C31+C32+C33+C34+C35+C36+C37+C40+C41+C42+C43+IF($B45="ja",C45,0))*$B$8 -> 0 | D48: =(SUM(D21:D47)-D23-IF($B24="nein",D24,0)-D26-D38-D39-D44-IF($B45="nein",D45,0)-D46-D47)*$B$8 -> 0 | E48: =(SUM(E21:E47)-E23-IF($B24="nein",E24,0)-E26-E38-E39-E44-IF($B45="nein",E45,0)-E46-E47)*$B$8 -> 0 | F48: 0 | G48: 0 | H48: 0 | I48: 0 | J48: 0 | K48: 0 | L48: 0 | M48: 0 | N48: 0 | O48: 0 | P48: =SUM(E48:O48) -> 0
A49: II. Summe Auszahlungen (incl. Vorsteuer) | C49: =SUM(C21:C48) -> 0 | D49: =SUM(D21:D48) -> 0 | E49: =SUM(E21:E48) -> 0 | F49: 0 | G49: 0 | H49: 0 | I49: 0 | J49: 0 | K49: 0 | L49: 0 | M49: 0 | N49: 0 | O49: =SUM(O21:O48) -> 0 | P49: 0
A50: USt-Zahllast (-) oder Erstattung (+) | D50: =-'Liquiditätsplan-1.Jahr'!O12+'Liquiditätsplan-1.Jahr'!O48 -> 0 | E50: =-D12+D48 -> 0 | F50: =-E12+E48 -> 0 | G50: 0 | H50: 0 | I50: 0 | J50: 0 | K50: 0 | L50: 0 | M50: 0 | N50: 0 | O50: 0 | P50: 0
A52: III: Liquiditätssaldo | C52: ='Liquiditätsplan-1.Jahr'!O53 -> 0 | D52: =D18-D49+D50 -> 0 | E52: 0 | F52: 0 | G52: 0 | H52: 0 | I52: 0 | J52: 0 | K52: 0 | L52: 0 | M52: 0 | N52: 0 | O52: 0 | P52: =SUM(C52:O52) -> 0
A53: Liquiditätssaldo kumuliert | D53: =D52+C52 -> 0 | E53: =D53+E52 -> 0 | F53: 0 | G53: 0 | H53: 0 | I53: 0 | J53: 0 | K53: 0 | L53: 0 | M53: 0 | N53: 0 | O53: 0
A55: Kontokorrentrahmen | C55: ='Liquiditätsplan-1.Jahr'!O55 -> 0 | D55: =$C55 -> 0 | E55: 0 | F55: 0 | G55: 0 | H55: 0 | I55: 0 | J55: 0 | K55: 0 | L55: 0 | M55: 0 | N55: 0 | O55: 0

Sheet Liquiditätsplan-3.Jahr
A1: =CONCATENATE( "Liquiditätsplanung des 3. Geschäftsjahres des Unternehmens : ", Startseite!C14) -> Liquiditätsplanung des 3. Geschäftsjahres des Unternehmens : | I1: ='Personalkosten 3. Jahr'!K1 -> 2019-01-11 | J1: - | K1: ='Personalkosten 3. Jahr'!M1 -> 2019-12-07
B3: Angaben zu den Zahlungszielen, und zur Umsatzsteuer:
B4: ='Liquiditätsplan-1.Jahr'!B4 -> 50% | C4: der Kunden zahlt noch im Monat der Rechnungsstellung
B5: ='Liquiditätsplan-1.Jahr'!B5 -> 40% | C5: der Kunden zahlt im Folgemonat
B6: ='Liquiditätsplan-1.Jahr'!B6 -> 10% | C6: der Kunden zahlt erst nach zwei Monaten
B7: ='Liquiditätsplan-1.Jahr'!B7 -> 19% | C7: Umsatzsteuersatz
B8: ='Liquiditätsplan-1.Jahr'!B8 -> 19% | C8: Vorsteuersatz
B10: USt | C10: EURO | D10: =Startseite!D16 -> 2017-01-01 | E10: =D10+32 -> 2017-02-02 | F10: =E10+31 -> 2017-03-05 | G10: 2017-04-05 | H10: 2017-05-06 | I10: 2017-06-06 | J10: 2017-07-07 | K10: 2017-08-07 | L10: 2017-09-07 | M10: 2017-10-08 | N10: 2017-11-08 | O10: 2017-12-09 | P10: Jahr 1
A11: Umsatzplan (netto) | C11: =Rentabilität!G13 -> 0 | P11: =SUM(D11:O11) -> 0 | Q11: =IF(AND(P11<>C11,P11<>0),"Überprüfe Eintragung","") -> 
A12: Umsatzsteuer (USt) | C12: =C11*$B$7 -> 0 | D12: 0 | E12: 0 | F12: 0 | G12: 0 | H12: 0 | I12: 0 | J12: 0 | K12: 0 | L12: 0 | M12: 0 | N12: 0 | O12: 0 | P12: =SUM(D12:O12) -> 0
A14: Einzahlungen
A15: 1. aus Umsatz incl. USt | C15: =C11+C12 -> 0 | D15: =(D11+D12)*$B$4 -> 0 | E15: =(D11+D12)*B5+(E11+E12)*B4 -> 0 | F15: =(D11+D12)*$B$6+(E11+E12)*$B$5+(F11+F12)*$B$4 -> 0 | G15: 0 | H15: 0 | I15: 0 | J15: 0 | K15: 0 | L15: 0 | M15: 0 | N15: 0 | O15: 0 | P15: =SUM(D15:O15) -> 0
A16: 2. Einzahlungen aus Vorjahr | C16: =('Liquiditätsplan-2.Jahr'!N11+'Liquiditätsplan-2.Jahr'!N12)*'Liquiditätsplan-2.Jahr'!B6+('Liquiditätsplan-2.Jahr'!O11+'Liquiditätsplan-2.Jahr'!O12)*(B5+B6) -> 0 | D16: =('Liquiditätsplan-2.Jahr'!N11+'Liquiditätsplan-2.Jahr'!N12)*'Liquiditätsplan-2.Jahr'!B6+('Liquiditätsplan-2.Jahr'!O11+'Liquiditätsplan-2.Jahr'!O12)*'Liquiditätsplan-2.Jahr'!B5 -> 0 | E16: =('Liquiditätsplan-2.Jahr'!O11+'Liquiditätsplan-2.Jahr'!O12)*'Liquiditätsplan-2.Jahr'!B6 -> 0 | P16: =SUM(D16:O16) -> 0
A17: 3. Sonstige Einzahlungen | P17: =SUM(D17:O17) -> 0
A18: I. Summe Einzahlungen (Bruttowerte) | C18: =C15+C16+C17 -> 0 | D18: =D15+D16+D17 -> 0 | E18: 0 | F18: 0 | G18: 0 | H18: 0 | I18: 0 | J18: 0 | K18: 0 | L18: 0 | M18: 0 | N18: 0 | O18: 0 | P18: =SUM(D18:O18) -> 0
A20: Auszahlungen (Nettowerte)
A21: Material-/Wareneinsatz | B21: ja | C21: =Rentabilität!G19 -> 0 | P21: =SUM(D21:O21) -> 0 | Q21: =IF(AND(P21<>C21,P21<>0),"Überprüfe Eintragung","") -> 
A22: Fremdleistungen | B22: ja | C22: =Rentabilität!G14 -> 0 | P22: =SUM(D22:O22) -> 0 | Q22: =IF(AND(P22<>C22,P22<>0),"Überprüfe Eintragung","") -> 
A23: Personal | B23: nein | C23: =Rentabilität!G21 -> 0 | P23: =SUM(D23:O23) -> 0 | Q23: =IF(AND(ABS(P23-C23)>100,P23<>0),"Überprüfe Eintragung","") -> 
A24: ='übrige Kosten'!A8 -> Raumkosten (Miete, Pacht) | B24: nein | C24: ='übrige Kosten'!G8 -> 0 | P24: =SUM(D24:O24) -> 0 | Q24: =IF(AND(P24<>C24,P24<>0),"Überprüfe Eintragung","") -> 
A25: ='übrige Kosten'!A9 -> Energiekosten (Strom, Heizung, Wasser) | B25: ja | C25: ='übrige Kosten'!G9 -> 0 | P25: 0
A26: ='übrige Kosten'!A10 -> Versicherung, Beiträge | B26: nein | C26: ='übrige Kosten'!G10 -> 0 | P26: 0
A27: ='übrige Kosten'!A11 -> Kfz-Kosten (incl. Leasing, Steuern, Vers., Rep., ohne AfA) | B27: ja | C27: ='übrige Kosten'!G11 -> 0 | P27: 0
A28: ='übrige Kosten'!A12 -> Werbung / Reisekosten | B28: ja | C28: ='übrige Kosten'!G12 -> 0 | P28: 0
A29: ='übrige Kosten'!A13 -> Kosten der Warenabgabe (incl. Gewährleistungen) | B29: ja | C29: ='übrige Kosten'!G13 -> 0 | P29: 0
A30: ='übrige Kosten'!A15 -> Reparaturen, Instandhaltung | B30: ja | C30: ='übrige Kosten'!G15 -> 0 | P30: 0
A31: ='übrige Kosten'!A16 -> Büro (Telefon, Telefax, Internet) | B31: ja | C31: ='übrige Kosten'!G16 -> 0 | P31: 0
A32: ='übrige Kosten'!A17 -> Büro (Porto, Zeitschriften, sonst. Bürobedarf) | B32: ja | C32: ='übrige Kosten'!G17 -> 0 | P32: 0
A33: ='übrige Kosten'!A18 -> Buchführung und Abschlusskosten / Beratungskosten | B33: ja | C33: ='übrige Kosten'!G18 -> 0 | P33: 0
A34: ='übrige Kosten'!A19 -> Miete / Leasing (ohne Kfz) für bewegliche Wirtschaftsgüter | B34: ja | C34: ='übrige Kosten'!G19 -> 0 | P34: 0
A35: ='übrige Kosten'!A20 -> Abraum - und Abfallbeseitigung | B35: ja | C35: ='übrige Kosten'!G20 -> 0 | P35: 0
A36: ='übrige Kosten'!A21 -> Werkzeug und Kleingeräte GWG | B36: ja | C36: ='übrige Kosten'!G21 -> 0 | P36: 0 | Q36: =IF(AND(ABS(P36-C36)>100,P36<>0),"Überprüfe Eintragung","") -> 
A37: ='übrige Kosten'!A22 -> Betriebsbedarf | B37: ja | C37: ='übrige Kosten'!G22 -> 0 | P37: 0
A38: ='übrige Kosten'!A23 -> langfristige Zinsen | B38: nein | C38: ='übrige Kosten'!G23 -> 0 | P38: 0 | Q38: =IF(AND(ABS(P38-C38)>500,P38<>0),"Überprüfe Eintragung","") -> 
A39: ='übrige Kosten'!A24 -> kurzfristige Zinsen, Bankgebühren | B39: nein | C39: ='übrige Kosten'!G24 -> 0 | P39: 0
A40: ='übrige Kosten'!A25 -> Sonstiges | B40: ja | C40: ='übrige Kosten'!G25+'übrige Kosten'!G26+'übrige Kosten'!G27 -> 0 | P40: 0
P41: 0
P42: 0
P43: 0
A44: Gewerbesteuer / Körperschaftssteuer | B44: nein | C44: ='übrige Kosten'!G34 -> 0 | P44: 0
A45: Im 3. Jahr zusätzlich geplante Investitionen | B45: ja | P45: 0
A46: Privatentnahmen | B46: nein | C46: =IF(OR(Startseite!A35=Startseite!A44,Startseite!A35=Startseite!A45,Startseite!A35=Startseite!A46),0,Unternehmerlohn!H40) -> 0 | P46: 0
A47: Tilgung | B47: nein | C47: =Rentabilität!G29 -> 0 | P47: 0 | Q47: =IF(AND(ABS(P47-C47)>100,P47<>0),"Überprüfe Eintragung","") -> 
A48: Vorsteuer | C48: =(C21+C22+IF($B24="ja",C24,0)+C25+C27+C28+C29+C30+C31+C32+C33+C34+C35+C36+C37+C40+C41+C42+C43+IF(B45="ja",C45,0))*$B$8 -> 0 | D48: =(SUM(D21:D47)-D23-IF($B24="nein",D24,0)-D26-D38-D39-D44-IF($B45="nein",D45,0)-D46-D47)*$B$8 -> 0 | E48: =(SUM(E21:E47)-E23-IF($B24="nein",E24,0)-E26-E38-E39-E44-IF($B45="nein",E45,0)-E46-E47)*$B$8 -> 0 | F48: 0 | G48: 0 | H48: 0 | I48: 0 | J48: 0 | K48: 0 | L48: 0 | M48: 0 | N48: 0 | O48: 0 | P48: 0
A49: II. Summe Auszahlungen (incl. Vorsteuer) | C49: =SUM(C21:C48) -> 0 | D49: =SUM(D21:D48) -> 0 | E49: 0 | F49: 0 | G49: 0 | H49: 0 | I49: 0 | J49: 0 | K49: 0 | L49: 0 | M49: 0 | N49: 0 | O49: 0 | P49: 0
A50: USt-Zahllast (-) oder Erstattung (+) | D50: =-'Liquiditätsplan-2.Jahr'!O12+'Liquiditätsplan-2.Jahr'!O48 -> 0 | E50: =-D12+D48 -> 0 | F50: =-E12+E48 -> 0 | G50: 0 | H50: 0 | I50: 0 | J50: 0 | K50: 0 | L50: 0 | M50: 0 | N50: 0 | O50: =-N12+N48 -> 0 | P50: 0
A52: Liquiditätssaldo | C52: ='Liquiditätsplan-2.Jahr'!O53 -> 0 | D52: =D18-D49+D50 -> 0 | E52: 0 | F52: 0 | G52: 0 | H52: 0 | I52: 0 | J52: 0 | K52: 0 | L52: 0 | M52: 0 | N52: 0 | O52: 0 | P52: =SUM(C52:O52) -> 0
A53: Liquiditätssaldo kumuliert | D53: =D52+C52 -> 0 | E53: =D53+E52 -> 0 | F53: 0 | G53: 0 | H53: 0 | I53: 0 | J53: 0 | K53: 0 | L53: 0 | M53: 0 | N53: 0 | O53: 0
A55: Kontokorrentrahmen | C55: ='Liquiditätsplan-2.Jahr'!O55 -> 0 | D55: =$C55 -> 0 | E55: 0 | F55: 0 | G55: 0 | H55: 0 | I55: 0 | J55: 0 | K55: 0 | L55: 0 | M55: 0 | N55: 0 | O55: 0
D56: =IF(OR(-D53>D55,-E53>E55,-F53>F55),"Kreditrahmen überzogen!","") ->  | G56: =IF(OR(-G53>G55,-H53>H55,-I53>I55),"Kreditrahmen überzogen!","") ->  | J56: =IF(OR(-J53>J55,-K53>K55,-L53>L55),"Kreditrahmen überzogen!","") ->  | M56: =IF(OR(-M53>M55,-N53>N55,-O53>O55),"Kreditrahmen überzogen!","") -> 

Sheet Hilfstabelle
A1: 1. Personalkostenverteilung 3 Jahre
A2: 1. Jahr | B2: 1 | C2: 2 | D2: 3 | E2: 4 | F2: 5 | G2: 6 | H2: 7 | I2: 8 | J2: 9 | K2: 10 | L2: 11 | M2: 12 | N2: Gesamt
A3: 1 | B3: =IF('Personalkosten 1. Jahr'!D12>0,IF('Personalkosten 1. Jahr'!D12<=Hilfstabelle!$B$2=AND('Personalkosten 1. Jahr'!E12>=Hilfstabelle!$B$2),'Personalkosten 1. Jahr'!M12/('Personalkosten 1. Jahr'!E12-'Personalkosten 1. Jahr'!D12+1),0),IF('Personalkosten 1. Jahr'!C12>0,'Personalkosten 1. Jahr'!M12/12,0)) -> 0 | C3: =IF('Personalkosten 1. Jahr'!D12>0,IF('Personalkosten 1. Jahr'!D12<=Hilfstabelle!$C$2=AND('Personalkosten 1. Jahr'!E12>=Hilfstabelle!$C$2),'Personalkosten 1. Jahr'!M12/('Personalkosten 1. Jahr'!E12-'Personalkosten 1. Jahr'!D12+1),0),IF('Personalkosten 1. Jahr'!C12>0,'Personalkosten 1. Jahr'!M12/12,0)) -> 0 | D3: =IF('Personalkosten 1. Jahr'!D12>0,IF('Personalkosten 1. Jahr'!D12<=Hilfstabelle!$D$2=AND('Personalkosten 1. Jahr'!E12>=Hilfstabelle!$D$2),'Personalkosten 1. Jahr'!M12/('Personalkosten 1. Jahr'!E12-'Personalkosten 1. Jahr'!D12+1),0),IF('Personalkosten 1. Jahr'!C12>0,'Personalkosten 1. Jahr'!M12/12,0)) -> 0 | E3: =IF('Personalkosten 1. Jahr'!D12>0,IF('Personalkosten 1. Jahr'!D12<=Hilfstabelle!$E$2=AND('Personalkosten 1. Jahr'!E12>=Hilfstabelle!$E$2),'Personalkosten 1. Jahr'!M12/('Personalkosten 1. Jahr'!E12-'Personalkosten 1. Jahr'!D12+1),0),IF('Personalkosten 1. Jahr'!C12>0,'Personalkosten 1. Jahr'!M12/12,0)) -> 0 | F3: =IF('Personalkosten 1. Jahr'!D12>0,IF('Personalkosten 1. Jahr'!D12<=Hilfstabelle!$F$2=AND('Personalkosten 1. Jahr'!E12>=Hilfstabelle!$F$2),'Personalkosten 1. Jahr'!M12/('Personalkosten 1. Jahr'!E12-'Personalkosten 1. Jahr'!D12+1),0),IF('Personalkosten 1. Jahr'!C12>0,'Personalkosten 1. Jahr'!M12/12,0)) -> 0 | G3: =IF('Personalkosten 1. Jahr'!D12>0,IF('Personalkosten 1. Jahr'!D12<=Hilfstabelle!$G$2=AND('Personalkosten 1. Jahr'!E12>=Hilfstabelle!$G$2),'Personalkosten 1. Jahr'!M12/('Personalkosten 1. Jahr'!E12-'Personalkosten 1. Jahr'!D12+1),0),IF('Personalkosten 1. Jahr'!C12>0,'Personalkosten 1. Jahr'!M12/12,0)) -> 0 | H3: =IF('Personalkosten 1. Jahr'!D12>0,IF('Personalkosten 1. Jahr'!D12<=Hilfstabelle!$H$2=AND('Personalkosten 1. Jahr'!E12>=Hilfstabelle!$H$2),'Personalkosten 1. Jahr'!M12/('Personalkosten 1. Jahr'!E12-'Personalkosten 1. Jahr'!D12+1),0),IF('Personalkosten 1. Jahr'!C12>0,'Personalkosten 1. Jahr'!M12/12,0)) -> 0 | I3: =IF('Personalkosten 1. Jahr'!D12>0,IF('Personalkosten 1. Jahr'!D12<=Hilfstabelle!$I$2=AND('Personalkosten 1. Jahr'!E12>=Hilfstabelle!$I$2),'Personalkosten 1. Jahr'!M12/('Personalkosten 1. Jahr'!E12-'Personalkosten 1. Jahr'!D12+1),0),IF('Personalkosten 1. Jahr'!C12>0,'Personalkosten 1. Jahr'!M12/12,0)) -> 0 | J3: =IF('Personalkosten 1. Jahr'!D12>0,IF('Personalkosten 1. Jahr'!D12<=Hilfstabelle!$J$2=AND('Personalkosten 1. Jahr'!E12>=Hilfstabelle!$J$2),'Personalkosten 1. Jahr'!M12/('Personalkosten 1. Jahr'!E12-'Personalkosten 1. Jahr'!D12+1),0),IF('Personalkosten 1. Jahr'!C12>0,'Personalkosten 1. Jahr'!M12/12,0)) -> 0 | K3: =IF('Personalkosten 1. Jahr'!D12>0,IF('Personalkosten 1. Jahr'!D12<=Hilfstabelle!$K$2=AND('Personalkosten 1. Jahr'!E12>=Hilfstabelle!$K$2),'Personalkosten 1. Jahr'!M12/('Personalkosten 1. Jahr'!E12-'Personalkosten 1. Jahr'!D12+1),0),IF('Personalkosten 1. Jahr'!C12>0,'Personalkosten 1. Jahr'!M12/12,0)) -> 0 | L3: =IF('Personalkosten 1. Jahr'!D12>0,IF('Personalkosten 1. Jahr'!D12<=Hilfstabelle!$L$2=AND('Personalkosten 1. Jahr'!E12>=Hilfstabelle!$L$2),'Personalkosten 1. Jahr'!M12/('Personalkosten 1. Jahr'!E12-'Personalkosten 1. Jahr'!D12+1),0),IF('Personalkosten 1. Jahr'!C12>0,'Personalkosten 1. Jahr'!M12/12,0)) -> 0 | M3: =IF('Personalkosten 1. Jahr'!D12>0,IF('Personalkosten 1. Jahr'!D12<=Hilfstabelle!$M$2=AND('Personalkosten 1. Jahr'!E12>=Hilfstabelle!$M$2),'Personalkosten 1. Jahr'!M12/('Personalkosten 1. Jahr'!E12-'Personalkosten 1. Jahr'!D12+1),0),IF('Personalkosten 1. Jahr'!C12>0,'Personalkosten 1. Jahr'!M12/12,0)) -> 0 | N3: =SUM(B3:M3) -> 0
A4: 2 | B4: =IF('Personalkosten 1. Jahr'!D13>0,IF('Personalkosten 1. Jahr'!D13<=Hilfstabelle!$B$2=AND('Personalkosten 1. Jahr'!E13>=Hilfstabelle!$B$2),'Personalkosten 1. Jahr'!M13/('Personalkosten 1. Jahr'!E13-'Personalkosten 1. Jahr'!D13+1),0),IF('Personalkosten 1. Jahr'!C13>0,'Personalkosten 1. Jahr'!M13/12,0)) -> 0 | C4: =IF('Personalkosten 1. Jahr'!D13>0,IF('Personalkosten 1. Jahr'!D13<=Hilfstabelle!$C$2=AND('Personalkosten 1. Jahr'!E13>=Hilfstabelle!$C$2),'Personalkosten 1. Jahr'!M13/('Personalkosten 1. Jahr'!E13-'Personalkosten 1. Jahr'!D13+1),0),IF('Personalkosten 1. Jahr'!C13>0,'Personalkosten 1. Jahr'!M13/12,0)) -> 0 | D4: =IF('Personalkosten 1. Jahr'!D13>0,IF('Personalkosten 1. Jahr'!D13<=Hilfstabelle!$D$2=AND('Personalkosten 1. Jahr'!E13>=Hilfstabelle!$D$2),'Personalkosten 1. Jahr'!M13/('Personalkosten 1. Jahr'!E13-'Personalkosten 1. Jahr'!D13+1),0),IF('Personalkosten 1. Jahr'!C13>0,'Personalkosten 1. Jahr'!M13/12,0)) -> 0 | E4: =IF('Personalkosten 1. Jahr'!D13>0,IF('Personalkosten 1. Jahr'!D13<=Hilfstabelle!$E$2=AND('Personalkosten 1. Jahr'!E13>=Hilfstabelle!$E$2),'Personalkosten 1. Jahr'!M13/('Personalkosten 1. Jahr'!E13-'Personalkosten 1. Jahr'!D13+1),0),IF('Personalkosten 1. Jahr'!C13>0,'Personalkosten 1. Jahr'!M13/12,0)) -> 0 | F4: =IF('Personalkosten 1. Jahr'!D13>0,IF('Personalkosten 1. Jahr'!D13<=Hilfstabelle!$F$2=AND('Personalkosten 1. Jahr'!E13>=Hilfstabelle!$F$2),'Personalkosten 1. Jahr'!M13/('Personalkosten 1. Jahr'!E13-'Personalkosten 1. Jahr'!D13+1),0),IF('Personalkosten 1. Jahr'!C13>0,'Personalkosten 1. Jahr'!M13/12,0)) -> 0 | G4: =IF('Personalkosten 1. Jahr'!D13>0,IF('Personalkosten 1. Jahr'!D13<=Hilfstabelle!$G$2=AND('Personalkosten 1. Jahr'!E13>=Hilfstabelle!$G$2),'Personalkosten 1. Jahr'!M13/('Personalkosten 1. Jahr'!E13-'Personalkosten 1. Jahr'!D13+1),0),IF('Personalkosten 1. Jahr'!C13>0,'Personalkosten 1. Jahr'!M13/12,0)) -> 0 | H4: =IF('Personalkosten 1. Jahr'!D13>0,IF('Personalkosten 1. Jahr'!D13<=Hilfstabelle!$H$2=AND('Personalkosten 1. Jahr'!E13>=Hilfstabelle!$H$2),'Personalkosten 1. Jahr'!M13/('Personalkosten 1. Jahr'!E13-'Personalkosten 1. Jahr'!D13+1),0),IF('Personalkosten 1. Jahr'!C13>0,'Personalkosten 1. Jahr'!M13/12,0)) -> 0 | I4: =IF('Personalkosten 1. Jahr'!D13>0,IF('Personalkosten 1. Jahr'!D13<=Hilfstabelle!$I$2=AND('Personalkosten 1. Jahr'!E13>=Hilfstabelle!$I$2),'Personalkosten 1. Jahr'!M13/('Personalkosten 1. Jahr'!E13-'Personalkosten 1. Jahr'!D13+1),0),IF('Personalkosten 1. Jahr'!C13>0,'Personalkosten 1. Jahr'!M13/12,0)) -> 0 | J4: =IF('Personalkosten 1. Jahr'!D13>0,IF('Personalkosten 1. Jahr'!D13<=Hilfstabelle!$J$2=AND('Personalkosten 1. Jahr'!E13>=Hilfstabelle!$J$2),'Personalkosten 1. Jahr'!M13/('Personalkosten 1. Jahr'!E13-'Personalkosten 1. Jahr'!D13+1),0),IF('Personalkosten 1. Jahr'!C13>0,'Personalkosten 1. Jahr'!M13/12,0)) -> 0 | K4: =IF('Personalkosten 1. Jahr'!D13>0,IF('Personalkosten 1. Jahr'!D13<=Hilfstabelle!$K$2=AND('Personalkosten 1. Jahr'!E13>=Hilfstabelle!$K$2),'Personalkosten 1. Jahr'!M13/('Personalkosten 1. Jahr'!E13-'Personalkosten 1. Jahr'!D13+1),0),IF('Personalkosten 1. Jahr'!C13>0,'Personalkosten 1. Jahr'!M13/12,0)) -> 0 | L4: =IF('Personalkosten 1. Jahr'!D13>0,IF('Personalkosten 1. Jahr'!D13<=Hilfstabelle!$L$2=AND('Personalkosten 1. Jahr'!E13>=Hilfstabelle!$L$2),'Personalkosten 1. Jahr'!M13/('Personalkosten 1. Jahr'!E13-'Personalkosten 1. Jahr'!D13+1),0),IF('Personalkosten 1. Jahr'!C13>0,'Personalkosten 1. Jahr'!M13/12,0)) -> 0 | M4: =IF('Personalkosten 1. Jahr'!D13>0,IF('Personalkosten 1. Jahr'!D13<=Hilfstabelle!$M$2=AND('Personalkosten 1. Jahr'!E13>=Hilfstabelle!$M$2),'Personalkosten 1. Jahr'!M13/('Personalkosten 1. Jahr'!E13-'Personalkosten 1. Jahr'!D13+1),0),IF('Personalkosten 1. Jahr'!C13>0,'Personalkosten 1. Jahr'!M13/12,0)) -> 0 | N4: 0
A5: 3 | B5: =IF('Personalkosten 1. Jahr'!D14>0,IF('Personalkosten 1. Jahr'!D14<=Hilfstabelle!$B$2=AND('Personalkosten 1. Jahr'!E14>=Hilfstabelle!$B$2),'Personalkosten 1. Jahr'!M14/('Personalkosten 1. Jahr'!E14-'Personalkosten 1. Jahr'!D14+1),0),IF('Personalkosten 1. Jahr'!C14>0,'Personalkosten 1. Jahr'!M14/12,0)) -> 0 | C5: =IF('Personalkosten 1. Jahr'!D14>0,IF('Personalkosten 1. Jahr'!D14<=Hilfstabelle!$C$2=AND('Personalkosten 1. Jahr'!E14>=Hilfstabelle!$C$2),'Personalkosten 1. Jahr'!M14/('Personalkosten 1. Jahr'!E14-'Personalkosten 1. Jahr'!D14+1),0),IF('Personalkosten 1. Jahr'!C14>0,'Personalkosten 1. Jahr'!M14/12,0)) -> 0 | D5: =IF('Personalkosten 1. Jahr'!D14>0,IF('Personalkosten 1. Jahr'!D14<=Hilfstabelle!$D$2=AND('Personalkosten 1. Jahr'!E14>=Hilfstabelle!$D$2),'Personalkosten 1. Jahr'!M14/('Personalkosten 1. Jahr'!E14-'Personalkosten 1. Jahr'!D14+1),0),IF('Personalkosten 1. Jahr'!C14>0,'Personalkosten 1. Jahr'!M14/12,0)) -> 0 | E5: =IF('Personalkosten 1. Jahr'!D14>0,IF('Personalkosten 1. Jahr'!D14<=Hilfstabelle!$E$2=AND('Personalkosten 1. Jahr'!E14>=Hilfstabelle!$E$2),'Personalkosten 1. Jahr'!M14/('Personalkosten 1. Jahr'!E14-'Personalkosten 1. Jahr'!D14+1),0),IF('Personalkosten 1. Jahr'!C14>0,'Personalkosten 1. Jahr'!M14/12,0)) -> 0 | F5: =IF('Personalkosten 1. Jahr'!D14>0,IF('Personalkosten 1. Jahr'!D14<=Hilfstabelle!$F$2=AND('Personalkosten 1. Jahr'!E14>=Hilfstabelle!$F$2),'Personalkosten 1. Jahr'!M14/('Personalkosten 1. Jahr'!E14-'Personalkosten 1. Jahr'!D14+1),0),IF('Personalkosten 1. Jahr'!C14>0,'Personalkosten 1. Jahr'!M14/12,0)) -> 0 | G5: =IF('Personalkosten 1. Jahr'!D14>0,IF('Personalkosten 1. Jahr'!D14<=Hilfstabelle!$G$2=AND('Personalkosten 1. Jahr'!E14>=Hilfstabelle!$G$2),'Personalkosten 1. Jahr'!M14/('Personalkosten 1. Jahr'!E14-'Personalkosten 1. Jahr'!D14+1),0),IF('Personalkosten 1. Jahr'!C14>0,'Personalkosten 1. Jahr'!M14/12,0)) -> 0 | H5: =IF('Personalkosten 1. Jahr'!D14>0,IF('Personalkosten 1. Jahr'!D14<=Hilfstabelle!$H$2=AND('Personalkosten 1. Jahr'!E14>=Hilfstabelle!$H$2),'Personalkosten 1. Jahr'!M14/('Personalkosten 1. Jahr'!E14-'Personalkosten 1. Jahr'!D14+1),0),IF('Personalkosten 1. Jahr'!C14>0,'Personalkosten 1. Jahr'!M14/12,0)) -> 0 | I5: =IF('Personalkosten 1. Jahr'!D14>0,IF('Personalkosten 1. Jahr'!D14<=Hilfstabelle!$I$2=AND('Personalkosten 1. Jahr'!E14>=Hilfstabelle!$I$2),'Personalkosten 1. Jahr'!M14/('Personalkosten 1. Jahr'!E14-'Personalkosten 1. Jahr'!D14+1),0),IF('Personalkosten 1. Jahr'!C14>0,'Personalkosten 1. Jahr'!M14/12,0)) -> 0 | J5: =IF('Personalkosten 1. Jahr'!D14>0,IF('Personalkosten 1. Jahr'!D14<=Hilfstabelle!$J$2=AND('Personalkosten 1. Jahr'!E14>=Hilfstabelle!$J$2),'Personalkosten 1. Jahr'!M14/('Personalkosten 1. Jahr'!E14-'Personalkosten 1. Jahr'!D14+1),0),IF('Personalkosten 1. Jahr'!C14>0,'Personalkosten 1. Jahr'!M14/12,0)) -> 0 | K5: =IF('Personalkosten 1. Jahr'!D14>0,IF('Personalkosten 1. Jahr'!D14<=Hilfstabelle!$K$2=AND('Personalkosten 1. Jahr'!E14>=Hilfstabelle!$K$2),'Personalkosten 1. Jahr'!M14/('Personalkosten 1. Jahr'!E14-'Personalkosten 1. Jahr'!D14+1),0),IF('Personalkosten 1. Jahr'!C14>0,'Personalkosten 1. Jahr'!M14/12,0)) -> 0 | L5: =IF('Personalkosten 1. Jahr'!D14>0,IF('Personalkosten 1. Jahr'!D14<=Hilfstabelle!$L$2=AND('Personalkosten 1. Jahr'!E14>=Hilfstabelle!$L$2),'Personalkosten 1. Jahr'!M14/('Personalkosten 1. Jahr'!E14-'Personalkosten 1. Jahr'!D14+1),0),IF('Personalkosten 1. Jahr'!C14>0,'Personalkosten 1. Jahr'!M14/12,0)) -> 0 | M5: =IF('Personalkosten 1. Jahr'!D14>0,IF('Personalkosten 1. Jahr'!D14<=Hilfstabelle!$M$2=AND('Personalkosten 1. Jahr'!E14>=Hilfstabelle!$M$2),'Personalkosten 1. Jahr'!M14/('Personalkosten 1. Jahr'!E14-'Personalkosten 1. Jahr'!D14+1),0),IF('Personalkosten 1. Jahr'!C14>0,'Personalkosten 1. Jahr'!M14/12,0)) -> 0 | N5: 0
A6: 4 | B6: =IF('Personalkosten 1. Jahr'!D15>0,IF('Personalkosten 1. Jahr'!D15<=Hilfstabelle!$B$2=AND('Personalkosten 1. Jahr'!E15>=Hilfstabelle!$B$2),'Personalkosten 1. Jahr'!M15/('Personalkosten 1. Jahr'!E15-'Personalkosten 1. Jahr'!D15+1),0),IF('Personalkosten 1. Jahr'!C15>0,'Personalkosten 1. Jahr'!M15/12,0)) -> 0 | C6: =IF('Personalkosten 1. Jahr'!D15>0,IF('Personalkosten 1. Jahr'!D15<=Hilfstabelle!$C$2=AND('Personalkosten 1. Jahr'!E15>=Hilfstabelle!$C$2),'Personalkosten 1. Jahr'!M15/('Personalkosten 1. Jahr'!E15-'Personalkosten 1. Jahr'!D15+1),0),IF('Personalkosten 1. Jahr'!C15>0,'Personalkosten 1. Jahr'!M15/12,0)) -> 0 | D6: =IF('Personalkosten 1. Jahr'!D15>0,IF('Personalkosten 1. Jahr'!D15<=Hilfstabelle!$D$2=AND('Personalkosten 1. Jahr'!E15>=Hilfstabelle!$D$2),'Personalkosten 1. Jahr'!M15/('Personalkosten 1. Jahr'!E15-'Personalkosten 1. Jahr'!D15+1),0),IF('Personalkosten 1. Jahr'!C15>0,'Personalkosten 1. Jahr'!M15/12,0)) -> 0 | E6: =IF('Personalkosten 1. Jahr'!D15>0,IF('Personalkosten 1. Jahr'!D15<=Hilfstabelle!$E$2=AND('Personalkosten 1. Jahr'!E15>=Hilfstabelle!$E$2),'Personalkosten 1. Jahr'!M15/('Personalkosten 1. Jahr'!E15-'Personalkosten 1. Jahr'!D15+1),0),IF('Personalkosten 1. Jahr'!C15>0,'Personalkosten 1. Jahr'!M15/12,0)) -> 0 | F6: =IF('Personalkosten 1. Jahr'!D15>0,IF('Personalkosten 1. Jahr'!D15<=Hilfstabelle!$F$2=AND('Personalkosten 1. Jahr'!E15>=Hilfstabelle!$F$2),'Personalkosten 1. Jahr'!M15/('Personalkosten 1. Jahr'!E15-'Personalkosten 1. Jahr'!D15+1),0),IF('Personalkosten 1. Jahr'!C15>0,'Personalkosten 1. Jahr'!M15/12,0)) -> 0 | G6: =IF('Personalkosten 1. Jahr'!D15>0,IF('Personalkosten 1. Jahr'!D15<=Hilfstabelle!$G$2=AND('Personalkosten 1. Jahr'!E15>=Hilfstabelle!$G$2),'Personalkosten 1. Jahr'!M15/('Personalkosten 1. Jahr'!E15-'Personalkosten 1. Jahr'!D15+1),0),IF('Personalkosten 1. Jahr'!C15>0,'Personalkosten 1. Jahr'!M15/12,0)) -> 0 | H6: =IF('Personalkosten 1. Jahr'!D15>0,IF('Personalkosten 1. Jahr'!D15<=Hilfstabelle!$H$2=AND('Personalkosten 1. Jahr'!E15>=Hilfstabelle!$H$2),'Personalkosten 1. Jahr'!M15/('Personalkosten 1. Jahr'!E15-'Personalkosten 1. Jahr'!D15+1),0),IF('Personalkosten 1. Jahr'!C15>0,'Personalkosten 1. Jahr'!M15/12,0)) -> 0 | I6: =IF('Personalkosten 1. Jahr'!D15>0,IF('Personalkosten 1. Jahr'!D15<=Hilfstabelle!$I$2=AND('Personalkosten 1. Jahr'!E15>=Hilfstabelle!$I$2),'Personalkosten 1. Jahr'!M15/('Personalkosten 1. Jahr'!E15-'Personalkosten 1. Jahr'!D15+1),0),IF('Personalkosten 1. Jahr'!C15>0,'Personalkosten 1. Jahr'!M15/12,0)) -> 0 | J6: =IF('Personalkosten 1. Jahr'!D15>0,IF('Personalkosten 1. Jahr'!D15<=Hilfstabelle!$J$2=AND('Personalkosten 1. Jahr'!E15>=Hilfstabelle!$J$2),'Personalkosten 1. Jahr'!M15/('Personalkosten 1. Jahr'!E15-'Personalkosten 1. Jahr'!D15+1),0),IF('Personalkosten 1. Jahr'!C15>0,'Personalkosten 1. Jahr'!M15/12,0)) -> 0 | K6: =IF('Personalkosten 1. Jahr'!D15>0,IF('Personalkosten 1. Jahr'!D15<=Hilfstabelle!$K$2=AND('Personalkosten 1. Jahr'!E15>=Hilfstabelle!$K$2),'Personalkosten 1. Jahr'!M15/('Personalkosten 1. Jahr'!E15-'Personalkosten 1. Jahr'!D15+1),0),IF('Personalkosten 1. Jahr'!C15>0,'Personalkosten 1. Jahr'!M15/12,0)) -> 0 | L6: =IF('Personalkosten 1. Jahr'!D15>0,IF('Personalkosten 1. Jahr'!D15<=Hilfstabelle!$L$2=AND('Personalkosten 1. Jahr'!E15>=Hilfstabelle!$L$2),'Personalkosten 1. Jahr'!M15/('Personalkosten 1. Jahr'!E15-'Personalkosten 1. Jahr'!D15+1),0),IF('Personalkosten 1. Jahr'!C15>0,'Personalkosten 1. Jahr'!M15/12,0)) -> 0 | M6: =IF('Personalkosten 1. Jahr'!D15>0,IF('Personalkosten 1. Jahr'!D15<=Hilfstabelle!$M$2=AND('Personalkosten 1. Jahr'!E15>=Hilfstabelle!$M$2),'Personalkosten 1. Jahr'!M15/('Personalkosten 1. Jahr'!E15-'Personalkosten 1. Jahr'!D15+1),0),IF('Personalkosten 1. Jahr'!C15>0,'Personalkosten 1. Jahr'!M15/12,0)) -> 0 | N6: 0
A7: 5 | B7: =IF('Personalkosten 1. Jahr'!D16>0,IF('Personalkosten 1. Jahr'!D16<=Hilfstabelle!$B$2=AND('Personalkosten 1. Jahr'!E16>=Hilfstabelle!$B$2),'Personalkosten 1. Jahr'!M16/('Personalkosten 1. Jahr'!E16-'Personalkosten 1. Jahr'!D16+1),0),IF('Personalkosten 1. Jahr'!C16>0,'Personalkosten 1. Jahr'!M16/12,0)) -> 0 | C7: =IF('Personalkosten 1. Jahr'!D16>0,IF('Personalkosten 1. Jahr'!D16<=Hilfstabelle!$C$2=AND('Personalkosten 1. Jahr'!E16>=Hilfstabelle!$C$2),'Personalkosten 1. Jahr'!M16/('Personalkosten 1. Jahr'!E16-'Personalkosten 1. Jahr'!D16+1),0),IF('Personalkosten 1. Jahr'!C16>0,'Personalkosten 1. Jahr'!M16/12,0)) -> 0 | D7: =IF('Personalkosten 1. Jahr'!D16>0,IF('Personalkosten 1. Jahr'!D16<=Hilfstabelle!$D$2=AND('Personalkosten 1. Jahr'!E16>=Hilfstabelle!$D$2),'Personalkosten 1. Jahr'!M16/('Personalkosten 1. Jahr'!E16-'Personalkosten 1. Jahr'!D16+1),0),IF('Personalkosten 1. Jahr'!C16>0,'Personalkosten 1. Jahr'!M16/12,0)) -> 0 | E7: =IF('Personalkosten 1. Jahr'!D16>0,IF('Personalkosten 1. Jahr'!D16<=Hilfstabelle!$E$2=AND('Personalkosten 1. Jahr'!E16>=Hilfstabelle!$E$2),'Personalkosten 1. Jahr'!M16/('Personalkosten 1. Jahr'!E16-'Personalkosten 1. Jahr'!D16+1),0),IF('Personalkosten 1. Jahr'!C16>0,'Personalkosten 1. Jahr'!M16/12,0)) -> 0 | F7: =IF('Personalkosten 1. Jahr'!D16>0,IF('Personalkosten 1. Jahr'!D16<=Hilfstabelle!$F$2=AND('Personalkosten 1. Jahr'!E16>=Hilfstabelle!$F$2),'Personalkosten 1. Jahr'!M16/('Personalkosten 1. Jahr'!E16-'Personalkosten 1. Jahr'!D16+1),0),IF('Personalkosten 1. Jahr'!C16>0,'Personalkosten 1. Jahr'!M16/12,0)) -> 0 | G7: =IF('Personalkosten 1. Jahr'!D16>0,IF('Personalkosten 1. Jahr'!D16<=Hilfstabelle!$G$2=AND('Personalkosten 1. Jahr'!E16>=Hilfstabelle!$G$2),'Personalkosten 1. Jahr'!M16/('Personalkosten 1. Jahr'!E16-'Personalkosten 1. Jahr'!D16+1),0),IF('Personalkosten 1. Jahr'!C16>0,'Personalkosten 1. Jahr'!M16/12,0)) -> 0 | H7: =IF('Personalkosten 1. Jahr'!D16>0,IF('Personalkosten 1. Jahr'!D16<=Hilfstabelle!$H$2=AND('Personalkosten 1. Jahr'!E16>=Hilfstabelle!$H$2),'Personalkosten 1. Jahr'!M16/('Personalkosten 1. Jahr'!E16-'Personalkosten 1. Jahr'!D16+1),0),IF('Personalkosten 1. Jahr'!C16>0,'Personalkosten 1. Jahr'!M16/12,0)) -> 0 | I7: =IF('Personalkosten 1. Jahr'!D16>0,IF('Personalkosten 1. Jahr'!D16<=Hilfstabelle!$I$2=AND('Personalkosten 1. Jahr'!E16>=Hilfstabelle!$I$2),'Personalkosten 1. Jahr'!M16/('Personalkosten 1. Jahr'!E16-'Personalkosten 1. Jahr'!D16+1),0),IF('Personalkosten 1. Jahr'!C16>0,'Personalkosten 1. Jahr'!M16/12,0)) -> 0 | J7: =IF('Personalkosten 1. Jahr'!D16>0,IF('Personalkosten 1. Jahr'!D16<=Hilfstabelle!$J$2=AND('Personalkosten 1. Jahr'!E16>=Hilfstabelle!$J$2),'Personalkosten 1. Jahr'!M16/('Personalkosten 1. Jahr'!E16-'Personalkosten 1. Jahr'!D16+1),0),IF('Personalkosten 1. Jahr'!C16>0,'Personalkosten 1. Jahr'!M16/12,0)) -> 0 | K7: =IF('Personalkosten 1. Jahr'!D16>0,IF('Personalkosten 1. Jahr'!D16<=Hilfstabelle!$K$2=AND('Personalkosten 1. Jahr'!E16>=Hilfstabelle!$K$2),'Personalkosten 1. Jahr'!M16/('Personalkosten 1. Jahr'!E16-'Personalkosten 1. Jahr'!D16+1),0),IF('Personalkosten 1. Jahr'!C16>0,'Personalkosten 1. Jahr'!M16/12,0)) -> 0 | L7: =IF('Personalkosten 1. Jahr'!D16>0,IF('Personalkosten 1. Jahr'!D16<=Hilfstabelle!$L$2=AND('Personalkosten 1. Jahr'!E16>=Hilfstabelle!$L$2),'Personalkosten 1. Jahr'!M16/('Personalkosten 1. Jahr'!E16-'Personalkosten 1. Jahr'!D16+1),0),IF('Personalkosten 1. Jahr'!C16>0,'Personalkosten 1. Jahr'!M16/12,0)) -> 0 | M7: =IF('Personalkosten 1. Jahr'!D16>0,IF('Personalkosten 1. Jahr'!D16<=Hilfstabelle!$M$2=AND('Personalkosten 1. Jahr'!E16>=Hilfstabelle!$M$2),'Personalkosten 1. Jahr'!M16/('Personalkosten 1. Jahr'!E16-'Personalkosten 1. Jahr'!D16+1),0),IF('Personalkosten 1. Jahr'!C16>0,'Personalkosten 1. Jahr'!M16/12,0)) -> 0 | N7: 0
A8: 6 | B8: =IF('Personalkosten 1. Jahr'!D17>0,IF('Personalkosten 1. Jahr'!D17<=Hilfstabelle!$B$2=AND('Personalkosten 1. Jahr'!E17>=Hilfstabelle!$B$2),'Personalkosten 1. Jahr'!M17/('Personalkosten 1. Jahr'!E17-'Personalkosten 1. Jahr'!D17+1),0),IF('Personalkosten 1. Jahr'!C17>0,'Personalkosten 1. Jahr'!M17/12,0)) -> 0 | C8: =IF('Personalkosten 1. Jahr'!D17>0,IF('Personalkosten 1. Jahr'!D17<=Hilfstabelle!$C$2=AND('Personalkosten 1. Jahr'!E17>=Hilfstabelle!$C$2),'Personalkosten 1. Jahr'!M17/('Personalkosten 1. Jahr'!E17-'Personalkosten 1. Jahr'!D17+1),0),IF('Personalkosten 1. Jahr'!C17>0,'Personalkosten 1. Jahr'!M17/12,0)) -> 0 | D8: =IF('Personalkosten 1. Jahr'!D17>0,IF('Personalkosten 1. Jahr'!D17<=Hilfstabelle!$D$2=AND('Personalkosten 1. Jahr'!E17>=Hilfstabelle!$D$2),'Personalkosten 1. Jahr'!M17/('Personalkosten 1. Jahr'!E17-'Personalkosten 1. Jahr'!D17+1),0),IF('Personalkosten 1. Jahr'!C17>0,'Personalkosten 1. Jahr'!M17/12,0)) -> 0 | E8: =IF('Personalkosten 1. Jahr'!D17>0,IF('Personalkosten 1. Jahr'!D17<=Hilfstabelle!$E$2=AND('Personalkosten 1. Jahr'!E17>=Hilfstabelle!$E$2),'Personalkosten 1. Jahr'!M17/('Personalkosten 1. Jahr'!E17-'Personalkosten 1. Jahr'!D17+1),0),IF('Personalkosten 1. Jahr'!C17>0,'Personalkosten 1. Jahr'!M17/12,0)) -> 0 | F8: =IF('Personalkosten 1. Jahr'!D17>0,IF('Personalkosten 1. Jahr'!D17<=Hilfstabelle!$F$2=AND('Personalkosten 1. Jahr'!E17>=Hilfstabelle!$F$2),'Personalkosten 1. Jahr'!M17/('Personalkosten 1. Jahr'!E17-'Personalkosten 1. Jahr'!D17+1),0),IF('Personalkosten 1. Jahr'!C17>0,'Personalkosten 1. Jahr'!M17/12,0)) -> 0 | G8: =IF('Personalkosten 1. Jahr'!D17>0,IF('Personalkosten 1. Jahr'!D17<=Hilfstabelle!$G$2=AND('Personalkosten 1. Jahr'!E17>=Hilfstabelle!$G$2),'Personalkosten 1. Jahr'!M17/('Personalkosten 1. Jahr'!E17-'Personalkosten 1. Jahr'!D17+1),0),IF('Personalkosten 1. Jahr'!C17>0,'Personalkosten 1. Jahr'!M17/12,0)) -> 0 | H8: =IF('Personalkosten 1. Jahr'!D17>0,IF('Personalkosten 1. Jahr'!D17<=Hilfstabelle!$H$2=AND('Personalkosten 1. Jahr'!E17>=Hilfstabelle!$H$2),'Personalkosten 1. Jahr'!M17/('Personalkosten 1. Jahr'!E17-'Personalkosten 1. Jahr'!D17+1),0),IF('Personalkosten 1. Jahr'!C17>0,'Personalkosten 1. Jahr'!M17/12,0)) -> 0 | I8: =IF('Personalkosten 1. Jahr'!D17>0,IF('Personalkosten 1. Jahr'!D17<=Hilfstabelle!$I$2=AND('Personalkosten 1. Jahr'!E17>=Hilfstabelle!$I$2),'Personalkosten 1. Jahr'!M17/('Personalkosten 1. Jahr'!E17-'Personalkosten 1. Jahr'!D17+1),0),IF('Personalkosten 1. Jahr'!C17>0,'Personalkosten 1. Jahr'!M17/12,0)) -> 0 | J8: =IF('Personalkosten 1. Jahr'!D17>0,IF('Personalkosten 1. Jahr'!D17<=Hilfstabelle!$J$2=AND('Personalkosten 1. Jahr'!E17>=Hilfstabelle!$J$2),'Personalkosten 1. Jahr'!M17/('Personalkosten 1. Jahr'!E17-'Personalkosten 1. Jahr'!D17+1),0),IF('Personalkosten 1. Jahr'!C17>0,'Personalkosten 1. Jahr'!M17/12,0)) -> 0 | K8: =IF('Personalkosten 1. Jahr'!D17>0,IF('Personalkosten 1. Jahr'!D17<=Hilfstabelle!$K$2=AND('Personalkosten 1. Jahr'!E17>=Hilfstabelle!$K$2),'Personalkosten 1. Jahr'!M17/('Personalkosten 1. Jahr'!E17-'Personalkosten 1. Jahr'!D17+1),0),IF('Personalkosten 1. Jahr'!C17>0,'Personalkosten 1. Jahr'!M17/12,0)) -> 0 | L8: =IF('Personalkosten 1. Jahr'!D17>0,IF('Personalkosten 1. Jahr'!D17<=Hilfstabelle!$L$2=AND('Personalkosten 1. Jahr'!E17>=Hilfstabelle!$L$2),'Personalkosten 1. Jahr'!M17/('Personalkosten 1. Jahr'!E17-'Personalkosten 1. Jahr'!D17+1),0),IF('Personalkosten 1. Jahr'!C17>0,'Personalkosten 1. Jahr'!M17/12,0)) -> 0 | M8: =IF('Personalkosten 1. Jahr'!D17>0,IF('Personalkosten 1. Jahr'!D17<=Hilfstabelle!$M$2=AND('Personalkosten 1. Jahr'!E17>=Hilfstabelle!$M$2),'Personalkosten 1. Jahr'!M17/('Personalkosten 1. Jahr'!E17-'Personalkosten 1. Jahr'!D17+1),0),IF('Personalkosten 1. Jahr'!C17>0,'Personalkosten 1. Jahr'!M17/12,0)) -> 0 | N8: 0
A9: 7 | B9: =IF('Personalkosten 1. Jahr'!D18>0,IF('Personalkosten 1. Jahr'!D18<=Hilfstabelle!$B$2=AND('Personalkosten 1. Jahr'!E18>=Hilfstabelle!$B$2),'Personalkosten 1. Jahr'!M18/('Personalkosten 1. Jahr'!E18-'Personalkosten 1. Jahr'!D18+1),0),IF('Personalkosten 1. Jahr'!C18>0,'Personalkosten 1. Jahr'!M18/12,0)) -> 0 | C9: =IF('Personalkosten 1. Jahr'!D18>0,IF('Personalkosten 1. Jahr'!D18<=Hilfstabelle!$C$2=AND('Personalkosten 1. Jahr'!E18>=Hilfstabelle!$C$2),'Personalkosten 1. Jahr'!M18/('Personalkosten 1. Jahr'!E18-'Personalkosten 1. Jahr'!D18+1),0),IF('Personalkosten 1. Jahr'!C18>0,'Personalkosten 1. Jahr'!M18/12,0)) -> 0 | D9: =IF('Personalkosten 1. Jahr'!D18>0,IF('Personalkosten 1. Jahr'!D18<=Hilfstabelle!$D$2=AND('Personalkosten 1. Jahr'!E18>=Hilfstabelle!$D$2),'Personalkosten 1. Jahr'!M18/('Personalkosten 1. Jahr'!E18-'Personalkosten 1. Jahr'!D18+1),0),IF('Personalkosten 1. Jahr'!C18>0,'Personalkosten 1. Jahr'!M18/12,0)) -> 0 | E9: =IF('Personalkosten 1. Jahr'!D18>0,IF('Personalkosten 1. Jahr'!D18<=Hilfstabelle!$E$2=AND('Personalkosten 1. Jahr'!E18>=Hilfstabelle!$E$2),'Personalkosten 1. Jahr'!M18/('Personalkosten 1. Jahr'!E18-'Personalkosten 1. Jahr'!D18+1),0),IF('Personalkosten 1. Jahr'!C18>0,'Personalkosten 1. Jahr'!M18/12,0)) -> 0 | F9: =IF('Personalkosten 1. Jahr'!D18>0,IF('Personalkosten 1. Jahr'!D18<=Hilfstabelle!$F$2=AND('Personalkosten 1. Jahr'!E18>=Hilfstabelle!$F$2),'Personalkosten 1. Jahr'!M18/('Personalkosten 1. Jahr'!E18-'Personalkosten 1. Jahr'!D18+1),0),IF('Personalkosten 1. Jahr'!C18>0,'Personalkosten 1. Jahr'!M18/12,0)) -> 0 | G9: =IF('Personalkosten 1. Jahr'!D18>0,IF('Personalkosten 1. Jahr'!D18<=Hilfstabelle!$G$2=AND('Personalkosten 1. Jahr'!E18>=Hilfstabelle!$G$2),'Personalkosten 1. Jahr'!M18/('Personalkosten 1. Jahr'!E18-'Personalkosten 1. Jahr'!D18+1),0),IF('Personalkosten 1. Jahr'!C18>0,'Personalkosten 1. Jahr'!M18/12,0)) -> 0 | H9: =IF('Personalkosten 1. Jahr'!D18>0,IF('Personalkosten 1. Jahr'!D18<=Hilfstabelle!$H$2=AND('Personalkosten 1. Jahr'!E18>=Hilfstabelle!$H$2),'Personalkosten 1. Jahr'!M18/('Personalkosten 1. Jahr'!E18-'Personalkosten 1. Jahr'!D18+1),0),IF('Personalkosten 1. Jahr'!C18>0,'Personalkosten 1. Jahr'!M18/12,0)) -> 0 | I9: =IF('Personalkosten 1. Jahr'!D18>0,IF('Personalkosten 1. Jahr'!D18<=Hilfstabelle!$I$2=AND('Personalkosten 1. Jahr'!E18>=Hilfstabelle!$I$2),'Personalkosten 1. Jahr'!M18/('Personalkosten 1. Jahr'!E18-'Personalkosten 1. Jahr'!D18+1),0),IF('Personalkosten 1. Jahr'!C18>0,'Personalkosten 1. Jahr'!M18/12,0)) -> 0 | J9: =IF('Personalkosten 1. Jahr'!D18>0,IF('Personalkosten 1. Jahr'!D18<=Hilfstabelle!$J$2=AND('Personalkosten 1. Jahr'!E18>=Hilfstabelle!$J$2),'Personalkosten 1. Jahr'!M18/('Personalkosten 1. Jahr'!E18-'Personalkosten 1. Jahr'!D18+1),0),IF('Personalkosten 1. Jahr'!C18>0,'Personalkosten 1. Jahr'!M18/12,0)) -> 0 | K9: =IF('Personalkosten 1. Jahr'!D18>0,IF('Personalkosten 1. Jahr'!D18<=Hilfstabelle!$K$2=AND('Personalkosten 1. Jahr'!E18>=Hilfstabelle!$K$2),'Personalkosten 1. Jahr'!M18/('Personalkosten 1. Jahr'!E18-'Personalkosten 1. Jahr'!D18+1),0),IF('Personalkosten 1. Jahr'!C18>0,'Personalkosten 1. Jahr'!M18/12,0)) -> 0 | L9: =IF('Personalkosten 1. Jahr'!D18>0,IF('Personalkosten 1. Jahr'!D18<=Hilfstabelle!$L$2=AND('Personalkosten 1. Jahr'!E18>=Hilfstabelle!$L$2),'Personalkosten 1. Jahr'!M18/('Personalkosten 1. Jahr'!E18-'Personalkosten 1. Jahr'!D18+1),0),IF('Personalkosten 1. Jahr'!C18>0,'Personalkosten 1. Jahr'!M18/12,0)) -> 0 | M9: =IF('Personalkosten 1. Jahr'!D18>0,IF('Personalkosten 1. Jahr'!D18<=Hilfstabelle!$M$2=AND('Personalkosten 1. Jahr'!E18>=Hilfstabelle!$M$2),'Personalkosten 1. Jahr'!M18/('Personalkosten 1. Jahr'!E18-'Personalkosten 1. Jahr'!D18+1),0),IF('Personalkosten 1. Jahr'!C18>0,'Personalkosten 1. Jahr'!M18/12,0)) -> 0 | N9: 0
A10: 8 | B10: =IF('Personalkosten 1. Jahr'!D19>0,IF('Personalkosten 1. Jahr'!D19<=Hilfstabelle!$B$2=AND('Personalkosten 1. Jahr'!E19>=Hilfstabelle!$B$2),'Personalkosten 1. Jahr'!M19/('Personalkosten 1. Jahr'!E19-'Personalkosten 1. Jahr'!D19+1),0),IF('Personalkosten 1. Jahr'!C19>0,'Personalkosten 1. Jahr'!M19/12,0)) -> 0 | C10: =IF('Personalkosten 1. Jahr'!D19>0,IF('Personalkosten 1. Jahr'!D19<=Hilfstabelle!$C$2=AND('Personalkosten 1. Jahr'!E19>=Hilfstabelle!$C$2),'Personalkosten 1. Jahr'!M19/('Personalkosten 1. Jahr'!E19-'Personalkosten 1. Jahr'!D19+1),0),IF('Personalkosten 1. Jahr'!C19>0,'Personalkosten 1. Jahr'!M19/12,0)) -> 0 | D10: =IF('Personalkosten 1. Jahr'!D19>0,IF('Personalkosten 1. Jahr'!D19<=Hilfstabelle!$D$2=AND('Personalkosten 1. Jahr'!E19>=Hilfstabelle!$D$2),'Personalkosten 1. Jahr'!M19/('Personalkosten 1. Jahr'!E19-'Personalkosten 1. Jahr'!D19+1),0),IF('Personalkosten 1. Jahr'!C19>0,'Personalkosten 1. Jahr'!M19/12,0)) -> 0 | E10: =IF('Personalkosten 1. Jahr'!D19>0,IF('Personalkosten 1. Jahr'!D19<=Hilfstabelle!$E$2=AND('Personalkosten 1. Jahr'!E19>=Hilfstabelle!$E$2),'Personalkosten 1. Jahr'!M19/('Personalkosten 1. Jahr'!E19-'Personalkosten 1. Jahr'!D19+1),0),IF('Personalkosten 1. Jahr'!C19>0,'Personalkosten 1. Jahr'!M19/12,0)) -> 0 | F10: =IF('Personalkosten 1. Jahr'!D19>0,IF('Personalkosten 1. Jahr'!D19<=Hilfstabelle!$F$2=AND('Personalkosten 1. Jahr'!E19>=Hilfstabelle!$F$2),'Personalkosten 1. Jahr'!M19/('Personalkosten 1. Jahr'!E19-'Personalkosten 1. Jahr'!D19+1),0),IF('Personalkosten 1. Jahr'!C19>0,'Personalkosten 1. Jahr'!M19/12,0)) -> 0 | G10: =IF('Personalkosten 1. Jahr'!D19>0,IF('Personalkosten 1. Jahr'!D19<=Hilfstabelle!$G$2=AND('Personalkosten 1. Jahr'!E19>=Hilfstabelle!$G$2),'Personalkosten 1. Jahr'!M19/('Personalkosten 1. Jahr'!E19-'Personalkosten 1. Jahr'!D19+1),0),IF('Personalkosten 1. Jahr'!C19>0,'Personalkosten 1. Jahr'!M19/12,0)) -> 0 | H10: =IF('Personalkosten 1. Jahr'!D19>0,IF('Personalkosten 1. Jahr'!D19<=Hilfstabelle!$H$2=AND('Personalkosten 1. Jahr'!E19>=Hilfstabelle!$H$2),'Personalkosten 1. Jahr'!M19/('Personalkosten 1. Jahr'!E19-'Personalkosten 1. Jahr'!D19+1),0),IF('Personalkosten 1. Jahr'!C19>0,'Personalkosten 1. Jahr'!M19/12,0)) -> 0 | I10: =IF('Personalkosten 1. Jahr'!D19>0,IF('Personalkosten 1. Jahr'!D19<=Hilfstabelle!$I$2=AND('Personalkosten 1. Jahr'!E19>=Hilfstabelle!$I$2),'Personalkosten 1. Jahr'!M19/('Personalkosten 1. Jahr'!E19-'Personalkosten 1. Jahr'!D19+1),0),IF('Personalkosten 1. Jahr'!C19>0,'Personalkosten 1. Jahr'!M19/12,0)) -> 0 | J10: =IF('Personalkosten 1. Jahr'!D19>0,IF('Personalkosten 1. Jahr'!D19<=Hilfstabelle!$J$2=AND('Personalkosten 1. Jahr'!E19>=Hilfstabelle!$J$2),'Personalkosten 1. Jahr'!M19/('Personalkosten 1. Jahr'!E19-'Personalkosten 1. Jahr'!D19+1),0),IF('Personalkosten 1. Jahr'!C19>0,'Personalkosten 1. Jahr'!M19/12,0)) -> 0 | K10: =IF('Personalkosten 1. Jahr'!D19>0,IF('Personalkosten 1. Jahr'!D19<=Hilfstabelle!$K$2=AND('Personalkosten 1. Jahr'!E19>=Hilfstabelle!$K$2),'Personalkosten 1. Jahr'!M19/('Personalkosten 1. Jahr'!E19-'Personalkosten 1. Jahr'!D19+1),0),IF('Personalkosten 1. Jahr'!C19>0,'Personalkosten 1. Jahr'!M19/12,0)) -> 0 | L10: =IF('Personalkosten 1. Jahr'!D19>0,IF('Personalkosten 1. Jahr'!D19<=Hilfstabelle!$L$2=AND('Personalkosten 1. Jahr'!E19>=Hilfstabelle!$L$2),'Personalkosten 1. Jahr'!M19/('Personalkosten 1. Jahr'!E19-'Personalkosten 1. Jahr'!D19+1),0),IF('Personalkosten 1. Jahr'!C19>0,'Personalkosten 1. Jahr'!M19/12,0)) -> 0 | M10: =IF('Personalkosten 1. Jahr'!D19>0,IF('Personalkosten 1. Jahr'!D19<=Hilfstabelle!$M$2=AND('Personalkosten 1. Jahr'!E19>=Hilfstabelle!$M$2),'Personalkosten 1. Jahr'!M19/('Personalkosten 1. Jahr'!E19-'Personalkosten 1. Jahr'!D19+1),0),IF('Personalkosten 1. Jahr'!C19>0,'Personalkosten 1. Jahr'!M19/12,0)) -> 0 | N10: 0
A11: 9 | B11: =IF('Personalkosten 1. Jahr'!D20>0,IF('Personalkosten 1. Jahr'!D20<=Hilfstabelle!$B$2=AND('Personalkosten 1. Jahr'!E20>=Hilfstabelle!$B$2),'Personalkosten 1. Jahr'!M20/('Personalkosten 1. Jahr'!E20-'Personalkosten 1. Jahr'!D20+1),0),IF('Personalkosten 1. Jahr'!C20>0,'Personalkosten 1. Jahr'!M20/12,0)) -> 0 | C11: =IF('Personalkosten 1. Jahr'!D20>0,IF('Personalkosten 1. Jahr'!D20<=Hilfstabelle!$C$2=AND('Personalkosten 1. Jahr'!E20>=Hilfstabelle!$C$2),'Personalkosten 1. Jahr'!M20/('Personalkosten 1. Jahr'!E20-'Personalkosten 1. Jahr'!D20+1),0),IF('Personalkosten 1. Jahr'!C20>0,'Personalkosten 1. Jahr'!M20/12,0)) -> 0 | D11: =$C11/12 -> 0 | E11: =$C11/12 -> 0 | F11: 0 | G11: 0 | H11: 0 | I11: 0 | J11: 0 | K11: 0 | L11: 0 | M11: 0 | N11: 0
A12: 10 | B12: =IF('Personalkosten 1. Jahr'!D21>0,IF('Personalkosten 1. Jahr'!D21<=Hilfstabelle!$B$2=AND('Personalkosten 1. Jahr'!E21>=Hilfstabelle!$B$2),'Personalkosten 1. Jahr'!M21/('Personalkosten 1. Jahr'!E21-'Personalkosten 1. Jahr'!D21+1),0),IF('Personalkosten 1. Jahr'!C21>0,'Personalkosten 1. Jahr'!M21/12,0)) -> 0 | C12: =IF('Personalkosten 1. Jahr'!D21>0,IF('Personalkosten 1. Jahr'!D21<=Hilfstabelle!$C$2=AND('Personalkosten 1. Jahr'!E21>=Hilfstabelle!$C$2),'Personalkosten 1. Jahr'!M21/('Personalkosten 1. Jahr'!E21-'Personalkosten 1. Jahr'!D21+1),0),IF('Personalkosten 1. Jahr'!C21>0,'Personalkosten 1. Jahr'!M21/12,0)) -> 0 | D12: =IF('Personalkosten 1. Jahr'!D21>0,IF('Personalkosten 1. Jahr'!D21<=Hilfstabelle!$D$2=AND('Personalkosten 1. Jahr'!E21>=Hilfstabelle!$D$2),'Personalkosten 1. Jahr'!M21/('Personalkosten 1. Jahr'!E21-'Personalkosten 1. Jahr'!D21+1),0),IF('Personalkosten 1. Jahr'!C21>0,'Personalkosten 1. Jahr'!M21/12,0)) -> 0 | E12: =IF('Personalkosten 1. Jahr'!D21>0,IF('Personalkosten 1. Jahr'!D21<=Hilfstabelle!$E$2=AND('Personalkosten 1. Jahr'!E21>=Hilfstabelle!$E$2),'Personalkosten 1. Jahr'!M21/('Personalkosten 1. Jahr'!E21-'Personalkosten 1. Jahr'!D21+1),0),IF('Personalkosten 1. Jahr'!C21>0,'Personalkosten 1. Jahr'!M21/12,0)) -> 0 | F12: =IF('Personalkosten 1. Jahr'!D21>0,IF('Personalkosten 1. Jahr'!D21<=Hilfstabelle!$F$2=AND('Personalkosten 1. Jahr'!E21>=Hilfstabelle!$F$2),'Personalkosten 1. Jahr'!M21/('Personalkosten 1. Jahr'!E21-'Personalkosten 1. Jahr'!D21+1),0),IF('Personalkosten 1. Jahr'!C21>0,'Personalkosten 1. Jahr'!M21/12,0)) -> 0 | G12: =IF('Personalkosten 1. Jahr'!D21>0,IF('Personalkosten 1. Jahr'!D21<=Hilfstabelle!$G$2=AND('Personalkosten 1. Jahr'!E21>=Hilfstabelle!$G$2),'Personalkosten 1. Jahr'!M21/('Personalkosten 1. Jahr'!E21-'Personalkosten 1. Jahr'!D21+1),0),IF('Personalkosten 1. Jahr'!C21>0,'Personalkosten 1. Jahr'!M21/12,0)) -> 0 | H12: =IF('Personalkosten 1. Jahr'!D21>0,IF('Personalkosten 1. Jahr'!D21<=Hilfstabelle!$H$2=AND('Personalkosten 1. Jahr'!E21>=Hilfstabelle!$H$2),'Personalkosten 1. Jahr'!M21/('Personalkosten 1. Jahr'!E21-'Personalkosten 1. Jahr'!D21+1),0),IF('Personalkosten 1. Jahr'!C21>0,'Personalkosten 1. Jahr'!M21/12,0)) -> 0 | I12: =IF('Personalkosten 1. Jahr'!D21>0,IF('Personalkosten 1. Jahr'!D21<=Hilfstabelle!$I$2=AND('Personalkosten 1. Jahr'!E21>=Hilfstabelle!$I$2),'Personalkosten 1. Jahr'!M21/('Personalkosten 1. Jahr'!E21-'Personalkosten 1. Jahr'!D21+1),0),IF('Personalkosten 1. Jahr'!C21>0,'Personalkosten 1. Jahr'!M21/12,0)) -> 0 | J12: =IF('Personalkosten 1. Jahr'!D21>0,IF('Personalkosten 1. Jahr'!D21<=Hilfstabelle!$J$2=AND('Personalkosten 1. Jahr'!E21>=Hilfstabelle!$J$2),'Personalkosten 1. Jahr'!M21/('Personalkosten 1. Jahr'!E21-'Personalkosten 1. Jahr'!D21+1),0),IF('Personalkosten 1. Jahr'!C21>0,'Personalkosten 1. Jahr'!M21/12,0)) -> 0 | K12: =IF('Personalkosten 1. Jahr'!D21>0,IF('Personalkosten 1. Jahr'!D21<=Hilfstabelle!$K$2=AND('Personalkosten 1. Jahr'!E21>=Hilfstabelle!$K$2),'Personalkosten 1. Jahr'!M21/('Personalkosten 1. Jahr'!E21-'Personalkosten 1. Jahr'!D21+1),0),IF('Personalkosten 1. Jahr'!C21>0,'Personalkosten 1. Jahr'!M21/12,0)) -> 0 | L12: =IF('Personalkosten 1. Jahr'!D21>0,IF('Personalkosten 1. Jahr'!D21<=Hilfstabelle!$L$2=AND('Personalkosten 1. Jahr'!E21>=Hilfstabelle!$L$2),'Personalkosten 1. Jahr'!M21/('Personalkosten 1. Jahr'!E21-'Personalkosten 1. Jahr'!D21+1),0),IF('Personalkosten 1. Jahr'!C21>0,'Personalkosten 1. Jahr'!M21/12,0)) -> 0 | M12: =IF('Personalkosten 1. Jahr'!D21>0,IF('Personalkosten 1. Jahr'!D21<=Hilfstabelle!$M$2=AND('Personalkosten 1. Jahr'!E21>=Hilfstabelle!$M$2),'Personalkosten 1. Jahr'!M21/('Personalkosten 1. Jahr'!E21-'Personalkosten 1. Jahr'!D21+1),0),IF('Personalkosten 1. Jahr'!C21>0,'Personalkosten 1. Jahr'!M21/12,0)) -> 0 | N12: 0
A13: 11 | B13: =IF('Personalkosten 1. Jahr'!D22>0,IF('Personalkosten 1. Jahr'!D22<=Hilfstabelle!$B$2=AND('Personalkosten 1. Jahr'!E22>=Hilfstabelle!$B$2),'Personalkosten 1. Jahr'!M22/('Personalkosten 1. Jahr'!E22-'Personalkosten 1. Jahr'!D22+1),0),IF('Personalkosten 1. Jahr'!C22>0,'Personalkosten 1. Jahr'!M22/12,0)) -> 0 | C13: =IF('Personalkosten 1. Jahr'!D22>0,IF('Personalkosten 1. Jahr'!D22<=Hilfstabelle!$C$2=AND('Personalkosten 1. Jahr'!E22>=Hilfstabelle!$C$2),'Personalkosten 1. Jahr'!M22/('Personalkosten 1. Jahr'!E22-'Personalkosten 1. Jahr'!D22+1),0),IF('Personalkosten 1. Jahr'!C22>0,'Personalkosten 1. Jahr'!M22/12,0)) -> 0 | D13: =IF('Personalkosten 1. Jahr'!D22>0,IF('Personalkosten 1. Jahr'!D22<=Hilfstabelle!$D$2=AND('Personalkosten 1. Jahr'!E22>=Hilfstabelle!$D$2),'Personalkosten 1. Jahr'!M22/('Personalkosten 1. Jahr'!E22-'Personalkosten 1. Jahr'!D22+1),0),IF('Personalkosten 1. Jahr'!C22>0,'Personalkosten 1. Jahr'!M22/12,0)) -> 0 | E13: =IF('Personalkosten 1. Jahr'!D22>0,IF('Personalkosten 1. Jahr'!D22<=Hilfstabelle!$E$2=AND('Personalkosten 1. Jahr'!E22>=Hilfstabelle!$E$2),'Personalkosten 1. Jahr'!M22/('Personalkosten 1. Jahr'!E22-'Personalkosten 1. Jahr'!D22+1),0),IF('Personalkosten 1. Jahr'!C22>0,'Personalkosten 1. Jahr'!M22/12,0)) -> 0 | F13: =IF('Personalkosten 1. Jahr'!D22>0,IF('Personalkosten 1. Jahr'!D22<=Hilfstabelle!$F$2=AND('Personalkosten 1. Jahr'!E22>=Hilfstabelle!$F$2),'Personalkosten 1. Jahr'!M22/('Personalkosten 1. Jahr'!E22-'Personalkosten 1. Jahr'!D22+1),0),IF('Personalkosten 1. Jahr'!C22>0,'Personalkosten 1. Jahr'!M22/12,0)) -> 0 | G13: =IF('Personalkosten 1. Jahr'!D22>0,IF('Personalkosten 1. Jahr'!D22<=Hilfstabelle!$G$2=AND('Personalkosten 1. Jahr'!E22>=Hilfstabelle!$G$2),'Personalkosten 1. Jahr'!M22/('Personalkosten 1. Jahr'!E22-'Personalkosten 1. Jahr'!D22+1),0),IF('Personalkosten 1. Jahr'!C22>0,'Personalkosten 1. Jahr'!M22/12,0)) -> 0 | H13: =IF('Personalkosten 1. Jahr'!D22>0,IF('Personalkosten 1. Jahr'!D22<=Hilfstabelle!$H$2=AND('Personalkosten 1. Jahr'!E22>=Hilfstabelle!$H$2),'Personalkosten 1. Jahr'!M22/('Personalkosten 1. Jahr'!E22-'Personalkosten 1. Jahr'!D22+1),0),IF('Personalkosten 1. Jahr'!C22>0,'Personalkosten 1. Jahr'!M22/12,0)) -> 0 | I13: =IF('Personalkosten 1. Jahr'!D22>0,IF('Personalkosten 1. Jahr'!D22<=Hilfstabelle!$I$2=AND('Personalkosten 1. Jahr'!E22>=Hilfstabelle!$I$2),'Personalkosten 1. Jahr'!M22/('Personalkosten 1. Jahr'!E22-'Personalkosten 1. Jahr'!D22+1),0),IF('Personalkosten 1. Jahr'!C22>0,'Personalkosten 1. Jahr'!M22/12,0)) -> 0 | J13: =IF('Personalkosten 1. Jahr'!D22>0,IF('Personalkosten 1. Jahr'!D22<=Hilfstabelle!$J$2=AND('Personalkosten 1. Jahr'!E22>=Hilfstabelle!$J$2),'Personalkosten 1. Jahr'!M22/('Personalkosten 1. Jahr'!E22-'Personalkosten 1. Jahr'!D22+1),0),IF('Personalkosten 1. Jahr'!C22>0,'Personalkosten 1. Jahr'!M22/12,0)) -> 0 | K13: =IF('Personalkosten 1. Jahr'!D22>0,IF('Personalkosten 1. Jahr'!D22<=Hilfstabelle!$K$2=AND('Personalkosten 1. Jahr'!E22>=Hilfstabelle!$K$2),'Personalkosten 1. Jahr'!M22/('Personalkosten 1. Jahr'!E22-'Personalkosten 1. Jahr'!D22+1),0),IF('Personalkosten 1. Jahr'!C22>0,'Personalkosten 1. Jahr'!M22/12,0)) -> 0 | L13: =IF('Personalkosten 1. Jahr'!D22>0,IF('Personalkosten 1. Jahr'!D22<=Hilfstabelle!$L$2=AND('Personalkosten 1. Jahr'!E22>=Hilfstabelle!$L$2),'Personalkosten 1. Jahr'!M22/('Personalkosten 1. Jahr'!E22-'Personalkosten 1. Jahr'!D22+1),0),IF('Personalkosten 1. Jahr'!C22>0,'Personalkosten 1. Jahr'!M22/12,0)) -> 0 | M13: =IF('Personalkosten 1. Jahr'!D22>0,IF('Personalkosten 1. Jahr'!D22<=Hilfstabelle!$M$2=AND('Personalkosten 1. Jahr'!E22>=Hilfstabelle!$M$2),'Personalkosten 1. Jahr'!M22/('Personalkosten 1. Jahr'!E22-'Personalkosten 1. Jahr'!D22+1),0),IF('Personalkosten 1. Jahr'!C22>0,'Personalkosten 1. Jahr'!M22/12,0)) -> 0 | N13: 0
A14: 12 | B14: =IF('Personalkosten 1. Jahr'!D23>0,IF('Personalkosten 1. Jahr'!D23<=Hilfstabelle!$B$2=AND('Personalkosten 1. Jahr'!E23>=Hilfstabelle!$B$2),'Personalkosten 1. Jahr'!M23/('Personalkosten 1. Jahr'!E23-'Personalkosten 1. Jahr'!D23+1),0),IF('Personalkosten 1. Jahr'!C23>0,'Personalkosten 1. Jahr'!M23/12,0)) -> 0 | C14: =IF('Personalkosten 1. Jahr'!D23>0,IF('Personalkosten 1. Jahr'!D23<=Hilfstabelle!$C$2=AND('Personalkosten 1. Jahr'!E23>=Hilfstabelle!$C$2),'Personalkosten 1. Jahr'!M23/('Personalkosten 1. Jahr'!E23-'Personalkosten 1. Jahr'!D23+1),0),IF('Personalkosten 1. Jahr'!C23>0,'Personalkosten 1. Jahr'!M23/12,0)) -> 0 | D14: =IF('Personalkosten 1. Jahr'!D23>0,IF('Personalkosten 1. Jahr'!D23<=Hilfstabelle!$D$2=AND('Personalkosten 1. Jahr'!E23>=Hilfstabelle!$D$2),'Personalkosten 1. Jahr'!M23/('Personalkosten 1. Jahr'!E23-'Personalkosten 1. Jahr'!D23+1),0),IF('Personalkosten 1. Jahr'!C23>0,'Personalkosten 1. Jahr'!M23/12,0)) -> 0 | E14: =IF('Personalkosten 1. Jahr'!D23>0,IF('Personalkosten 1. Jahr'!D23<=Hilfstabelle!$E$2=AND('Personalkosten 1. Jahr'!E23>=Hilfstabelle!$E$2),'Personalkosten 1. Jahr'!M23/('Personalkosten 1. Jahr'!E23-'Personalkosten 1. Jahr'!D23+1),0),IF('Personalkosten 1. Jahr'!C23>0,'Personalkosten 1. Jahr'!M23/12,0)) -> 0 | F14: =IF('Personalkosten 1. Jahr'!D23>0,IF('Personalkosten 1. Jahr'!D23<=Hilfstabelle!$F$2=AND('Personalkosten 1. Jahr'!E23>=Hilfstabelle!$F$2),'Personalkosten 1. Jahr'!M23/('Personalkosten 1. Jahr'!E23-'Personalkosten 1. Jahr'!D23+1),0),IF('Personalkosten 1. Jahr'!C23>0,'Personalkosten 1. Jahr'!M23/12,0)) -> 0 | G14: =IF('Personalkosten 1. Jahr'!D23>0,IF('Personalkosten 1. Jahr'!D23<=Hilfstabelle!$G$2=AND('Personalkosten 1. Jahr'!E23>=Hilfstabelle!$G$2),'Personalkosten 1. Jahr'!M23/('Personalkosten 1. Jahr'!E23-'Personalkosten 1. Jahr'!D23+1),0),IF('Personalkosten 1. Jahr'!C23>0,'Personalkosten 1. Jahr'!M23/12,0)) -> 0 | H14: =IF('Personalkosten 1. Jahr'!D23>0,IF('Personalkosten 1. Jahr'!D23<=Hilfstabelle!$H$2=AND('Personalkosten 1. Jahr'!E23>=Hilfstabelle!$H$2),'Personalkosten 1. Jahr'!M23/('Personalkosten 1. Jahr'!E23-'Personalkosten 1. Jahr'!D23+1),0),IF('Personalkosten 1. Jahr'!C23>0,'Personalkosten 1. Jahr'!M23/12,0)) -> 0 | I14: =IF('Personalkosten 1. Jahr'!D23>0,IF('Personalkosten 1. Jahr'!D23<=Hilfstabelle!$I$2=AND('Personalkosten 1. Jahr'!E23>=Hilfstabelle!$I$2),'Personalkosten 1. Jahr'!M23/('Personalkosten 1. Jahr'!E23-'Personalkosten 1. Jahr'!D23+1),0),IF('Personalkosten 1. Jahr'!C23>0,'Personalkosten 1. Jahr'!M23/12,0)) -> 0 | J14: =IF('Personalkosten 1. Jahr'!D23>0,IF('Personalkosten 1. Jahr'!D23<=Hilfstabelle!$J$2=AND('Personalkosten 1. Jahr'!E23>=Hilfstabelle!$J$2),'Personalkosten 1. Jahr'!M23/('Personalkosten 1. Jahr'!E23-'Personalkosten 1. Jahr'!D23+1),0),IF('Personalkosten 1. Jahr'!C23>0,'Personalkosten 1. Jahr'!M23/12,0)) -> 0 | K14: =IF('Personalkosten 1. Jahr'!D23>0,IF('Personalkosten 1. Jahr'!D23<=Hilfstabelle!$K$2=AND('Personalkosten 1. Jahr'!E23>=Hilfstabelle!$K$2),'Personalkosten 1. Jahr'!M23/('Personalkosten 1. Jahr'!E23-'Personalkosten 1. Jahr'!D23+1),0),IF('Personalkosten 1. Jahr'!C23>0,'Personalkosten 1. Jahr'!M23/12,0)) -> 0 | L14: =IF('Personalkosten 1. Jahr'!D23>0,IF('Personalkosten 1. Jahr'!D23<=Hilfstabelle!$L$2=AND('Personalkosten 1. Jahr'!E23>=Hilfstabelle!$L$2),'Personalkosten 1. Jahr'!M23/('Personalkosten 1. Jahr'!E23-'Personalkosten 1. Jahr'!D23+1),0),IF('Personalkosten 1. Jahr'!C23>0,'Personalkosten 1. Jahr'!M23/12,0)) -> 0 | M14: =IF('Personalkosten 1. Jahr'!D23>0,IF('Personalkosten 1. Jahr'!D23<=Hilfstabelle!$M$2=AND('Personalkosten 1. Jahr'!E23>=Hilfstabelle!$M$2),'Personalkosten 1. Jahr'!M23/('Personalkosten 1. Jahr'!E23-'Personalkosten 1. Jahr'!D23+1),0),IF('Personalkosten 1. Jahr'!C23>0,'Personalkosten 1. Jahr'!M23/12,0)) -> 0 | N14: 0
A15: BG+ | B15: =('Personalkosten 1. Jahr'!$M$25+'Personalkosten 1. Jahr'!$M$26)*Hilfstabelle!B16/'Personalkosten 1. Jahr'!$M$24 ->  | C15: =('Personalkosten 1. Jahr'!$M$25+'Personalkosten 1. Jahr'!$M$26)*Hilfstabelle!C16/'Personalkosten 1. Jahr'!$M$24 ->  | D15: =('Personalkosten 1. Jahr'!$M$25+'Personalkosten 1. Jahr'!$M$26)*Hilfstabelle!D16/'Personalkosten 1. Jahr'!$M$24 ->  | E15: =('Personalkosten 1. Jahr'!$M$25+'Personalkosten 1. Jahr'!$M$26)*Hilfstabelle!E16/'Personalkosten 1. Jahr'!$M$24 ->  | F15: =('Personalkosten 1. Jahr'!$M$25+'Personalkosten 1. Jahr'!$M$26)*Hilfstabelle!F16/'Personalkosten 1. Jahr'!$M$24 ->  | G15: =('Personalkosten 1. Jahr'!$M$25+'Personalkosten 1. Jahr'!$M$26)*Hilfstabelle!G16/'Personalkosten 1. Jahr'!$M$24 ->  | H15: =('Personalkosten 1. Jahr'!$M$25+'Personalkosten 1. Jahr'!$M$26)*Hilfstabelle!H16/'Personalkosten 1. Jahr'!$M$24 ->  | I15: =('Personalkosten 1. Jahr'!$M$25+'Personalkosten 1. Jahr'!$M$26)*Hilfstabelle!I16/'Personalkosten 1. Jahr'!$M$24 ->  | J15: =('Personalkosten 1. Jahr'!$M$25+'Personalkosten 1. Jahr'!$M$26)*Hilfstabelle!J16/'Personalkosten 1. Jahr'!$M$24 ->  | K15: =('Personalkosten 1. Jahr'!$M$25+'Personalkosten 1. Jahr'!$M$26)*Hilfstabelle!K16/'Personalkosten 1. Jahr'!$M$24 ->  | L15: =('Personalkosten 1. Jahr'!$M$25+'Personalkosten 1. Jahr'!$M$26)*Hilfstabelle!L16/'Personalkosten 1. Jahr'!$M$24 ->  | M15: =('Personalkosten 1. Jahr'!$M$25+'Personalkosten 1. Jahr'!$M$26)*Hilfstabelle!M16/'Personalkosten 1. Jahr'!$M$24 -> 
A16: Gesamt | B16: =SUM(B3:B14) -> 0 | C16: 0 | D16: 0 | E16: 0 | F16: 0 | G16: 0 | H16: 0 | I16: 0 | J16: 0 | K16: 0 | L16: 0 | M16: 0 | N16: 0
A17: Gesamt | B17: =IF(B16>0,B15+B16,B16) -> 0 | C17: 0 | D17: 0 | E17: 0 | F17: 0 | G17: 0 | H17: 0 | I17: 0 | J17: 0 | K17: 0 | L17: 0 | M17: 0 | N17: 0
A23: 2. Jahr | B23: 1 | C23: 2 | D23: 3 | E23: 4 | F23: 5 | G23: 6 | H23: 7 | I23: 8 | J23: 9 | K23: 10 | L23: 11 | M23: 12 | N23: Gesamt
A24: 1 | B24: =IF('Personalkosten 2. Jahr'!$D12>0,IF('Personalkosten 2. Jahr'!$D12<=Hilfstabelle!B$2=AND('Personalkosten 2. Jahr'!$E12>=Hilfstabelle!B$2),'Personalkosten 2. Jahr'!$M12/('Personalkosten 2. Jahr'!$E12-'Personalkosten 2. Jahr'!$D12+1),0),IF('Personalkosten 2. Jahr'!$C12>0,'Personalkosten 2. Jahr'!$M12/12,0)) -> 0 | C24: =IF('Personalkosten 2. Jahr'!$D12>0,IF('Personalkosten 2. Jahr'!$D12<=Hilfstabelle!C$2=AND('Personalkosten 2. Jahr'!$E12>=Hilfstabelle!C$2),'Personalkosten 2. Jahr'!$M12/('Personalkosten 2. Jahr'!$E12-'Personalkosten 2. Jahr'!$D12+1),0),IF('Personalkosten 2. Jahr'!$C12>0,'Personalkosten 2. Jahr'!$M12/12,0)) -> 0 | D24: =IF('Personalkosten 2. Jahr'!$D12>0,IF('Personalkosten 2. Jahr'!$D12<=Hilfstabelle!D$2=AND('Personalkosten 2. Jahr'!$E12>=Hilfstabelle!D$2),'Personalkosten 2. Jahr'!$M12/('Personalkosten 2. Jahr'!$E12-'Personalkosten 2. Jahr'!$D12+1),0),IF('Personalkosten 2. Jahr'!$C12>0,'Personalkosten 2. Jahr'!$M12/12,0)) -> 0 | E24: =IF('Personalkosten 2. Jahr'!$D12>0,IF('Personalkosten 2. Jahr'!$D12<=Hilfstabelle!E$2=AND('Personalkosten 2. Jahr'!$E12>=Hilfstabelle!E$2),'Personalkosten 2. Jahr'!$M12/('Personalkosten 2. Jahr'!$E12-'Personalkosten 2. Jahr'!$D12+1),0),IF('Personalkosten 2. Jahr'!$C12>0,'Personalkosten 2. Jahr'!$M12/12,0)) -> 0 | F24: =IF('Personalkosten 2. Jahr'!$D12>0,IF('Personalkosten 2. Jahr'!$D12<=Hilfstabelle!F$2=AND('Personalkosten 2. Jahr'!$E12>=Hilfstabelle!F$2),'Personalkosten 2. Jahr'!$M12/('Personalkosten 2. Jahr'!$E12-'Personalkosten 2. Jahr'!$D12+1),0),IF('Personalkosten 2. Jahr'!$C12>0,'Personalkosten 2. Jahr'!$M12/12,0)) -> 0 | G24: =IF('Personalkosten 2. Jahr'!$D12>0,IF('Personalkosten 2. Jahr'!$D12<=Hilfstabelle!G$2=AND('Personalkosten 2. Jahr'!$E12>=Hilfstabelle!G$2),'Personalkosten 2. Jahr'!$M12/('Personalkosten 2. Jahr'!$E12-'Personalkosten 2. Jahr'!$D12+1),0),IF('Personalkosten 2. Jahr'!$C12>0,'Personalkosten 2. Jahr'!$M12/12,0)) -> 0 | H24: =IF('Personalkosten 2. Jahr'!$D12>0,IF('Personalkosten 2. Jahr'!$D12<=Hilfstabelle!H$2=AND('Personalkosten 2. Jahr'!$E12>=Hilfstabelle!H$2),'Personalkosten 2. Jahr'!$M12/('Personalkosten 2. Jahr'!$E12-'Personalkosten 2. Jahr'!$D12+1),0),IF('Personalkosten 2. Jahr'!$C12>0,'Personalkosten 2. Jahr'!$M12/12,0)) -> 0 | I24: =IF('Personalkosten 2. Jahr'!$D12>0,IF('Personalkosten 2. Jahr'!$D12<=Hilfstabelle!I$2=AND('Personalkosten 2. Jahr'!$E12>=Hilfstabelle!I$2),'Personalkosten 2. Jahr'!$M12/('Personalkosten 2. Jahr'!$E12-'Personalkosten 2. Jahr'!$D12+1),0),IF('Personalkosten 2. Jahr'!$C12>0,'Personalkosten 2. Jahr'!$M12/12,0)) -> 0 | J24: =IF('Personalkosten 2. Jahr'!$D12>0,IF('Personalkosten 2. Jahr'!$D12<=Hilfstabelle!J$2=AND('Personalkosten 2. Jahr'!$E12>=Hilfstabelle!J$2),'Personalkosten 2. Jahr'!$M12/('Personalkosten 2. Jahr'!$E12-'Personalkosten 2. Jahr'!$D12+1),0),IF('Personalkosten 2. Jahr'!$C12>0,'Personalkosten 2. Jahr'!$M12/12,0)) -> 0 | K24: =IF('Personalkosten 2. Jahr'!$D12>0,IF('Personalkosten 2. Jahr'!$D12<=Hilfstabelle!K$2=AND('Personalkosten 2. Jahr'!$E12>=Hilfstabelle!K$2),'Personalkosten 2. Jahr'!$M12/('Personalkosten 2. Jahr'!$E12-'Personalkosten 2. Jahr'!$D12+1),0),IF('Personalkosten 2. Jahr'!$C12>0,'Personalkosten 2. Jahr'!$M12/12,0)) -> 0 | L24: =IF('Personalkosten 2. Jahr'!$D12>0,IF('Personalkosten 2. Jahr'!$D12<=Hilfstabelle!L$2=AND('Personalkosten 2. Jahr'!$E12>=Hilfstabelle!L$2),'Personalkosten 2. Jahr'!$M12/('Personalkosten 2. Jahr'!$E12-'Personalkosten 2. Jahr'!$D12+1),0),IF('Personalkosten 2. Jahr'!$C12>0,'Personalkosten 2. Jahr'!$M12/12,0)) -> 0 | M24: =IF('Personalkosten 2. Jahr'!$D12>0,IF('Personalkosten 2. Jahr'!$D12<=Hilfstabelle!M$2=AND('Personalkosten 2. Jahr'!$E12>=Hilfstabelle!M$2),'Personalkosten 2. Jahr'!$M12/('Personalkosten 2. Jahr'!$E12-'Personalkosten 2. Jahr'!$D12+1),0),IF('Personalkosten 2. Jahr'!$C12>0,'Personalkosten 2. Jahr'!$M12/12,0)) -> 0 | N24: =SUM(B24:M24) -> 0
A25: 2 | B25: =IF('Personalkosten 2. Jahr'!$D13>0,IF('Personalkosten 2. Jahr'!$D13<=Hilfstabelle!B$2=AND('Personalkosten 2. Jahr'!$E13>=Hilfstabelle!B$2),'Personalkosten 2. Jahr'!$M13/('Personalkosten 2. Jahr'!$E13-'Personalkosten 2. Jahr'!$D13+1),0),IF('Personalkosten 2. Jahr'!$C13>0,'Personalkosten 2. Jahr'!$M13/12,0)) -> 0 | C25: =IF('Personalkosten 2. Jahr'!$D13>0,IF('Personalkosten 2. Jahr'!$D13<=Hilfstabelle!C$2=AND('Personalkosten 2. Jahr'!$E13>=Hilfstabelle!C$2),'Personalkosten 2. Jahr'!$M13/('Personalkosten 2. Jahr'!$E13-'Personalkosten 2. Jahr'!$D13+1),0),IF('Personalkosten 2. Jahr'!$C13>0,'Personalkosten 2. Jahr'!$M13/12,0)) -> 0 | D25: =IF('Personalkosten 2. Jahr'!$D13>0,IF('Personalkosten 2. Jahr'!$D13<=Hilfstabelle!D$2=AND('Personalkosten 2. Jahr'!$E13>=Hilfstabelle!D$2),'Personalkosten 2. Jahr'!$M13/('Personalkosten 2. Jahr'!$E13-'Personalkosten 2. Jahr'!$D13+1),0),IF('Personalkosten 2. Jahr'!$C13>0,'Personalkosten 2. Jahr'!$M13/12,0)) -> 0 | E25: =IF('Personalkosten 2. Jahr'!$D13>0,IF('Personalkosten 2. Jahr'!$D13<=Hilfstabelle!E$2=AND('Personalkosten 2. Jahr'!$E13>=Hilfstabelle!E$2),'Personalkosten 2. Jahr'!$M13/('Personalkosten 2. Jahr'!$E13-'Personalkosten 2. Jahr'!$D13+1),0),IF('Personalkosten 2. Jahr'!$C13>0,'Personalkosten 2. Jahr'!$M13/12,0)) -> 0 | F25: =IF('Personalkosten 2. Jahr'!$D13>0,IF('Personalkosten 2. Jahr'!$D13<=Hilfstabelle!F$2=AND('Personalkosten 2. Jahr'!$E13>=Hilfstabelle!F$2),'Personalkosten 2. Jahr'!$M13/('Personalkosten 2. Jahr'!$E13-'Personalkosten 2. Jahr'!$D13+1),0),IF('Personalkosten 2. Jahr'!$C13>0,'Personalkosten 2. Jahr'!$M13/12,0)) -> 0 | G25: =IF('Personalkosten 2. Jahr'!$D13>0,IF('Personalkosten 2. Jahr'!$D13<=Hilfstabelle!G$2=AND('Personalkosten 2. Jahr'!$E13>=Hilfstabelle!G$2),'Personalkosten 2. Jahr'!$M13/('Personalkosten 2. Jahr'!$E13-'Personalkosten 2. Jahr'!$D13+1),0),IF('Personalkosten 2. Jahr'!$C13>0,'Personalkosten 2. Jahr'!$M13/12,0)) -> 0 | H25: =IF('Personalkosten 2. Jahr'!$D13>0,IF('Personalkosten 2. Jahr'!$D13<=Hilfstabelle!H$2=AND('Personalkosten 2. Jahr'!$E13>=Hilfstabelle!H$2),'Personalkosten 2. Jahr'!$M13/('Personalkosten 2. Jahr'!$E13-'Personalkosten 2. Jahr'!$D13+1),0),IF('Personalkosten 2. Jahr'!$C13>0,'Personalkosten 2. Jahr'!$M13/12,0)) -> 0 | I25: =IF('Personalkosten 2. Jahr'!$D13>0,IF('Personalkosten 2. Jahr'!$D13<=Hilfstabelle!I$2=AND('Personalkosten 2. Jahr'!$E13>=Hilfstabelle!I$2),'Personalkosten 2. Jahr'!$M13/('Personalkosten 2. Jahr'!$E13-'Personalkosten 2. Jahr'!$D13+1),0),IF('Personalkosten 2. Jahr'!$C13>0,'Personalkosten 2. Jahr'!$M13/12,0)) -> 0 | J25: =IF('Personalkosten 2. Jahr'!$D13>0,IF('Personalkosten 2. Jahr'!$D13<=Hilfstabelle!J$2=AND('Personalkosten 2. Jahr'!$E13>=Hilfstabelle!J$2),'Personalkosten 2. Jahr'!$M13/('Personalkosten 2. Jahr'!$E13-'Personalkosten 2. Jahr'!$D13+1),0),IF('Personalkosten 2. Jahr'!$C13>0,'Personalkosten 2. Jahr'!$M13/12,0)) -> 0 | K25: =IF('Personalkosten 2. Jahr'!$D13>0,IF('Personalkosten 2. Jahr'!$D13<=Hilfstabelle!K$2=AND('Personalkosten 2. Jahr'!$E13>=Hilfstabelle!K$2),'Personalkosten 2. Jahr'!$M13/('Personalkosten 2. Jahr'!$E13-'Personalkosten 2. Jahr'!$D13+1),0),IF('Personalkosten 2. Jahr'!$C13>0,'Personalkosten 2. Jahr'!$M13/12,0)) -> 0 | L25: =IF('Personalkosten 2. Jahr'!$D13>0,IF('Personalkosten 2. Jahr'!$D13<=Hilfstabelle!L$2=AND('Personalkosten 2. Jahr'!$E13>=Hilfstabelle!L$2),'Personalkosten 2. Jahr'!$M13/('Personalkosten 2. Jahr'!$E13-'Personalkosten 2. Jahr'!$D13+1),0),IF('Personalkosten 2. Jahr'!$C13>0,'Personalkosten 2. Jahr'!$M13/12,0)) -> 0 | M25: =IF('Personalkosten 2. Jahr'!$D13>0,IF('Personalkosten 2. Jahr'!$D13<=Hilfstabelle!M$2=AND('Personalkosten 2. Jahr'!$E13>=Hilfstabelle!M$2),'Personalkosten 2. Jahr'!$M13/('Personalkosten 2. Jahr'!$E13-'Personalkosten 2. Jahr'!$D13+1),0),IF('Personalkosten 2. Jahr'!$C13>0,'Personalkosten 2. Jahr'!$M13/12,0)) -> 0 | N25: 0
A26: 3 | B26: =IF('Personalkosten 2. Jahr'!$D14>0,IF('Personalkosten 2. Jahr'!$D14<=Hilfstabelle!B$2=AND('Personalkosten 2. Jahr'!$E14>=Hilfstabelle!B$2),'Personalkosten 2. Jahr'!$M14/('Personalkosten 2. Jahr'!$E14-'Personalkosten 2. Jahr'!$D14+1),0),IF('Personalkosten 2. Jahr'!$C14>0,'Personalkosten 2. Jahr'!$M14/12,0)) -> 0 | C26: =IF('Personalkosten 2. Jahr'!$D14>0,IF('Personalkosten 2. Jahr'!$D14<=Hilfstabelle!C$2=AND('Personalkosten 2. Jahr'!$E14>=Hilfstabelle!C$2),'Personalkosten 2. Jahr'!$M14/('Personalkosten 2. Jahr'!$E14-'Personalkosten 2. Jahr'!$D14+1),0),IF('Personalkosten 2. Jahr'!$C14>0,'Personalkosten 2. Jahr'!$M14/12,0)) -> 0 | D26: =IF('Personalkosten 2. Jahr'!$D14>0,IF('Personalkosten 2. Jahr'!$D14<=Hilfstabelle!D$2=AND('Personalkosten 2. Jahr'!$E14>=Hilfstabelle!D$2),'Personalkosten 2. Jahr'!$M14/('Personalkosten 2. Jahr'!$E14-'Personalkosten 2. Jahr'!$D14+1),0),IF('Personalkosten 2. Jahr'!$C14>0,'Personalkosten 2. Jahr'!$M14/12,0)) -> 0 | E26: =IF('Personalkosten 2. Jahr'!$D14>0,IF('Personalkosten 2. Jahr'!$D14<=Hilfstabelle!E$2=AND('Personalkosten 2. Jahr'!$E14>=Hilfstabelle!E$2),'Personalkosten 2. Jahr'!$M14/('Personalkosten 2. Jahr'!$E14-'Personalkosten 2. Jahr'!$D14+1),0),IF('Personalkosten 2. Jahr'!$C14>0,'Personalkosten 2. Jahr'!$M14/12,0)) -> 0 | F26: =IF('Personalkosten 2. Jahr'!$D14>0,IF('Personalkosten 2. Jahr'!$D14<=Hilfstabelle!F$2=AND('Personalkosten 2. Jahr'!$E14>=Hilfstabelle!F$2),'Personalkosten 2. Jahr'!$M14/('Personalkosten 2. Jahr'!$E14-'Personalkosten 2. Jahr'!$D14+1),0),IF('Personalkosten 2. Jahr'!$C14>0,'Personalkosten 2. Jahr'!$M14/12,0)) -> 0 | G26: =IF('Personalkosten 2. Jahr'!$D14>0,IF('Personalkosten 2. Jahr'!$D14<=Hilfstabelle!G$2=AND('Personalkosten 2. Jahr'!$E14>=Hilfstabelle!G$2),'Personalkosten 2. Jahr'!$M14/('Personalkosten 2. Jahr'!$E14-'Personalkosten 2. Jahr'!$D14+1),0),IF('Personalkosten 2. Jahr'!$C14>0,'Personalkosten 2. Jahr'!$M14/12,0)) -> 0 | H26: =IF('Personalkosten 2. Jahr'!$D14>0,IF('Personalkosten 2. Jahr'!$D14<=Hilfstabelle!H$2=AND('Personalkosten 2. Jahr'!$E14>=Hilfstabelle!H$2),'Personalkosten 2. Jahr'!$M14/('Personalkosten 2. Jahr'!$E14-'Personalkosten 2. Jahr'!$D14+1),0),IF('Personalkosten 2. Jahr'!$C14>0,'Personalkosten 2. Jahr'!$M14/12,0)) -> 0 | I26: =IF('Personalkosten 2. Jahr'!$D14>0,IF('Personalkosten 2. Jahr'!$D14<=Hilfstabelle!I$2=AND('Personalkosten 2. Jahr'!$E14>=Hilfstabelle!I$2),'Personalkosten 2. Jahr'!$M14/('Personalkosten 2. Jahr'!$E14-'Personalkosten 2. Jahr'!$D14+1),0),IF('Personalkosten 2. Jahr'!$C14>0,'Personalkosten 2. Jahr'!$M14/12,0)) -> 0 | J26: =IF('Personalkosten 2. Jahr'!$D14>0,IF('Personalkosten 2. Jahr'!$D14<=Hilfstabelle!J$2=AND('Personalkosten 2. Jahr'!$E14>=Hilfstabelle!J$2),'Personalkosten 2. Jahr'!$M14/('Personalkosten 2. Jahr'!$E14-'Personalkosten 2. Jahr'!$D14+1),0),IF('Personalkosten 2. Jahr'!$C14>0,'Personalkosten 2. Jahr'!$M14/12,0)) -> 0 | K26: =IF('Personalkosten 2. Jahr'!$D14>0,IF('Personalkosten 2. Jahr'!$D14<=Hilfstabelle!K$2=AND('Personalkosten 2. Jahr'!$E14>=Hilfstabelle!K$2),'Personalkosten 2. Jahr'!$M14/('Personalkosten 2. Jahr'!$E14-'Personalkosten 2. Jahr'!$D14+1),0),IF('Personalkosten 2. Jahr'!$C14>0,'Personalkosten 2. Jahr'!$M14/12,0)) -> 0 | L26: =IF('Personalkosten 2. Jahr'!$D14>0,IF('Personalkosten 2. Jahr'!$D14<=Hilfstabelle!L$2=AND('Personalkosten 2. Jahr'!$E14>=Hilfstabelle!L$2),'Personalkosten 2. Jahr'!$M14/('Personalkosten 2. Jahr'!$E14-'Personalkosten 2. Jahr'!$D14+1),0),IF('Personalkosten 2. Jahr'!$C14>0,'Personalkosten 2. Jahr'!$M14/12,0)) -> 0 | M26: =IF('Personalkosten 2. Jahr'!$D14>0,IF('Personalkosten 2. Jahr'!$D14<=Hilfstabelle!M$2=AND('Personalkosten 2. Jahr'!$E14>=Hilfstabelle!M$2),'Personalkosten 2. Jahr'!$M14/('Personalkosten 2. Jahr'!$E14-'Personalkosten 2. Jahr'!$D14+1),0),IF('Personalkosten 2. Jahr'!$C14>0,'Personalkosten 2. Jahr'!$M14/12,0)) -> 0 | N26: 0
A27: 4 | B27: =IF('Personalkosten 2. Jahr'!$D15>0,IF('Personalkosten 2. Jahr'!$D15<=Hilfstabelle!B$2=AND('Personalkosten 2. Jahr'!$E15>=Hilfstabelle!B$2),'Personalkosten 2. Jahr'!$M15/('Personalkosten 2. Jahr'!$E15-'Personalkosten 2. Jahr'!$D15+1),0),IF('Personalkosten 2. Jahr'!$C15>0,'Personalkosten 2. Jahr'!$M15/12,0)) -> 0 | C27: =IF('Personalkosten 2. Jahr'!$D15>0,IF('Personalkosten 2. Jahr'!$D15<=Hilfstabelle!C$2=AND('Personalkosten 2. Jahr'!$E15>=Hilfstabelle!C$2),'Personalkosten 2. Jahr'!$M15/('Personalkosten 2. Jahr'!$E15-'Personalkosten 2. Jahr'!$D15+1),0),IF('Personalkosten 2. Jahr'!$C15>0,'Personalkosten 2. Jahr'!$M15/12,0)) -> 0 | D27: =IF('Personalkosten 2. Jahr'!$D15>0,IF('Personalkosten 2. Jahr'!$D15<=Hilfstabelle!D$2=AND('Personalkosten 2. Jahr'!$E15>=Hilfstabelle!D$2),'Personalkosten 2. Jahr'!$M15/('Personalkosten 2. Jahr'!$E15-'Personalkosten 2. Jahr'!$D15+1),0),IF('Personalkosten 2. Jahr'!$C15>0,'Personalkosten 2. Jahr'!$M15/12,0)) -> 0 | E27: =IF('Personalkosten 2. Jahr'!$D15>0,IF('Personalkosten 2. Jahr'!$D15<=Hilfstabelle!E$2=AND('Personalkosten 2. Jahr'!$E15>=Hilfstabelle!E$2),'Personalkosten 2. Jahr'!$M15/('Personalkosten 2. Jahr'!$E15-'Personalkosten 2. Jahr'!$D15+1),0),IF('Personalkosten 2. Jahr'!$C15>0,'Personalkosten 2. Jahr'!$M15/12,0)) -> 0 | F27: =IF('Personalkosten 2. Jahr'!$D15>0,IF('Personalkosten 2. Jahr'!$D15<=Hilfstabelle!F$2=AND('Personalkosten 2. Jahr'!$E15>=Hilfstabelle!F$2),'Personalkosten 2. Jahr'!$M15/('Personalkosten 2. Jahr'!$E15-'Personalkosten 2. Jahr'!$D15+1),0),IF('Personalkosten 2. Jahr'!$C15>0,'Personalkosten 2. Jahr'!$M15/12,0)) -> 0 | G27: =IF('Personalkosten 2. Jahr'!$D15>0,IF('Personalkosten 2. Jahr'!$D15<=Hilfstabelle!G$2=AND('Personalkosten 2. Jahr'!$E15>=Hilfstabelle!G$2),'Personalkosten 2. Jahr'!$M15/('Personalkosten 2. Jahr'!$E15-'Personalkosten 2. Jahr'!$D15+1),0),IF('Personalkosten 2. Jahr'!$C15>0,'Personalkosten 2. Jahr'!$M15/12,0)) -> 0 | H27: =IF('Personalkosten 2. Jahr'!$D15>0,IF('Personalkosten 2. Jahr'!$D15<=Hilfstabelle!H$2=AND('Personalkosten 2. Jahr'!$E15>=Hilfstabelle!H$2),'Personalkosten 2. Jahr'!$M15/('Personalkosten 2. Jahr'!$E15-'Personalkosten 2. Jahr'!$D15+1),0),IF('Personalkosten 2. Jahr'!$C15>0,'Personalkosten 2. Jahr'!$M15/12,0)) -> 0 | I27: =IF('Personalkosten 2. Jahr'!$D15>0,IF('Personalkosten 2. Jahr'!$D15<=Hilfstabelle!I$2=AND('Personalkosten 2. Jahr'!$E15>=Hilfstabelle!I$2),'Personalkosten 2. Jahr'!$M15/('Personalkosten 2. Jahr'!$E15-'Personalkosten 2. Jahr'!$D15+1),0),IF('Personalkosten 2. Jahr'!$C15>0,'Personalkosten 2. Jahr'!$M15/12,0)) -> 0 | J27: =IF('Personalkosten 2. Jahr'!$D15>0,IF('Personalkosten 2. Jahr'!$D15<=Hilfstabelle!J$2=AND('Personalkosten 2. Jahr'!$E15>=Hilfstabelle!J$2),'Personalkosten 2. Jahr'!$M15/('Personalkosten 2. Jahr'!$E15-'Personalkosten 2. Jahr'!$D15+1),0),IF('Personalkosten 2. Jahr'!$C15>0,'Personalkosten 2. Jahr'!$M15/12,0)) -> 0 | K27: =IF('Personalkosten 2. Jahr'!$D15>0,IF('Personalkosten 2. Jahr'!$D15<=Hilfstabelle!K$2=AND('Personalkosten 2. Jahr'!$E15>=Hilfstabelle!K$2),'Personalkosten 2. Jahr'!$M15/('Personalkosten 2. Jahr'!$E15-'Personalkosten 2. Jahr'!$D15+1),0),IF('Personalkosten 2. Jahr'!$C15>0,'Personalkosten 2. Jahr'!$M15/12,0)) -> 0 | L27: =IF('Personalkosten 2. Jahr'!$D15>0,IF('Personalkosten 2. Jahr'!$D15<=Hilfstabelle!L$2=AND('Personalkosten 2. Jahr'!$E15>=Hilfstabelle!L$2),'Personalkosten 2. Jahr'!$M15/('Personalkosten 2. Jahr'!$E15-'Personalkosten 2. Jahr'!$D15+1),0),IF('Personalkosten 2. Jahr'!$C15>0,'Personalkosten 2. Jahr'!$M15/12,0)) -> 0 | M27: =IF('Personalkosten 2. Jahr'!$D15>0,IF('Personalkosten 2. Jahr'!$D15<=Hilfstabelle!M$2=AND('Personalkosten 2. Jahr'!$E15>=Hilfstabelle!M$2),'Personalkosten 2. Jahr'!$M15/('Personalkosten 2. Jahr'!$E15-'Personalkosten 2. Jahr'!$D15+1),0),IF('Personalkosten 2. Jahr'!$C15>0,'Personalkosten 2. Jahr'!$M15/12,0)) -> 0 | N27: 0
A28: 5 | B28: =IF('Personalkosten 2. Jahr'!$D16>0,IF('Personalkosten 2. Jahr'!$D16<=Hilfstabelle!B$2=AND('Personalkosten 2. Jahr'!$E16>=Hilfstabelle!B$2),'Personalkosten 2. Jahr'!$M16/('Personalkosten 2. Jahr'!$E16-'Personalkosten 2. Jahr'!$D16+1),0),IF('Personalkosten 2. Jahr'!$C16>0,'Personalkosten 2. Jahr'!$M16/12,0)) -> 0 | C28: =IF('Personalkosten 2. Jahr'!$D16>0,IF('Personalkosten 2. Jahr'!$D16<=Hilfstabelle!C$2=AND('Personalkosten 2. Jahr'!$E16>=Hilfstabelle!C$2),'Personalkosten 2. Jahr'!$M16/('Personalkosten 2. Jahr'!$E16-'Personalkosten 2. Jahr'!$D16+1),0),IF('Personalkosten 2. Jahr'!$C16>0,'Personalkosten 2. Jahr'!$M16/12,0)) -> 0 | D28: =IF('Personalkosten 2. Jahr'!$D16>0,IF('Personalkosten 2. Jahr'!$D16<=Hilfstabelle!D$2=AND('Personalkosten 2. Jahr'!$E16>=Hilfstabelle!D$2),'Personalkosten 2. Jahr'!$M16/('Personalkosten 2. Jahr'!$E16-'Personalkosten 2. Jahr'!$D16+1),0),IF('Personalkosten 2. Jahr'!$C16>0,'Personalkosten 2. Jahr'!$M16/12,0)) -> 0 | E28: =IF('Personalkosten 2. Jahr'!$D16>0,IF('Personalkosten 2. Jahr'!$D16<=Hilfstabelle!E$2=AND('Personalkosten 2. Jahr'!$E16>=Hilfstabelle!E$2),'Personalkosten 2. Jahr'!$M16/('Personalkosten 2. Jahr'!$E16-'Personalkosten 2. Jahr'!$D16+1),0),IF('Personalkosten 2. Jahr'!$C16>0,'Personalkosten 2. Jahr'!$M16/12,0)) -> 0 | F28: =IF('Personalkosten 2. Jahr'!$D16>0,IF('Personalkosten 2. Jahr'!$D16<=Hilfstabelle!F$2=AND('Personalkosten 2. Jahr'!$E16>=Hilfstabelle!F$2),'Personalkosten 2. Jahr'!$M16/('Personalkosten 2. Jahr'!$E16-'Personalkosten 2. Jahr'!$D16+1),0),IF('Personalkosten 2. Jahr'!$C16>0,'Personalkosten 2. Jahr'!$M16/12,0)) -> 0 | G28: =IF('Personalkosten 2. Jahr'!$D16>0,IF('Personalkosten 2. Jahr'!$D16<=Hilfstabelle!G$2=AND('Personalkosten 2. Jahr'!$E16>=Hilfstabelle!G$2),'Personalkosten 2. Jahr'!$M16/('Personalkosten 2. Jahr'!$E16-'Personalkosten 2. Jahr'!$D16+1),0),IF('Personalkosten 2. Jahr'!$C16>0,'Personalkosten 2. Jahr'!$M16/12,0)) -> 0 | H28: =IF('Personalkosten 2. Jahr'!$D16>0,IF('Personalkosten 2. Jahr'!$D16<=Hilfstabelle!H$2=AND('Personalkosten 2. Jahr'!$E16>=Hilfstabelle!H$2),'Personalkosten 2. Jahr'!$M16/('Personalkosten 2. Jahr'!$E16-'Personalkosten 2. Jahr'!$D16+1),0),IF('Personalkosten 2. Jahr'!$C16>0,'Personalkosten 2. Jahr'!$M16/12,0)) -> 0 | I28: =IF('Personalkosten 2. Jahr'!$D16>0,IF('Personalkosten 2. Jahr'!$D16<=Hilfstabelle!I$2=AND('Personalkosten 2. Jahr'!$E16>=Hilfstabelle!I$2),'Personalkosten 2. Jahr'!$M16/('Personalkosten 2. Jahr'!$E16-'Personalkosten 2. Jahr'!$D16+1),0),IF('Personalkosten 2. Jahr'!$C16>0,'Personalkosten 2. Jahr'!$M16/12,0)) -> 0 | J28: =IF('Personalkosten 2. Jahr'!$D16>0,IF('Personalkosten 2. Jahr'!$D16<=Hilfstabelle!J$2=AND('Personalkosten 2. Jahr'!$E16>=Hilfstabelle!J$2),'Personalkosten 2. Jahr'!$M16/('Personalkosten 2. Jahr'!$E16-'Personalkosten 2. Jahr'!$D16+1),0),IF('Personalkosten 2. Jahr'!$C16>0,'Personalkosten 2. Jahr'!$M16/12,0)) -> 0 | K28: =IF('Personalkosten 2. Jahr'!$D16>0,IF('Personalkosten 2. Jahr'!$D16<=Hilfstabelle!K$2=AND('Personalkosten 2. Jahr'!$E16>=Hilfstabelle!K$2),'Personalkosten 2. Jahr'!$M16/('Personalkosten 2. Jahr'!$E16-'Personalkosten 2. Jahr'!$D16+1),0),IF('Personalkosten 2. Jahr'!$C16>0,'Personalkosten 2. Jahr'!$M16/12,0)) -> 0 | L28: =IF('Personalkosten 2. Jahr'!$D16>0,IF('Personalkosten 2. Jahr'!$D16<=Hilfstabelle!L$2=AND('Personalkosten 2. Jahr'!$E16>=Hilfstabelle!L$2),'Personalkosten 2. Jahr'!$M16/('Personalkosten 2. Jahr'!$E16-'Personalkosten 2. Jahr'!$D16+1),0),IF('Personalkosten 2. Jahr'!$C16>0,'Personalkosten 2. Jahr'!$M16/12,0)) -> 0 | M28: =IF('Personalkosten 2. Jahr'!$D16>0,IF('Personalkosten 2. Jahr'!$D16<=Hilfstabelle!M$2=AND('Personalkosten 2. Jahr'!$E16>=Hilfstabelle!M$2),'Personalkosten 2. Jahr'!$M16/('Personalkosten 2. Jahr'!$E16-'Personalkosten 2. Jahr'!$D16+1),0),IF('Personalkosten 2. Jahr'!$C16>0,'Personalkosten 2. Jahr'!$M16/12,0)) -> 0 | N28: 0
A29: 6 | B29: =IF('Personalkosten 2. Jahr'!$D17>0,IF('Personalkosten 2. Jahr'!$D17<=Hilfstabelle!B$2=AND('Personalkosten 2. Jahr'!$E17>=Hilfstabelle!B$2),'Personalkosten 2. Jahr'!$M17/('Personalkosten 2. Jahr'!$E17-'Personalkosten 2. Jahr'!$D17+1),0),IF('Personalkosten 2. Jahr'!$C17>0,'Personalkosten 2. Jahr'!$M17/12,0)) -> 0 | C29: =IF('Personalkosten 2. Jahr'!$D17>0,IF('Personalkosten 2. Jahr'!$D17<=Hilfstabelle!C$2=AND('Personalkosten 2. Jahr'!$E17>=Hilfstabelle!C$2),'Personalkosten 2. Jahr'!$M17/('Personalkosten 2. Jahr'!$E17-'Personalkosten 2. Jahr'!$D17+1),0),IF('Personalkosten 2. Jahr'!$C17>0,'Personalkosten 2. Jahr'!$M17/12,0)) -> 0 | D29: =IF('Personalkosten 2. Jahr'!$D17>0,IF('Personalkosten 2. Jahr'!$D17<=Hilfstabelle!D$2=AND('Personalkosten 2. Jahr'!$E17>=Hilfstabelle!D$2),'Personalkosten 2. Jahr'!$M17/('Personalkosten 2. Jahr'!$E17-'Personalkosten 2. Jahr'!$D17+1),0),IF('Personalkosten 2. Jahr'!$C17>0,'Personalkosten 2. Jahr'!$M17/12,0)) -> 0 | E29: =IF('Personalkosten 2. Jahr'!$D17>0,IF('Personalkosten 2. Jahr'!$D17<=Hilfstabelle!E$2=AND('Personalkosten 2. Jahr'!$E17>=Hilfstabelle!E$2),'Personalkosten 2. Jahr'!$M17/('Personalkosten 2. Jahr'!$E17-'Personalkosten 2. Jahr'!$D17+1),0),IF('Personalkosten 2. Jahr'!$C17>0,'Personalkosten 2. Jahr'!$M17/12,0)) -> 0 | F29: =IF('Personalkosten 2. Jahr'!$D17>0,IF('Personalkosten 2. Jahr'!$D17<=Hilfstabelle!F$2=AND('Personalkosten 2. Jahr'!$E17>=Hilfstabelle!F$2),'Personalkosten 2. Jahr'!$M17/('Personalkosten 2. Jahr'!$E17-'Personalkosten 2. Jahr'!$D17+1),0),IF('Personalkosten 2. Jahr'!$C17>0,'Personalkosten 2. Jahr'!$M17/12,0)) -> 0 | G29: =IF('Personalkosten 2. Jahr'!$D17>0,IF('Personalkosten 2. Jahr'!$D17<=Hilfstabelle!G$2=AND('Personalkosten 2. Jahr'!$E17>=Hilfstabelle!G$2),'Personalkosten 2. Jahr'!$M17/('Personalkosten 2. Jahr'!$E17-'Personalkosten 2. Jahr'!$D17+1),0),IF('Personalkosten 2. Jahr'!$C17>0,'Personalkosten 2. Jahr'!$M17/12,0)) -> 0 | H29: =IF('Personalkosten 2. Jahr'!$D17>0,IF('Personalkosten 2. Jahr'!$D17<=Hilfstabelle!H$2=AND('Personalkosten 2. Jahr'!$E17>=Hilfstabelle!H$2),'Personalkosten 2. Jahr'!$M17/('Personalkosten 2. Jahr'!$E17-'Personalkosten 2. Jahr'!$D17+1),0),IF('Personalkosten 2. Jahr'!$C17>0,'Personalkosten 2. Jahr'!$M17/12,0)) -> 0 | I29: =IF('Personalkosten 2. Jahr'!$D17>0,IF('Personalkosten 2. Jahr'!$D17<=Hilfstabelle!I$2=AND('Personalkosten 2. Jahr'!$E17>=Hilfstabelle!I$2),'Personalkosten 2. Jahr'!$M17/('Personalkosten 2. Jahr'!$E17-'Personalkosten 2. Jahr'!$D17+1),0),IF('Personalkosten 2. Jahr'!$C17>0,'Personalkosten 2. Jahr'!$M17/12,0)) -> 0 | J29: =IF('Personalkosten 2. Jahr'!$D17>0,IF('Personalkosten 2. Jahr'!$D17<=Hilfstabelle!J$2=AND('Personalkosten 2. Jahr'!$E17>=Hilfstabelle!J$2),'Personalkosten 2. Jahr'!$M17/('Personalkosten 2. Jahr'!$E17-'Personalkosten 2. Jahr'!$D17+1),0),IF('Personalkosten 2. Jahr'!$C17>0,'Personalkosten 2. Jahr'!$M17/12,0)) -> 0 | K29: =IF('Personalkosten 2. Jahr'!$D17>0,IF('Personalkosten 2. Jahr'!$D17<=Hilfstabelle!K$2=AND('Personalkosten 2. Jahr'!$E17>=Hilfstabelle!K$2),'Personalkosten 2. Jahr'!$M17/('Personalkosten 2. Jahr'!$E17-'Personalkosten 2. Jahr'!$D17+1),0),IF('Personalkosten 2. Jahr'!$C17>0,'Personalkosten 2. Jahr'!$M17/12,0)) -> 0 | L29: =IF('Personalkosten 2. Jahr'!$D17>0,IF('Personalkosten 2. Jahr'!$D17<=Hilfstabelle!L$2=AND('Personalkosten 2. Jahr'!$E17>=Hilfstabelle!L$2),'Personalkosten 2. Jahr'!$M17/('Personalkosten 2. Jahr'!$E17-'Personalkosten 2. Jahr'!$D17+1),0),IF('Personalkosten 2. Jahr'!$C17>0,'Personalkosten 2. Jahr'!$M17/12,0)) -> 0 | M29: =IF('Personalkosten 2. Jahr'!$D17>0,IF('Personalkosten 2. Jahr'!$D17<=Hilfstabelle!M$2=AND('Personalkosten 2. Jahr'!$E17>=Hilfstabelle!M$2),'Personalkosten 2. Jahr'!$M17/('Personalkosten 2. Jahr'!$E17-'Personalkosten 2. Jahr'!$D17+1),0),IF('Personalkosten 2. Jahr'!$C17>0,'Personalkosten 2. Jahr'!$M17/12,0)) -> 0 | N29: 0
A30: 7 | B30: =IF('Personalkosten 2. Jahr'!$D18>0,IF('Personalkosten 2. Jahr'!$D18<=Hilfstabelle!B$2=AND('Personalkosten 2. Jahr'!$E18>=Hilfstabelle!B$2),'Personalkosten 2. Jahr'!$M18/('Personalkosten 2. Jahr'!$E18-'Personalkosten 2. Jahr'!$D18+1),0),IF('Personalkosten 2. Jahr'!$C18>0,'Personalkosten 2. Jahr'!$M18/12,0)) -> 0 | C30: =IF('Personalkosten 2. Jahr'!$D18>0,IF('Personalkosten 2. Jahr'!$D18<=Hilfstabelle!C$2=AND('Personalkosten 2. Jahr'!$E18>=Hilfstabelle!C$2),'Personalkosten 2. Jahr'!$M18/('Personalkosten 2. Jahr'!$E18-'Personalkosten 2. Jahr'!$D18+1),0),IF('Personalkosten 2. Jahr'!$C18>0,'Personalkosten 2. Jahr'!$M18/12,0)) -> 0 | D30: =IF('Personalkosten 2. Jahr'!$D18>0,IF('Personalkosten 2. Jahr'!$D18<=Hilfstabelle!D$2=AND('Personalkosten 2. Jahr'!$E18>=Hilfstabelle!D$2),'Personalkosten 2. Jahr'!$M18/('Personalkosten 2. Jahr'!$E18-'Personalkosten 2. Jahr'!$D18+1),0),IF('Personalkosten 2. Jahr'!$C18>0,'Personalkosten 2. Jahr'!$M18/12,0)) -> 0 | E30: =IF('Personalkosten 2. Jahr'!$D18>0,IF('Personalkosten 2. Jahr'!$D18<=Hilfstabelle!E$2=AND('Personalkosten 2. Jahr'!$E18>=Hilfstabelle!E$2),'Personalkosten 2. Jahr'!$M18/('Personalkosten 2. Jahr'!$E18-'Personalkosten 2. Jahr'!$D18+1),0),IF('Personalkosten 2. Jahr'!$C18>0,'Personalkosten 2. Jahr'!$M18/12,0)) -> 0 | F30: =IF('Personalkosten 2. Jahr'!$D18>0,IF('Personalkosten 2. Jahr'!$D18<=Hilfstabelle!F$2=AND('Personalkosten 2. Jahr'!$E18>=Hilfstabelle!F$2),'Personalkosten 2. Jahr'!$M18/('Personalkosten 2. Jahr'!$E18-'Personalkosten 2. Jahr'!$D18+1),0),IF('Personalkosten 2. Jahr'!$C18>0,'Personalkosten 2. Jahr'!$M18/12,0)) -> 0 | G30: =IF('Personalkosten 2. Jahr'!$D18>0,IF('Personalkosten 2. Jahr'!$D18<=Hilfstabelle!G$2=AND('Personalkosten 2. Jahr'!$E18>=Hilfstabelle!G$2),'Personalkosten 2. Jahr'!$M18/('Personalkosten 2. Jahr'!$E18-'Personalkosten 2. Jahr'!$D18+1),0),IF('Personalkosten 2. Jahr'!$C18>0,'Personalkosten 2. Jahr'!$M18/12,0)) -> 0 | H30: =IF('Personalkosten 2. Jahr'!$D18>0,IF('Personalkosten 2. Jahr'!$D18<=Hilfstabelle!H$2=AND('Personalkosten 2. Jahr'!$E18>=Hilfstabelle!H$2),'Personalkosten 2. Jahr'!$M18/('Personalkosten 2. Jahr'!$E18-'Personalkosten 2. Jahr'!$D18+1),0),IF('Personalkosten 2. Jahr'!$C18>0,'Personalkosten 2. Jahr'!$M18/12,0)) -> 0 | I30: =IF('Personalkosten 2. Jahr'!$D18>0,IF('Personalkosten 2. Jahr'!$D18<=Hilfstabelle!I$2=AND('Personalkosten 2. Jahr'!$E18>=Hilfstabelle!I$2),'Personalkosten 2. Jahr'!$M18/('Personalkosten 2. Jahr'!$E18-'Personalkosten 2. Jahr'!$D18+1),0),IF('Personalkosten 2. Jahr'!$C18>0,'Personalkosten 2. Jahr'!$M18/12,0)) -> 0 | J30: =IF('Personalkosten 2. Jahr'!$D18>0,IF('Personalkosten 2. Jahr'!$D18<=Hilfstabelle!J$2=AND('Personalkosten 2. Jahr'!$E18>=Hilfstabelle!J$2),'Personalkosten 2. Jahr'!$M18/('Personalkosten 2. Jahr'!$E18-'Personalkosten 2. Jahr'!$D18+1),0),IF('Personalkosten 2. Jahr'!$C18>0,'Personalkosten 2. Jahr'!$M18/12,0)) -> 0 | K30: =IF('Personalkosten 2. Jahr'!$D18>0,IF('Personalkosten 2. Jahr'!$D18<=Hilfstabelle!K$2=AND('Personalkosten 2. Jahr'!$E18>=Hilfstabelle!K$2),'Personalkosten 2. Jahr'!$M18/('Personalkosten 2. Jahr'!$E18-'Personalkosten 2. Jahr'!$D18+1),0),IF('Personalkosten 2. Jahr'!$C18>0,'Personalkosten 2. Jahr'!$M18/12,0)) -> 0 | L30: =IF('Personalkosten 2. Jahr'!$D18>0,IF('Personalkosten 2. Jahr'!$D18<=Hilfstabelle!L$2=AND('Personalkosten 2. Jahr'!$E18>=Hilfstabelle!L$2),'Personalkosten 2. Jahr'!$M18/('Personalkosten 2. Jahr'!$E18-'Personalkosten 2. Jahr'!$D18+1),0),IF('Personalkosten 2. Jahr'!$C18>0,'Personalkosten 2. Jahr'!$M18/12,0)) -> 0 | M30: =IF('Personalkosten 2. Jahr'!$D18>0,IF('Personalkosten 2. Jahr'!$D18<=Hilfstabelle!M$2=AND('Personalkosten 2. Jahr'!$E18>=Hilfstabelle!M$2),'Personalkosten 2. Jahr'!$M18/('Personalkosten 2. Jahr'!$E18-'Personalkosten 2. Jahr'!$D18+1),0),IF('Personalkosten 2. Jahr'!$C18>0,'Personalkosten 2. Jahr'!$M18/12,0)) -> 0 | N30: 0
A31: 8 | B31: =IF('Personalkosten 2. Jahr'!$D19>0,IF('Personalkosten 2. Jahr'!$D19<=Hilfstabelle!B$2=AND('Personalkosten 2. Jahr'!$E19>=Hilfstabelle!B$2),'Personalkosten 2. Jahr'!$M19/('Personalkosten 2. Jahr'!$E19-'Personalkosten 2. Jahr'!$D19+1),0),IF('Personalkosten 2. Jahr'!$C19>0,'Personalkosten 2. Jahr'!$M19/12,0)) -> 0 | C31: =IF('Personalkosten 2. Jahr'!$D19>0,IF('Personalkosten 2. Jahr'!$D19<=Hilfstabelle!C$2=AND('Personalkosten 2. Jahr'!$E19>=Hilfstabelle!C$2),'Personalkosten 2. Jahr'!$M19/('Personalkosten 2. Jahr'!$E19-'Personalkosten 2. Jahr'!$D19+1),0),IF('Personalkosten 2. Jahr'!$C19>0,'Personalkosten 2. Jahr'!$M19/12,0)) -> 0 | D31: =IF('Personalkosten 2. Jahr'!$D19>0,IF('Personalkosten 2. Jahr'!$D19<=Hilfstabelle!D$2=AND('Personalkosten 2. Jahr'!$E19>=Hilfstabelle!D$2),'Personalkosten 2. Jahr'!$M19/('Personalkosten 2. Jahr'!$E19-'Personalkosten 2. Jahr'!$D19+1),0),IF('Personalkosten 2. Jahr'!$C19>0,'Personalkosten 2. Jahr'!$M19/12,0)) -> 0 | E31: =IF('Personalkosten 2. Jahr'!$D19>0,IF('Personalkosten 2. Jahr'!$D19<=Hilfstabelle!E$2=AND('Personalkosten 2. Jahr'!$E19>=Hilfstabelle!E$2),'Personalkosten 2. Jahr'!$M19/('Personalkosten 2. Jahr'!$E19-'Personalkosten 2. Jahr'!$D19+1),0),IF('Personalkosten 2. Jahr'!$C19>0,'Personalkosten 2. Jahr'!$M19/12,0)) -> 0 | F31: =IF('Personalkosten 2. Jahr'!$D19>0,IF('Personalkosten 2. Jahr'!$D19<=Hilfstabelle!F$2=AND('Personalkosten 2. Jahr'!$E19>=Hilfstabelle!F$2),'Personalkosten 2. Jahr'!$M19/('Personalkosten 2. Jahr'!$E19-'Personalkosten 2. Jahr'!$D19+1),0),IF('Personalkosten 2. Jahr'!$C19>0,'Personalkosten 2. Jahr'!$M19/12,0)) -> 0 | G31: =IF('Personalkosten 2. Jahr'!$D19>0,IF('Personalkosten 2. Jahr'!$D19<=Hilfstabelle!G$2=AND('Personalkosten 2. Jahr'!$E19>=Hilfstabelle!G$2),'Personalkosten 2. Jahr'!$M19/('Personalkosten 2. Jahr'!$E19-'Personalkosten 2. Jahr'!$D19+1),0),IF('Personalkosten 2. Jahr'!$C19>0,'Personalkosten 2. Jahr'!$M19/12,0)) -> 0 | H31: =IF('Personalkosten 2. Jahr'!$D19>0,IF('Personalkosten 2. Jahr'!$D19<=Hilfstabelle!H$2=AND('Personalkosten 2. Jahr'!$E19>=Hilfstabelle!H$2),'Personalkosten 2. Jahr'!$M19/('Personalkosten 2. Jahr'!$E19-'Personalkosten 2. Jahr'!$D19+1),0),IF('Personalkosten 2. Jahr'!$C19>0,'Personalkosten 2. Jahr'!$M19/12,0)) -> 0 | I31: =IF('Personalkosten 2. Jahr'!$D19>0,IF('Personalkosten 2. Jahr'!$D19<=Hilfstabelle!I$2=AND('Personalkosten 2. Jahr'!$E19>=Hilfstabelle!I$2),'Personalkosten 2. Jahr'!$M19/('Personalkosten 2. Jahr'!$E19-'Personalkosten 2. Jahr'!$D19+1),0),IF('Personalkosten 2. Jahr'!$C19>0,'Personalkosten 2. Jahr'!$M19/12,0)) -> 0 | J31: =IF('Personalkosten 2. Jahr'!$D19>0,IF('Personalkosten 2. Jahr'!$D19<=Hilfstabelle!J$2=AND('Personalkosten 2. Jahr'!$E19>=Hilfstabelle!J$2),'Personalkosten 2. Jahr'!$M19/('Personalkosten 2. Jahr'!$E19-'Personalkosten 2. Jahr'!$D19+1),0),IF('Personalkosten 2. Jahr'!$C19>0,'Personalkosten 2. Jahr'!$M19/12,0)) -> 0 | K31: =IF('Personalkosten 2. Jahr'!$D19>0,IF('Personalkosten 2. Jahr'!$D19<=Hilfstabelle!K$2=AND('Personalkosten 2. Jahr'!$E19>=Hilfstabelle!K$2),'Personalkosten 2. Jahr'!$M19/('Personalkosten 2. Jahr'!$E19-'Personalkosten 2. Jahr'!$D19+1),0),IF('Personalkosten 2. Jahr'!$C19>0,'Personalkosten 2. Jahr'!$M19/12,0)) -> 0 | L31: =IF('Personalkosten 2. Jahr'!$D19>0,IF('Personalkosten 2. Jahr'!$D19<=Hilfstabelle!L$2=AND('Personalkosten 2. Jahr'!$E19>=Hilfstabelle!L$2),'Personalkosten 2. Jahr'!$M19/('Personalkosten 2. Jahr'!$E19-'Personalkosten 2. Jahr'!$D19+1),0),IF('Personalkosten 2. Jahr'!$C19>0,'Personalkosten 2. Jahr'!$M19/12,0)) -> 0 | M31: =IF('Personalkosten 2. Jahr'!$D19>0,IF('Personalkosten 2. Jahr'!$D19<=Hilfstabelle!M$2=AND('Personalkosten 2. Jahr'!$E19>=Hilfstabelle!M$2),'Personalkosten 2. Jahr'!$M19/('Personalkosten 2. Jahr'!$E19-'Personalkosten 2. Jahr'!$D19+1),0),IF('Personalkosten 2. Jahr'!$C19>0,'Personalkosten 2. Jahr'!$M19/12,0)) -> 0 | N31: 0
A32: 9 | B32: =IF('Personalkosten 2. Jahr'!$D20>0,IF('Personalkosten 2. Jahr'!$D20<=Hilfstabelle!B$2=AND('Personalkosten 2. Jahr'!$E20>=Hilfstabelle!B$2),'Personalkosten 2. Jahr'!$M20/('Personalkosten 2. Jahr'!$E20-'Personalkosten 2. Jahr'!$D20+1),0),IF('Personalkosten 2. Jahr'!$C20>0,'Personalkosten 2. Jahr'!$M20/12,0)) -> 0 | C32: =IF('Personalkosten 2. Jahr'!$D20>0,IF('Personalkosten 2. Jahr'!$D20<=Hilfstabelle!C$2=AND('Personalkosten 2. Jahr'!$E20>=Hilfstabelle!C$2),'Personalkosten 2. Jahr'!$M20/('Personalkosten 2. Jahr'!$E20-'Personalkosten 2. Jahr'!$D20+1),0),IF('Personalkosten 2. Jahr'!$C20>0,'Personalkosten 2. Jahr'!$M20/12,0)) -> 0 | D32: =IF('Personalkosten 2. Jahr'!$D20>0,IF('Personalkosten 2. Jahr'!$D20<=Hilfstabelle!D$2=AND('Personalkosten 2. Jahr'!$E20>=Hilfstabelle!D$2),'Personalkosten 2. Jahr'!$M20/('Personalkosten 2. Jahr'!$E20-'Personalkosten 2. Jahr'!$D20+1),0),IF('Personalkosten 2. Jahr'!$C20>0,'Personalkosten 2. Jahr'!$M20/12,0)) -> 0 | E32: =IF('Personalkosten 2. Jahr'!$D20>0,IF('Personalkosten 2. Jahr'!$D20<=Hilfstabelle!E$2=AND('Personalkosten 2. Jahr'!$E20>=Hilfstabelle!E$2),'Personalkosten 2. Jahr'!$M20/('Personalkosten 2. Jahr'!$E20-'Personalkosten 2. Jahr'!$D20+1),0),IF('Personalkosten 2. Jahr'!$C20>0,'Personalkosten 2. Jahr'!$M20/12,0)) -> 0 | F32: =IF('Personalkosten 2. Jahr'!$D20>0,IF('Personalkosten 2. Jahr'!$D20<=Hilfstabelle!F$2=AND('Personalkosten 2. Jahr'!$E20>=Hilfstabelle!F$2),'Personalkosten 2. Jahr'!$M20/('Personalkosten 2. Jahr'!$E20-'Personalkosten 2. Jahr'!$D20+1),0),IF('Personalkosten 2. Jahr'!$C20>0,'Personalkosten 2. Jahr'!$M20/12,0)) -> 0 | G32: =IF('Personalkosten 2. Jahr'!$D20>0,IF('Personalkosten 2. Jahr'!$D20<=Hilfstabelle!G$2=AND('Personalkosten 2. Jahr'!$E20>=Hilfstabelle!G$2),'Personalkosten 2. Jahr'!$M20/('Personalkosten 2. Jahr'!$E20-'Personalkosten 2. Jahr'!$D20+1),0),IF('Personalkosten 2. Jahr'!$C20>0,'Personalkosten 2. Jahr'!$M20/12,0)) -> 0 | H32: =IF('Personalkosten 2. Jahr'!$D20>0,IF('Personalkosten 2. Jahr'!$D20<=Hilfstabelle!H$2=AND('Personalkosten 2. Jahr'!$E20>=Hilfstabelle!H$2),'Personalkosten 2. Jahr'!$M20/('Personalkosten 2. Jahr'!$E20-'Personalkosten 2. Jahr'!$D20+1),0),IF('Personalkosten 2. Jahr'!$C20>0,'Personalkosten 2. Jahr'!$M20/12,0)) -> 0 | I32: =IF('Personalkosten 2. Jahr'!$D20>0,IF('Personalkosten 2. Jahr'!$D20<=Hilfstabelle!I$2=AND('Personalkosten 2. Jahr'!$E20>=Hilfstabelle!I$2),'Personalkosten 2. Jahr'!$M20/('Personalkosten 2. Jahr'!$E20-'Personalkosten 2. Jahr'!$D20+1),0),IF('Personalkosten 2. Jahr'!$C20>0,'Personalkosten 2. Jahr'!$M20/12,0)) -> 0 | J32: =IF('Personalkosten 2. Jahr'!$D20>0,IF('Personalkosten 2. Jahr'!$D20<=Hilfstabelle!J$2=AND('Personalkosten 2. Jahr'!$E20>=Hilfstabelle!J$2),'Personalkosten 2. Jahr'!$M20/('Personalkosten 2. Jahr'!$E20-'Personalkosten 2. Jahr'!$D20+1),0),IF('Personalkosten 2. Jahr'!$C20>0,'Personalkosten 2. Jahr'!$M20/12,0)) -> 0 | K32: =IF('Personalkosten 2. Jahr'!$D20>0,IF('Personalkosten 2. Jahr'!$D20<=Hilfstabelle!K$2=AND('Personalkosten 2. Jahr'!$E20>=Hilfstabelle!K$2),'Personalkosten 2. Jahr'!$M20/('Personalkosten 2. Jahr'!$E20-'Personalkosten 2. Jahr'!$D20+1),0),IF('Personalkosten 2. Jahr'!$C20>0,'Personalkosten 2. Jahr'!$M20/12,0)) -> 0 | L32: =IF('Personalkosten 2. Jahr'!$D20>0,IF('Personalkosten 2. Jahr'!$D20<=Hilfstabelle!L$2=AND('Personalkosten 2. Jahr'!$E20>=Hilfstabelle!L$2),'Personalkosten 2. Jahr'!$M20/('Personalkosten 2. Jahr'!$E20-'Personalkosten 2. Jahr'!$D20+1),0),IF('Personalkosten 2. Jahr'!$C20>0,'Personalkosten 2. Jahr'!$M20/12,0)) -> 0 | M32: =IF('Personalkosten 2. Jahr'!$D20>0,IF('Personalkosten 2. Jahr'!$D20<=Hilfstabelle!M$2=AND('Personalkosten 2. Jahr'!$E20>=Hilfstabelle!M$2),'Personalkosten 2. Jahr'!$M20/('Personalkosten 2. Jahr'!$E20-'Personalkosten 2. Jahr'!$D20+1),0),IF('Personalkosten 2. Jahr'!$C20>0,'Personalkosten 2. Jahr'!$M20/12,0)) -> 0 | N32: 0
A33: 10 | B33: =IF('Personalkosten 2. Jahr'!$D21>0,IF('Personalkosten 2. Jahr'!$D21<=Hilfstabelle!B$2=AND('Personalkosten 2. Jahr'!$E21>=Hilfstabelle!B$2),'Personalkosten 2. Jahr'!$M21/('Personalkosten 2. Jahr'!$E21-'Personalkosten 2. Jahr'!$D21+1),0),IF('Personalkosten 2. Jahr'!$C21>0,'Personalkosten 2. Jahr'!$M21/12,0)) -> 0 | C33: =IF('Personalkosten 2. Jahr'!$D21>0,IF('Personalkosten 2. Jahr'!$D21<=Hilfstabelle!C$2=AND('Personalkosten 2. Jahr'!$E21>=Hilfstabelle!C$2),'Personalkosten 2. Jahr'!$M21/('Personalkosten 2. Jahr'!$E21-'Personalkosten 2. Jahr'!$D21+1),0),IF('Personalkosten 2. Jahr'!$C21>0,'Personalkosten 2. Jahr'!$M21/12,0)) -> 0 | D33: =IF('Personalkosten 2. Jahr'!$D21>0,IF('Personalkosten 2. Jahr'!$D21<=Hilfstabelle!D$2=AND('Personalkosten 2. Jahr'!$E21>=Hilfstabelle!D$2),'Personalkosten 2. Jahr'!$M21/('Personalkosten 2. Jahr'!$E21-'Personalkosten 2. Jahr'!$D21+1),0),IF('Personalkosten 2. Jahr'!$C21>0,'Personalkosten 2. Jahr'!$M21/12,0)) -> 0 | E33: =IF('Personalkosten 2. Jahr'!$D21>0,IF('Personalkosten 2. Jahr'!$D21<=Hilfstabelle!E$2=AND('Personalkosten 2. Jahr'!$E21>=Hilfstabelle!E$2),'Personalkosten 2. Jahr'!$M21/('Personalkosten 2. Jahr'!$E21-'Personalkosten 2. Jahr'!$D21+1),0),IF('Personalkosten 2. Jahr'!$C21>0,'Personalkosten 2. Jahr'!$M21/12,0)) -> 0 | F33: =IF('Personalkosten 2. Jahr'!$D21>0,IF('Personalkosten 2. Jahr'!$D21<=Hilfstabelle!F$2=AND('Personalkosten 2. Jahr'!$E21>=Hilfstabelle!F$2),'Personalkosten 2. Jahr'!$M21/('Personalkosten 2. Jahr'!$E21-'Personalkosten 2. Jahr'!$D21+1),0),IF('Personalkosten 2. Jahr'!$C21>0,'Personalkosten 2. Jahr'!$M21/12,0)) -> 0 | G33: =IF('Personalkosten 2. Jahr'!$D21>0,IF('Personalkosten 2. Jahr'!$D21<=Hilfstabelle!G$2=AND('Personalkosten 2. Jahr'!$E21>=Hilfstabelle!G$2),'Personalkosten 2. Jahr'!$M21/('Personalkosten 2. Jahr'!$E21-'Personalkosten 2. Jahr'!$D21+1),0),IF('Personalkosten 2. Jahr'!$C21>0,'Personalkosten 2. Jahr'!$M21/12,0)) -> 0 | H33: =IF('Personalkosten 2. Jahr'!$D21>0,IF('Personalkosten 2. Jahr'!$D21<=Hilfstabelle!H$2=AND('Personalkosten 2. Jahr'!$E21>=Hilfstabelle!H$2),'Personalkosten 2. Jahr'!$M21/('Personalkosten 2. Jahr'!$E21-'Personalkosten 2. Jahr'!$D21+1),0),IF('Personalkosten 2. Jahr'!$C21>0,'Personalkosten 2. Jahr'!$M21/12,0)) -> 0 | I33: =IF('Personalkosten 2. Jahr'!$D21>0,IF('Personalkosten 2. Jahr'!$D21<=Hilfstabelle!I$2=AND('Personalkosten 2. Jahr'!$E21>=Hilfstabelle!I$2),'Personalkosten 2. Jahr'!$M21/('Personalkosten 2. Jahr'!$E21-'Personalkosten 2. Jahr'!$D21+1),0),IF('Personalkosten 2. Jahr'!$C21>0,'Personalkosten 2. Jahr'!$M21/12,0)) -> 0 | J33: =IF('Personalkosten 2. Jahr'!$D21>0,IF('Personalkosten 2. Jahr'!$D21<=Hilfstabelle!J$2=AND('Personalkosten 2. Jahr'!$E21>=Hilfstabelle!J$2),'Personalkosten 2. Jahr'!$M21/('Personalkosten 2. Jahr'!$E21-'Personalkosten 2. Jahr'!$D21+1),0),IF('Personalkosten 2. Jahr'!$C21>0,'Personalkosten 2. Jahr'!$M21/12,0)) -> 0 | K33: =IF('Personalkosten 2. Jahr'!$D21>0,IF('Personalkosten 2. Jahr'!$D21<=Hilfstabelle!K$2=AND('Personalkosten 2. Jahr'!$E21>=Hilfstabelle!K$2),'Personalkosten 2. Jahr'!$M21/('Personalkosten 2. Jahr'!$E21-'Personalkosten 2. Jahr'!$D21+1),0),IF('Personalkosten 2. Jahr'!$C21>0,'Personalkosten 2. Jahr'!$M21/12,0)) -> 0 | L33: =IF('Personalkosten 2. Jahr'!$D21>0,IF('Personalkosten 2. Jahr'!$D21<=Hilfstabelle!L$2=AND('Personalkosten 2. Jahr'!$E21>=Hilfstabelle!L$2),'Personalkosten 2. Jahr'!$M21/('Personalkosten 2. Jahr'!$E21-'Personalkosten 2. Jahr'!$D21+1),0),IF('Personalkosten 2. Jahr'!$C21>0,'Personalkosten 2. Jahr'!$M21/12,0)) -> 0 | M33: =IF('Personalkosten 2. Jahr'!$D21>0,IF('Personalkosten 2. Jahr'!$D21<=Hilfstabelle!M$2=AND('Personalkosten 2. Jahr'!$E21>=Hilfstabelle!M$2),'Personalkosten 2. Jahr'!$M21/('Personalkosten 2. Jahr'!$E21-'Personalkosten 2. Jahr'!$D21+1),0),IF('Personalkosten 2. Jahr'!$C21>0,'Personalkosten 2. Jahr'!$M21/12,0)) -> 0 | N33: 0
A34: 11 | B34: =IF('Personalkosten 2. Jahr'!$D22>0,IF('Personalkosten 2. Jahr'!$D22<=Hilfstabelle!B$2=AND('Personalkosten 2. Jahr'!$E22>=Hilfstabelle!B$2),'Personalkosten 2. Jahr'!$M22/('Personalkosten 2. Jahr'!$E22-'Personalkosten 2. Jahr'!$D22+1),0),IF('Personalkosten 2. Jahr'!$C22>0,'Personalkosten 2. Jahr'!$M22/12,0)) -> 0 | C34: =IF('Personalkosten 2. Jahr'!$D22>0,IF('Personalkosten 2. Jahr'!$D22<=Hilfstabelle!C$2=AND('Personalkosten 2. Jahr'!$E22>=Hilfstabelle!C$2),'Personalkosten 2. Jahr'!$M22/('Personalkosten 2. Jahr'!$E22-'Personalkosten 2. Jahr'!$D22+1),0),IF('Personalkosten 2. Jahr'!$C22>0,'Personalkosten 2. Jahr'!$M22/12,0)) -> 0 | D34: =IF('Personalkosten 2. Jahr'!$D22>0,IF('Personalkosten 2. Jahr'!$D22<=Hilfstabelle!D$2=AND('Personalkosten 2. Jahr'!$E22>=Hilfstabelle!D$2),'Personalkosten 2. Jahr'!$M22/('Personalkosten 2. Jahr'!$E22-'Personalkosten 2. Jahr'!$D22+1),0),IF('Personalkosten 2. Jahr'!$C22>0,'Personalkosten 2. Jahr'!$M22/12,0)) -> 0 | E34: =IF('Personalkosten 2. Jahr'!$D22>0,IF('Personalkosten 2. Jahr'!$D22<=Hilfstabelle!E$2=AND('Personalkosten 2. Jahr'!$E22>=Hilfstabelle!E$2),'Personalkosten 2. Jahr'!$M22/('Personalkosten 2. Jahr'!$E22-'Personalkosten 2. Jahr'!$D22+1),0),IF('Personalkosten 2. Jahr'!$C22>0,'Personalkosten 2. Jahr'!$M22/12,0)) -> 0 | F34: =IF('Personalkosten 2. Jahr'!$D22>0,IF('Personalkosten 2. Jahr'!$D22<=Hilfstabelle!F$2=AND('Personalkosten 2. Jahr'!$E22>=Hilfstabelle!F$2),'Personalkosten 2. Jahr'!$M22/('Personalkosten 2. Jahr'!$E22-'Personalkosten 2. Jahr'!$D22+1),0),IF('Personalkosten 2. Jahr'!$C22>0,'Personalkosten 2. Jahr'!$M22/12,0)) -> 0 | G34: =IF('Personalkosten 2. Jahr'!$D22>0,IF('Personalkosten 2. Jahr'!$D22<=Hilfstabelle!G$2=AND('Personalkosten 2. Jahr'!$E22>=Hilfstabelle!G$2),'Personalkosten 2. Jahr'!$M22/('Personalkosten 2. Jahr'!$E22-'Personalkosten 2. Jahr'!$D22+1),0),IF('Personalkosten 2. Jahr'!$C22>0,'Personalkosten 2. Jahr'!$M22/12,0)) -> 0 | H34: =IF('Personalkosten 2. Jahr'!$D22>0,IF('Personalkosten 2. Jahr'!$D22<=Hilfstabelle!H$2=AND('Personalkosten 2. Jahr'!$E22>=Hilfstabelle!H$2),'Personalkosten 2. Jahr'!$M22/('Personalkosten 2. Jahr'!$E22-'Personalkosten 2. Jahr'!$D22+1),0),IF('Personalkosten 2. Jahr'!$C22>0,'Personalkosten 2. Jahr'!$M22/12,0)) -> 0 | I34: =IF('Personalkosten 2. Jahr'!$D22>0,IF('Personalkosten 2. Jahr'!$D22<=Hilfstabelle!I$2=AND('Personalkosten 2. Jahr'!$E22>=Hilfstabelle!I$2),'Personalkosten 2. Jahr'!$M22/('Personalkosten 2. Jahr'!$E22-'Personalkosten 2. Jahr'!$D22+1),0),IF('Personalkosten 2. Jahr'!$C22>0,'Personalkosten 2. Jahr'!$M22/12,0)) -> 0 | J34: =IF('Personalkosten 2. Jahr'!$D22>0,IF('Personalkosten 2. Jahr'!$D22<=Hilfstabelle!J$2=AND('Personalkosten 2. Jahr'!$E22>=Hilfstabelle!J$2),'Personalkosten 2. Jahr'!$M22/('Personalkosten 2. Jahr'!$E22-'Personalkosten 2. Jahr'!$D22+1),0),IF('Personalkosten 2. Jahr'!$C22>0,'Personalkosten 2. Jahr'!$M22/12,0)) -> 0 | K34: =IF('Personalkosten 2. Jahr'!$D22>0,IF('Personalkosten 2. Jahr'!$D22<=Hilfstabelle!K$2=AND('Personalkosten 2. Jahr'!$E22>=Hilfstabelle!K$2),'Personalkosten 2. Jahr'!$M22/('Personalkosten 2. Jahr'!$E22-'Personalkosten 2. Jahr'!$D22+1),0),IF('Personalkosten 2. Jahr'!$C22>0,'Personalkosten 2. Jahr'!$M22/12,0)) -> 0 | L34: =IF('Personalkosten 2. Jahr'!$D22>0,IF('Personalkosten 2. Jahr'!$D22<=Hilfstabelle!L$2=AND('Personalkosten 2. Jahr'!$E22>=Hilfstabelle!L$2),'Personalkosten 2. Jahr'!$M22/('Personalkosten 2. Jahr'!$E22-'Personalkosten 2. Jahr'!$D22+1),0),IF('Personalkosten 2. Jahr'!$C22>0,'Personalkosten 2. Jahr'!$M22/12,0)) -> 0 | M34: =IF('Personalkosten 2. Jahr'!$D22>0,IF('Personalkosten 2. Jahr'!$D22<=Hilfstabelle!M$2=AND('Personalkosten 2. Jahr'!$E22>=Hilfstabelle!M$2),'Personalkosten 2. Jahr'!$M22/('Personalkosten 2. Jahr'!$E22-'Personalkosten 2. Jahr'!$D22+1),0),IF('Personalkosten 2. Jahr'!$C22>0,'Personalkosten 2. Jahr'!$M22/12,0)) -> 0 | N34: 0
A35: 12 | B35: =IF('Personalkosten 2. Jahr'!$D23>0,IF('Personalkosten 2. Jahr'!$D23<=Hilfstabelle!B$2=AND('Personalkosten 2. Jahr'!$E23>=Hilfstabelle!B$2),'Personalkosten 2. Jahr'!$M23/('Personalkosten 2. Jahr'!$E23-'Personalkosten 2. Jahr'!$D23+1),0),IF('Personalkosten 2. Jahr'!$C23>0,'Personalkosten 2. Jahr'!$M23/12,0)) -> 0 | C35: =IF('Personalkosten 2. Jahr'!$D23>0,IF('Personalkosten 2. Jahr'!$D23<=Hilfstabelle!C$2=AND('Personalkosten 2. Jahr'!$E23>=Hilfstabelle!C$2),'Personalkosten 2. Jahr'!$M23/('Personalkosten 2. Jahr'!$E23-'Personalkosten 2. Jahr'!$D23+1),0),IF('Personalkosten 2. Jahr'!$C23>0,'Personalkosten 2. Jahr'!$M23/12,0)) -> 0 | D35: =IF('Personalkosten 2. Jahr'!$D23>0,IF('Personalkosten 2. Jahr'!$D23<=Hilfstabelle!D$2=AND('Personalkosten 2. Jahr'!$E23>=Hilfstabelle!D$2),'Personalkosten 2. Jahr'!$M23/('Personalkosten 2. Jahr'!$E23-'Personalkosten 2. Jahr'!$D23+1),0),IF('Personalkosten 2. Jahr'!$C23>0,'Personalkosten 2. Jahr'!$M23/12,0)) -> 0 | E35: =IF('Personalkosten 2. Jahr'!$D23>0,IF('Personalkosten 2. Jahr'!$D23<=Hilfstabelle!E$2=AND('Personalkosten 2. Jahr'!$E23>=Hilfstabelle!E$2),'Personalkosten 2. Jahr'!$M23/('Personalkosten 2. Jahr'!$E23-'Personalkosten 2. Jahr'!$D23+1),0),IF('Personalkosten 2. Jahr'!$C23>0,'Personalkosten 2. Jahr'!$M23/12,0)) -> 0 | F35: =IF('Personalkosten 2. Jahr'!$D23>0,IF('Personalkosten 2. Jahr'!$D23<=Hilfstabelle!F$2=AND('Personalkosten 2. Jahr'!$E23>=Hilfstabelle!F$2),'Personalkosten 2. Jahr'!$M23/('Personalkosten 2. Jahr'!$E23-'Personalkosten 2. Jahr'!$D23+1),0),IF('Personalkosten 2. Jahr'!$C23>0,'Personalkosten 2. Jahr'!$M23/12,0)) -> 0 | G35: =IF('Personalkosten 2. Jahr'!$D23>0,IF('Personalkosten 2. Jahr'!$D23<=Hilfstabelle!G$2=AND('Personalkosten 2. Jahr'!$E23>=Hilfstabelle!G$2),'Personalkosten 2. Jahr'!$M23/('Personalkosten 2. Jahr'!$E23-'Personalkosten 2. Jahr'!$D23+1),0),IF('Personalkosten 2. Jahr'!$C23>0,'Personalkosten 2. Jahr'!$M23/12,0)) -> 0 | H35: =IF('Personalkosten 2. Jahr'!$D23>0,IF('Personalkosten 2. Jahr'!$D23<=Hilfstabelle!H$2=AND('Personalkosten 2. Jahr'!$E23>=Hilfstabelle!H$2),'Personalkosten 2. Jahr'!$M23/('Personalkosten 2. Jahr'!$E23-'Personalkosten 2. Jahr'!$D23+1),0),IF('Personalkosten 2. Jahr'!$C23>0,'Personalkosten 2. Jahr'!$M23/12,0)) -> 0 | I35: =IF('Personalkosten 2. Jahr'!$D23>0,IF('Personalkosten 2. Jahr'!$D23<=Hilfstabelle!I$2=AND('Personalkosten 2. Jahr'!$E23>=Hilfstabelle!I$2),'Personalkosten 2. Jahr'!$M23/('Personalkosten 2. Jahr'!$E23-'Personalkosten 2. Jahr'!$D23+1),0),IF('Personalkosten 2. Jahr'!$C23>0,'Personalkosten 2. Jahr'!$M23/12,0)) -> 0 | J35: =IF('Personalkosten 2. Jahr'!$D23>0,IF('Personalkosten 2. Jahr'!$D23<=Hilfstabelle!J$2=AND('Personalkosten 2. Jahr'!$E23>=Hilfstabelle!J$2),'Personalkosten 2. Jahr'!$M23/('Personalkosten 2. Jahr'!$E23-'Personalkosten 2. Jahr'!$D23+1),0),IF('Personalkosten 2. Jahr'!$C23>0,'Personalkosten 2. Jahr'!$M23/12,0)) -> 0 | K35: =IF('Personalkosten 2. Jahr'!$D23>0,IF('Personalkosten 2. Jahr'!$D23<=Hilfstabelle!K$2=AND('Personalkosten 2. Jahr'!$E23>=Hilfstabelle!K$2),'Personalkosten 2. Jahr'!$M23/('Personalkosten 2. Jahr'!$E23-'Personalkosten 2. Jahr'!$D23+1),0),IF('Personalkosten 2. Jahr'!$C23>0,'Personalkosten 2. Jahr'!$M23/12,0)) -> 0 | L35: =IF('Personalkosten 2. Jahr'!$D23>0,IF('Personalkosten 2. Jahr'!$D23<=Hilfstabelle!L$2=AND('Personalkosten 2. Jahr'!$E23>=Hilfstabelle!L$2),'Personalkosten 2. Jahr'!$M23/('Personalkosten 2. Jahr'!$E23-'Personalkosten 2. Jahr'!$D23+1),0),IF('Personalkosten 2. Jahr'!$C23>0,'Personalkosten 2. Jahr'!$M23/12,0)) -> 0 | M35: =IF('Personalkosten 2. Jahr'!$D23>0,IF('Personalkosten 2. Jahr'!$D23<=Hilfstabelle!M$2=AND('Personalkosten 2. Jahr'!$E23>=Hilfstabelle!M$2),'Personalkosten 2. Jahr'!$M23/('Personalkosten 2. Jahr'!$E23-'Personalkosten 2. Jahr'!$D23+1),0),IF('Personalkosten 2. Jahr'!$C23>0,'Personalkosten 2. Jahr'!$M23/12,0)) -> 0 | N35: 0
A36: BG+ | B36: =('Personalkosten 2. Jahr'!$M$25+'Personalkosten 2. Jahr'!$M$26)*Hilfstabelle!B37/'Personalkosten 2. Jahr'!$M$24 ->  | C36: =('Personalkosten 2. Jahr'!$M$25+'Personalkosten 2. Jahr'!$M$26)*Hilfstabelle!C37/'Personalkosten 2. Jahr'!$M$24 ->  | D36: =('Personalkosten 2. Jahr'!$M$25+'Personalkosten 2. Jahr'!$M$26)*Hilfstabelle!D37/'Personalkosten 2. Jahr'!$M$24 ->  | E36: =('Personalkosten 2. Jahr'!$M$25+'Personalkosten 2. Jahr'!$M$26)*Hilfstabelle!E37/'Personalkosten 2. Jahr'!$M$24 ->  | F36: =('Personalkosten 2. Jahr'!$M$25+'Personalkosten 2. Jahr'!$M$26)*Hilfstabelle!F37/'Personalkosten 2. Jahr'!$M$24 ->  | G36: =('Personalkosten 2. Jahr'!$M$25+'Personalkosten 2. Jahr'!$M$26)*Hilfstabelle!G37/'Personalkosten 2. Jahr'!$M$24 ->  | H36: =('Personalkosten 2. Jahr'!$M$25+'Personalkosten 2. Jahr'!$M$26)*Hilfstabelle!H37/'Personalkosten 2. Jahr'!$M$24 ->  | I36: =('Personalkosten 2. Jahr'!$M$25+'Personalkosten 2. Jahr'!$M$26)*Hilfstabelle!I37/'Personalkosten 2. Jahr'!$M$24 ->  | J36: =('Personalkosten 2. Jahr'!$M$25+'Personalkosten 2. Jahr'!$M$26)*Hilfstabelle!J37/'Personalkosten 2. Jahr'!$M$24 ->  | K36: =('Personalkosten 2. Jahr'!$M$25+'Personalkosten 2. Jahr'!$M$26)*Hilfstabelle!K37/'Personalkosten 2. Jahr'!$M$24 ->  | L36: =('Personalkosten 2. Jahr'!$M$25+'Personalkosten 2. Jahr'!$M$26)*Hilfstabelle!L37/'Personalkosten 2. Jahr'!$M$24 ->  | M36: =('Personalkosten 2. Jahr'!$M$25+'Personalkosten 2. Jahr'!$M$26)*Hilfstabelle!M37/'Personalkosten 2. Jahr'!$M$24 -> 
A37: Gesamt | B37: =SUM(B24:B35) -> 0.0 | C37: =SUM(C24:C35) -> 0.0 | D37: =SUM(D24:D35) -> 0.0 | E37: 0.0 | F37: 0.0 | G37: 0.0 | H37: 0.0 | I37: 0.0 | J37: 0.0 | K37: 0.0 | L37: 0.0 | M37: 0.0 | N37: 0
A38: Gesamt | B38: =IF(B37>0,B36+B37,B37) -> 0.0 | C38: =IF(C37>0,C36+C37,C37) -> 0.0 | D38: =IF(D37>0,D36+D37,D37) -> 0.0 | E38: 0.0 | F38: 0.0 | G38: 0.0 | H38: 0.0 | I38: 0.0 | J38: 0.0 | K38: 0.0 | L38: 0.0 | M38: 0.0 | N38: 0.0
A44: 3.Jahr | B44: 1 | C44: 2 | D44: 3 | E44: 4 | F44: 5 | G44: 6 | H44: 7 | I44: 8 | J44: 9 | K44: 10 | L44: 11 | M44: 12 | N44: Gesamt
A45: 1 | B45: =IF('Personalkosten 3. Jahr'!$D12>0,IF('Personalkosten 3. Jahr'!$D12<=Hilfstabelle!B$2=AND('Personalkosten 3. Jahr'!$E12>=Hilfstabelle!B$2),'Personalkosten 3. Jahr'!$M12/('Personalkosten 3. Jahr'!$E12-'Personalkosten 3. Jahr'!$D12+1),0),IF('Personalkosten 3. Jahr'!$C12>0,'Personalkosten 3. Jahr'!$M12/12,0)) -> 0 | C45: =IF('Personalkosten 3. Jahr'!$D12>0,IF('Personalkosten 3. Jahr'!$D12<=Hilfstabelle!C$2=AND('Personalkosten 3. Jahr'!$E12>=Hilfstabelle!C$2),'Personalkosten 3. Jahr'!$M12/('Personalkosten 3. Jahr'!$E12-'Personalkosten 3. Jahr'!$D12+1),0),IF('Personalkosten 3. Jahr'!$C12>0,'Personalkosten 3. Jahr'!$M12/12,0)) -> 0 | D45: =IF('Personalkosten 3. Jahr'!$D12>0,IF('Personalkosten 3. Jahr'!$D12<=Hilfstabelle!D$2=AND('Personalkosten 3. Jahr'!$E12>=Hilfstabelle!D$2),'Personalkosten 3. Jahr'!$M12/('Personalkosten 3. Jahr'!$E12-'Personalkosten 3. Jahr'!$D12+1),0),IF('Personalkosten 3. Jahr'!$C12>0,'Personalkosten 3. Jahr'!$M12/12,0)) -> 0 | E45: =IF('Personalkosten 3. Jahr'!$D12>0,IF('Personalkosten 3. Jahr'!$D12<=Hilfstabelle!E$2=AND('Personalkosten 3. Jahr'!$E12>=Hilfstabelle!E$2),'Personalkosten 3. Jahr'!$M12/('Personalkosten 3. Jahr'!$E12-'Personalkosten 3. Jahr'!$D12+1),0),IF('Personalkosten 3. Jahr'!$C12>0,'Personalkosten 3. Jahr'!$M12/12,0)) -> 0 | F45: =IF('Personalkosten 3. Jahr'!$D12>0,IF('Personalkosten 3. Jahr'!$D12<=Hilfstabelle!F$2=AND('Personalkosten 3. Jahr'!$E12>=Hilfstabelle!F$2),'Personalkosten 3. Jahr'!$M12/('Personalkosten 3. Jahr'!$E12-'Personalkosten 3. Jahr'!$D12+1),0),IF('Personalkosten 3. Jahr'!$C12>0,'Personalkosten 3. Jahr'!$M12/12,0)) -> 0 | G45: =IF('Personalkosten 3. Jahr'!$D12>0,IF('Personalkosten 3. Jahr'!$D12<=Hilfstabelle!G$2=AND('Personalkosten 3. Jahr'!$E12>=Hilfstabelle!G$2),'Personalkosten 3. Jahr'!$M12/('Personalkosten 3. Jahr'!$E12-'Personalkosten 3. Jahr'!$D12+1),0),IF('Personalkosten 3. Jahr'!$C12>0,'Personalkosten 3. Jahr'!$M12/12,0)) -> 0 | H45: =IF('Personalkosten 3. Jahr'!$D12>0,IF('Personalkosten 3. Jahr'!$D12<=Hilfstabelle!H$2=AND('Personalkosten 3. Jahr'!$E12>=Hilfstabelle!H$2),'Personalkosten 3. Jahr'!$M12/('Personalkosten 3. Jahr'!$E12-'Personalkosten 3. Jahr'!$D12+1),0),IF('Personalkosten 3. Jahr'!$C12>0,'Personalkosten 3. Jahr'!$M12/12,0)) -> 0 | I45: =IF('Personalkosten 3. Jahr'!$D12>0,IF('Personalkosten 3. Jahr'!$D12<=Hilfstabelle!I$2=AND('Personalkosten 3. Jahr'!$E12>=Hilfstabelle!I$2),'Personalkosten 3. Jahr'!$M12/('Personalkosten 3. Jahr'!$E12-'Personalkosten 3. Jahr'!$D12+1),0),IF('Personalkosten 3. Jahr'!$C12>0,'Personalkosten 3. Jahr'!$M12/12,0)) -> 0 | J45: =IF('Personalkosten 3. Jahr'!$D12>0,IF('Personalkosten 3. Jahr'!$D12<=Hilfstabelle!J$2=AND('Personalkosten 3. Jahr'!$E12>=Hilfstabelle!J$2),'Personalkosten 3. Jahr'!$M12/('Personalkosten 3. Jahr'!$E12-'Personalkosten 3. Jahr'!$D12+1),0),IF('Personalkosten 3. Jahr'!$C12>0,'Personalkosten 3. Jahr'!$M12/12,0)) -> 0 | K45: =IF('Personalkosten 3. Jahr'!$D12>0,IF('Personalkosten 3. Jahr'!$D12<=Hilfstabelle!K$2=AND('Personalkosten 3. Jahr'!$E12>=Hilfstabelle!K$2),'Personalkosten 3. Jahr'!$M12/('Personalkosten 3. Jahr'!$E12-'Personalkosten 3. Jahr'!$D12+1),0),IF('Personalkosten 3. Jahr'!$C12>0,'Personalkosten 3. Jahr'!$M12/12,0)) -> 0 | L45: =IF('Personalkosten 3. Jahr'!$D12>0,IF('Personalkosten 3. Jahr'!$D12<=Hilfstabelle!L$2=AND('Personalkosten 3. Jahr'!$E12>=Hilfstabelle!L$2),'Personalkosten 3. Jahr'!$M12/('Personalkosten 3. Jahr'!$E12-'Personalkosten 3. Jahr'!$D12+1),0),IF('Personalkosten 3. Jahr'!$C12>0,'Personalkosten 3. Jahr'!$M12/12,0)) -> 0 | M45: =IF('Personalkosten 3. Jahr'!$D12>0,IF('Personalkosten 3. Jahr'!$D12<=Hilfstabelle!M$2=AND('Personalkosten 3. Jahr'!$E12>=Hilfstabelle!M$2),'Personalkosten 3. Jahr'!$M12/('Personalkosten 3. Jahr'!$E12-'Personalkosten 3. Jahr'!$D12+1),0),IF('Personalkosten 3. Jahr'!$C12>0,'Personalkosten 3. Jahr'!$M12/12,0)) -> 0 | N45: =SUM(B45:M45) -> 0
A46: 2 | B46: =IF('Personalkosten 3. Jahr'!$D13>0,IF('Personalkosten 3. Jahr'!$D13<=Hilfstabelle!B$2=AND('Personalkosten 3. Jahr'!$E13>=Hilfstabelle!B$2),'Personalkosten 3. Jahr'!$M13/('Personalkosten 3. Jahr'!$E13-'Personalkosten 3. Jahr'!$D13+1),0),IF('Personalkosten 3. Jahr'!$C13>0,'Personalkosten 3. Jahr'!$M13/12,0)) -> 0 | C46: =IF('Personalkosten 3. Jahr'!$D13>0,IF('Personalkosten 3. Jahr'!$D13<=Hilfstabelle!C$2=AND('Personalkosten 3. Jahr'!$E13>=Hilfstabelle!C$2),'Personalkosten 3. Jahr'!$M13/('Personalkosten 3. Jahr'!$E13-'Personalkosten 3. Jahr'!$D13+1),0),IF('Personalkosten 3. Jahr'!$C13>0,'Personalkosten 3. Jahr'!$M13/12,0)) -> 0 | D46: =IF('Personalkosten 3. Jahr'!$D13>0,IF('Personalkosten 3. Jahr'!$D13<=Hilfstabelle!D$2=AND('Personalkosten 3. Jahr'!$E13>=Hilfstabelle!D$2),'Personalkosten 3. Jahr'!$M13/('Personalkosten 3. Jahr'!$E13-'Personalkosten 3. Jahr'!$D13+1),0),IF('Personalkosten 3. Jahr'!$C13>0,'Personalkosten 3. Jahr'!$M13/12,0)) -> 0 | E46: =IF('Personalkosten 3. Jahr'!$D13>0,IF('Personalkosten 3. Jahr'!$D13<=Hilfstabelle!E$2=AND('Personalkosten 3. Jahr'!$E13>=Hilfstabelle!E$2),'Personalkosten 3. Jahr'!$M13/('Personalkosten 3. Jahr'!$E13-'Personalkosten 3. Jahr'!$D13+1),0),IF('Personalkosten 3. Jahr'!$C13>0,'Personalkosten 3. Jahr'!$M13/12,0)) -> 0 | F46: =IF('Personalkosten 3. Jahr'!$D13>0,IF('Personalkosten 3. Jahr'!$D13<=Hilfstabelle!F$2=AND('Personalkosten 3. Jahr'!$E13>=Hilfstabelle!F$2),'Personalkosten 3. Jahr'!$M13/('Personalkosten 3. Jahr'!$E13-'Personalkosten 3. Jahr'!$D13+1),0),IF('Personalkosten 3. Jahr'!$C13>0,'Personalkosten 3. Jahr'!$M13/12,0)) -> 0 | G46: =IF('Personalkosten 3. Jahr'!$D13>0,IF('Personalkosten 3. Jahr'!$D13<=Hilfstabelle!G$2=AND('Personalkosten 3. Jahr'!$E13>=Hilfstabelle!G$2),'Personalkosten 3. Jahr'!$M13/('Personalkosten 3. Jahr'!$E13-'Personalkosten 3. Jahr'!$D13+1),0),IF('Personalkosten 3. Jahr'!$C13>0,'Personalkosten 3. Jahr'!$M13/12,0)) -> 0 | H46: =IF('Personalkosten 3. Jahr'!$D13>0,IF('Personalkosten 3. Jahr'!$D13<=Hilfstabelle!H$2=AND('Personalkosten 3. Jahr'!$E13>=Hilfstabelle!H$2),'Personalkosten 3. Jahr'!$M13/('Personalkosten 3. Jahr'!$E13-'Personalkosten 3. Jahr'!$D13+1),0),IF('Personalkosten 3. Jahr'!$C13>0,'Personalkosten 3. Jahr'!$M13/12,0)) -> 0 | I46: =IF('Personalkosten 3. Jahr'!$D13>0,IF('Personalkosten 3. Jahr'!$D13<=Hilfstabelle!I$2=AND('Personalkosten 3. Jahr'!$E13>=Hilfstabelle!I$2),'Personalkosten 3. Jahr'!$M13/('Personalkosten 3. Jahr'!$E13-'Personalkosten 3. Jahr'!$D13+1),0),IF('Personalkosten 3. Jahr'!$C13>0,'Personalkosten 3. Jahr'!$M13/12,0)) -> 0 | J46: =IF('Personalkosten 3. Jahr'!$D13>0,IF('Personalkosten 3. Jahr'!$D13<=Hilfstabelle!J$2=AND('Personalkosten 3. Jahr'!$E13>=Hilfstabelle!J$2),'Personalkosten 3. Jahr'!$M13/('Personalkosten 3. Jahr'!$E13-'Personalkosten 3. Jahr'!$D13+1),0),IF('Personalkosten 3. Jahr'!$C13>0,'Personalkosten 3. Jahr'!$M13/12,0)) -> 0 | K46: =IF('Personalkosten 3. Jahr'!$D13>0,IF('Personalkosten 3. Jahr'!$D13<=Hilfstabelle!K$2=AND('Personalkosten 3. Jahr'!$E13>=Hilfstabelle!K$2),'Personalkosten 3. Jahr'!$M13/('Personalkosten 3. Jahr'!$E13-'Personalkosten 3. Jahr'!$D13+1),0),IF('Personalkosten 3. Jahr'!$C13>0,'Personalkosten 3. Jahr'!$M13/12,0)) -> 0 | L46: =IF('Personalkosten 3. Jahr'!$D13>0,IF('Personalkosten 3. Jahr'!$D13<=Hilfstabelle!L$2=AND('Personalkosten 3. Jahr'!$E13>=Hilfstabelle!L$2),'Personalkosten 3. Jahr'!$M13/('Personalkosten 3. Jahr'!$E13-'Personalkosten 3. Jahr'!$D13+1),0),IF('Personalkosten 3. Jahr'!$C13>0,'Personalkosten 3. Jahr'!$M13/12,0)) -> 0 | M46: =IF('Personalkosten 3. Jahr'!$D13>0,IF('Personalkosten 3. Jahr'!$D13<=Hilfstabelle!M$2=AND('Personalkosten 3. Jahr'!$E13>=Hilfstabelle!M$2),'Personalkosten 3. Jahr'!$M13/('Personalkosten 3. Jahr'!$E13-'Personalkosten 3. Jahr'!$D13+1),0),IF('Personalkosten 3. Jahr'!$C13>0,'Personalkosten 3. Jahr'!$M13/12,0)) -> 0 | N46: 0
A47: 3 | B47: =IF('Personalkosten 3. Jahr'!$D14>0,IF('Personalkosten 3. Jahr'!$D14<=Hilfstabelle!B$2=AND('Personalkosten 3. Jahr'!$E14>=Hilfstabelle!B$2),'Personalkosten 3. Jahr'!$M14/('Personalkosten 3. Jahr'!$E14-'Personalkosten 3. Jahr'!$D14+1),0),IF('Personalkosten 3. Jahr'!$C14>0,'Personalkosten 3. Jahr'!$M14/12,0)) -> 0 | C47: =IF('Personalkosten 3. Jahr'!$D14>0,IF('Personalkosten 3. Jahr'!$D14<=Hilfstabelle!C$2=AND('Personalkosten 3. Jahr'!$E14>=Hilfstabelle!C$2),'Personalkosten 3. Jahr'!$M14/('Personalkosten 3. Jahr'!$E14-'Personalkosten 3. Jahr'!$D14+1),0),IF('Personalkosten 3. Jahr'!$C14>0,'Personalkosten 3. Jahr'!$M14/12,0)) -> 0 | D47: =IF('Personalkosten 3. Jahr'!$D14>0,IF('Personalkosten 3. Jahr'!$D14<=Hilfstabelle!D$2=AND('Personalkosten 3. Jahr'!$E14>=Hilfstabelle!D$2),'Personalkosten 3. Jahr'!$M14/('Personalkosten 3. Jahr'!$E14-'Personalkosten 3. Jahr'!$D14+1),0),IF('Personalkosten 3. Jahr'!$C14>0,'Personalkosten 3. Jahr'!$M14/12,0)) -> 0 | E47: =IF('Personalkosten 3. Jahr'!$D14>0,IF('Personalkosten 3. Jahr'!$D14<=Hilfstabelle!E$2=AND('Personalkosten 3. Jahr'!$E14>=Hilfstabelle!E$2),'Personalkosten 3. Jahr'!$M14/('Personalkosten 3. Jahr'!$E14-'Personalkosten 3. Jahr'!$D14+1),0),IF('Personalkosten 3. Jahr'!$C14>0,'Personalkosten 3. Jahr'!$M14/12,0)) -> 0 | F47: =IF('Personalkosten 3. Jahr'!$D14>0,IF('Personalkosten 3. Jahr'!$D14<=Hilfstabelle!F$2=AND('Personalkosten 3. Jahr'!$E14>=Hilfstabelle!F$2),'Personalkosten 3. Jahr'!$M14/('Personalkosten 3. Jahr'!$E14-'Personalkosten 3. Jahr'!$D14+1),0),IF('Personalkosten 3. Jahr'!$C14>0,'Personalkosten 3. Jahr'!$M14/12,0)) -> 0 | G47: =IF('Personalkosten 3. Jahr'!$D14>0,IF('Personalkosten 3. Jahr'!$D14<=Hilfstabelle!G$2=AND('Personalkosten 3. Jahr'!$E14>=Hilfstabelle!G$2),'Personalkosten 3. Jahr'!$M14/('Personalkosten 3. Jahr'!$E14-'Personalkosten 3. Jahr'!$D14+1),0),IF('Personalkosten 3. Jahr'!$C14>0,'Personalkosten 3. Jahr'!$M14/12,0)) -> 0 | H47: =IF('Personalkosten 3. Jahr'!$D14>0,IF('Personalkosten 3. Jahr'!$D14<=Hilfstabelle!H$2=AND('Personalkosten 3. Jahr'!$E14>=Hilfstabelle!H$2),'Personalkosten 3. Jahr'!$M14/('Personalkosten 3. Jahr'!$E14-'Personalkosten 3. Jahr'!$D14+1),0),IF('Personalkosten 3. Jahr'!$C14>0,'Personalkosten 3. Jahr'!$M14/12,0)) -> 0 | I47: =IF('Personalkosten 3. Jahr'!$D14>0,IF('Personalkosten 3. Jahr'!$D14<=Hilfstabelle!I$2=AND('Personalkosten 3. Jahr'!$E14>=Hilfstabelle!I$2),'Personalkosten 3. Jahr'!$M14/('Personalkosten 3. Jahr'!$E14-'Personalkosten 3. Jahr'!$D14+1),0),IF('Personalkosten 3. Jahr'!$C14>0,'Personalkosten 3. Jahr'!$M14/12,0)) -> 0 | J47: =IF('Personalkosten 3. Jahr'!$D14>0,IF('Personalkosten 3. Jahr'!$D14<=Hilfstabelle!J$2=AND('Personalkosten 3. Jahr'!$E14>=Hilfstabelle!J$2),'Personalkosten 3. Jahr'!$M14/('Personalkosten 3. Jahr'!$E14-'Personalkosten 3. Jahr'!$D14+1),0),IF('Personalkosten 3. Jahr'!$C14>0,'Personalkosten 3. Jahr'!$M14/12,0)) -> 0 | K47: =IF('Personalkosten 3. Jahr'!$D14>0,IF('Personalkosten 3. Jahr'!$D14<=Hilfstabelle!K$2=AND('Personalkosten 3. Jahr'!$E14>=Hilfstabelle!K$2),'Personalkosten 3. Jahr'!$M14/('Personalkosten 3. Jahr'!$E14-'Personalkosten 3. Jahr'!$D14+1),0),IF('Personalkosten 3. Jahr'!$C14>0,'Personalkosten 3. Jahr'!$M14/12,0)) -> 0 | L47: =IF('Personalkosten 3. Jahr'!$D14>0,IF('Personalkosten 3. Jahr'!$D14<=Hilfstabelle!L$2=AND('Personalkosten 3. Jahr'!$E14>=Hilfstabelle!L$2),'Personalkosten 3. Jahr'!$M14/('Personalkosten 3. Jahr'!$E14-'Personalkosten 3. Jahr'!$D14+1),0),IF('Personalkosten 3. Jahr'!$C14>0,'Personalkosten 3. Jahr'!$M14/12,0)) -> 0 | M47: =IF('Personalkosten 3. Jahr'!$D14>0,IF('Personalkosten 3. Jahr'!$D14<=Hilfstabelle!M$2=AND('Personalkosten 3. Jahr'!$E14>=Hilfstabelle!M$2),'Personalkosten 3. Jahr'!$M14/('Personalkosten 3. Jahr'!$E14-'Personalkosten 3. Jahr'!$D14+1),0),IF('Personalkosten 3. Jahr'!$C14>0,'Personalkosten 3. Jahr'!$M14/12,0)) -> 0 | N47: 0
A48: 4 | B48: =IF('Personalkosten 3. Jahr'!$D15>0,IF('Personalkosten 3. Jahr'!$D15<=Hilfstabelle!B$2=AND('Personalkosten 3. Jahr'!$E15>=Hilfstabelle!B$2),'Personalkosten 3. Jahr'!$M15/('Personalkosten 3. Jahr'!$E15-'Personalkosten 3. Jahr'!$D15+1),0),IF('Personalkosten 3. Jahr'!$C15>0,'Personalkosten 3. Jahr'!$M15/12,0)) -> 0 | C48: =IF('Personalkosten 3. Jahr'!$D15>0,IF('Personalkosten 3. Jahr'!$D15<=Hilfstabelle!C$2=AND('Personalkosten 3. Jahr'!$E15>=Hilfstabelle!C$2),'Personalkosten 3. Jahr'!$M15/('Personalkosten 3. Jahr'!$E15-'Personalkosten 3. Jahr'!$D15+1),0),IF('Personalkosten 3. Jahr'!$C15>0,'Personalkosten 3. Jahr'!$M15/12,0)) -> 0 | D48: =IF('Personalkosten 3. Jahr'!$D15>0,IF('Personalkosten 3. Jahr'!$D15<=Hilfstabelle!D$2=AND('Personalkosten 3. Jahr'!$E15>=Hilfstabelle!D$2),'Personalkosten 3. Jahr'!$M15/('Personalkosten 3. Jahr'!$E15-'Personalkosten 3. Jahr'!$D15+1),0),IF('Personalkosten 3. Jahr'!$C15>0,'Personalkosten 3. Jahr'!$M15/12,0)) -> 0 | E48: =IF('Personalkosten 3. Jahr'!$D15>0,IF('Personalkosten 3. Jahr'!$D15<=Hilfstabelle!E$2=AND('Personalkosten 3. Jahr'!$E15>=Hilfstabelle!E$2),'Personalkosten 3. Jahr'!$M15/('Personalkosten 3. Jahr'!$E15-'Personalkosten 3. Jahr'!$D15+1),0),IF('Personalkosten 3. Jahr'!$C15>0,'Personalkosten 3. Jahr'!$M15/12,0)) -> 0 | F48: =IF('Personalkosten 3. Jahr'!$D15>0,IF('Personalkosten 3. Jahr'!$D15<=Hilfstabelle!F$2=AND('Personalkosten 3. Jahr'!$E15>=Hilfstabelle!F$2),'Personalkosten 3. Jahr'!$M15/('Personalkosten 3. Jahr'!$E15-'Personalkosten 3. Jahr'!$D15+1),0),IF('Personalkosten 3. Jahr'!$C15>0,'Personalkosten 3. Jahr'!$M15/12,0)) -> 0 | G48: =IF('Personalkosten 3. Jahr'!$D15>0,IF('Personalkosten 3. Jahr'!$D15<=Hilfstabelle!G$2=AND('Personalkosten 3. Jahr'!$E15>=Hilfstabelle!G$2),'Personalkosten 3. Jahr'!$M15/('Personalkosten 3. Jahr'!$E15-'Personalkosten 3. Jahr'!$D15+1),0),IF('Personalkosten 3. Jahr'!$C15>0,'Personalkosten 3. Jahr'!$M15/12,0)) -> 0 | H48: =IF('Personalkosten 3. Jahr'!$D15>0,IF('Personalkosten 3. Jahr'!$D15<=Hilfstabelle!H$2=AND('Personalkosten 3. Jahr'!$E15>=Hilfstabelle!H$2),'Personalkosten 3. Jahr'!$M15/('Personalkosten 3. Jahr'!$E15-'Personalkosten 3. Jahr'!$D15+1),0),IF('Personalkosten 3. Jahr'!$C15>0,'Personalkosten 3. Jahr'!$M15/12,0)) -> 0 | I48: =IF('Personalkosten 3. Jahr'!$D15>0,IF('Personalkosten 3. Jahr'!$D15<=Hilfstabelle!I$2=AND('Personalkosten 3. Jahr'!$E15>=Hilfstabelle!I$2),'Personalkosten 3. Jahr'!$M15/('Personalkosten 3. Jahr'!$E15-'Personalkosten 3. Jahr'!$D15+1),0),IF('Personalkosten 3. Jahr'!$C15>0,'Personalkosten 3. Jahr'!$M15/12,0)) -> 0 | J48: =IF('Personalkosten 3. Jahr'!$D15>0,IF('Personalkosten 3. Jahr'!$D15<=Hilfstabelle!J$2=AND('Personalkosten 3. Jahr'!$E15>=Hilfstabelle!J$2),'Personalkosten 3. Jahr'!$M15/('Personalkosten 3. Jahr'!$E15-'Personalkosten 3. Jahr'!$D15+1),0),IF('Personalkosten 3. Jahr'!$C15>0,'Personalkosten 3. Jahr'!$M15/12,0)) -> 0 | K48: =IF('Personalkosten 3. Jahr'!$D15>0,IF('Personalkosten 3. Jahr'!$D15<=Hilfstabelle!K$2=AND('Personalkosten 3. Jahr'!$E15>=Hilfstabelle!K$2),'Personalkosten 3. Jahr'!$M15/('Personalkosten 3. Jahr'!$E15-'Personalkosten 3. Jahr'!$D15+1),0),IF('Personalkosten 3. Jahr'!$C15>0,'Personalkosten 3. Jahr'!$M15/12,0)) -> 0 | L48: =IF('Personalkosten 3. Jahr'!$D15>0,IF('Personalkosten 3. Jahr'!$D15<=Hilfstabelle!L$2=AND('Personalkosten 3. Jahr'!$E15>=Hilfstabelle!L$2),'Personalkosten 3. Jahr'!$M15/('Personalkosten 3. Jahr'!$E15-'Personalkosten 3. Jahr'!$D15+1),0),IF('Personalkosten 3. Jahr'!$C15>0,'Personalkosten 3. Jahr'!$M15/12,0)) -> 0 | M48: =IF('Personalkosten 3. Jahr'!$D15>0,IF('Personalkosten 3. Jahr'!$D15<=Hilfstabelle!M$2=AND('Personalkosten 3. Jahr'!$E15>=Hilfstabelle!M$2),'Personalkosten 3. Jahr'!$M15/('Personalkosten 3. Jahr'!$E15-'Personalkosten 3. Jahr'!$D15+1),0),IF('Personalkosten 3. Jahr'!$C15>0,'Personalkosten 3. Jahr'!$M15/12,0)) -> 0 | N48: 0
A49: 5 | B49: =IF('Personalkosten 3. Jahr'!$D16>0,IF('Personalkosten 3. Jahr'!$D16<=Hilfstabelle!B$2=AND('Personalkosten 3. Jahr'!$E16>=Hilfstabelle!B$2),'Personalkosten 3. Jahr'!$M16/('Personalkosten 3. Jahr'!$E16-'Personalkosten 3. Jahr'!$D16+1),0),IF('Personalkosten 3. Jahr'!$C16>0,'Personalkosten 3. Jahr'!$M16/12,0)) -> 0 | C49: =IF('Personalkosten 3. Jahr'!$D16>0,IF('Personalkosten 3. Jahr'!$D16<=Hilfstabelle!C$2=AND('Personalkosten 3. Jahr'!$E16>=Hilfstabelle!C$2),'Personalkosten 3. Jahr'!$M16/('Personalkosten 3. Jahr'!$E16-'Personalkosten 3. Jahr'!$D16+1),0),IF('Personalkosten 3. Jahr'!$C16>0,'Personalkosten 3. Jahr'!$M16/12,0)) -> 0 | D49: =IF('Personalkosten 3. Jahr'!$D16>0,IF('Personalkosten 3. Jahr'!$D16<=Hilfstabelle!D$2=AND('Personalkosten 3. Jahr'!$E16>=Hilfstabelle!D$2),'Personalkosten 3. Jahr'!$M16/('Personalkosten 3. Jahr'!$E16-'Personalkosten 3. Jahr'!$D16+1),0),IF('Personalkosten 3. Jahr'!$C16>0,'Personalkosten 3. Jahr'!$M16/12,0)) -> 0 | E49: =IF('Personalkosten 3. Jahr'!$D16>0,IF('Personalkosten 3. Jahr'!$D16<=Hilfstabelle!E$2=AND('Personalkosten 3. Jahr'!$E16>=Hilfstabelle!E$2),'Personalkosten 3. Jahr'!$M16/('Personalkosten 3. Jahr'!$E16-'Personalkosten 3. Jahr'!$D16+1),0),IF('Personalkosten 3. Jahr'!$C16>0,'Personalkosten 3. Jahr'!$M16/12,0)) -> 0 | F49: =IF('Personalkosten 3. Jahr'!$D16>0,IF('Personalkosten 3. Jahr'!$D16<=Hilfstabelle!F$2=AND('Personalkosten 3. Jahr'!$E16>=Hilfstabelle!F$2),'Personalkosten 3. Jahr'!$M16/('Personalkosten 3. Jahr'!$E16-'Personalkosten 3. Jahr'!$D16+1),0),IF('Personalkosten 3. Jahr'!$C16>0,'Personalkosten 3. Jahr'!$M16/12,0)) -> 0 | G49: =IF('Personalkosten 3. Jahr'!$D16>0,IF('Personalkosten 3. Jahr'!$D16<=Hilfstabelle!G$2=AND('Personalkosten 3. Jahr'!$E16>=Hilfstabelle!G$2),'Personalkosten 3. Jahr'!$M16/('Personalkosten 3. Jahr'!$E16-'Personalkosten 3. Jahr'!$D16+1),0),IF('Personalkosten 3. Jahr'!$C16>0,'Personalkosten 3. Jahr'!$M16/12,0)) -> 0 | H49: =IF('Personalkosten 3. Jahr'!$D16>0,IF('Personalkosten 3. Jahr'!$D16<=Hilfstabelle!H$2=AND('Personalkosten 3. Jahr'!$E16>=Hilfstabelle!H$2),'Personalkosten 3. Jahr'!$M16/('Personalkosten 3. Jahr'!$E16-'Personalkosten 3. Jahr'!$D16+1),0),IF('Personalkosten 3. Jahr'!$C16>0,'Personalkosten 3. Jahr'!$M16/12,0)) -> 0 | I49: =IF('Personalkosten 3. Jahr'!$D16>0,IF('Personalkosten 3. Jahr'!$D16<=Hilfstabelle!I$2=AND('Personalkosten 3. Jahr'!$E16>=Hilfstabelle!I$2),'Personalkosten 3. Jahr'!$M16/('Personalkosten 3. Jahr'!$E16-'Personalkosten 3. Jahr'!$D16+1),0),IF('Personalkosten 3. Jahr'!$C16>0,'Personalkosten 3. Jahr'!$M16/12,0)) -> 0 | J49: =IF('Personalkosten 3. Jahr'!$D16>0,IF('Personalkosten 3. Jahr'!$D16<=Hilfstabelle!J$2=AND('Personalkosten 3. Jahr'!$E16>=Hilfstabelle!J$2),'Personalkosten 3. Jahr'!$M16/('Personalkosten 3. Jahr'!$E16-'Personalkosten 3. Jahr'!$D16+1),0),IF('Personalkosten 3. Jahr'!$C16>0,'Personalkosten 3. Jahr'!$M16/12,0)) -> 0 | K49: =IF('Personalkosten 3. Jahr'!$D16>0,IF('Personalkosten 3. Jahr'!$D16<=Hilfstabelle!K$2=AND('Personalkosten 3. Jahr'!$E16>=Hilfstabelle!K$2),'Personalkosten 3. Jahr'!$M16/('Personalkosten 3. Jahr'!$E16-'Personalkosten 3. Jahr'!$D16+1),0),IF('Personalkosten 3. Jahr'!$C16>0,'Personalkosten 3. Jahr'!$M16/12,0)) -> 0 | L49: =IF('Personalkosten 3. Jahr'!$D16>0,IF('Personalkosten 3. Jahr'!$D16<=Hilfstabelle!L$2=AND('Personalkosten 3. Jahr'!$E16>=Hilfstabelle!L$2),'Personalkosten 3. Jahr'!$M16/('Personalkosten 3. Jahr'!$E16-'Personalkosten 3. Jahr'!$D16+1),0),IF('Personalkosten 3. Jahr'!$C16>0,'Personalkosten 3. Jahr'!$M16/12,0)) -> 0 | M49: =IF('Personalkosten 3. Jahr'!$D16>0,IF('Personalkosten 3. Jahr'!$D16<=Hilfstabelle!M$2=AND('Personalkosten 3. Jahr'!$E16>=Hilfstabelle!M$2),'Personalkosten 3. Jahr'!$M16/('Personalkosten 3. Jahr'!$E16-'Personalkosten 3. Jahr'!$D16+1),0),IF('Personalkosten 3. Jahr'!$C16>0,'Personalkosten 3. Jahr'!$M16/12,0)) -> 0 | N49: 0
A50: 6 | B50: =IF('Personalkosten 3. Jahr'!$D17>0,IF('Personalkosten 3. Jahr'!$D17<=Hilfstabelle!B$2=AND('Personalkosten 3. Jahr'!$E17>=Hilfstabelle!B$2),'Personalkosten 3. Jahr'!$M17/('Personalkosten 3. Jahr'!$E17-'Personalkosten 3. Jahr'!$D17+1),0),IF('Personalkosten 3. Jahr'!$C17>0,'Personalkosten 3. Jahr'!$M17/12,0)) -> 0 | C50: =IF('Personalkosten 3. Jahr'!$D17>0,IF('Personalkosten 3. Jahr'!$D17<=Hilfstabelle!C$2=AND('Personalkosten 3. Jahr'!$E17>=Hilfstabelle!C$2),'Personalkosten 3. Jahr'!$M17/('Personalkosten 3. Jahr'!$E17-'Personalkosten 3. Jahr'!$D17+1),0),IF('Personalkosten 3. Jahr'!$C17>0,'Personalkosten 3. Jahr'!$M17/12,0)) -> 0 | D50: =IF('Personalkosten 3. Jahr'!$D17>0,IF('Personalkosten 3. Jahr'!$D17<=Hilfstabelle!D$2=AND('Personalkosten 3. Jahr'!$E17>=Hilfstabelle!D$2),'Personalkosten 3. Jahr'!$M17/('Personalkosten 3. Jahr'!$E17-'Personalkosten 3. Jahr'!$D17+1),0),IF('Personalkosten 3. Jahr'!$C17>0,'Personalkosten 3. Jahr'!$M17/12,0)) -> 0 | E50: =IF('Personalkosten 3. Jahr'!$D17>0,IF('Personalkosten 3. Jahr'!$D17<=Hilfstabelle!E$2=AND('Personalkosten 3. Jahr'!$E17>=Hilfstabelle!E$2),'Personalkosten 3. Jahr'!$M17/('Personalkosten 3. Jahr'!$E17-'Personalkosten 3. Jahr'!$D17+1),0),IF('Personalkosten 3. Jahr'!$C17>0,'Personalkosten 3. Jahr'!$M17/12,0)) -> 0 | F50: =IF('Personalkosten 3. Jahr'!$D17>0,IF('Personalkosten 3. Jahr'!$D17<=Hilfstabelle!F$2=AND('Personalkosten 3. Jahr'!$E17>=Hilfstabelle!F$2),'Personalkosten 3. Jahr'!$M17/('Personalkosten 3. Jahr'!$E17-'Personalkosten 3. Jahr'!$D17+1),0),IF('Personalkosten 3. Jahr'!$C17>0,'Personalkosten 3. Jahr'!$M17/12,0)) -> 0 | G50: =IF('Personalkosten 3. Jahr'!$D17>0,IF('Personalkosten 3. Jahr'!$D17<=Hilfstabelle!G$2=AND('Personalkosten 3. Jahr'!$E17>=Hilfstabelle!G$2),'Personalkosten 3. Jahr'!$M17/('Personalkosten 3. Jahr'!$E17-'Personalkosten 3. Jahr'!$D17+1),0),IF('Personalkosten 3. Jahr'!$C17>0,'Personalkosten 3. Jahr'!$M17/12,0)) -> 0 | H50: =IF('Personalkosten 3. Jahr'!$D17>0,IF('Personalkosten 3. Jahr'!$D17<=Hilfstabelle!H$2=AND('Personalkosten 3. Jahr'!$E17>=Hilfstabelle!H$2),'Personalkosten 3. Jahr'!$M17/('Personalkosten 3. Jahr'!$E17-'Personalkosten 3. Jahr'!$D17+1),0),IF('Personalkosten 3. Jahr'!$C17>0,'Personalkosten 3. Jahr'!$M17/12,0)) -> 0 | I50: =IF('Personalkosten 3. Jahr'!$D17>0,IF('Personalkosten 3. Jahr'!$D17<=Hilfstabelle!I$2=AND('Personalkosten 3. Jahr'!$E17>=Hilfstabelle!I$2),'Personalkosten 3. Jahr'!$M17/('Personalkosten 3. Jahr'!$E17-'Personalkosten 3. Jahr'!$D17+1),0),IF('Personalkosten 3. Jahr'!$C17>0,'Personalkosten 3. Jahr'!$M17/12,0)) -> 0 | J50: =IF('Personalkosten 3. Jahr'!$D17>0,IF('Personalkosten 3. Jahr'!$D17<=Hilfstabelle!J$2=AND('Personalkosten 3. Jahr'!$E17>=Hilfstabelle!J$2),'Personalkosten 3. Jahr'!$M17/('Personalkosten 3. Jahr'!$E17-'Personalkosten 3. Jahr'!$D17+1),0),IF('Personalkosten 3. Jahr'!$C17>0,'Personalkosten 3. Jahr'!$M17/12,0)) -> 0 | K50: =IF('Personalkosten 3. Jahr'!$D17>0,IF('Personalkosten 3. Jahr'!$D17<=Hilfstabelle!K$2=AND('Personalkosten 3. Jahr'!$E17>=Hilfstabelle!K$2),'Personalkosten 3. Jahr'!$M17/('Personalkosten 3. Jahr'!$E17-'Personalkosten 3. Jahr'!$D17+1),0),IF('Personalkosten 3. Jahr'!$C17>0,'Personalkosten 3. Jahr'!$M17/12,0)) -> 0 | L50: =IF('Personalkosten 3. Jahr'!$D17>0,IF('Personalkosten 3. Jahr'!$D17<=Hilfstabelle!L$2=AND('Personalkosten 3. Jahr'!$E17>=Hilfstabelle!L$2),'Personalkosten 3. Jahr'!$M17/('Personalkosten 3. Jahr'!$E17-'Personalkosten 3. Jahr'!$D17+1),0),IF('Personalkosten 3. Jahr'!$C17>0,'Personalkosten 3. Jahr'!$M17/12,0)) -> 0 | M50: =IF('Personalkosten 3. Jahr'!$D17>0,IF('Personalkosten 3. Jahr'!$D17<=Hilfstabelle!M$2=AND('Personalkosten 3. Jahr'!$E17>=Hilfstabelle!M$2),'Personalkosten 3. Jahr'!$M17/('Personalkosten 3. Jahr'!$E17-'Personalkosten 3. Jahr'!$D17+1),0),IF('Personalkosten 3. Jahr'!$C17>0,'Personalkosten 3. Jahr'!$M17/12,0)) -> 0 | N50: 0
A51: 7 | B51: =IF('Personalkosten 3. Jahr'!$D18>0,IF('Personalkosten 3. Jahr'!$D18<=Hilfstabelle!B$2=AND('Personalkosten 3. Jahr'!$E18>=Hilfstabelle!B$2),'Personalkosten 3. Jahr'!$M18/('Personalkosten 3. Jahr'!$E18-'Personalkosten 3. Jahr'!$D18+1),0),IF('Personalkosten 3. Jahr'!$C18>0,'Personalkosten 3. Jahr'!$M18/12,0)) -> 0 | C51: =IF('Personalkosten 3. Jahr'!$D18>0,IF('Personalkosten 3. Jahr'!$D18<=Hilfstabelle!C$2=AND('Personalkosten 3. Jahr'!$E18>=Hilfstabelle!C$2),'Personalkosten 3. Jahr'!$M18/('Personalkosten 3. Jahr'!$E18-'Personalkosten 3. Jahr'!$D18+1),0),IF('Personalkosten 3. Jahr'!$C18>0,'Personalkosten 3. Jahr'!$M18/12,0)) -> 0 | D51: =IF('Personalkosten 3. Jahr'!$D18>0,IF('Personalkosten 3. Jahr'!$D18<=Hilfstabelle!D$2=AND('Personalkosten 3. Jahr'!$E18>=Hilfstabelle!D$2),'Personalkosten 3. Jahr'!$M18/('Personalkosten 3. Jahr'!$E18-'Personalkosten 3. Jahr'!$D18+1),0),IF('Personalkosten 3. Jahr'!$C18>0,'Personalkosten 3. Jahr'!$M18/12,0)) -> 0 | E51: =IF('Personalkosten 3. Jahr'!$D18>0,IF('Personalkosten 3. Jahr'!$D18<=Hilfstabelle!E$2=AND('Personalkosten 3. Jahr'!$E18>=Hilfstabelle!E$2),'Personalkosten 3. Jahr'!$M18/('Personalkosten 3. Jahr'!$E18-'Personalkosten 3. Jahr'!$D18+1),0),IF('Personalkosten 3. Jahr'!$C18>0,'Personalkosten 3. Jahr'!$M18/12,0)) -> 0 | F51: =IF('Personalkosten 3. Jahr'!$D18>0,IF('Personalkosten 3. Jahr'!$D18<=Hilfstabelle!F$2=AND('Personalkosten 3. Jahr'!$E18>=Hilfstabelle!F$2),'Personalkosten 3. Jahr'!$M18/('Personalkosten 3. Jahr'!$E18-'Personalkosten 3. Jahr'!$D18+1),0),IF('Personalkosten 3. Jahr'!$C18>0,'Personalkosten 3. Jahr'!$M18/12,0)) -> 0 | G51: =IF('Personalkosten 3. Jahr'!$D18>0,IF('Personalkosten 3. Jahr'!$D18<=Hilfstabelle!G$2=AND('Personalkosten 3. Jahr'!$E18>=Hilfstabelle!G$2),'Personalkosten 3. Jahr'!$M18/('Personalkosten 3. Jahr'!$E18-'Personalkosten 3. Jahr'!$D18+1),0),IF('Personalkosten 3. Jahr'!$C18>0,'Personalkosten 3. Jahr'!$M18/12,0)) -> 0 | H51: =IF('Personalkosten 3. Jahr'!$D18>0,IF('Personalkosten 3. Jahr'!$D18<=Hilfstabelle!H$2=AND('Personalkosten 3. Jahr'!$E18>=Hilfstabelle!H$2),'Personalkosten 3. Jahr'!$M18/('Personalkosten 3. Jahr'!$E18-'Personalkosten 3. Jahr'!$D18+1),0),IF('Personalkosten 3. Jahr'!$C18>0,'Personalkosten 3. Jahr'!$M18/12,0)) -> 0 | I51: =IF('Personalkosten 3. Jahr'!$D18>0,IF('Personalkosten 3. Jahr'!$D18<=Hilfstabelle!I$2=AND('Personalkosten 3. Jahr'!$E18>=Hilfstabelle!I$2),'Personalkosten 3. Jahr'!$M18/('Personalkosten 3. Jahr'!$E18-'Personalkosten 3. Jahr'!$D18+1),0),IF('Personalkosten 3. Jahr'!$C18>0,'Personalkosten 3. Jahr'!$M18/12,0)) -> 0 | J51: =IF('Personalkosten 3. Jahr'!$D18>0,IF('Personalkosten 3. Jahr'!$D18<=Hilfstabelle!J$2=AND('Personalkosten 3. Jahr'!$E18>=Hilfstabelle!J$2),'Personalkosten 3. Jahr'!$M18/('Personalkosten 3. Jahr'!$E18-'Personalkosten 3. Jahr'!$D18+1),0),IF('Personalkosten 3. Jahr'!$C18>0,'Personalkosten 3. Jahr'!$M18/12,0)) -> 0 | K51: =IF('Personalkosten 3. Jahr'!$D18>0,IF('Personalkosten 3. Jahr'!$D18<=Hilfstabelle!K$2=AND('Personalkosten 3. Jahr'!$E18>=Hilfstabelle!K$2),'Personalkosten 3. Jahr'!$M18/('Personalkosten 3. Jahr'!$E18-'Personalkosten 3. Jahr'!$D18+1),0),IF('Personalkosten 3. Jahr'!$C18>0,'Personalkosten 3. Jahr'!$M18/12,0)) -> 0 | L51: =IF('Personalkosten 3. Jahr'!$D18>0,IF('Personalkosten 3. Jahr'!$D18<=Hilfstabelle!L$2=AND('Personalkosten 3. Jahr'!$E18>=Hilfstabelle!L$2),'Personalkosten 3. Jahr'!$M18/('Personalkosten 3. Jahr'!$E18-'Personalkosten 3. Jahr'!$D18+1),0),IF('Personalkosten 3. Jahr'!$C18>0,'Personalkosten 3. Jahr'!$M18/12,0)) -> 0 | M51: =IF('Personalkosten 3. Jahr'!$D18>0,IF('Personalkosten 3. Jahr'!$D18<=Hilfstabelle!M$2=AND('Personalkosten 3. Jahr'!$E18>=Hilfstabelle!M$2),'Personalkosten 3. Jahr'!$M18/('Personalkosten 3. Jahr'!$E18-'Personalkosten 3. Jahr'!$D18+1),0),IF('Personalkosten 3. Jahr'!$C18>0,'Personalkosten 3. Jahr'!$M18/12,0)) -> 0 | N51: 0
A52: 8 | B52: =IF('Personalkosten 3. Jahr'!$D19>0,IF('Personalkosten 3. Jahr'!$D19<=Hilfstabelle!B$2=AND('Personalkosten 3. Jahr'!$E19>=Hilfstabelle!B$2),'Personalkosten 3. Jahr'!$M19/('Personalkosten 3. Jahr'!$E19-'Personalkosten 3. Jahr'!$D19+1),0),IF('Personalkosten 3. Jahr'!$C19>0,'Personalkosten 3. Jahr'!$M19/12,0)) -> 0 | C52: =IF('Personalkosten 3. Jahr'!$D19>0,IF('Personalkosten 3. Jahr'!$D19<=Hilfstabelle!C$2=AND('Personalkosten 3. Jahr'!$E19>=Hilfstabelle!C$2),'Personalkosten 3. Jahr'!$M19/('Personalkosten 3. Jahr'!$E19-'Personalkosten 3. Jahr'!$D19+1),0),IF('Personalkosten 3. Jahr'!$C19>0,'Personalkosten 3. Jahr'!$M19/12,0)) -> 0 | D52: =IF('Personalkosten 3. Jahr'!$D19>0,IF('Personalkosten 3. Jahr'!$D19<=Hilfstabelle!D$2=AND('Personalkosten 3. Jahr'!$E19>=Hilfstabelle!D$2),'Personalkosten 3. Jahr'!$M19/('Personalkosten 3. Jahr'!$E19-'Personalkosten 3. Jahr'!$D19+1),0),IF('Personalkosten 3. Jahr'!$C19>0,'Personalkosten 3. Jahr'!$M19/12,0)) -> 0 | E52: =IF('Personalkosten 3. Jahr'!$D19>0,IF('Personalkosten 3. Jahr'!$D19<=Hilfstabelle!E$2=AND('Personalkosten 3. Jahr'!$E19>=Hilfstabelle!E$2),'Personalkosten 3. Jahr'!$M19/('Personalkosten 3. Jahr'!$E19-'Personalkosten 3. Jahr'!$D19+1),0),IF('Personalkosten 3. Jahr'!$C19>0,'Personalkosten 3. Jahr'!$M19/12,0)) -> 0 | F52: =IF('Personalkosten 3. Jahr'!$D19>0,IF('Personalkosten 3. Jahr'!$D19<=Hilfstabelle!F$2=AND('Personalkosten 3. Jahr'!$E19>=Hilfstabelle!F$2),'Personalkosten 3. Jahr'!$M19/('Personalkosten 3. Jahr'!$E19-'Personalkosten 3. Jahr'!$D19+1),0),IF('Personalkosten 3. Jahr'!$C19>0,'Personalkosten 3. Jahr'!$M19/12,0)) -> 0 | G52: =IF('Personalkosten 3. Jahr'!$D19>0,IF('Personalkosten 3. Jahr'!$D19<=Hilfstabelle!G$2=AND('Personalkosten 3. Jahr'!$E19>=Hilfstabelle!G$2),'Personalkosten 3. Jahr'!$M19/('Personalkosten 3. Jahr'!$E19-'Personalkosten 3. Jahr'!$D19+1),0),IF('Personalkosten 3. Jahr'!$C19>0,'Personalkosten 3. Jahr'!$M19/12,0)) -> 0 | H52: =IF('Personalkosten 3. Jahr'!$D19>0,IF('Personalkosten 3. Jahr'!$D19<=Hilfstabelle!H$2=AND('Personalkosten 3. Jahr'!$E19>=Hilfstabelle!H$2),'Personalkosten 3. Jahr'!$M19/('Personalkosten 3. Jahr'!$E19-'Personalkosten 3. Jahr'!$D19+1),0),IF('Personalkosten 3. Jahr'!$C19>0,'Personalkosten 3. Jahr'!$M19/12,0)) -> 0 | I52: =IF('Personalkosten 3. Jahr'!$D19>0,IF('Personalkosten 3. Jahr'!$D19<=Hilfstabelle!I$2=AND('Personalkosten 3. Jahr'!$E19>=Hilfstabelle!I$2),'Personalkosten 3. Jahr'!$M19/('Personalkosten 3. Jahr'!$E19-'Personalkosten 3. Jahr'!$D19+1),0),IF('Personalkosten 3. Jahr'!$C19>0,'Personalkosten 3. Jahr'!$M19/12,0)) -> 0 | J52: =IF('Personalkosten 3. Jahr'!$D19>0,IF('Personalkosten 3. Jahr'!$D19<=Hilfstabelle!J$2=AND('Personalkosten 3. Jahr'!$E19>=Hilfstabelle!J$2),'Personalkosten 3. Jahr'!$M19/('Personalkosten 3. Jahr'!$E19-'Personalkosten 3. Jahr'!$D19+1),0),IF('Personalkosten 3. Jahr'!$C19>0,'Personalkosten 3. Jahr'!$M19/12,0)) -> 0 | K52: =IF('Personalkosten 3. Jahr'!$D19>0,IF('Personalkosten 3. Jahr'!$D19<=Hilfstabelle!K$2=AND('Personalkosten 3. Jahr'!$E19>=Hilfstabelle!K$2),'Personalkosten 3. Jahr'!$M19/('Personalkosten 3. Jahr'!$E19-'Personalkosten 3. Jahr'!$D19+1),0),IF('Personalkosten 3. Jahr'!$C19>0,'Personalkosten 3. Jahr'!$M19/12,0)) -> 0 | L52: =IF('Personalkosten 3. Jahr'!$D19>0,IF('Personalkosten 3. Jahr'!$D19<=Hilfstabelle!L$2=AND('Personalkosten 3. Jahr'!$E19>=Hilfstabelle!L$2),'Personalkosten 3. Jahr'!$M19/('Personalkosten 3. Jahr'!$E19-'Personalkosten 3. Jahr'!$D19+1),0),IF('Personalkosten 3. Jahr'!$C19>0,'Personalkosten 3. Jahr'!$M19/12,0)) -> 0 | M52: =IF('Personalkosten 3. Jahr'!$D19>0,IF('Personalkosten 3. Jahr'!$D19<=Hilfstabelle!M$2=AND('Personalkosten 3. Jahr'!$E19>=Hilfstabelle!M$2),'Personalkosten 3. Jahr'!$M19/('Personalkosten 3. Jahr'!$E19-'Personalkosten 3. Jahr'!$D19+1),0),IF('Personalkosten 3. Jahr'!$C19>0,'Personalkosten 3. Jahr'!$M19/12,0)) -> 0 | N52: 0
A53: 9 | B53: =IF('Personalkosten 3. Jahr'!$D20>0,IF('Personalkosten 3. Jahr'!$D20<=Hilfstabelle!B$2=AND('Personalkosten 3. Jahr'!$E20>=Hilfstabelle!B$2),'Personalkosten 3. Jahr'!$M20/('Personalkosten 3. Jahr'!$E20-'Personalkosten 3. Jahr'!$D20+1),0),IF('Personalkosten 3. Jahr'!$C20>0,'Personalkosten 3. Jahr'!$M20/12,0)) -> 0 | C53: =IF('Personalkosten 3. Jahr'!$D20>0,IF('Personalkosten 3. Jahr'!$D20<=Hilfstabelle!C$2=AND('Personalkosten 3. Jahr'!$E20>=Hilfstabelle!C$2),'Personalkosten 3. Jahr'!$M20/('Personalkosten 3. Jahr'!$E20-'Personalkosten 3. Jahr'!$D20+1),0),IF('Personalkosten 3. Jahr'!$C20>0,'Personalkosten 3. Jahr'!$M20/12,0)) -> 0 | D53: =IF('Personalkosten 3. Jahr'!$D20>0,IF('Personalkosten 3. Jahr'!$D20<=Hilfstabelle!D$2=AND('Personalkosten 3. Jahr'!$E20>=Hilfstabelle!D$2),'Personalkosten 3. Jahr'!$M20/('Personalkosten 3. Jahr'!$E20-'Personalkosten 3. Jahr'!$D20+1),0),IF('Personalkosten 3. Jahr'!$C20>0,'Personalkosten 3. Jahr'!$M20/12,0)) -> 0 | E53: =IF('Personalkosten 3. Jahr'!$D20>0,IF('Personalkosten 3. Jahr'!$D20<=Hilfstabelle!E$2=AND('Personalkosten 3. Jahr'!$E20>=Hilfstabelle!E$2),'Personalkosten 3. Jahr'!$M20/('Personalkosten 3. Jahr'!$E20-'Personalkosten 3. Jahr'!$D20+1),0),IF('Personalkosten 3. Jahr'!$C20>0,'Personalkosten 3. Jahr'!$M20/12,0)) -> 0 | F53: =IF('Personalkosten 3. Jahr'!$D20>0,IF('Personalkosten 3. Jahr'!$D20<=Hilfstabelle!F$2=AND('Personalkosten 3. Jahr'!$E20>=Hilfstabelle!F$2),'Personalkosten 3. Jahr'!$M20/('Personalkosten 3. Jahr'!$E20-'Personalkosten 3. Jahr'!$D20+1),0),IF('Personalkosten 3. Jahr'!$C20>0,'Personalkosten 3. Jahr'!$M20/12,0)) -> 0 | G53: =IF('Personalkosten 3. Jahr'!$D20>0,IF('Personalkosten 3. Jahr'!$D20<=Hilfstabelle!G$2=AND('Personalkosten 3. Jahr'!$E20>=Hilfstabelle!G$2),'Personalkosten 3. Jahr'!$M20/('Personalkosten 3. Jahr'!$E20-'Personalkosten 3. Jahr'!$D20+1),0),IF('Personalkosten 3. Jahr'!$C20>0,'Personalkosten 3. Jahr'!$M20/12,0)) -> 0 | H53: =IF('Personalkosten 3. Jahr'!$D20>0,IF('Personalkosten 3. Jahr'!$D20<=Hilfstabelle!H$2=AND('Personalkosten 3. Jahr'!$E20>=Hilfstabelle!H$2),'Personalkosten 3. Jahr'!$M20/('Personalkosten 3. Jahr'!$E20-'Personalkosten 3. Jahr'!$D20+1),0),IF('Personalkosten 3. Jahr'!$C20>0,'Personalkosten 3. Jahr'!$M20/12,0)) -> 0 | I53: =IF('Personalkosten 3. Jahr'!$D20>0,IF('Personalkosten 3. Jahr'!$D20<=Hilfstabelle!I$2=AND('Personalkosten 3. Jahr'!$E20>=Hilfstabelle!I$2),'Personalkosten 3. Jahr'!$M20/('Personalkosten 3. Jahr'!$E20-'Personalkosten 3. Jahr'!$D20+1),0),IF('Personalkosten 3. Jahr'!$C20>0,'Personalkosten 3. Jahr'!$M20/12,0)) -> 0 | J53: =IF('Personalkosten 3. Jahr'!$D20>0,IF('Personalkosten 3. Jahr'!$D20<=Hilfstabelle!J$2=AND('Personalkosten 3. Jahr'!$E20>=Hilfstabelle!J$2),'Personalkosten 3. Jahr'!$M20/('Personalkosten 3. Jahr'!$E20-'Personalkosten 3. Jahr'!$D20+1),0),IF('Personalkosten 3. Jahr'!$C20>0,'Personalkosten 3. Jahr'!$M20/12,0)) -> 0 | K53: =IF('Personalkosten 3. Jahr'!$D20>0,IF('Personalkosten 3. Jahr'!$D20<=Hilfstabelle!K$2=AND('Personalkosten 3. Jahr'!$E20>=Hilfstabelle!K$2),'Personalkosten 3. Jahr'!$M20/('Personalkosten 3. Jahr'!$E20-'Personalkosten 3. Jahr'!$D20+1),0),IF('Personalkosten 3. Jahr'!$C20>0,'Personalkosten 3. Jahr'!$M20/12,0)) -> 0 | L53: =IF('Personalkosten 3. Jahr'!$D20>0,IF('Personalkosten 3. Jahr'!$D20<=Hilfstabelle!L$2=AND('Personalkosten 3. Jahr'!$E20>=Hilfstabelle!L$2),'Personalkosten 3. Jahr'!$M20/('Personalkosten 3. Jahr'!$E20-'Personalkosten 3. Jahr'!$D20+1),0),IF('Personalkosten 3. Jahr'!$C20>0,'Personalkosten 3. Jahr'!$M20/12,0)) -> 0 | M53: =IF('Personalkosten 3. Jahr'!$D20>0,IF('Personalkosten 3. Jahr'!$D20<=Hilfstabelle!M$2=AND('Personalkosten 3. Jahr'!$E20>=Hilfstabelle!M$2),'Personalkosten 3. Jahr'!$M20/('Personalkosten 3. Jahr'!$E20-'Personalkosten 3. Jahr'!$D20+1),0),IF('Personalkosten 3. Jahr'!$C20>0,'Personalkosten 3. Jahr'!$M20/12,0)) -> 0 | N53: 0
A54: 10 | B54: =IF('Personalkosten 3. Jahr'!$D21>0,IF('Personalkosten 3. Jahr'!$D21<=Hilfstabelle!B$2=AND('Personalkosten 3. Jahr'!$E21>=Hilfstabelle!B$2),'Personalkosten 3. Jahr'!$M21/('Personalkosten 3. Jahr'!$E21-'Personalkosten 3. Jahr'!$D21+1),0),IF('Personalkosten 3. Jahr'!$C21>0,'Personalkosten 3. Jahr'!$M21/12,0)) -> 0 | C54: =IF('Personalkosten 3. Jahr'!$D21>0,IF('Personalkosten 3. Jahr'!$D21<=Hilfstabelle!C$2=AND('Personalkosten 3. Jahr'!$E21>=Hilfstabelle!C$2),'Personalkosten 3. Jahr'!$M21/('Personalkosten 3. Jahr'!$E21-'Personalkosten 3. Jahr'!$D21+1),0),IF('Personalkosten 3. Jahr'!$C21>0,'Personalkosten 3. Jahr'!$M21/12,0)) -> 0 | D54: =IF('Personalkosten 3. Jahr'!$D21>0,IF('Personalkosten 3. Jahr'!$D21<=Hilfstabelle!D$2=AND('Personalkosten 3. Jahr'!$E21>=Hilfstabelle!D$2),'Personalkosten 3. Jahr'!$M21/('Personalkosten 3. Jahr'!$E21-'Personalkosten 3. Jahr'!$D21+1),0),IF('Personalkosten 3. Jahr'!$C21>0,'Personalkosten 3. Jahr'!$M21/12,0)) -> 0 | E54: =IF('Personalkosten 3. Jahr'!$D21>0,IF('Personalkosten 3. Jahr'!$D21<=Hilfstabelle!E$2=AND('Personalkosten 3. Jahr'!$E21>=Hilfstabelle!E$2),'Personalkosten 3. Jahr'!$M21/('Personalkosten 3. Jahr'!$E21-'Personalkosten 3. Jahr'!$D21+1),0),IF('Personalkosten 3. Jahr'!$C21>0,'Personalkosten 3. Jahr'!$M21/12,0)) -> 0 | F54: =IF('Personalkosten 3. Jahr'!$D21>0,IF('Personalkosten 3. Jahr'!$D21<=Hilfstabelle!F$2=AND('Personalkosten 3. Jahr'!$E21>=Hilfstabelle!F$2),'Personalkosten 3. Jahr'!$M21/('Personalkosten 3. Jahr'!$E21-'Personalkosten 3. Jahr'!$D21+1),0),IF('Personalkosten 3. Jahr'!$C21>0,'Personalkosten 3. Jahr'!$M21/12,0)) -> 0 | G54: =IF('Personalkosten 3. Jahr'!$D21>0,IF('Personalkosten 3. Jahr'!$D21<=Hilfstabelle!G$2=AND('Personalkosten 3. Jahr'!$E21>=Hilfstabelle!G$2),'Personalkosten 3. Jahr'!$M21/('Personalkosten 3. Jahr'!$E21-'Personalkosten 3. Jahr'!$D21+1),0),IF('Personalkosten 3. Jahr'!$C21>0,'Personalkosten 3. Jahr'!$M21/12,0)) -> 0 | H54: =IF('Personalkosten 3. Jahr'!$D21>0,IF('Personalkosten 3. Jahr'!$D21<=Hilfstabelle!H$2=AND('Personalkosten 3. Jahr'!$E21>=Hilfstabelle!H$2),'Personalkosten 3. Jahr'!$M21/('Personalkosten 3. Jahr'!$E21-'Personalkosten 3. Jahr'!$D21+1),0),IF('Personalkosten 3. Jahr'!$C21>0,'Personalkosten 3. Jahr'!$M21/12,0)) -> 0 | I54: =IF('Personalkosten 3. Jahr'!$D21>0,IF('Personalkosten 3. Jahr'!$D21<=Hilfstabelle!I$2=AND('Personalkosten 3. Jahr'!$E21>=Hilfstabelle!I$2),'Personalkosten 3. Jahr'!$M21/('Personalkosten 3. Jahr'!$E21-'Personalkosten 3. Jahr'!$D21+1),0),IF('Personalkosten 3. Jahr'!$C21>0,'Personalkosten 3. Jahr'!$M21/12,0)) -> 0 | J54: =IF('Personalkosten 3. Jahr'!$D21>0,IF('Personalkosten 3. Jahr'!$D21<=Hilfstabelle!J$2=AND('Personalkosten 3. Jahr'!$E21>=Hilfstabelle!J$2),'Personalkosten 3. Jahr'!$M21/('Personalkosten 3. Jahr'!$E21-'Personalkosten 3. Jahr'!$D21+1),0),IF('Personalkosten 3. Jahr'!$C21>0,'Personalkosten 3. Jahr'!$M21/12,0)) -> 0 | K54: =IF('Personalkosten 3. Jahr'!$D21>0,IF('Personalkosten 3. Jahr'!$D21<=Hilfstabelle!K$2=AND('Personalkosten 3. Jahr'!$E21>=Hilfstabelle!K$2),'Personalkosten 3. Jahr'!$M21/('Personalkosten 3. Jahr'!$E21-'Personalkosten 3. Jahr'!$D21+1),0),IF('Personalkosten 3. Jahr'!$C21>0,'Personalkosten 3. Jahr'!$M21/12,0)) -> 0 | L54: =IF('Personalkosten 3. Jahr'!$D21>0,IF('Personalkosten 3. Jahr'!$D21<=Hilfstabelle!L$2=AND('Personalkosten 3. Jahr'!$E21>=Hilfstabelle!L$2),'Personalkosten 3. Jahr'!$M21/('Personalkosten 3. Jahr'!$E21-'Personalkosten 3. Jahr'!$D21+1),0),IF('Personalkosten 3. Jahr'!$C21>0,'Personalkosten 3. Jahr'!$M21/12,0)) -> 0 | M54: =IF('Personalkosten 3. Jahr'!$D21>0,IF('Personalkosten 3. Jahr'!$D21<=Hilfstabelle!M$2=AND('Personalkosten 3. Jahr'!$E21>=Hilfstabelle!M$2),'Personalkosten 3. Jahr'!$M21/('Personalkosten 3. Jahr'!$E21-'Personalkosten 3. Jahr'!$D21+1),0),IF('Personalkosten 3. Jahr'!$C21>0,'Personalkosten 3. Jahr'!$M21/12,0)) -> 0 | N54: 0
A55: 11 | B55: =IF('Personalkosten 3. Jahr'!$D22>0,IF('Personalkosten 3. Jahr'!$D22<=Hilfstabelle!B$2=AND('Personalkosten 3. Jahr'!$E22>=Hilfstabelle!B$2),'Personalkosten 3. Jahr'!$M22/('Personalkosten 3. Jahr'!$E22-'Personalkosten 3. Jahr'!$D22+1),0),IF('Personalkosten 3. Jahr'!$C22>0,'Personalkosten 3. Jahr'!$M22/12,0)) -> 0 | C55: =IF('Personalkosten 3. Jahr'!$D22>0,IF('Personalkosten 3. Jahr'!$D22<=Hilfstabelle!C$2=AND('Personalkosten 3. Jahr'!$E22>=Hilfstabelle!C$2),'Personalkosten 3. Jahr'!$M22/('Personalkosten 3. Jahr'!$E22-'Personalkosten 3. Jahr'!$D22+1),0),IF('Personalkosten 3. Jahr'!$C22>0,'Personalkosten 3. Jahr'!$M22/12,0)) -> 0 | D55: =IF('Personalkosten 3. Jahr'!$D22>0,IF('Personalkosten 3. Jahr'!$D22<=Hilfstabelle!D$2=AND('Personalkosten 3. Jahr'!$E22>=Hilfstabelle!D$2),'Personalkosten 3. Jahr'!$M22/('Personalkosten 3. Jahr'!$E22-'Personalkosten 3. Jahr'!$D22+1),0),IF('Personalkosten 3. Jahr'!$C22>0,'Personalkosten 3. Jahr'!$M22/12,0)) -> 0 | E55: =IF('Personalkosten 3. Jahr'!$D22>0,IF('Personalkosten 3. Jahr'!$D22<=Hilfstabelle!E$2=AND('Personalkosten 3. Jahr'!$E22>=Hilfstabelle!E$2),'Personalkosten 3. Jahr'!$M22/('Personalkosten 3. Jahr'!$E22-'Personalkosten 3. Jahr'!$D22+1),0),IF('Personalkosten 3. Jahr'!$C22>0,'Personalkosten 3. Jahr'!$M22/12,0)) -> 0 | F55: =IF('Personalkosten 3. Jahr'!$D22>0,IF('Personalkosten 3. Jahr'!$D22<=Hilfstabelle!F$2=AND('Personalkosten 3. Jahr'!$E22>=Hilfstabelle!F$2),'Personalkosten 3. Jahr'!$M22/('Personalkosten 3. Jahr'!$E22-'Personalkosten 3. Jahr'!$D22+1),0),IF('Personalkosten 3. Jahr'!$C22>0,'Personalkosten 3. Jahr'!$M22/12,0)) -> 0 | G55: =IF('Personalkosten 3. Jahr'!$D22>0,IF('Personalkosten 3. Jahr'!$D22<=Hilfstabelle!G$2=AND('Personalkosten 3. Jahr'!$E22>=Hilfstabelle!G$2),'Personalkosten 3. Jahr'!$M22/('Personalkosten 3. Jahr'!$E22-'Personalkosten 3. Jahr'!$D22+1),0),IF('Personalkosten 3. Jahr'!$C22>0,'Personalkosten 3. Jahr'!$M22/12,0)) -> 0 | H55: =IF('Personalkosten 3. Jahr'!$D22>0,IF('Personalkosten 3. Jahr'!$D22<=Hilfstabelle!H$2=AND('Personalkosten 3. Jahr'!$E22>=Hilfstabelle!H$2),'Personalkosten 3. Jahr'!$M22/('Personalkosten 3. Jahr'!$E22-'Personalkosten 3. Jahr'!$D22+1),0),IF('Personalkosten 3. Jahr'!$C22>0,'Personalkosten 3. Jahr'!$M22/12,0)) -> 0 | I55: =IF('Personalkosten 3. Jahr'!$D22>0,IF('Personalkosten 3. Jahr'!$D22<=Hilfstabelle!I$2=AND('Personalkosten 3. Jahr'!$E22>=Hilfstabelle!I$2),'Personalkosten 3. Jahr'!$M22/('Personalkosten 3. Jahr'!$E22-'Personalkosten 3. Jahr'!$D22+1),0),IF('Personalkosten 3. Jahr'!$C22>0,'Personalkosten 3. Jahr'!$M22/12,0)) -> 0 | J55: =IF('Personalkosten 3. Jahr'!$D22>0,IF('Personalkosten 3. Jahr'!$D22<=Hilfstabelle!J$2=AND('Personalkosten 3. Jahr'!$E22>=Hilfstabelle!J$2),'Personalkosten 3. Jahr'!$M22/('Personalkosten 3. Jahr'!$E22-'Personalkosten 3. Jahr'!$D22+1),0),IF('Personalkosten 3. Jahr'!$C22>0,'Personalkosten 3. Jahr'!$M22/12,0)) -> 0 | K55: =IF('Personalkosten 3. Jahr'!$D22>0,IF('Personalkosten 3. Jahr'!$D22<=Hilfstabelle!K$2=AND('Personalkosten 3. Jahr'!$E22>=Hilfstabelle!K$2),'Personalkosten 3. Jahr'!$M22/('Personalkosten 3. Jahr'!$E22-'Personalkosten 3. Jahr'!$D22+1),0),IF('Personalkosten 3. Jahr'!$C22>0,'Personalkosten 3. Jahr'!$M22/12,0)) -> 0 | L55: =IF('Personalkosten 3. Jahr'!$D22>0,IF('Personalkosten 3. Jahr'!$D22<=Hilfstabelle!L$2=AND('Personalkosten 3. Jahr'!$E22>=Hilfstabelle!L$2),'Personalkosten 3. Jahr'!$M22/('Personalkosten 3. Jahr'!$E22-'Personalkosten 3. Jahr'!$D22+1),0),IF('Personalkosten 3. Jahr'!$C22>0,'Personalkosten 3. Jahr'!$M22/12,0)) -> 0 | M55: =IF('Personalkosten 3. Jahr'!$D22>0,IF('Personalkosten 3. Jahr'!$D22<=Hilfstabelle!M$2=AND('Personalkosten 3. Jahr'!$E22>=Hilfstabelle!M$2),'Personalkosten 3. Jahr'!$M22/('Personalkosten 3. Jahr'!$E22-'Personalkosten 3. Jahr'!$D22+1),0),IF('Personalkosten 3. Jahr'!$C22>0,'Personalkosten 3. Jahr'!$M22/12,0)) -> 0 | N55: 0
A56: 12 | B56: =IF('Personalkosten 3. Jahr'!$D23>0,IF('Personalkosten 3. Jahr'!$D23<=Hilfstabelle!B$2=AND('Personalkosten 3. Jahr'!$E23>=Hilfstabelle!B$2),'Personalkosten 3. Jahr'!$M23/('Personalkosten 3. Jahr'!$E23-'Personalkosten 3. Jahr'!$D23+1),0),IF('Personalkosten 3. Jahr'!$C23>0,'Personalkosten 3. Jahr'!$M23/12,0)) -> 0 | C56: =IF('Personalkosten 3. Jahr'!$D23>0,IF('Personalkosten 3. Jahr'!$D23<=Hilfstabelle!C$2=AND('Personalkosten 3. Jahr'!$E23>=Hilfstabelle!C$2),'Personalkosten 3. Jahr'!$M23/('Personalkosten 3. Jahr'!$E23-'Personalkosten 3. Jahr'!$D23+1),0),IF('Personalkosten 3. Jahr'!$C23>0,'Personalkosten 3. Jahr'!$M23/12,0)) -> 0 | D56: =IF('Personalkosten 3. Jahr'!$D23>0,IF('Personalkosten 3. Jahr'!$D23<=Hilfstabelle!D$2=AND('Personalkosten 3. Jahr'!$E23>=Hilfstabelle!D$2),'Personalkosten 3. Jahr'!$M23/('Personalkosten 3. Jahr'!$E23-'Personalkosten 3. Jahr'!$D23+1),0),IF('Personalkosten 3. Jahr'!$C23>0,'Personalkosten 3. Jahr'!$M23/12,0)) -> 0 | E56: =IF('Personalkosten 3. Jahr'!$D23>0,IF('Personalkosten 3. Jahr'!$D23<=Hilfstabelle!E$2=AND('Personalkosten 3. Jahr'!$E23>=Hilfstabelle!E$2),'Personalkosten 3. Jahr'!$M23/('Personalkosten 3. Jahr'!$E23-'Personalkosten 3. Jahr'!$D23+1),0),IF('Personalkosten 3. Jahr'!$C23>0,'Personalkosten 3. Jahr'!$M23/12,0)) -> 0 | F56: =IF('Personalkosten 3. Jahr'!$D23>0,IF('Personalkosten 3. Jahr'!$D23<=Hilfstabelle!F$2=AND('Personalkosten 3. Jahr'!$E23>=Hilfstabelle!F$2),'Personalkosten 3. Jahr'!$M23/('Personalkosten 3. Jahr'!$E23-'Personalkosten 3. Jahr'!$D23+1),0),IF('Personalkosten 3. Jahr'!$C23>0,'Personalkosten 3. Jahr'!$M23/12,0)) -> 0 | G56: =IF('Personalkosten 3. Jahr'!$D23>0,IF('Personalkosten 3. Jahr'!$D23<=Hilfstabelle!G$2=AND('Personalkosten 3. Jahr'!$E23>=Hilfstabelle!G$2),'Personalkosten 3. Jahr'!$M23/('Personalkosten 3. Jahr'!$E23-'Personalkosten 3. Jahr'!$D23+1),0),IF('Personalkosten 3. Jahr'!$C23>0,'Personalkosten 3. Jahr'!$M23/12,0)) -> 0 | H56: =IF('Personalkosten 3. Jahr'!$D23>0,IF('Personalkosten 3. Jahr'!$D23<=Hilfstabelle!H$2=AND('Personalkosten 3. Jahr'!$E23>=Hilfstabelle!H$2),'Personalkosten 3. Jahr'!$M23/('Personalkosten 3. Jahr'!$E23-'Personalkosten 3. Jahr'!$D23+1),0),IF('Personalkosten 3. Jahr'!$C23>0,'Personalkosten 3. Jahr'!$M23/12,0)) -> 0 | I56: =IF('Personalkosten 3. Jahr'!$D23>0,IF('Personalkosten 3. Jahr'!$D23<=Hilfstabelle!I$2=AND('Personalkosten 3. Jahr'!$E23>=Hilfstabelle!I$2),'Personalkosten 3. Jahr'!$M23/('Personalkosten 3. Jahr'!$E23-'Personalkosten 3. Jahr'!$D23+1),0),IF('Personalkosten 3. Jahr'!$C23>0,'Personalkosten 3. Jahr'!$M23/12,0)) -> 0 | J56: =IF('Personalkosten 3. Jahr'!$D23>0,IF('Personalkosten 3. Jahr'!$D23<=Hilfstabelle!J$2=AND('Personalkosten 3. Jahr'!$E23>=Hilfstabelle!J$2),'Personalkosten 3. Jahr'!$M23/('Personalkosten 3. Jahr'!$E23-'Personalkosten 3. Jahr'!$D23+1),0),IF('Personalkosten 3. Jahr'!$C23>0,'Personalkosten 3. Jahr'!$M23/12,0)) -> 0 | K56: =IF('Personalkosten 3. Jahr'!$D23>0,IF('Personalkosten 3. Jahr'!$D23<=Hilfstabelle!K$2=AND('Personalkosten 3. Jahr'!$E23>=Hilfstabelle!K$2),'Personalkosten 3. Jahr'!$M23/('Personalkosten 3. Jahr'!$E23-'Personalkosten 3. Jahr'!$D23+1),0),IF('Personalkosten 3. Jahr'!$C23>0,'Personalkosten 3. Jahr'!$M23/12,0)) -> 0 | L56: =IF('Personalkosten 3. Jahr'!$D23>0,IF('Personalkosten 3. Jahr'!$D23<=Hilfstabelle!L$2=AND('Personalkosten 3. Jahr'!$E23>=Hilfstabelle!L$2),'Personalkosten 3. Jahr'!$M23/('Personalkosten 3. Jahr'!$E23-'Personalkosten 3. Jahr'!$D23+1),0),IF('Personalkosten 3. Jahr'!$C23>0,'Personalkosten 3. Jahr'!$M23/12,0)) -> 0 | M56: =IF('Personalkosten 3. Jahr'!$D23>0,IF('Personalkosten 3. Jahr'!$D23<=Hilfstabelle!M$2=AND('Personalkosten 3. Jahr'!$E23>=Hilfstabelle!M$2),'Personalkosten 3. Jahr'!$M23/('Personalkosten 3. Jahr'!$E23-'Personalkosten 3. Jahr'!$D23+1),0),IF('Personalkosten 3. Jahr'!$C23>0,'Personalkosten 3. Jahr'!$M23/12,0)) -> 0 | N56: 0
A57: BG+ | B57: =('Personalkosten 3. Jahr'!$M$25+'Personalkosten 3. Jahr'!$M$26)*Hilfstabelle!B58/'Personalkosten 3. Jahr'!$M$24 ->  | C57: =('Personalkosten 3. Jahr'!$M$25+'Personalkosten 3. Jahr'!$M$26)*Hilfstabelle!C58/'Personalkosten 3. Jahr'!$M$24 ->  | D57: =('Personalkosten 3. Jahr'!$M$25+'Personalkosten 3. Jahr'!$M$26)*Hilfstabelle!D58/'Personalkosten 3. Jahr'!$M$24 ->  | E57: =('Personalkosten 3. Jahr'!$M$25+'Personalkosten 3. Jahr'!$M$26)*Hilfstabelle!E58/'Personalkosten 3. Jahr'!$M$24 ->  | F57: =('Personalkosten 3. Jahr'!$M$25+'Personalkosten 3. Jahr'!$M$26)*Hilfstabelle!F58/'Personalkosten 3. Jahr'!$M$24 ->  | G57: =('Personalkosten 3. Jahr'!$M$25+'Personalkosten 3. Jahr'!$M$26)*Hilfstabelle!G58/'Personalkosten 3. Jahr'!$M$24 ->  | H57: =('Personalkosten 3. Jahr'!$M$25+'Personalkosten 3. Jahr'!$M$26)*Hilfstabelle!H58/'Personalkosten 3. Jahr'!$M$24 ->  | I57: =('Personalkosten 3. Jahr'!$M$25+'Personalkosten 3. Jahr'!$M$26)*Hilfstabelle!I58/'Personalkosten 3. Jahr'!$M$24 ->  | J57: =('Personalkosten 3. Jahr'!$M$25+'Personalkosten 3. Jahr'!$M$26)*Hilfstabelle!J58/'Personalkosten 3. Jahr'!$M$24 ->  | K57: =('Personalkosten 3. Jahr'!$M$25+'Personalkosten 3. Jahr'!$M$26)*Hilfstabelle!K58/'Personalkosten 3. Jahr'!$M$24 ->  | L57: =('Personalkosten 3. Jahr'!$M$25+'Personalkosten 3. Jahr'!$M$26)*Hilfstabelle!L58/'Personalkosten 3. Jahr'!$M$24 ->  | M57: =('Personalkosten 3. Jahr'!$M$25+'Personalkosten 3. Jahr'!$M$26)*Hilfstabelle!M58/'Personalkosten 3. Jahr'!$M$24 ->  | N57: =SUM(B57:M57) -> 
A58: Gesamt | B58: =SUM(B45:B56) -> 0 | C58: 0 | D58: 0 | E58: 0 | F58: 0 | G58: 0 | H58: 0 | I58: 0 | J58: 0 | K58: 0 | L58: 0 | M58: 0 | N58: =SUM(B58:M58) -> 0
A59: Gesamt | B59: =IF(B58>0,B57+B58,B58) -> 0 | C59: =IF(C58>0,C57+C58,C58) -> 0 | D59: 0 | E59: 0 | F59: 0 | G59: 0 | H59: 0 | I59: 0 | J59: 0 | K59: 0 | L59: 0 | M59: 0 | N59: =SUM(B59:M59) -> 0
A62: 2. Tilgungsverteilung drei Jahre für Tilgungsdarlehen
A63: 1. Jahr | B63: 1 | C63: 2 | D63: 3 | E63: 4 | F63: 5 | G63: 6 | H63: 7 | I63: 8 | J63: 9 | K63: 10 | L63: 11 | M63: 12 | N63: Gesamt
A64: Darlehen 1: | B64: =IF(B$63<='Zins und Tilgung'!$H$7,0,'Zins und Tilgung'!$J13/(12-'Zins und Tilgung'!$H$7)) -> 0.0 | C64: =IF(C$63<='Zins und Tilgung'!$H$7,0,'Zins und Tilgung'!$J13/(12-'Zins und Tilgung'!$H$7)) -> 0.0 | D64: =IF(D$63<='Zins und Tilgung'!$H$7,0,'Zins und Tilgung'!$J13/(12-'Zins und Tilgung'!$H$7)) -> 0.0 | E64: =IF(E$63<='Zins und Tilgung'!$H$7,0,'Zins und Tilgung'!$J13/(12-'Zins und Tilgung'!$H$7)) -> 0.0 | F64: =IF(F$63<='Zins und Tilgung'!$H$7,0,'Zins und Tilgung'!$J13/(12-'Zins und Tilgung'!$H$7)) -> 0.0 | G64: =IF(G$63<='Zins und Tilgung'!$H$7,0,'Zins und Tilgung'!$J13/(12-'Zins und Tilgung'!$H$7)) -> 0.0 | H64: =IF(H$63<='Zins und Tilgung'!$H$7,0,'Zins und Tilgung'!$J13/(12-'Zins und Tilgung'!$H$7)) -> 0.0 | I64: =IF(I$63<='Zins und Tilgung'!$H$7,0,'Zins und Tilgung'!$J13/(12-'Zins und Tilgung'!$H$7)) -> 0.0 | J64: =IF(J$63<='Zins und Tilgung'!$H$7,0,'Zins und Tilgung'!$J13/(12-'Zins und Tilgung'!$H$7)) -> 0.0 | K64: =IF(K$63<='Zins und Tilgung'!$H$7,0,'Zins und Tilgung'!$J13/(12-'Zins und Tilgung'!$H$7)) -> 0.0 | L64: =IF(L$63<='Zins und Tilgung'!$H$7,0,'Zins und Tilgung'!$J13/(12-'Zins und Tilgung'!$H$7)) -> 0.0 | M64: =IF(M$63<='Zins und Tilgung'!$H$7,0,'Zins und Tilgung'!$J13/(12-'Zins und Tilgung'!$H$7)) -> 0.0 | N64: =SUM(B64:M64) -> 0
A65: Darlehen 2: | B65: =IF(B$63<='Zins und Tilgung'!$N$7,0,'Zins und Tilgung'!$P13/(12-'Zins und Tilgung'!$N$7)) -> 0.0 | C65: =IF(C$63<='Zins und Tilgung'!$N$7,0,'Zins und Tilgung'!$P13/(12-'Zins und Tilgung'!$N$7)) -> 0.0 | D65: =IF(D$63<='Zins und Tilgung'!$N$7,0,'Zins und Tilgung'!$P13/(12-'Zins und Tilgung'!$N$7)) -> 0.0 | E65: =IF(E$63<='Zins und Tilgung'!$N$7,0,'Zins und Tilgung'!$P13/(12-'Zins und Tilgung'!$N$7)) -> 0.0 | F65: =IF(F$63<='Zins und Tilgung'!$N$7,0,'Zins und Tilgung'!$P13/(12-'Zins und Tilgung'!$N$7)) -> 0.0 | G65: =IF(G$63<='Zins und Tilgung'!$N$7,0,'Zins und Tilgung'!$P13/(12-'Zins und Tilgung'!$N$7)) -> 0.0 | H65: =IF(H$63<='Zins und Tilgung'!$N$7,0,'Zins und Tilgung'!$P13/(12-'Zins und Tilgung'!$N$7)) -> 0.0 | I65: =IF(I$63<='Zins und Tilgung'!$N$7,0,'Zins und Tilgung'!$P13/(12-'Zins und Tilgung'!$N$7)) -> 0.0 | J65: =IF(J$63<='Zins und Tilgung'!$N$7,0,'Zins und Tilgung'!$P13/(12-'Zins und Tilgung'!$N$7)) -> 0.0 | K65: =IF(K$63<='Zins und Tilgung'!$N$7,0,'Zins und Tilgung'!$P13/(12-'Zins und Tilgung'!$N$7)) -> 0.0 | L65: =IF(L$63<='Zins und Tilgung'!$N$7,0,'Zins und Tilgung'!$P13/(12-'Zins und Tilgung'!$N$7)) -> 0.0 | M65: =IF(M$63<='Zins und Tilgung'!$N$7,0,'Zins und Tilgung'!$P13/(12-'Zins und Tilgung'!$N$7)) -> 0.0 | N65: =SUM(B65:M65) -> 0
A66: Mikromezzanin | B66: =IF(B$63<='Zins und Tilgung'!$T$8*12,0,'Zins und Tilgung'!$V14/(12-'Zins und Tilgung'!$T$7)) -> 0.0 | C66: =IF(C$63<='Zins und Tilgung'!$T$7,0,'Zins und Tilgung'!$V14/(12-'Zins und Tilgung'!$T$7)) -> 0.0 | D66: =IF(D$63<='Zins und Tilgung'!$T$7,0,'Zins und Tilgung'!$V14/(12-'Zins und Tilgung'!$T$7)) -> 0.0 | E66: =IF(E$63<='Zins und Tilgung'!$T$7,0,'Zins und Tilgung'!$V14/(12-'Zins und Tilgung'!$T$7)) -> 0.0 | F66: =IF(F$63<='Zins und Tilgung'!$T$7,0,'Zins und Tilgung'!$V14/(12-'Zins und Tilgung'!$T$7)) -> 0.0 | G66: =IF(G$63<='Zins und Tilgung'!$T$7,0,'Zins und Tilgung'!$V14/(12-'Zins und Tilgung'!$T$7)) -> 0.0 | H66: =IF(H$63<='Zins und Tilgung'!$T$7,0,'Zins und Tilgung'!$V14/(12-'Zins und Tilgung'!$T$7)) -> 0.0 | I66: =IF(I$63<='Zins und Tilgung'!$T$7,0,'Zins und Tilgung'!$V14/(12-'Zins und Tilgung'!$T$7)) -> 0.0 | J66: =IF(J$63<='Zins und Tilgung'!$T$7,0,'Zins und Tilgung'!$V14/(12-'Zins und Tilgung'!$T$7)) -> 0.0 | K66: =IF(K$63<='Zins und Tilgung'!$T$7,0,'Zins und Tilgung'!$V14/(12-'Zins und Tilgung'!$T$7)) -> 0.0 | L66: =IF('Zins und Tilgung'!$T1<=12,'Zins und Tilgung'!$V8/12,IF(L$69<='Zins und Tilgung'!$T$7,0,'Zins und Tilgung'!$V8/(24-'Zins und Tilgung'!$T$7))) -> 0.0 | M66: =IF('Zins und Tilgung'!$T1<=12,'Zins und Tilgung'!$V8/12,IF(M$69<='Zins und Tilgung'!$T$7,0,'Zins und Tilgung'!$V8/(24-'Zins und Tilgung'!$T$7))) -> 0.0 | N66: =SUM(B66:M66) -> 0
A67: Gesamt | B67: =SUM(B64:B66) -> 0.0 | C67: =SUM(C64:C66) -> 0.0 | D67: 0.0 | E67: 0.0 | F67: 0.0 | G67: 0.0 | H67: 0.0 | I67: 0.0 | J67: 0.0 | K67: 0.0 | L67: 0.0 | M67: 0.0 | N67: =SUM(N64:N66) -> 0 | O67: =SUM(B67:M67) -> 0.0
A69: 2. Jahr | B69: 13 | C69: 14 | D69: 15 | E69: 16 | F69: 17 | G69: 18 | H69: 19 | I69: 20 | J69: 21 | K69: 22 | L69: 23 | M69: 24 | N69: Gesamt
A70: Darlehen 1: | B70: =IF('Zins und Tilgung'!$H7<=12,'Zins und Tilgung'!$J14/12,IF(B$69<='Zins und Tilgung'!$H$7,0,'Zins und Tilgung'!$J14/(24-'Zins und Tilgung'!$H$7))) -> 0.0 | C70: =IF('Zins und Tilgung'!$H7<=12,'Zins und Tilgung'!$J14/12,IF(C$69<='Zins und Tilgung'!$H$7,0,'Zins und Tilgung'!$J14/(24-'Zins und Tilgung'!$H$7))) -> 0.0 | D70: =IF('Zins und Tilgung'!$H7<=12,'Zins und Tilgung'!$J14/12,IF(D$69<='Zins und Tilgung'!$H$7,0,'Zins und Tilgung'!$J14/(24-'Zins und Tilgung'!$H$7))) -> 0.0 | E70: =IF('Zins und Tilgung'!$H7<=12,'Zins und Tilgung'!$J14/12,IF(E$69<='Zins und Tilgung'!$H$7,0,'Zins und Tilgung'!$J14/(24-'Zins und Tilgung'!$H$7))) -> 0.0 | F70: =IF('Zins und Tilgung'!$H7<=12,'Zins und Tilgung'!$J14/12,IF(F$69<='Zins und Tilgung'!$H$7,0,'Zins und Tilgung'!$J14/(24-'Zins und Tilgung'!$H$7))) -> 0.0 | G70: =IF('Zins und Tilgung'!$H7<=12,'Zins und Tilgung'!$J14/12,IF(G$69<='Zins und Tilgung'!$H$7,0,'Zins und Tilgung'!$J14/(24-'Zins und Tilgung'!$H$7))) -> 0.0 | H70: =IF('Zins und Tilgung'!$H7<=12,'Zins und Tilgung'!$J14/12,IF(H$69<='Zins und Tilgung'!$H$7,0,'Zins und Tilgung'!$J14/(24-'Zins und Tilgung'!$H$7))) -> 0.0 | I70: =IF('Zins und Tilgung'!$H7<=12,'Zins und Tilgung'!$J14/12,IF(I$69<='Zins und Tilgung'!$H$7,0,'Zins und Tilgung'!$J14/(24-'Zins und Tilgung'!$H$7))) -> 0.0 | J70: =IF('Zins und Tilgung'!$H7<=12,'Zins und Tilgung'!$J14/12,IF(J$69<='Zins und Tilgung'!$H$7,0,'Zins und Tilgung'!$J14/(24-'Zins und Tilgung'!$H$7))) -> 0.0 | K70: =IF('Zins und Tilgung'!$H7<=12,'Zins und Tilgung'!$J14/12,IF(K$69<='Zins und Tilgung'!$H$7,0,'Zins und Tilgung'!$J14/(24-'Zins und Tilgung'!$H$7))) -> 0.0 | L70: =IF('Zins und Tilgung'!$H7<=12,'Zins und Tilgung'!$J14/12,IF(L$69<='Zins und Tilgung'!$H$7,0,'Zins und Tilgung'!$J14/(24-'Zins und Tilgung'!$H$7))) -> 0.0 | M70: =IF('Zins und Tilgung'!$H7<=12,'Zins und Tilgung'!$J14/12,IF(M$69<='Zins und Tilgung'!$H$7,0,'Zins und Tilgung'!$J14/(24-'Zins und Tilgung'!$H$7))) -> 0.0 | N70: =SUM(B70:M70) -> 0
A71: Darlehen 2: | B71: =IF('Zins und Tilgung'!$N7<=12,'Zins und Tilgung'!$P14/12,IF(B$69<='Zins und Tilgung'!$N$7,0,'Zins und Tilgung'!$P14/(24-'Zins und Tilgung'!$N$7))) -> 0.0 | C71: =IF('Zins und Tilgung'!$N7<=12,'Zins und Tilgung'!$P14/12,IF(C$69<='Zins und Tilgung'!$N$7,0,'Zins und Tilgung'!$P14/(24-'Zins und Tilgung'!$N$7))) -> 0.0 | D71: =IF('Zins und Tilgung'!$N7<=12,'Zins und Tilgung'!$P14/12,IF(D$69<='Zins und Tilgung'!$N$7,0,'Zins und Tilgung'!$P14/(24-'Zins und Tilgung'!$N$7))) -> 0.0 | E71: =IF('Zins und Tilgung'!$N7<=12,'Zins und Tilgung'!$P14/12,IF(E$69<='Zins und Tilgung'!$N$7,0,'Zins und Tilgung'!$P14/(24-'Zins und Tilgung'!$N$7))) -> 0.0 | F71: =IF('Zins und Tilgung'!$N7<=12,'Zins und Tilgung'!$P14/12,IF(F$69<='Zins und Tilgung'!$N$7,0,'Zins und Tilgung'!$P14/(24-'Zins und Tilgung'!$N$7))) -> 0.0 | G71: =IF('Zins und Tilgung'!$N7<=12,'Zins und Tilgung'!$P14/12,IF(G$69<='Zins und Tilgung'!$N$7,0,'Zins und Tilgung'!$P14/(24-'Zins und Tilgung'!$N$7))) -> 0.0 | H71: =IF('Zins und Tilgung'!$N7<=12,'Zins und Tilgung'!$P14/12,IF(H$69<='Zins und Tilgung'!$N$7,0,'Zins und Tilgung'!$P14/(24-'Zins und Tilgung'!$N$7))) -> 0.0 | I71: =IF('Zins und Tilgung'!$N7<=12,'Zins und Tilgung'!$P14/12,IF(I$69<='Zins und Tilgung'!$N$7,0,'Zins und Tilgung'!$P14/(24-'Zins und Tilgung'!$N$7))) -> 0.0 | J71: =IF('Zins und Tilgung'!$N7<=12,'Zins und Tilgung'!$P14/12,IF(J$69<='Zins und Tilgung'!$N$7,0,'Zins und Tilgung'!$P14/(24-'Zins und Tilgung'!$N$7))) -> 0.0 | K71: =IF('Zins und Tilgung'!$N7<=12,'Zins und Tilgung'!$P14/12,IF(K$69<='Zins und Tilgung'!$N$7,0,'Zins und Tilgung'!$P14/(24-'Zins und Tilgung'!$N$7))) -> 0.0 | L71: =IF('Zins und Tilgung'!$N7<=12,'Zins und Tilgung'!$P14/12,IF(L$69<='Zins und Tilgung'!$N$7,0,'Zins und Tilgung'!$P14/(24-'Zins und Tilgung'!$N$7))) -> 0.0 | M71: =IF('Zins und Tilgung'!$N7<=12,'Zins und Tilgung'!$P14/12,IF(M$69<='Zins und Tilgung'!$N$7,0,'Zins und Tilgung'!$P14/(24-'Zins und Tilgung'!$N$7))) -> 0.0 | N71: =SUM(B71:M71) -> 0
A72: Mikromezzanin | B72: =IF('Zins und Tilgung'!$T7<=12,'Zins und Tilgung'!$V15/12,IF(B$69<='Zins und Tilgung'!$T$7,0,'Zins und Tilgung'!$V15/(24-'Zins und Tilgung'!$T$7))) -> 0.0 | C72: =IF('Zins und Tilgung'!$T7<=12,'Zins und Tilgung'!$V15/12,IF(C$69<='Zins und Tilgung'!$T$7,0,'Zins und Tilgung'!$V15/(24-'Zins und Tilgung'!$T$7))) -> 0.0 | D72: =IF('Zins und Tilgung'!$T7<=12,'Zins und Tilgung'!$V15/12,IF(D$69<='Zins und Tilgung'!$T$7,0,'Zins und Tilgung'!$V15/(24-'Zins und Tilgung'!$T$7))) -> 0.0 | E72: =IF('Zins und Tilgung'!$T7<=12,'Zins und Tilgung'!$V15/12,IF(E$69<='Zins und Tilgung'!$T$7,0,'Zins und Tilgung'!$V15/(24-'Zins und Tilgung'!$T$7))) -> 0.0 | F72: =IF('Zins und Tilgung'!$T7<=12,'Zins und Tilgung'!$V15/12,IF(F$69<='Zins und Tilgung'!$T$7,0,'Zins und Tilgung'!$V15/(24-'Zins und Tilgung'!$T$7))) -> 0.0 | G72: =IF('Zins und Tilgung'!$T7<=12,'Zins und Tilgung'!$V15/12,IF(G$69<='Zins und Tilgung'!$T$7,0,'Zins und Tilgung'!$V15/(24-'Zins und Tilgung'!$T$7))) -> 0.0 | H72: =IF('Zins und Tilgung'!$T7<=12,'Zins und Tilgung'!$V15/12,IF(H$69<='Zins und Tilgung'!$T$7,0,'Zins und Tilgung'!$V15/(24-'Zins und Tilgung'!$T$7))) -> 0.0 | I72: =IF('Zins und Tilgung'!$T7<=12,'Zins und Tilgung'!$V15/12,IF(I$69<='Zins und Tilgung'!$T$7,0,'Zins und Tilgung'!$V15/(24-'Zins und Tilgung'!$T$7))) -> 0.0 | J72: =IF('Zins und Tilgung'!$T7<=12,'Zins und Tilgung'!$V15/12,IF(J$69<='Zins und Tilgung'!$T$7,0,'Zins und Tilgung'!$V15/(24-'Zins und Tilgung'!$T$7))) -> 0.0 | K72: =IF('Zins und Tilgung'!$T7<=12,'Zins und Tilgung'!$V15/12,IF(K$69<='Zins und Tilgung'!$T$7,0,'Zins und Tilgung'!$V15/(24-'Zins und Tilgung'!$T$7))) -> 0.0 | L72: =IF('Zins und Tilgung'!$T7<=12,'Zins und Tilgung'!$V15/12,IF(L$69<='Zins und Tilgung'!$T$7,0,'Zins und Tilgung'!$V15/(24-'Zins und Tilgung'!$T$7))) -> 0.0 | M72: =IF('Zins und Tilgung'!$T7<=12,'Zins und Tilgung'!$V15/12,IF(M$69<='Zins und Tilgung'!$T$7,0,'Zins und Tilgung'!$V15/(24-'Zins und Tilgung'!$T$7))) -> 0.0 | N72: =SUM(B72:M72) -> 0
A73: Gesamt | B73: =SUM(B70:B72) -> 0.0 | C73: 0.0 | D73: 0.0 | E73: 0.0 | F73: 0.0 | G73: 0.0 | H73: 0.0 | I73: 0.0 | J73: 0.0 | K73: 0.0 | L73: 0.0 | M73: 0.0 | N73: =SUM(N70:N72) -> 0 | O73: =SUM(B73:M73) -> 0.0
A75: 3. Jahr | B75: 25 | C75: 26 | D75: 27 | E75: 28 | F75: 29 | G75: 30 | H75: 31 | I75: 32 | J75: 33 | K75: 34 | L75: 35 | M75: 36 | N75: Gesamt
A76: Darlehen 1: | B76: =IF('Zins und Tilgung'!$H7<=24,'Zins und Tilgung'!$J15/12,IF(B$75<='Zins und Tilgung'!$H$7,0,'Zins und Tilgung'!$J15/(36-'Zins und Tilgung'!$H$7))) -> 0.0 | C76: =IF('Zins und Tilgung'!$H7<=24,'Zins und Tilgung'!$J15/12,IF(C$75<='Zins und Tilgung'!$H$7,0,'Zins und Tilgung'!$J15/(36-'Zins und Tilgung'!$H$7))) -> 0.0 | D76: =IF('Zins und Tilgung'!$H7<=24,'Zins und Tilgung'!$J15/12,IF(D$75<='Zins und Tilgung'!$H$7,0,'Zins und Tilgung'!$J15/(36-'Zins und Tilgung'!$H$7))) -> 0.0 | E76: =IF('Zins und Tilgung'!$H7<=24,'Zins und Tilgung'!$J15/12,IF(E$75<='Zins und Tilgung'!$H$7,0,'Zins und Tilgung'!$J15/(36-'Zins und Tilgung'!$H$7))) -> 0.0 | F76: =IF('Zins und Tilgung'!$H7<=24,'Zins und Tilgung'!$J15/12,IF(F$75<='Zins und Tilgung'!$H$7,0,'Zins und Tilgung'!$J15/(36-'Zins und Tilgung'!$H$7))) -> 0.0 | G76: =IF('Zins und Tilgung'!$H7<=24,'Zins und Tilgung'!$J15/12,IF(G$75<='Zins und Tilgung'!$H$7,0,'Zins und Tilgung'!$J15/(36-'Zins und Tilgung'!$H$7))) -> 0.0 | H76: =IF('Zins und Tilgung'!$H7<=24,'Zins und Tilgung'!$J15/12,IF(H$75<='Zins und Tilgung'!$H$7,0,'Zins und Tilgung'!$J15/(36-'Zins und Tilgung'!$H$7))) -> 0.0 | I76: =IF('Zins und Tilgung'!$H7<=24,'Zins und Tilgung'!$J15/12,IF(I$75<='Zins und Tilgung'!$H$7,0,'Zins und Tilgung'!$J15/(36-'Zins und Tilgung'!$H$7))) -> 0.0 | J76: =IF('Zins und Tilgung'!$H7<=24,'Zins und Tilgung'!$J15/12,IF(J$75<='Zins und Tilgung'!$H$7,0,'Zins und Tilgung'!$J15/(36-'Zins und Tilgung'!$H$7))) -> 0.0 | K76: =IF('Zins und Tilgung'!$H7<=24,'Zins und Tilgung'!$J15/12,IF(K$75<='Zins und Tilgung'!$H$7,0,'Zins und Tilgung'!$J15/(36-'Zins und Tilgung'!$H$7))) -> 0.0 | L76: =IF('Zins und Tilgung'!$H7<=24,'Zins und Tilgung'!$J15/12,IF(L$75<='Zins und Tilgung'!$H$7,0,'Zins und Tilgung'!$J15/(36-'Zins und Tilgung'!$H$7))) -> 0.0 | M76: =IF('Zins und Tilgung'!$H7<=24,'Zins und Tilgung'!$J15/12,IF(M$75<='Zins und Tilgung'!$H$7,0,'Zins und Tilgung'!$J15/(36-'Zins und Tilgung'!$H$7))) -> 0.0 | N76: =SUM(B76:M76) -> 0
A77: Darlehen 2: | B77: =IF('Zins und Tilgung'!$N7<=24,'Zins und Tilgung'!$P15/12,IF(B$75<='Zins und Tilgung'!$N$7,0,'Zins und Tilgung'!$P15/(36-'Zins und Tilgung'!$N$7))) -> 0.0 | C77: =IF('Zins und Tilgung'!$N7<=24,'Zins und Tilgung'!$P15/12,IF(C$75<='Zins und Tilgung'!$N$7,0,'Zins und Tilgung'!$P15/(36-'Zins und Tilgung'!$N$7))) -> 0.0 | D77: =IF('Zins und Tilgung'!$N7<=24,'Zins und Tilgung'!$P15/12,IF(D$75<='Zins und Tilgung'!$N$7,0,'Zins und Tilgung'!$P15/(36-'Zins und Tilgung'!$N$7))) -> 0.0 | E77: =IF('Zins und Tilgung'!$N7<=24,'Zins und Tilgung'!$P15/12,IF(E$75<='Zins und Tilgung'!$N$7,0,'Zins und Tilgung'!$P15/(36-'Zins und Tilgung'!$N$7))) -> 0.0 | F77: =IF('Zins und Tilgung'!$N7<=24,'Zins und Tilgung'!$P15/12,IF(F$75<='Zins und Tilgung'!$N$7,0,'Zins und Tilgung'!$P15/(36-'Zins und Tilgung'!$N$7))) -> 0.0 | G77: =IF('Zins und Tilgung'!$N7<=24,'Zins und Tilgung'!$P15/12,IF(G$75<='Zins und Tilgung'!$N$7,0,'Zins und Tilgung'!$P15/(36-'Zins und Tilgung'!$N$7))) -> 0.0 | H77: =IF('Zins und Tilgung'!$N7<=24,'Zins und Tilgung'!$P15/12,IF(H$75<='Zins und Tilgung'!$N$7,0,'Zins und Tilgung'!$P15/(36-'Zins und Tilgung'!$N$7))) -> 0.0 | I77: =IF('Zins und Tilgung'!$N7<=24,'Zins und Tilgung'!$P15/12,IF(I$75<='Zins und Tilgung'!$N$7,0,'Zins und Tilgung'!$P15/(36-'Zins und Tilgung'!$N$7))) -> 0.0 | J77: =IF('Zins und Tilgung'!$N7<=24,'Zins und Tilgung'!$P15/12,IF(J$75<='Zins und Tilgung'!$N$7,0,'Zins und Tilgung'!$P15/(36-'Zins und Tilgung'!$N$7))) -> 0.0 | K77: =IF('Zins und Tilgung'!$N7<=24,'Zins und Tilgung'!$P15/12,IF(K$75<='Zins und Tilgung'!$N$7,0,'Zins und Tilgung'!$P15/(36-'Zins und Tilgung'!$N$7))) -> 0.0 | L77: =IF('Zins und Tilgung'!$N7<=24,'Zins und Tilgung'!$P15/12,IF(L$75<='Zins und Tilgung'!$N$7,0,'Zins und Tilgung'!$P15/(36-'Zins und Tilgung'!$N$7))) -> 0.0 | M77: =IF('Zins und Tilgung'!$N7<=24,'Zins und Tilgung'!$P15/12,IF(M$75<='Zins und Tilgung'!$N$7,0,'Zins und Tilgung'!$P15/(36-'Zins und Tilgung'!$N$7))) -> 0.0 | N77: =SUM(B77:M77) -> 0
A78: Mikromezzanin | B78: =IF('Zins und Tilgung'!$T7<=24,'Zins und Tilgung'!$V16/12,IF(B$75<='Zins und Tilgung'!$T$7,0,'Zins und Tilgung'!$V16/(36-'Zins und Tilgung'!$T$7))) -> 0.0 | C78: =IF('Zins und Tilgung'!$T7<=24,'Zins und Tilgung'!$V16/12,IF(C$75<='Zins und Tilgung'!$T$7,0,'Zins und Tilgung'!$V16/(36-'Zins und Tilgung'!$T$7))) -> 0.0 | D78: =IF('Zins und Tilgung'!$T7<=24,'Zins und Tilgung'!$V16/12,IF(D$75<='Zins und Tilgung'!$T$7,0,'Zins und Tilgung'!$V16/(36-'Zins und Tilgung'!$T$7))) -> 0.0 | E78: =IF('Zins und Tilgung'!$T7<=24,'Zins und Tilgung'!$V16/12,IF(E$75<='Zins und Tilgung'!$T$7,0,'Zins und Tilgung'!$V16/(36-'Zins und Tilgung'!$T$7))) -> 0.0 | F78: =IF('Zins und Tilgung'!$T7<=24,'Zins und Tilgung'!$V16/12,IF(F$75<='Zins und Tilgung'!$T$7,0,'Zins und Tilgung'!$V16/(36-'Zins und Tilgung'!$T$7))) -> 0.0 | G78: =IF('Zins und Tilgung'!$T7<=24,'Zins und Tilgung'!$V16/12,IF(G$75<='Zins und Tilgung'!$T$7,0,'Zins und Tilgung'!$V16/(36-'Zins und Tilgung'!$T$7))) -> 0.0 | H78: =IF('Zins und Tilgung'!$T7<=24,'Zins und Tilgung'!$V16/12,IF(H$75<='Zins und Tilgung'!$T$7,0,'Zins und Tilgung'!$V16/(36-'Zins und Tilgung'!$T$7))) -> 0.0 | I78: =IF('Zins und Tilgung'!$T7<=24,'Zins und Tilgung'!$V16/12,IF(I$75<='Zins und Tilgung'!$T$7,0,'Zins und Tilgung'!$V16/(36-'Zins und Tilgung'!$T$7))) -> 0.0 | J78: =IF('Zins und Tilgung'!$T7<=24,'Zins und Tilgung'!$V16/12,IF(J$75<='Zins und Tilgung'!$T$7,0,'Zins und Tilgung'!$V16/(36-'Zins und Tilgung'!$T$7))) -> 0.0 | K78: =IF('Zins und Tilgung'!$T7<=24,'Zins und Tilgung'!$V16/12,IF(K$75<='Zins und Tilgung'!$T$7,0,'Zins und Tilgung'!$V16/(36-'Zins und Tilgung'!$T$7))) -> 0.0 | L78: =IF('Zins und Tilgung'!$T7<=24,'Zins und Tilgung'!$V16/12,IF(L$75<='Zins und Tilgung'!$T$7,0,'Zins und Tilgung'!$V16/(36-'Zins und Tilgung'!$T$7))) -> 0.0 | M78: =IF('Zins und Tilgung'!$T7<=24,'Zins und Tilgung'!$V16/12,IF(M$75<='Zins und Tilgung'!$T$7,0,'Zins und Tilgung'!$V16/(36-'Zins und Tilgung'!$T$7))) -> 0.0 | N78: =SUM(B78:M78) -> 0
A79: Gesamt | B79: =SUM(B76:B78) -> 0.0 | C79: 0.0 | D79: 0.0 | E79: 0.0 | F79: 0.0 | G79: 0.0 | H79: 0.0 | I79: 0.0 | J79: 0.0 | K79: 0.0 | L79: 0.0 | M79: 0.0 | N79: =SUM(N76:N78) -> 0 | O79: =SUM(B79:M79) -> 0.0
A82: 3. Zinsverteilung drei Jahre für Tilgungsdarlehen
A83: 1. Jahr | B83: 1 | C83: 2 | D83: 3 | E83: 4 | F83: 5 | G83: 6 | H83: 7 | I83: 8 | J83: 9 | K83: 10 | L83: 11 | M83: 12 | N83: Gesamt
A84: Darlehen 1: | B84: =IF(B64=0,'Zins und Tilgung'!$H13*'Zins und Tilgung'!$H$5/100/12,('Zins und Tilgung'!H$13-Hilfstabelle!$B64)*'Zins und Tilgung'!$H$5/100/12) -> 0.0 | C84: =IF(C64=0,'Zins und Tilgung'!$H13*'Zins und Tilgung'!$H$5/100/12,('Zins und Tilgung'!$H13-SUM($B64:C64))*'Zins und Tilgung'!$H$5/100/12) -> 0.0 | D84: =IF(D64=0,'Zins und Tilgung'!$H13*'Zins und Tilgung'!$H$5/100/12,('Zins und Tilgung'!$H13-SUM($B64:D64))*'Zins und Tilgung'!$H$5/100/12) -> 0.0 | E84: =IF(E64=0,'Zins und Tilgung'!$H13*'Zins und Tilgung'!$H$5/100/12,('Zins und Tilgung'!$H13-SUM($B64:E64))*'Zins und Tilgung'!$H$5/100/12) -> 0.0 | F84: =IF(F64=0,'Zins und Tilgung'!$H13*'Zins und Tilgung'!$H$5/100/12,('Zins und Tilgung'!$H13-SUM($B64:F64))*'Zins und Tilgung'!$H$5/100/12) -> 0.0 | G84: =IF(G64=0,'Zins und Tilgung'!$H13*'Zins und Tilgung'!$H$5/100/12,('Zins und Tilgung'!$H13-SUM($B64:G64))*'Zins und Tilgung'!$H$5/100/12) -> 0.0 | H84: =IF(H64=0,'Zins und Tilgung'!$H13*'Zins und Tilgung'!$H$5/100/12,('Zins und Tilgung'!$H13-SUM($B64:H64))*'Zins und Tilgung'!$H$5/100/12) -> 0.0 | I84: =IF(I64=0,'Zins und Tilgung'!$H13*'Zins und Tilgung'!$H$5/100/12,('Zins und Tilgung'!$H13-SUM($B64:I64))*'Zins und Tilgung'!$H$5/100/12) -> 0.0 | J84: =IF(J64=0,'Zins und Tilgung'!$H13*'Zins und Tilgung'!$H$5/100/12,('Zins und Tilgung'!$H13-SUM($B64:J64))*'Zins und Tilgung'!$H$5/100/12) -> 0.0 | K84: =IF(K64=0,'Zins und Tilgung'!$H13*'Zins und Tilgung'!$H$5/100/12,('Zins und Tilgung'!$H13-SUM($B64:K64))*'Zins und Tilgung'!$H$5/100/12) -> 0.0 | L84: =IF(L64=0,'Zins und Tilgung'!$H13*'Zins und Tilgung'!$H$5/100/12,('Zins und Tilgung'!$H13-SUM($B64:L64))*'Zins und Tilgung'!$H$5/100/12) -> 0.0 | M84: =IF(M64=0,'Zins und Tilgung'!$H13*'Zins und Tilgung'!$H$5/100/12,('Zins und Tilgung'!$H13-SUM($B64:M64))*'Zins und Tilgung'!$H$5/100/12) -> 0.0 | N84: =SUM(B84:M84) -> 0
A85: Darlehen 2: | B85: =IF(B65=0,'Zins und Tilgung'!$N13*'Zins und Tilgung'!$N$5/100/12,('Zins und Tilgung'!N$13-Hilfstabelle!$B65)*'Zins und Tilgung'!$N$5/100/12) -> 0.0 | C85: =IF(C65=0,'Zins und Tilgung'!$N13*'Zins und Tilgung'!$N$5/100/12,('Zins und Tilgung'!$N13-SUM($B65:C65))*'Zins und Tilgung'!$N$5/100/12) -> 0.0 | D85: =IF(D65=0,'Zins und Tilgung'!$N13*'Zins und Tilgung'!$N$5/100/12,('Zins und Tilgung'!$N13-SUM($B65:D65))*'Zins und Tilgung'!$N$5/100/12) -> 0.0 | E85: =IF(E65=0,'Zins und Tilgung'!$N13*'Zins und Tilgung'!$N$5/100/12,('Zins und Tilgung'!$N13-SUM($B65:E65))*'Zins und Tilgung'!$N$5/100/12) -> 0.0 | F85: =IF(F65=0,'Zins und Tilgung'!$N13*'Zins und Tilgung'!$N$5/100/12,('Zins und Tilgung'!$N13-SUM($B65:F65))*'Zins und Tilgung'!$N$5/100/12) -> 0.0 | G85: =IF(G65=0,'Zins und Tilgung'!$N13*'Zins und Tilgung'!$N$5/100/12,('Zins und Tilgung'!$N13-SUM($B65:G65))*'Zins und Tilgung'!$N$5/100/12) -> 0.0 | H85: =IF(H65=0,'Zins und Tilgung'!$N13*'Zins und Tilgung'!$N$5/100/12,('Zins und Tilgung'!$N13-SUM($B65:H65))*'Zins und Tilgung'!$N$5/100/12) -> 0.0 | I85: =IF(I65=0,'Zins und Tilgung'!$N13*'Zins und Tilgung'!$N$5/100/12,('Zins und Tilgung'!$N13-SUM($B65:I65))*'Zins und Tilgung'!$N$5/100/12) -> 0.0 | J85: =IF(J65=0,'Zins und Tilgung'!$N13*'Zins und Tilgung'!$N$5/100/12,('Zins und Tilgung'!$N13-SUM($B65:J65))*'Zins und Tilgung'!$N$5/100/12) -> 0.0 | K85: =IF(K65=0,'Zins und Tilgung'!$N13*'Zins und Tilgung'!$N$5/100/12,('Zins und Tilgung'!$N13-SUM($B65:K65))*'Zins und Tilgung'!$N$5/100/12) -> 0.0 | L85: =IF(L65=0,'Zins und Tilgung'!$N13*'Zins und Tilgung'!$N$5/100/12,('Zins und Tilgung'!$N13-SUM($B65:L65))*'Zins und Tilgung'!$N$5/100/12) -> 0.0 | M85: =IF(M65=0,'Zins und Tilgung'!$N13*'Zins und Tilgung'!$N$5/100/12,('Zins und Tilgung'!$N13-SUM($B65:M65))*'Zins und Tilgung'!$N$5/100/12) -> 0.0 | N85: =SUM(B85:M85) -> 0
A86: Mikromezzanin | B86: =IF(AND(MONTH('Liquiditätsplan-1.Jahr'!$D10)>=8,MONTH('Liquiditätsplan-1.Jahr'!D10)=7),'Zins und Tilgung'!$T4*'Zins und Tilgung'!$T6/100,0) -> 0.0 | C86: =IF(AND(MONTH('Liquiditätsplan-1.Jahr'!$D10)>=8,MONTH('Liquiditätsplan-1.Jahr'!E10)=7),'Zins und Tilgung'!$T4*'Zins und Tilgung'!$T6/100,0) -> 0.0 | D86: ='Zins und Tilgung'!$T$4*'Zins und Tilgung'!$T$5*0.25/100+IF(AND(MONTH('Liquiditätsplan-1.Jahr'!$D10)>=8,MONTH('Liquiditätsplan-1.Jahr'!F10)=7),'Zins und Tilgung'!$T4*'Zins und Tilgung'!$T6/100,0) -> 0.0 | E86: =IF(AND(MONTH('Liquiditätsplan-1.Jahr'!$D10)>=8,MONTH('Liquiditätsplan-1.Jahr'!G10)=7),'Zins und Tilgung'!$T4*'Zins und Tilgung'!$T6/100,0) -> 0.0 | F86: =IF(AND(MONTH('Liquiditätsplan-1.Jahr'!$D10)>=8,MONTH('Liquiditätsplan-1.Jahr'!H10)=7),'Zins und Tilgung'!$T4*'Zins und Tilgung'!$T6/100,0) -> 0.0 | G86: ='Zins und Tilgung'!$T$4*'Zins und Tilgung'!$T$5*0.25/100+IF(AND(MONTH('Liquiditätsplan-1.Jahr'!$D10)>=8,MONTH('Liquiditätsplan-1.Jahr'!I10)=7),'Zins und Tilgung'!$T4*'Zins und Tilgung'!$T6/100,0) -> 0.0 | H86: =IF(AND(MONTH('Liquiditätsplan-1.Jahr'!$D10)>=8,MONTH('Liquiditätsplan-1.Jahr'!J10)=7),'Zins und Tilgung'!$T4*'Zins und Tilgung'!$T6/100,0) -> 0.0 | I86: =IF(AND(MONTH('Liquiditätsplan-1.Jahr'!$D10)>=8,MONTH('Liquiditätsplan-1.Jahr'!K10)=7),'Zins und Tilgung'!$T4*'Zins und Tilgung'!$T6/100,0) -> 0.0 | J86: ='Zins und Tilgung'!$T$4*'Zins und Tilgung'!$T$5*0.25/100+IF(AND(MONTH('Liquiditätsplan-1.Jahr'!$D10)>=8,MONTH('Liquiditätsplan-1.Jahr'!L10)=7),'Zins und Tilgung'!$T4*'Zins und Tilgung'!$T6/100,0) -> 0.0 | K86: =IF(AND(MONTH('Liquiditätsplan-1.Jahr'!$D10)>=8,MONTH('Liquiditätsplan-1.Jahr'!M10)=7),'Zins und Tilgung'!$T4*'Zins und Tilgung'!$T6/100,0) -> 0.0 | L86: =IF(AND(MONTH('Liquiditätsplan-1.Jahr'!$D10)>=8,MONTH('Liquiditätsplan-1.Jahr'!N10)=7),'Zins und Tilgung'!$T4*'Zins und Tilgung'!$T6/100,0) -> 0.0 | M86: ='Zins und Tilgung'!$T$4*'Zins und Tilgung'!$T$5*0.25/100+IF(AND(MONTH('Liquiditätsplan-1.Jahr'!$D10)>=8,MONTH('Liquiditätsplan-1.Jahr'!O10)=7),'Zins und Tilgung'!$T4*'Zins und Tilgung'!$T6/100,0) -> 0.0 | N86: =SUM(B86:M86) -> 0
A87: Gesamt | B87: =SUM(B84:B86) -> 0.0 | C87: =SUM(C84:C86) -> 0.0 | D87: 0.0 | E87: 0.0 | F87: 0.0 | G87: 0.0 | H87: 0.0 | I87: 0.0 | J87: 0.0 | K87: 0.0 | L87: 0.0 | M87: 0.0 | N87: =SUM(N84:N86) -> 0 | O87: =SUM(B87:M87) -> 0.0
A89: 2. Jahr | B89: 13 | C89: 14 | D89: 15 | E89: 16 | F89: 17 | G89: 18 | H89: 19 | I89: 20 | J89: 21 | K89: 22 | L89: 23 | M89: 24 | N89: Gesamt
A90: Darlehen 1: | B90: =IF(B70=0,'Zins und Tilgung'!$H14*'Zins und Tilgung'!$H$5/100/12,('Zins und Tilgung'!H$14-Hilfstabelle!$B70)*'Zins und Tilgung'!$H$5/100/12) -> 0.0 | C90: =IF(C70=0,'Zins und Tilgung'!$H14*'Zins und Tilgung'!$H$5/100/12,('Zins und Tilgung'!$H14-SUM($B70:C70))*'Zins und Tilgung'!$H$5/100/12) -> 0.0 | D90: =IF(D70=0,'Zins und Tilgung'!$H14*'Zins und Tilgung'!$H$5/100/12,('Zins und Tilgung'!$H14-SUM($B70:D70))*'Zins und Tilgung'!$H$5/100/12) -> 0.0 | E90: =IF(E70=0,'Zins und Tilgung'!$H14*'Zins und Tilgung'!$H$5/100/12,('Zins und Tilgung'!$H14-SUM($B70:E70))*'Zins und Tilgung'!$H$5/100/12) -> 0.0 | F90: =IF(F70=0,'Zins und Tilgung'!$H14*'Zins und Tilgung'!$H$5/100/12,('Zins und Tilgung'!$H14-SUM($B70:F70))*'Zins und Tilgung'!$H$5/100/12) -> 0.0 | G90: =IF(G70=0,'Zins und Tilgung'!$H14*'Zins und Tilgung'!$H$5/100/12,('Zins und Tilgung'!$H14-SUM($B70:G70))*'Zins und Tilgung'!$H$5/100/12) -> 0.0 | H90: =IF(H70=0,'Zins und Tilgung'!$H14*'Zins und Tilgung'!$H$5/100/12,('Zins und Tilgung'!$H14-SUM($B70:H70))*'Zins und Tilgung'!$H$5/100/12) -> 0.0 | I90: =IF(I70=0,'Zins und Tilgung'!$H14*'Zins und Tilgung'!$H$5/100/12,('Zins und Tilgung'!$H14-SUM($B70:I70))*'Zins und Tilgung'!$H$5/100/12) -> 0.0 | J90: =IF(J70=0,'Zins und Tilgung'!$H14*'Zins und Tilgung'!$H$5/100/12,('Zins und Tilgung'!$H14-SUM($B70:J70))*'Zins und Tilgung'!$H$5/100/12) -> 0.0 | K90: =IF(K70=0,'Zins und Tilgung'!$H14*'Zins und Tilgung'!$H$5/100/12,('Zins und Tilgung'!$H14-SUM($B70:K70))*'Zins und Tilgung'!$H$5/100/12) -> 0.0 | L90: =IF(L70=0,'Zins und Tilgung'!$H14*'Zins und Tilgung'!$H$5/100/12,('Zins und Tilgung'!$H14-SUM($B70:L70))*'Zins und Tilgung'!$H$5/100/12) -> 0.0 | M90: =IF(M70=0,'Zins und Tilgung'!$H14*'Zins und Tilgung'!$H$5/100/12,('Zins und Tilgung'!$H14-SUM($B70:M70))*'Zins und Tilgung'!$H$5/100/12) -> 0.0 | N90: =SUM(B90:M90) -> 0
A91: Darlehen 2: | B91: =IF(B71=0,'Zins und Tilgung'!$N14*'Zins und Tilgung'!$N$5/100/12,('Zins und Tilgung'!N$14-Hilfstabelle!$B71)*'Zins und Tilgung'!$N$5/100/12) -> 0.0 | C91: =IF(C71=0,'Zins und Tilgung'!$N14*'Zins und Tilgung'!$N$5/100/12,('Zins und Tilgung'!$N14-SUM($B71:C71))*'Zins und Tilgung'!$N$5/100/12) -> 0.0 | D91: =IF(D71=0,'Zins und Tilgung'!$N14*'Zins und Tilgung'!$N$5/100/12,('Zins und Tilgung'!$N14-SUM($B71:D71))*'Zins und Tilgung'!$N$5/100/12) -> 0.0 | E91: =IF(E71=0,'Zins und Tilgung'!$N14*'Zins und Tilgung'!$N$5/100/12,('Zins und Tilgung'!$N14-SUM($B71:E71))*'Zins und Tilgung'!$N$5/100/12) -> 0.0 | F91: =IF(F71=0,'Zins und Tilgung'!$N14*'Zins und Tilgung'!$N$5/100/12,('Zins und Tilgung'!$N14-SUM($B71:F71))*'Zins und Tilgung'!$N$5/100/12) -> 0.0 | G91: =IF(G71=0,'Zins und Tilgung'!$N14*'Zins und Tilgung'!$N$5/100/12,('Zins und Tilgung'!$N14-SUM($B71:G71))*'Zins und Tilgung'!$N$5/100/12) -> 0.0 | H91: =IF(H71=0,'Zins und Tilgung'!$N14*'Zins und Tilgung'!$N$5/100/12,('Zins und Tilgung'!$N14-SUM($B71:H71))*'Zins und Tilgung'!$N$5/100/12) -> 0.0 | I91: =IF(I71=0,'Zins und Tilgung'!$N14*'Zins und Tilgung'!$N$5/100/12,('Zins und Tilgung'!$N14-SUM($B71:I71))*'Zins und Tilgung'!$N$5/100/12) -> 0.0 | J91: =IF(J71=0,'Zins und Tilgung'!$N14*'Zins und Tilgung'!$N$5/100/12,('Zins und Tilgung'!$N14-SUM($B71:J71))*'Zins und Tilgung'!$N$5/100/12) -> 0.0 | K91: =IF(K71=0,'Zins und Tilgung'!$N14*'Zins und Tilgung'!$N$5/100/12,('Zins und Tilgung'!$N14-SUM($B71:K71))*'Zins und Tilgung'!$N$5/100/12) -> 0.0 | L91: =IF(L71=0,'Zins und Tilgung'!$N14*'Zins und Tilgung'!$N$5/100/12,('Zins und Tilgung'!$N14-SUM($B71:L71))*'Zins und Tilgung'!$N$5/100/12) -> 0.0 | M91: =IF(M71=0,'Zins und Tilgung'!$N14*'Zins und Tilgung'!$N$5/100/12,('Zins und Tilgung'!$N14-SUM($B71:M71))*'Zins und Tilgung'!$N$5/100/12) -> 0.0 | N91: =SUM(B91:M91) -> 0
A92: Mikromezzanin | B92: =IF(MONTH('Liquiditätsplan-2.Jahr'!D$10)=7,'Zins und Tilgung'!$T$4*'Zins und Tilgung'!$T$6/100,0) -> 0.0 | C92: =IF(MONTH('Liquiditätsplan-2.Jahr'!E$10)=7,'Zins und Tilgung'!$T$4*'Zins und Tilgung'!$T$6/100,0) -> 0.0 | D92: ='Zins und Tilgung'!$T$4*'Zins und Tilgung'!$T$5*0.25/100+IF(MONTH('Liquiditätsplan-2.Jahr'!F$10)=7,'Zins und Tilgung'!$T$4*'Zins und Tilgung'!$T$6/100,0) -> 0.0 | E92: =IF(MONTH('Liquiditätsplan-2.Jahr'!G$10)=7,'Zins und Tilgung'!$T$4*'Zins und Tilgung'!$T$6/100,0) -> 0.0 | F92: =IF(MONTH('Liquiditätsplan-2.Jahr'!H$10)=7,'Zins und Tilgung'!$T$4*'Zins und Tilgung'!$T$6/100,0) -> 0.0 | G92: ='Zins und Tilgung'!$T$4*'Zins und Tilgung'!$T$5*0.25/100+IF(MONTH('Liquiditätsplan-2.Jahr'!I$10)=7,'Zins und Tilgung'!$T$4*'Zins und Tilgung'!$T$6/100,0) -> 0.0 | H92: =IF(MONTH('Liquiditätsplan-2.Jahr'!J$10)=7,'Zins und Tilgung'!$T$4*'Zins und Tilgung'!$T$6/100,0) -> 0.0 | I92: =IF(MONTH('Liquiditätsplan-2.Jahr'!K$10)=7,'Zins und Tilgung'!$T$4*'Zins und Tilgung'!$T$6/100,0) -> 0.0 | J92: ='Zins und Tilgung'!$T$4*'Zins und Tilgung'!$T$5*0.25/100+IF(MONTH('Liquiditätsplan-2.Jahr'!L$10)=7,'Zins und Tilgung'!$T$4*'Zins und Tilgung'!$T$6/100,0) -> 0.0 | K92: =IF(MONTH('Liquiditätsplan-2.Jahr'!M$10)=7,'Zins und Tilgung'!$T$4*'Zins und Tilgung'!$T$6/100,0) -> 0.0 | L92: =IF(MONTH('Liquiditätsplan-2.Jahr'!N$10)=7,'Zins und Tilgung'!$T$4*'Zins und Tilgung'!$T$6/100,0) -> 0.0 | M92: ='Zins und Tilgung'!$T$4*'Zins und Tilgung'!$T$5*0.25/100+IF(MONTH('Liquiditätsplan-2.Jahr'!O$10)=7,'Zins und Tilgung'!$T$4*'Zins und Tilgung'!$T$6/100,0) -> 0.0 | N92: =SUM(B92:M92) -> 0
A93: Gesamt | B93: =SUM(B90:B92) -> 0.0 | C93: 0.0 | D93: 0.0 | E93: 0.0 | F93: 0.0 | G93: 0.0 | H93: 0.0 | I93: 0.0 | J93: 0.0 | K93: 0.0 | L93: 0.0 | M93: 0.0 | N93: =SUM(N90:N92) -> 0 | O93: =SUM(B93:M93) -> 0.0
A95: 3. Jahr | B95: 25 | C95: 26 | D95: 27 | E95: 28 | F95: 29 | G95: 30 | H95: 31 | I95: 32 | J95: 33 | K95: 34 | L95: 35 | M95: 36 | N95: Gesamt
A96: Darlehen 1: | B96: =IF(B76=0,'Zins und Tilgung'!$H15*'Zins und Tilgung'!$H$5/100/12,('Zins und Tilgung'!H$15-Hilfstabelle!$B76)*'Zins und Tilgung'!$H$5/100/12) -> 0.0 | C96: =IF(C76=0,'Zins und Tilgung'!$H15*'Zins und Tilgung'!$H$5/100/12,('Zins und Tilgung'!$H15-SUM($B76:C76))*'Zins und Tilgung'!$H$5/100/12) -> 0.0 | D96: =IF(D76=0,'Zins und Tilgung'!$H15*'Zins und Tilgung'!$H$5/100/12,('Zins und Tilgung'!$H15-SUM($B76:D76))*'Zins und Tilgung'!$H$5/100/12) -> 0.0 | E96: =IF(E76=0,'Zins und Tilgung'!$H15*'Zins und Tilgung'!$H$5/100/12,('Zins und Tilgung'!$H15-SUM($B76:E76))*'Zins und Tilgung'!$H$5/100/12) -> 0.0 | F96: =IF(F76=0,'Zins und Tilgung'!$H15*'Zins und Tilgung'!$H$5/100/12,('Zins und Tilgung'!$H15-SUM($B76:F76))*'Zins und Tilgung'!$H$5/100/12) -> 0.0 | G96: =IF(G76=0,'Zins und Tilgung'!$H15*'Zins und Tilgung'!$H$5/100/12,('Zins und Tilgung'!$H15-SUM($B76:G76))*'Zins und Tilgung'!$H$5/100/12) -> 0.0 | H96: =IF(H76=0,'Zins und Tilgung'!$H15*'Zins und Tilgung'!$H$5/100/12,('Zins und Tilgung'!$H15-SUM($B76:H76))*'Zins und Tilgung'!$H$5/100/12) -> 0.0 | I96: =IF(I76=0,'Zins und Tilgung'!$H15*'Zins und Tilgung'!$H$5/100/12,('Zins und Tilgung'!$H15-SUM($B76:I76))*'Zins und Tilgung'!$H$5/100/12) -> 0.0 | J96: =IF(J76=0,'Zins und Tilgung'!$H15*'Zins und Tilgung'!$H$5/100/12,('Zins und Tilgung'!$H15-SUM($B76:J76))*'Zins und Tilgung'!$H$5/100/12) -> 0.0 | K96: =IF(K76=0,'Zins und Tilgung'!$H15*'Zins und Tilgung'!$H$5/100/12,('Zins und Tilgung'!$H15-SUM($B76:K76))*'Zins und Tilgung'!$H$5/100/12) -> 0.0 | L96: =IF(L76=0,'Zins und Tilgung'!$H15*'Zins und Tilgung'!$H$5/100/12,('Zins und Tilgung'!$H15-SUM($B76:L76))*'Zins und Tilgung'!$H$5/100/12) -> 0.0 | M96: =IF(M76=0,'Zins und Tilgung'!$H15*'Zins und Tilgung'!$H$5/100/12,('Zins und Tilgung'!$H15-SUM($B76:M76))*'Zins und Tilgung'!$H$5/100/12) -> 0.0 | N96: =SUM(B96:M96) -> 0
A97: Darlehen 2: | B97: =IF(B77=0,'Zins und Tilgung'!$N15*'Zins und Tilgung'!$N$5/100/12,('Zins und Tilgung'!N$15-Hilfstabelle!$B77)*'Zins und Tilgung'!$N$5/100/12) -> 0.0 | C97: =IF(C77=0,'Zins und Tilgung'!$N15*'Zins und Tilgung'!$N$5/100/12,('Zins und Tilgung'!$N15-SUM($B77:C77))*'Zins und Tilgung'!$N$5/100/12) -> 0.0 | D97: =IF(D77=0,'Zins und Tilgung'!$N15*'Zins und Tilgung'!$N$5/100/12,('Zins und Tilgung'!$N15-SUM($B77:D77))*'Zins und Tilgung'!$N$5/100/12) -> 0.0 | E97: =IF(E77=0,'Zins und Tilgung'!$N15*'Zins und Tilgung'!$N$5/100/12,('Zins und Tilgung'!$N15-SUM($B77:E77))*'Zins und Tilgung'!$N$5/100/12) -> 0.0 | F97: =IF(F77=0,'Zins und Tilgung'!$N15*'Zins und Tilgung'!$N$5/100/12,('Zins und Tilgung'!$N15-SUM($B77:F77))*'Zins und Tilgung'!$N$5/100/12) -> 0.0 | G97: =IF(G77=0,'Zins und Tilgung'!$N15*'Zins und Tilgung'!$N$5/100/12,('Zins und Tilgung'!$N15-SUM($B77:G77))*'Zins und Tilgung'!$N$5/100/12) -> 0.0 | H97: =IF(H77=0,'Zins und Tilgung'!$N15*'Zins und Tilgung'!$N$5/100/12,('Zins und Tilgung'!$N15-SUM($B77:H77))*'Zins und Tilgung'!$N$5/100/12) -> 0.0 | I97: =IF(I77=0,'Zins und Tilgung'!$N15*'Zins und Tilgung'!$N$5/100/12,('Zins und Tilgung'!$N15-SUM($B77:I77))*'Zins und Tilgung'!$N$5/100/12) -> 0.0 | J97: =IF(J77=0,'Zins und Tilgung'!$N15*'Zins und Tilgung'!$N$5/100/12,('Zins und Tilgung'!$N15-SUM($B77:J77))*'Zins und Tilgung'!$N$5/100/12) -> 0.0 | K97: =IF(K77=0,'Zins und Tilgung'!$N15*'Zins und Tilgung'!$N$5/100/12,('Zins und Tilgung'!$N15-SUM($B77:K77))*'Zins und Tilgung'!$N$5/100/12) -> 0.0 | L97: =IF(L77=0,'Zins und Tilgung'!$N15*'Zins und Tilgung'!$N$5/100/12,('Zins und Tilgung'!$N15-SUM($B77:L77))*'Zins und Tilgung'!$N$5/100/12) -> 0.0 | M97: =IF(M77=0,'Zins und Tilgung'!$N15*'Zins und Tilgung'!$N$5/100/12,('Zins und Tilgung'!$N15-SUM($B77:M77))*'Zins und Tilgung'!$N$5/100/12) -> 0.0 | N97: =SUM(B97:M97) -> 0
A98: Mikromezzanin | B98: =IF(MONTH('Liquiditätsplan-3.Jahr'!D$10)=7,'Zins und Tilgung'!$T$4*'Zins und Tilgung'!$T$6/100,0) -> 0.0 | C98: =IF(MONTH('Liquiditätsplan-3.Jahr'!E$10)=7,'Zins und Tilgung'!$T$4*'Zins und Tilgung'!$T$6/100,0) -> 0.0 | D98: ='Zins und Tilgung'!$T$4*'Zins und Tilgung'!$T$5*0.25/100+IF(MONTH('Liquiditätsplan-3.Jahr'!F$10)=7,'Zins und Tilgung'!$T$4*'Zins und Tilgung'!$T$6/100,0) -> 0.0 | E98: =IF(MONTH('Liquiditätsplan-3.Jahr'!G$10)=7,'Zins und Tilgung'!$T$4*'Zins und Tilgung'!$T$6/100,0) -> 0.0 | F98: =IF(MONTH('Liquiditätsplan-3.Jahr'!H$10)=7,'Zins und Tilgung'!$T$4*'Zins und Tilgung'!$T$6/100,0) -> 0.0 | G98: ='Zins und Tilgung'!$T$4*'Zins und Tilgung'!$T$5*0.25/100+IF(MONTH('Liquiditätsplan-3.Jahr'!I$10)=7,'Zins und Tilgung'!$T$4*'Zins und Tilgung'!$T$6/100,0) -> 0.0 | H98: =IF(MONTH('Liquiditätsplan-3.Jahr'!J$10)=7,'Zins und Tilgung'!$T$4*'Zins und Tilgung'!$T$6/100,0) -> 0.0 | I98: =IF(MONTH('Liquiditätsplan-3.Jahr'!K$10)=7,'Zins und Tilgung'!$T$4*'Zins und Tilgung'!$T$6/100,0) -> 0.0 | J98: ='Zins und Tilgung'!$T$4*'Zins und Tilgung'!$T$5*0.25/100+IF(MONTH('Liquiditätsplan-3.Jahr'!L$10)=7,'Zins und Tilgung'!$T$4*'Zins und Tilgung'!$T$6/100,0) -> 0.0 | K98: =IF(MONTH('Liquiditätsplan-3.Jahr'!M$10)=7,'Zins und Tilgung'!$T$4*'Zins und Tilgung'!$T$6/100,0) -> 0.0 | L98: =IF(MONTH('Liquiditätsplan-3.Jahr'!N$10)=7,'Zins und Tilgung'!$T$4*'Zins und Tilgung'!$T$6/100,0) -> 0.0 | M98: ='Zins und Tilgung'!$T$4*'Zins und Tilgung'!$T$5*0.25/100+IF(MONTH('Liquiditätsplan-3.Jahr'!O$10)=7,'Zins und Tilgung'!$T$4*'Zins und Tilgung'!$T$6/100,0) -> 0.0 | N98: =SUM(B98:M98) -> 0
A99: Gesamt | B99: =SUM(B96:B98) -> 0.0 | C99: 0.0 | D99: 0.0 | E99: 0.0 | F99: 0.0 | G99: 0.0 | H99: 0.0 | I99: 0.0 | J99: 0.0 | K99: 0.0 | L99: 0.0 | M99: 0.0 | N99: =SUM(N96:N98) -> 0 | O99: =SUM(B99:M99) -> 0.0
